Workbook

Sheet Berechnen
A1: 2012 | H1: =IF(DAY($H$2)=1,DATE(YEAR($H$2),MONTH($H$2)-1,DAY(1)),DATE(YEAR($H$2),MONTH($H$2),DAY(1))) -> 2025-12-01
A2: Berechnen | B2: 1 | C2: 1 | H2: 2026-01-01 | I2: Alle Angaben und Berechnungen ohne Gewähr
A3: 0 | C3: u-Nr. ? | D3: =MATCH($C$3,Namen!$D$4:$D$354,0) ->  | H3: =DATE(YEAR($H$2),MONTH($H$2)+1,DAY(1)) -> 2026-02-01 | I3: =IF($A$7<62,"Geänderte Touren wegen Feiertagen sind nicht berücksichtigt","") -> 
A4: =COUNTBLANK($A$8:$A$69)+COUNTIF($A$8:$A$69,"Einteilung geä.") -> 62 | D4: =MATCH($C$3,Namen!$D$4:$D$354,0) ->  | H4: =IF(DAY($H$2)=1,DATE(YEAR($H$2),MONTH($H$2)-1,DAY(1)),DATE(YEAR($H$2),MONTH($H$2),DAY(1))) -> 2025-12-01
A5: =COUNTBLANK($A$8:$A$69)+COUNTIF($A$8:$A$69,"Einteilung geä.") -> 62 | B5: =LOOKUP($B$2,Namen!$A$5:$A$354,Namen!$X$5:$X$354) ->  | G5: Pers.Nr.: | H5: =LOOKUP($B$2,Namen!$A$5:$A$354,Namen!$D$5:$D$354) ->  | I5: Einteilung: | J5: =CONCATENATE(TEXT(IF(OR($C$66<$AB$27,$C$8<$AB$21),$AB$20,""),"TT.MM.JJ"),IF(AND($AB$27>0,$C$66>$AB$21,OR($C$66<$AB$27,$C$8<$AB$21))," / ",""),TEXT(IF(AND($AB$27>0,$C$66>$AB$21),$AB$27,""),"TT.MM.JJ")) ->  | L5: Alle Angaben ohne Gewähr!
B6: =CONCATENATE(" ",IF(OR($C$66<$AB$27,$C$8<$AB$21),LOOKUP($AB$19,$AA$10:$AA$17,$AB$10:$AB$17),""),IF(AND($AB$27>0,$C$66>$AB$21,OR($C$66<$AB$27,$C$8<$AB$21))," / ",""),IF(AND($AB$27>0,$C$66>$AB$21),LOOKUP($AB$26,$AA$10:$AA$17,$AH$10:$AH$17),"")) ->  | G6: =IF(H6=0,"","Telefon:") ->  | H6: =LOOKUP($B$2,Namen!$A$5:$A$354,Namen!$W$5:$W$354) ->  | I6: Geändert: | J6: =IF($I$89="","",$I$89) -> 2025-12-02 | L6: =IF($A$7<62," Feiertage nicht berücksichtigt","") ->  | X6: =IF(AND($C8>=$AB$20,$C8<=$AB$21,ISNUMBER($V8)),1,IF(AND($C8>=$AB$27,$C8<=$AB$28,ISNUMBER($W8)),3,IF(AND($C8>$AB$21,$AB$26=0,$AB$29=0),0,IF(AND($C8>$AB$21,ISNUMBER($V8)),5,IF(AND($C8<$AB$21,$AB$27=0,ISNUMBER($V8)),2,IF(AND($C8>$AB$27,ISNUMBER($W8)),4,0)))))) -> 
A7: =COUNTBLANK($A$8:$A$69)+COUNTIF($A$8:$A$69,"Einteilung geä.") -> 62 | B7: Tag | C7: Datum | D7: DIN | E7: Tour | F7: AB | G7: AE | H7: Bemerkungen | I7: P1 von | J7: P1 bis | K7: P1 | L7: P2 von | M7: P2 bis | N7: P2 | S7: Ferien | T7: Rotation 1 | U7: Rotation 2 | V7: Tour 1 | W7: Tour 2 | X7: Art | Y7: Berechnet
A8: =IF($B$2=1,"",IF(OR($C8=$AB$20,$C8=$AB$21+1,$C8=$AB$27,$C8=$AB$28+1),"Einteilung geä.",IF(ISNA(VLOOKUP($C8,Feiertage,3,FALSE)),"",VLOOKUP($C8,Feiertage,3,FALSE)))) ->  | B8: =WEEKDAY(C8) -> 1900-01-05 | C8: =H2 -> 2026-01-01 | D8: =IF($B8=2,TRUNC(($C8-WEEKDAY($C8,2)-DATE(YEAR($C8+4-WEEKDAY($C8,2)),1,-10))/7),"") ->  | E8: =IF($S8="F","Ferien",IF(ISNUMBER($Y8),VLOOKUP($Y8,Touren,2,FALSE),"")) ->  | F8: =IF($S8="F","",IF(ISNUMBER($Y8),VLOOKUP($Y8,Touren,3,FALSE),"")) ->  | G8: =IF($S8="F","",IF(ISNUMBER($Y8),VLOOKUP($Y8,Touren,4,FALSE),"")) ->  | H8: =IF($C8="","",IF($S8="F","",IF($X8=0,"z.Z. keine Angaben",IF($X8=2,"vor Fpln-Wechsel !",IF(OR($X8=4,$X8=5),"nach Fpln-Wechsel !",IF(ISNUMBER($Y8),VLOOKUP($Y8,Touren,5,FALSE),"")))))) ->  | I8: =IF($S8="F","",IF(ISNUMBER($Y8),VLOOKUP($Y8,Touren,6,FALSE),"")) ->  | J8: =IF($S8="F","",IF(ISNUMBER($Y8),VLOOKUP($Y8,Touren,7,FALSE),"")) ->  | K8: =IF($S8="F","",IF(ISNUMBER($Y8),VLOOKUP($Y8,Touren,8,FALSE),"")) ->  | L8: =IF($S8="F","",IF(ISNUMBER($Y8),VLOOKUP($Y8,Touren,9,FALSE),"")) ->  | M8: =IF($S8="F","",IF(ISNUMBER($Y8),VLOOKUP($Y8,Touren,10,FALSE),"")) ->  | N8: =IF($S8="F","",IF(ISNUMBER($Y8),VLOOKUP($Y8,Touren,11,FALSE),"")) ->  | S8: =IF(OR(AND($AB$34-2<C8,$AB$34+7>C8),AND($AB$35-2<C8,$AB$35+7>C8),AND($AB$36-2<C8,$AB$36+7>C8),AND($AB$37-2<C8,$AB$37+7>C8),AND($AB$38-2<C8,$AB$38+7>C8),AND($AB$39-2<C8,$AB$39+7>C8),AND($AB$40-2<C8,$AB$40+7>C8),AND($AB$41-2<C8,$AB$41+7>C8),AND($AB$42-2<C8,$AB$42+7>C8),AND($AB$43-2<C8,$AB$43+7>C8),AND($AB$44-2<C8,$AB$44+7>C8),AND($AB$45-2<C8,$AB$45+7>C8),AND($AB$46-2<C8,$AB$46+7>C8),AND($AB$47-2<C8,$AB$47+7>C8))=TRUE,"F",) ->  | T8: =($C$8-RotA!$K$4+$AB$23-INT(($C$8-RotA!$K$4+$AB$23-1)/$AB$24)*$AB$24+$AB$25) ->  | U8: =($C$8-RotA!$K$5+$AB$30-INT(($C$8-RotA!$K$5+$AB$30-1)/$AB$31)*$AB$31+$AB$32) ->  | V8: =VLOOKUP(T8,Rotation,2,FALSE) ->  | W8: =VLOOKUP(U8,Rotation,2,FALSE) ->  | X8: =IF(AND($C8>=$AB$20,$C8<=$AB$21,ISNUMBER($V8)),1,IF(AND($C8>=$AB$27,$C8<=$AB$28,ISNUMBER($W8)),3,IF(AND($C8>$AB$21,$AB$26=0,$AB$29<>0),0,IF(AND($C8>$AB$21,ISNUMBER($V8)),5,IF(AND($C8<$AB$21,$AB$27=0,ISNUMBER($V8)),2,IF(AND($C8>$AB$27,ISNUMBER($W8)),4,0)))))) ->  | Y8: =IF(OR($X8=1,$X8=2,$X8=5),$V8,IF(OR($X8=3,$X8=4),$W8,"")) -> 
B9: =WEEKDAY(C9) -> 1900-01-06 | C9: =C8+1 -> 2026-01-02 | D9: =IF($B9=2,TRUNC(($C9-WEEKDAY($C9,2)-DATE(YEAR($C9+4-WEEKDAY($C9,2)),1,-10))/7),"") ->  | F9: =IF($S9="F","",IF(ISNUMBER($Y9),VLOOKUP($Y9,Touren,3,FALSE),"")) ->  | G9: =IF($S9="F","",IF(ISNUMBER($Y9),VLOOKUP($Y9,Touren,4,FALSE),"")) ->  | I9: =IF($S9="F","",IF(ISNUMBER($Y9),VLOOKUP($Y9,Touren,6,FALSE),"")) ->  | J9: =IF($S9="F","",IF(ISNUMBER($Y9),VLOOKUP($Y9,Touren,7,FALSE),"")) ->  | K9: =IF($S9="F","",IF(ISNUMBER($Y9),VLOOKUP($Y9,Touren,8,FALSE),"")) ->  | L9: =IF($S9="F","",IF(ISNUMBER($Y9),VLOOKUP($Y9,Touren,9,FALSE),"")) ->  | M9: =IF($S9="F","",IF(ISNUMBER($Y9),VLOOKUP($Y9,Touren,10,FALSE),"")) ->  | N9: =IF($S9="F","",IF(ISNUMBER($Y9),VLOOKUP($Y9,Touren,11,FALSE),"")) ->  | S9: =IF(OR(AND($AB$34-2<C9,$AB$34+7>C9),AND($AB$35-2<C9,$AB$35+7>C9),AND($AB$36-2<C9,$AB$36+7>C9),AND($AB$37-2<C9,$AB$37+7>C9),AND($AB$38-2<C9,$AB$38+7>C9),AND($AB$39-2<C9,$AB$39+7>C9),AND($AB$40-2<C9,$AB$40+7>C9),AND($AB$41-2<C9,$AB$41+7>C9),AND($AB$42-2<C9,$AB$42+7>C9),AND($AB$43-2<C9,$AB$43+7>C9),AND($AB$44-2<C9,$AB$44+7>C9),AND($AB$45-2<C9,$AB$45+7>C9),AND($AB$46-2<C9,$AB$46+7>C9),AND($AB$47-2<C9,$AB$47+7>C9))=TRUE,"F",) ->  | T9: =IF(T8-$AB$25=$AB$24,1+$AB$25,T8+1) ->  | U9: =IF(U8-$AB$32=$AB$31,1+$AB$32,U8+1) ->  | V9: =VLOOKUP(T9,Rotation,2,FALSE) ->  | W9: =VLOOKUP(U9,Rotation,2,FALSE) ->  | X9: =IF(AND($C9>=$AB$20,$C9<=$AB$21,ISNUMBER($V9)),1,IF(AND($C9>=$AB$27,$C9<=$AB$28,ISNUMBER($W9)),3,IF(AND($C9>$AB$21,$AB$26=0,$AB$29<>0),0,IF(AND($C9>$AB$21,ISNUMBER($V9)),5,IF(AND($C9<$AB$21,$AB$27=0,ISNUMBER($V9)),2,IF(AND($C9>$AB$27,ISNUMBER($W9)),4,0)))))) ->  | Y9: =IF(OR($X9=1,$X9=2,$X9=5),$V9,IF(OR($X9=3,$X9=4),$W9,"")) ->  | AA9: Nr. | AB9: Name 1 | AC9: Gültig ab | AD9: Gültig bis | AE9: Dauer 1 | AF9: Tour-Finder | AG9: NA | AH9: Name 2 | AI9: Gültig ab | AJ9: Gültig bis | AK9: Dauer 2 | AL9: Tour-Finder | AM9: NA
B10: 1900-01-07 | C10: =C8+2 -> 2026-01-03 | D10: =IF($B10=2,TRUNC(($C10-WEEKDAY($C10,2)-DATE(YEAR($C10+4-WEEKDAY($C10,2)),1,-10))/7),"") ->  | AA10: 1 | AB10: =RotA!$E$9 -> Test 1 | AC10: =RotA!$E$10 -> 46005 | AD10: =RotA!$E$11 -> 46368 | AE10: =RotA!$E$12*7 -> 35 | AF10: 1000 | AG10: =RotA!$E$13 -> 0 | AH10: =RotA!$N$9 -> 0 | AI10: =RotA!$N$10 -> 0 | AJ10: =RotA!$N$11 -> 0 | AK10: =RotA!$N$12*7 -> 0 | AL10: 1500 | AM10: =RotA!$N$13 -> 0
B11: 1900-01-01 | C11: =C8+3 -> 2026-01-04 | AA11: 2 | AB11: =RotA!$E$82 -> Test 2 | AC11: =RotA!$E$83 -> 46005 | AD11: =RotA!$E$84 -> 46368 | AE11: =RotA!$E$85*7 -> 35 | AF11: 2000 | AG11: =RotA!$E$86 -> 0 | AH11: =RotA!$N$82 -> 0 | AI11: =RotA!$N$83 -> 0 | AJ11: =RotA!$N$84 -> 0 | AK11: =RotA!$N$85*7 -> 0 | AL11: 2500 | AM11: =RotA!$N$86 -> 0
B12: 1900-01-02 | C12: =C8+4 -> 2026-01-05 | D12: 2 | AA12: 3 | AB12: =RotA!$E$155 -> 0 | AC12: =RotA!$E$156 -> 0 | AD12: =RotA!$E$157 -> 0 | AE12: =RotA!$E$158*7 -> 0 | AF12: 3000 | AG12: =RotA!$E$159 -> 0 | AH12: =RotA!$N$155 -> 0 | AI12: =RotA!$N$156 -> 0 | AJ12: =RotA!$N$157 -> 0 | AK12: =RotA!$N$158*7 -> 0 | AL12: 3500 | AM12: =RotA!$N$159 -> 0
B13: 1900-01-03 | C13: =C8+5 -> 2026-01-06 | AA13: 4 | AB13: =RotA!$E$228 -> 0 | AC13: =RotA!$E$229 -> 0 | AD13: =RotA!$E$230 -> 0 | AE13: =RotA!$E$231*7 -> 0 | AF13: 4000 | AG13: =RotA!$E$232 -> 0 | AH13: =RotA!$N$228 -> 0 | AI13: =RotA!$N$229 -> 0 | AJ13: =RotA!$N$230 -> 0 | AK13: =RotA!$N$231*7 -> 0 | AL13: 4500 | AM13: =RotA!$N$232 -> 0
B14: 1900-01-04 | C14: =C8+6 -> 2026-01-07 | AA14: 5 | AB14: =RotA!$E$301 -> 0 | AC14: =RotA!$E$302 -> 0 | AD14: =RotA!$E$303 -> 0 | AE14: =RotA!$E$304*7 -> 0 | AF14: 5000 | AG14: =RotA!$E$305 -> 0 | AH14: =RotA!$N$301 -> 0 | AI14: =RotA!$N$302 -> 0 | AJ14: =RotA!$N$303 -> 0 | AK14: =RotA!$N$304*7 -> 0 | AL14: 5500 | AM14: =RotA!$N$305 -> 0
B15: 1900-01-05 | C15: =C8+7 -> 2026-01-08 | AA15: 6 | AB15: =RotA!$E$374 -> 0 | AC15: =RotA!$E$375 -> 0 | AD15: =RotA!$E$376 -> 0 | AE15: =RotA!$E$377*7 -> 0 | AF15: 6000 | AG15: =RotA!$E$378 -> 0 | AH15: =RotA!$N$374 -> 0 | AI15: =RotA!$N$375 -> 0 | AJ15: =RotA!$N$376 -> 0 | AK15: =RotA!$N$377*7 -> 0 | AL15: 6500 | AM15: =RotA!$N$378 -> 0
B16: 1900-01-06 | C16: =C8+8 -> 2026-01-09 | AA16: 7 | AB16: =RotA!$E$447 -> 0 | AC16: =RotA!$E$448 -> 0 | AD16: =RotA!$E$449 -> 0 | AE16: =RotA!$E$450*7 -> 0 | AF16: 7000 | AG16: =RotA!$E$451 -> 0 | AH16: =RotA!$N$447 -> 0 | AI16: =RotA!$N$448 -> 0 | AJ16: =RotA!$N$449 -> 0 | AK16: =RotA!$N$450*7 -> 0 | AL16: 7500 | AM16: =RotA!$N$451 -> 0
B17: 1900-01-07 | C17: =C8+9 -> 2026-01-10 | AA17: 8 | AB17: =RotA!$E$520 -> 0 | AC17: =RotA!$E$521 -> 0 | AD17: =RotA!$E$522 -> 0 | AE17: =RotA!$E$523*7 -> 0 | AF17: 8000 | AG17: =RotA!$E$524 -> 0 | AH17: =RotA!$N$520 -> Solothurn | AI17: =RotA!$N$521 -> 45641 | AJ17: =RotA!$N$522 -> 46004 | AK17: =RotA!$N$523*7 -> 98 | AL17: 8500 | AM17: =RotA!$N$524 -> 0
B18: 1900-01-01 | C18: =C8+10 -> 2026-01-11 | AA18: =LOOKUP($B$2,Namen!$A$5:$A$354,Namen!$X$5:$X$354) -> 
B19: 1900-01-02 | C19: =C8+11 -> 2026-01-12 | D19: 3 | AA19: Gr. Num. 1 | AB19: =LOOKUP($B$2,Namen!$A$5:$A$354,Namen!$E$5:$E$354) -> 
B20: 1900-01-03 | C20: =C8+12 -> 2026-01-13 | AA20: Gültig ab | AB20: =IF($AB$19=0,0,LOOKUP($AB$19,$AA$10:$AA$17,$AC$10:$AC$17)) -> 
B21: 1900-01-04 | C21: =C8+13 -> 2026-01-14 | AA21: Gültig bis | AB21: =IF($AB$19=0,0,LOOKUP($AB$19,$AA$10:$AA$17,$AD$10:$AD$17)) -> 
B22: 1900-01-05 | C22: =C8+14 -> 2026-01-15 | AA22: Rotation 1 | AB22: =LOOKUP($B$2,Namen!$A$5:$A$354,Namen!$F$5:$F$354) -> 
B23: 1900-01-06 | C23: =C8+15 -> 2026-01-16 | V23: =VLOOKUP(T23,Rotation,2,FALSE) ->  | AA23: Starttour 1 | AB23: =($AB$22-1)*7+1 -> 
B24: 1900-01-07 | C24: =C8+16 -> 2026-01-17 | AA24: Anzahl T 1 | AB24: =LOOKUP($AB$19,$AA$10:$AA$17,$AE$10:$AE$17) -> 
B25: 1900-01-01 | C25: =C8+17 -> 2026-01-18 | AA25: Tour-Finder | AB25: =LOOKUP($AB$19,$AA$10:$AA$17,$AF$10:$AF$17) -> 
B26: 1900-01-02 | C26: =C8+18 -> 2026-01-19 | D26: 4 | AA26: Gr. Num. 2 | AB26: =LOOKUP($B$2,Namen!$A$5:$A$354,Namen!$G$5:$G$354) -> 
B27: 1900-01-03 | C27: =C8+19 -> 2026-01-20 | AA27: Gültig ab | AB27: =IF($AB$26=0,0,LOOKUP($AB$26,$AA$10:$AA$17,$AI$10:$AI$17)) -> 
B28: 1900-01-04 | C28: =C8+20 -> 2026-01-21 | AA28: Gültig bis | AB28: =IF($AB$26=0,0,LOOKUP($AB$26,$AA$10:$AA$17,$AJ$10:$AJ$17)) -> 
B29: 1900-01-05 | C29: =C8+21 -> 2026-01-22 | AA29: Rotation 2 | AB29: =LOOKUP($B$2,Namen!$A$5:$A$354,Namen!$H$5:$H$354) -> 
B30: 1900-01-06 | C30: =C8+22 -> 2026-01-23 | AA30: Starttour 2 | AB30: =($AB$29-1)*7+1 -> 
B31: 1900-01-07 | C31: =C8+23 -> 2026-01-24 | AA31: Anzahl T 2 | AB31: =LOOKUP($AB$26,$AA$10:$AA$17,$AK$10:$AK$17) -> 
B32: 1900-01-01 | C32: =C8+24 -> 2026-01-25 | X32: =IF(AND($C32>=$AB$20,$C32<=$AB$21,ISNUMBER($V32)),1,IF(AND($C32>=$AB$27,$C32<=$AB$28,ISNUMBER($W32)),3,IF(AND($C32>$AB$21,$AB$26=0,$AB$29<>0),0,IF(AND($C32>$AB$21,ISNUMBER($V32)),5,IF(AND($C32<$AB$21,$AB$27=0,ISNUMBER($V32)),2,IF(AND($C32>$AB$27,ISNUMBER($W32)),4,0)))))) ->  | AA32: Tour-Finder | AB32: =LOOKUP($AB$26,$AA$10:$AA$17,$AL$10:$AL$17) -> 
B33: 1900-01-02 | C33: =C8+25 -> 2026-01-26 | D33: 5 | AA33: Ferien:
B34: 1900-01-03 | C34: =C8+26 -> 2026-01-27 | AA34: 1 / 1 | AB34: =IF(LOOKUP($B$2,Namen!$A$5:$A$354,Namen!$I$5:$I$354)="",,LOOKUP($B$2,Namen!$A$5:$A$354,Namen!$I$5:$I$354)*7+Namen!$I$2-7) -> 
B35: 1900-01-04 | C35: =C8+27 -> 2026-01-28 | AA35: 2 / 1 | AB35: =IF(LOOKUP($B$2,Namen!$A$5:$A$354,Namen!$J$5:$J$354)="",,LOOKUP($B$2,Namen!$A$5:$A$354,Namen!$J$5:$J$354)*7+Namen!$I$2-7) -> 
B36: =IF(C36="","",WEEKDAY(C36)) -> 1900-01-05 | C36: =IF(DAY($C$8)=1,IF(MONTH(C35+1)=MONTH(C35),C35+1,""),C35+1) -> 2026-01-29 | T36: =IF($C36="","",IF(T35-$AB$25=$AB$24,1+$AB$25,T35+1)) ->  | U36: =IF($C36="","",IF(U35-$AB$32=$AB$31,1+$AB$32,U35+1)) ->  | AA36: 3 / 1 | AB36: =IF(LOOKUP($B$2,Namen!$A$5:$A$354,Namen!$K$5:$K$354)="",,LOOKUP($B$2,Namen!$A$5:$A$354,Namen!$K$5:$K$354)*7+Namen!$I$2-7) -> 
B37: =IF(C37="","",WEEKDAY(C37)) -> 1900-01-06 | C37: =IF(DAY($C$8)=1,IF(MONTH(C35+2)=MONTH(C35),C35+2,""),C35+2) -> 2026-01-30 | T37: =IF($C37="","",IF(T36-$AB$25=$AB$24,1+$AB$25,T36+1)) ->  | U37: =IF($C37="","",IF(U36-$AB$32=$AB$31,1+$AB$32,U36+1)) ->  | V37: =VLOOKUP(T37,Rotation,2,FALSE) ->  | AA37: 4 / 1 | AB37: =IF(LOOKUP($B$2,Namen!$A$5:$A$354,Namen!$L$5:$L$354)="",,LOOKUP($B$2,Namen!$A$5:$A$354,Namen!$L$5:$L$354)*7+Namen!$I$2-7) -> 
B38: =IF(C38="","",WEEKDAY(C38)) -> 1900-01-07 | C38: =IF(DAY($C$8)=1,IF(MONTH(C35+3)=MONTH(C35),C35+3,""),C35+3) -> 2026-01-31 | T38: =IF($C38="","",IF(T37-$AB$25=$AB$24,1+$AB$25,T37+1)) ->  | U38: =IF($C38="","",IF(U37-$AB$32=$AB$31,1+$AB$32,U37+1)) ->  | AA38: 5 / 1 | AB38: =IF(LOOKUP($B$2,Namen!$A$5:$A$354,Namen!$M$5:$M$354)="",,LOOKUP($B$2,Namen!$A$5:$A$354,Namen!$M$5:$M$354)*7+Namen!$I$2-7) -> 
B39: =WEEKDAY(C39) -> 1900-01-01 | C39: =IF(C36="",C35+1,(IF(C37="",C36+1,IF(C38="",C37+1,C38+1)))) -> 2026-02-01 | T39: =IF(T36="",IF(T35-$AB$25=$AB$24,1+$AB$25,T35+1),IF(T37="",IF(T36-$AB$25=$AB$24,1+$AB$25,T36+1),IF(T38="",IF(T37-$AB$25=$AB$24,1+$AB$25,T37+1),IF(T38-$AB$25=$AB$24,1+$AB$25,T38+1)))) ->  | U39: =IF(U36="",IF(U35-$AB$32=$AB$31,1+$AB$32,U35+1),IF(U37="",IF(U36-$AB$32=$AB$31,1+$AB$32,U36+1),IF(U38="",IF($U37-$AB$32=$AB$31,1+$AB$32,U37+1),IF(U38-$AB$32=$AB$31,1+$AB$32,U38+1)))) ->  | AA39: 6 / 1 | AB39: =IF(LOOKUP($B$2,Namen!$A$5:$A$354,Namen!$N$5:$N$354)="",,LOOKUP($B$2,Namen!$A$5:$A$354,Namen!$N$5:$N$354)*7+Namen!$I$2-7) -> 
A40: =IF($B$2=1,"",IF(OR($C40=$AB$20,$C40=$AB$21+1,$C40=$AB$27,$C40=$AB$28+1),"Einteilung geä.",IF(ISNA(VLOOKUP($C40,Feiertage,3,FALSE)),"",VLOOKUP($C40,Feiertage,3,FALSE)))) ->  | B40: 1900-01-02 | C40: =C39+1 -> 2026-02-02 | D40: 6 | E40: =IF($S40="F","Ferien",IF(ISNUMBER($Y40),VLOOKUP($Y40,Touren,2,FALSE),"")) ->  | H40: =IF($C40="","",IF($S40="F","",IF($X40=0,"z.Z. keine Angaben",IF($X40=2,"vor Fpln-Wechsel !",IF(OR($X40=4,$X40=5),"nach Fpln-Wechsel !",IF(ISNUMBER($Y40),VLOOKUP($Y40,Touren,5,FALSE),"")))))) ->  | S40: =IF(OR(AND($AB$34-2<C40,$AB$34+7>C40),AND($AB$35-2<C40,$AB$35+7>C40),AND($AB$36-2<C40,$AB$36+7>C40),AND($AB$37-2<C40,$AB$37+7>C40),AND($AB$38-2<C40,$AB$38+7>C40),AND($AB$39-2<C40,$AB$39+7>C40),AND($AB$40-2<C40,$AB$40+7>C40),AND($AB$41-2<C40,$AB$41+7>C40),AND($AB$42-2<C40,$AB$42+7>C40),AND($AB$43-2<C40,$AB$43+7>C40),AND($AB$44-2<C40,$AB$44+7>C40),AND($AB$45-2<C40,$AB$45+7>C40),AND($AB$46-2<C40,$AB$46+7>C40),AND($AB$47-2<C40,$AB$47+7>C40))=TRUE,"F",) ->  | T40: =IF(T39-$AB$25=$AB$24,1+$AB$25,T39+1) ->  | U40: =IF(U39-$AB$32=$AB$31,1+$AB$32,U39+1) ->  | AA40: 7 / 1 | AB40: =IF(LOOKUP($B$2,Namen!$A$5:$A$354,Namen!$O$5:$O$354)="",,LOOKUP($B$2,Namen!$A$5:$A$354,Namen!$O$5:$O$354)*7+Namen!$I$2-7) -> 
B41: 1900-01-03 | C41: =C39+2 -> 2026-02-03 | AA41: 1 / 2 | AB41: =IF(LOOKUP($B$2,Namen!$A$5:$A$354,Namen!$P$5:$P$354)="",,LOOKUP($B$2,Namen!$A$5:$A$354,Namen!$P$5:$P$354)*7+Namen!$P$2-7) -> 
B42: 1900-01-04 | C42: =C39+3 -> 2026-02-04 | AA42: 2 / 2 | AB42: =IF(LOOKUP($B$2,Namen!$A$5:$A$354,Namen!$Q$5:$Q$354)="",,LOOKUP($B$2,Namen!$A$5:$A$354,Namen!$Q$5:$Q$354)*7+Namen!$P$2-7) -> 
B43: 1900-01-05 | C43: =C39+4 -> 2026-02-05 | AA43: 3 / 2 | AB43: =IF(LOOKUP($B$2,Namen!$A$5:$A$354,Namen!$R$5:$R$354)="",,LOOKUP($B$2,Namen!$A$5:$A$354,Namen!$R$5:$R$354)*7+Namen!$P$2-7) -> 
B44: 1900-01-06 | C44: =C39+5 -> 2026-02-06 | AA44: 4 / 2 | AB44: =IF(LOOKUP($B$2,Namen!$A$5:$A$354,Namen!$S$5:$S$354)="",,LOOKUP($B$2,Namen!$A$5:$A$354,Namen!$S$5:$S$354)*7+Namen!$P$2-7) -> 
B45: 1900-01-07 | C45: =C39+6 -> 2026-02-07 | AA45: 5 / 2 | AB45: =IF(LOOKUP($B$2,Namen!$A$5:$A$354,Namen!$T$5:$T$354)="",,LOOKUP($B$2,Namen!$A$5:$A$354,Namen!$T$5:$T$354)*7+Namen!$P$2-7) -> 
B46: 1900-01-01 | C46: =C39+7 -> 2026-02-08 | AA46: 6 / 2 | AB46: =IF(LOOKUP($B$2,Namen!$A$5:$A$354,Namen!$U$5:$U$354)="",,LOOKUP($B$2,Namen!$A$5:$A$354,Namen!$U$5:$U$354)*7+Namen!$P$2-7) -> 
B47: 1900-01-02 | C47: =C39+8 -> 2026-02-09 | D47: 7 | AA47: 7 / 2 | AB47: =IF(LOOKUP($B$2,Namen!$A$5:$A$354,Namen!$V$5:$V$354)="",,LOOKUP($B$2,Namen!$A$5:$A$354,Namen!$V$5:$V$354)*7+Namen!$P$2-7) -> 
B48: 1900-01-03 | C48: =C39+9 -> 2026-02-10
B49: 1900-01-04 | C49: =C39+10 -> 2026-02-11 | X49: =IF(AND($C49>=$AB$20,$C49<=$AB$21,ISNUMBER($V49)),1,IF(AND($C49>=$AB$27,$C49<=$AB$28,ISNUMBER($W49)),3,IF(AND($C49>$AB$21,$AB$26=0,$AB$29<>0),0,IF(AND($C49>$AB$21,ISNUMBER($V49)),5,IF(AND($C49<$AB$21,$AB$27=0,ISNUMBER($V49)),2,IF(AND($C49>$AB$27,ISNUMBER($W49)),4,0)))))) -> 
B50: 1900-01-05 | C50: =C39+11 -> 2026-02-12
B51: 1900-01-06 | C51: =C39+12 -> 2026-02-13 | W51: =VLOOKUP(U51,Rotation,2,FALSE) -> 
B52: 1900-01-07 | C52: =C39+13 -> 2026-02-14 | V52: =VLOOKUP(T52,Rotation,2,FALSE) -> 
B53: 1900-01-01 | C53: =C39+14 -> 2026-02-15
B54: 1900-01-02 | C54: =C39+15 -> 2026-02-16 | D54: 8
B55: 1900-01-03 | C55: =C39+16 -> 2026-02-17
B56: 1900-01-04 | C56: =C39+17 -> 2026-02-18
B57: 1900-01-05 | C57: =C39+18 -> 2026-02-19
B58: 1900-01-06 | C58: =C39+19 -> 2026-02-20
B59: 1900-01-07 | C59: =C39+20 -> 2026-02-21
B60: 1900-01-01 | C60: =C39+21 -> 2026-02-22
B61: 1900-01-02 | C61: =C39+22 -> 2026-02-23 | D61: 9 | V61: =VLOOKUP(T61,Rotation,2,FALSE) -> 
B62: 1900-01-03 | C62: =C39+23 -> 2026-02-24
B63: 1900-01-04 | C63: =C39+24 -> 2026-02-25
B64: 1900-01-05 | C64: =C39+25 -> 2026-02-26
B65: 1900-01-06 | C65: =C39+26 -> 2026-02-27
B66: 1900-01-07 | C66: =C39+27 -> 2026-02-28
B67: =IF(C67="","",WEEKDAY(C67)) ->  | C67: =IF(DAY($C$8)=1,IF(MONTH(C66+1)=MONTH(C66),C66+1,""),C66+1) ->  | T67: =IF($C67="","",IF(T66-$AB$25=$AB$24,1+$AB$25,T66+1)) ->  | U67: =IF(C67="","",IF(U66-$AB$32=$AB$31,1+$AB$32,U66+1)) -> 
B68: =IF(C68="","",WEEKDAY(C68)) ->  | C68: =IF(DAY($C$8)=1,IF(MONTH(C66+2)=MONTH(C66),C66+2,""),C66+2) ->  | T68: =IF($C68="","",IF(T67-$AB$25=$AB$24,1+$AB$25,T67+1)) ->  | U68: =IF(C68="","",IF(U67-$AB$32=$AB$31,1+$AB$32,U67+1)) -> 
B69: =IF(C69="","",WEEKDAY(C69)) ->  | C69: =IF(DAY($C$8)=1,IF(MONTH(C66+3)=MONTH(C66),C66+3,""),C66+3) ->  | S69: =IF(OR(AND($AB$34-2<C69,$AB$34+7>C69),AND($AB$35-2<C69,$AB$35+7>C69),AND($AB$36-2<C69,$AB$36+7>C69),AND($AB$37-2<C69,$AB$37+7>C69),AND($AB$38-2<C69,$AB$38+7>C69),AND($AB$39-2<C69,$AB$39+7>C69),AND($AB$40-2<C69,$AB$40+7>C69),AND($AB$41-2<C69,$AB$41+7>C69),AND($AB$42-2<C69,$AB$42+7>C69),AND($AB$43-2<C69,$AB$43+7>C69),AND($AB$44-2<C69,$AB$44+7>C69),AND($AB$45-2<C69,$AB$45+7>C69),AND($AB$46-2<C69,$AB$46+7>C69),AND($AB$47-2<C69,$AB$47+7>C69))=TRUE,"F",) ->  | T69: =IF($C69="","",IF(T68-$AB$25=$AB$24,1+$AB$25,T68+1)) ->  | U69: =IF(C69="","",IF(U68-$AB$32=$AB$31,1+$AB$32,U68+1)) -> 
V71: 1 | W71: FREI -
V72: 2 | W72: FREI + | Z72: 1 | AA72: =AB72-1 -> 1 | AB72: 2
V73: =LOOKUP($Z$72,$Y$73:$Y$80,$AA$73:$AA$80) -> 1001 | W73: =LOOKUP(V73,Touren!$A$14:$A$2313,Touren!$B$14:$B$2313) -> 101 | Y73: 1 | Z73: =IF(AND($C$75>=$AI10,$AI10>0),AH10,IF($C$75<$AD10,$AB10,$AB10)) -> Test 1 | AA73: =IF(AND($C$75>=Berechnen!$AI10,$C$75<>"",Berechnen!$AI10>0),1501,IF($C$75<Berechnen!$AD10,1001,1001)) -> 1001 | AB73: =IF(AND($C$75>=$AI10,$AI10>0),$AK10,IF($C$75<$AD10,$AE10,$AE10))/7 -> 5 | AC73: =IF(AND($C$75>=$AI10,$AI10>0),RotA!$K$5,IF($C$75<$AD10,RotA!$K$4,RotA!$K$4)) -> 46005
A74: Suchen | V74: =V73+1 -> 1002 | W74: =LOOKUP(V74,Touren!$A$14:$A$2313,Touren!$B$14:$B$2313) -> 102 | Y74: 2 | Z74: Test 2 | AA74: =IF(AND($C$75>=Berechnen!$AI11,$C$75<>"",Berechnen!$AI11>0),2501,IF($C$75<Berechnen!$AD11,2001,2001)) -> 2001 | AB74: =IF(AND($C$75>=$AI11,$AI11>0),$AK11,IF($C$75<$AD11,$AE11,$AE11))/7 -> 5 | AC74: =IF(AND($C$75>=$AI11,$AI11>0),RotA!$K$5,IF($C$75<$AD11,RotA!$K$4,RotA!$K$4)) -> 46005
B75: =WEEKDAY(C75) -> 1900-01-04 | C75: 2025-01-01 | M75: =IF(AA81=0,CONCATENATE("0 / von "&AA81),CONCATENATE(Y81&" / von "&AA81)) -> 1 / von 1 | V75: =V74+1 -> 1003 | W75: =LOOKUP(V75,Touren!$A$14:$A$2313,Touren!$B$14:$B$2313) -> 103 | Y75: 3 | Z75: 0 | AA75: =IF(AND($C$75>=Berechnen!$AI12,$C$75<>"",Berechnen!$AI12>0),3501,IF($C$75<Berechnen!$AD12,3001,3001)) -> 3001 | AB75: =IF(AND($C$75>=$AI12,$AI12>0),$AK12,IF($C$75<$AD12,$AE12,$AE12))/7 -> 0 | AC75: =IF(AND($C$75>=$AI12,$AI12>0),RotA!$K$5,IF($C$75<$AD12,RotA!$K$4,RotA!$K$4)) -> 46005
V76: 1004 | W76: =LOOKUP(V76,Touren!$A$14:$A$2313,Touren!$B$14:$B$2313) -> 1 103 | Y76: 4 | Z76: 0 | AA76: =IF(AND($C$75>=Berechnen!$AI13,$C$75<>"",Berechnen!$AI13>0),4501,IF($C$75<Berechnen!$AD13,4001,4001)) -> 4001 | AB76: 0 | AC76: =IF(AND($C$75>=$AI13,$AI13>0),RotA!$K$5,IF($C$75<$AD13,RotA!$K$4,RotA!$K$4)) -> 46005
I77: =IF(OR($AB$72=1,$AB$72=2)," Hinweise:","") -> Hinweise: | V77: 1005 | W77: =LOOKUP(V77,Touren!$A$14:$A$2313,Touren!$B$14:$B$2313) -> 104 | Y77: 5 | Z77: 0 | AA77: =IF(AND($C$75>=Berechnen!$AI14,$C$75<>"",Berechnen!$AI14>0),5501,IF($C$75<Berechnen!$AD14,5001,5001)) -> 5001 | AB77: 0 | AC77: =IF(AND($C$75>=$AI14,$AI14>0),RotA!$K$5,IF($C$75<$AD14,RotA!$K$4,RotA!$K$4)) -> 46005
B78: =IF(ISNUMBER($AH$81),LOOKUP($AH$81,Namen!$A$4:$A$354,Namen!$X$4:$X$354),IF(AND(ISNUMBER(LOOKUP($Y$81,$Y$83:$Y$112,$AF$83:$AF$112)),ISNA(LOOKUP($Y$81,$Y$83:$Y$112,$AH$83:$AH$112)))," Rotation nicht besetzt !"," Nicht zugeteilt ! !")) -> Plusplus Otto | F78: =IF(ISNUMBER($AH$81),LOOKUP($AH$81,Namen!$A$4:$A$354,Namen!$D$4:$D$354),"") -> u150000 | H78: =IF(ISNUMBER($AH$81),LOOKUP($AH$81,Namen!$A$4:$A$354,Namen!$W$4:$W$354),"") -> 0512 81 00 38 | I78: =IF(OR($AB$72=1,$AB$72=2)," Wahl [Frei - ] = Ruhetage. [Frei + ] = Ausgleichstage","") -> Wahl [Frei - ] = Ruhetage. [Frei + ] = Ausgleichstage | V78: 1006 | W78: =LOOKUP(V78,Touren!$A$14:$A$2313,Touren!$B$14:$B$2313) -> 105 | Y78: 6 | Z78: 0 | AA78: =IF(AND($C$75>=Berechnen!$AI15,$C$75<>"",Berechnen!$AI15>0),6501,IF($C$75<Berechnen!$AD15,6001,6001)) -> 6001 | AB78: 0 | AC78: =IF(AND($C$75>=$AI15,$AI15>0),RotA!$K$5,IF($C$75<$AD15,RotA!$K$4,RotA!$K$4)) -> 46005
B79: Tag | C79: Datum | D79: Tour | F79: AB | G79: AE | H79: Bemerkungen | I79: =IF(OR($AB$72=1,$AB$72=2)," Nach Beenden Freitage suchen: [R] drücken!","") -> Nach Beenden Freitage suchen: [R] drücken! | V79: 1007 | W79: =LOOKUP(V79,Touren!$A$14:$A$2313,Touren!$B$14:$B$2313) -> 106 | Y79: 7 | Z79: 0 | AA79: =IF(AND($C$75>=Berechnen!$AI16,$C$75<>"",Berechnen!$AI16>0),7501,IF($C$75<Berechnen!$AD16,7001,7001)) -> 7001 | AB79: 0 | AC79: =IF(AND($C$75>=$AI16,$AI16>0),RotA!$K$5,IF($C$75<$AD16,RotA!$K$4,RotA!$K$4)) -> 46005 | AK79: =LOOKUP($AH$81,Namen!$A$5:$A$354,Namen!$X$5:$X$354) -> Plusplus Otto | AM79: Ferien | AN79: Rotation 1 | AO79: Rotation 2 | AP79: Tour 1 | AQ79: Tour 2 | AR79: Art | AS79: Berechnet
A80: =IF($B$2=1,"",IF(OR($C80=$AB$20,$C80=$AB$21+1,$C80=$AB$27,$C80=$AB$28+1),"Einteilung geä.",IF(ISNA(VLOOKUP($C80,Feiertage,3,FALSE)),"",VLOOKUP($C80,Feiertage,3,FALSE)))) ->  | B80: =WEEKDAY(C80) -> 1900-01-02 | C80: =$C$82-2 -> 2024-12-30 | D80: =IF(ISNUMBER($AS80),VLOOKUP($AS80,Touren,2,FALSE),"") -> 1 103 | E80: =IF($S80="F","Ferien",IF(ISNUMBER(#REF!),VLOOKUP(#REF!,Touren,2,FALSE),"")) ->  | F80: =IF(ISNUMBER($AS80),VLOOKUP($AS80,Touren,3,FALSE),"") -> 06:30:00 | G80: =IF(ISNUMBER($AS80),VLOOKUP($AS80,Touren,4,FALSE),"") -> 16:05:00 | H80: =IF(ISNUMBER($AS80),VLOOKUP($AS80,Touren,5,FALSE),"") -> VP Montag | I80: =IF(ISERROR(AS80),"",IF(AM80="F"," Ferien","")) ->  | V80: 1008 | W80: =LOOKUP(V80,Touren!$A$14:$A$2313,Touren!$B$14:$B$2313) -> 1 106 | Y80: 8 | Z80: Solothurn | AA80: =IF(AND($C$75>=Berechnen!$AI17,$C$75<>"",Berechnen!$AI17>0),8501,IF($C$75<Berechnen!$AD17,8001,8001)) -> 8501 | AB80: 14 | AC80: =IF(AND($C$75>=$AI17,$AI17>0),RotA!$K$5,IF($C$75<$AD17,RotA!$K$4,RotA!$K$4)) -> 0 | AK80: Gr. Num. 1 | AL80: =LOOKUP($AH$81,Namen!$A$5:$A$354,Namen!$E$5:$E$354) -> 1 | AM80: =IF(OR(AND($AL$95-2<$C$80,$AL$95+7>$C$80),AND($AL$96-2<$C$80,$AL$96+7>$C$80),AND($AL$97-2<$C$80,$AL$97+7>$C$80),AND($AL$98-2<$C$80,$AL$98+7>$C$80),AND($AL$99-2<$C$80,$AL$99+7>$C$80),AND($AL$100-2<$C$80,$AL$100+7>$C$80),AND($AL$101-2<$C$80,$AL$101+7>$C$80),AND($AL$102-2<$C$80,$AL$102+7>$C$80),AND($AL$103-2<$C$80,$AL$103+7>$C$80),AND($AL$104-2<$C$80,$AL$104+7>$C$80),AND($AL$105-2<$C$80,$AL$105+7>$C$80),AND($AL$106-2<$C$80,$AL$106+7>$C$80),AND($AL$107-2<$C$80,$AL$107+7>$C$80),AND($AL$108-2<$C$80,$AL$108+7>$C$80))=TRUE,"F",) -> 0 | AN80: =($C$80-RotA!$K$4+$AL$84-INT(($C$80-RotA!$K$4+$AL$84-1)/$AL$85)*$AL$85+$AL$86) -> 1016 | AO80: =($C$80-RotA!$K$5+$AL$91-INT(($C$80-RotA!$K$5+$AL$91-1)/$AL$92)*$AL$92+$AL$93) ->  | AP80: =VLOOKUP(AN80,Rotation,2,FALSE) -> 1004 | AR80: =IF(AND($C$80>=$AL$81,$C$80<=$AL$82,ISNUMBER($AP80)),1,IF(AND($C$80>=$AL$88,$C$80<=$AL$89,ISNUMBER($AQ80)),3,IF(AND($C$80>$AL$82,$AL$87=0,$AL$90=0),0,IF(AND($C$80>$AL$82,ISNUMBER($AP80)),5,IF(AND($C$80<$AL$82,$AL$88=0,ISNUMBER($AP80)),2,IF(AND($C$80>$AL$88,ISNUMBER($AQ80)),4,0)))))) -> 2 | AS80: =IF(OR($AR80=1,$AR80=2,$AR80=5),$AP80,IF(OR($AR80=3,$AR80=4),$AQ80,"")) -> 1004
A81: =IF($B$2=1,"",IF(OR($C81=$AB$20,$C81=$AB$21+1,$C81=$AB$27,$C81=$AB$28+1),"Einteilung geä.",IF(ISNA(VLOOKUP($C81,Feiertage,3,FALSE)),"",VLOOKUP($C81,Feiertage,3,FALSE)))) ->  | B81: =WEEKDAY(C81) -> 1900-01-03 | C81: =$C$82-1 -> 2024-12-31 | D81: =IF(ISNUMBER($AS81),VLOOKUP($AS81,Touren,2,FALSE),"") -> - | E81: =IF($S81="F","Ferien",IF(ISNUMBER(#REF!),VLOOKUP(#REF!,Touren,2,FALSE),"")) ->  | F81: =IF(ISNUMBER($AS81),VLOOKUP($AS81,Touren,3,FALSE),"") ->  | G81: =IF(ISNUMBER($AS81),VLOOKUP($AS81,Touren,4,FALSE),"") ->  | H81: =IF(ISNUMBER($AS81),VLOOKUP($AS81,Touren,5,FALSE),"") ->  | I81: =IF(ISERROR(AS81),"",IF(AM81="F"," Ferien","")) ->  | V81: 1009 | W81: =LOOKUP(V81,Touren!$A$14:$A$2313,Touren!$B$14:$B$2313) -> 0 | Y81: 1 | AA81: =COUNTIF(AA83:AA112,">0") -> 1 | AH81: =LOOKUP(Y81,Y83:Y112,AH83:AH112) -> 7 | AK81: Gültig ab | AL81: =IF($AL$80=0,0,LOOKUP($AL$80,$AA$10:$AA$17,$AC$10:$AC$17)) -> 46005 | AM81: =IF(OR(AND($AL$95-2<$C$81,$AL$95+7>$C$81),AND($AL$96-2<$C$81,$AL$96+7>$C$81),AND($AL$97-2<$C$81,$AL$97+7>$C$81),AND($AL$98-2<$C$81,$AL$98+7>$C$81),AND($AL$99-2<$C$81,$AL$99+7>$C$81),AND($AL$100-2<$C$81,$AL$100+7>$C$81),AND($AL$101-2<$C$81,$AL$101+7>$C$81),AND($AL$102-2<$C$81,$AL$102+7>$C$81),AND($AL$103-2<$C$81,$AL$103+7>$C$81),AND($AL$104-2<$C$81,$AL$104+7>$C$81),AND($AL$105-2<$C$81,$AL$105+7>$C$81),AND($AL$106-2<$C$81,$AL$106+7>$C$81),AND($AL$107-2<$C$81,$AL$107+7>$C$81),AND($AL$108-2<$C$81,$AL$108+7>$C$81))=TRUE,"F",) -> 0 | AN81: =IF(AN80-$AL$86=$AL$85,1+$AL$86,AN80+1) -> 1017 | AO81: =IF(AO80-$AL$93=$AL$92,1+$AL$93,AO80+1) ->  | AP81: 1138 | AR81: =IF(AND($C$81>=$AL$81,$C$81<=$AL$82,ISNUMBER($AP81)),1,IF(AND($C$81>=$AL$88,$C$81<=$AL$89,ISNUMBER($AQ81)),3,IF(AND($C$81>$AL$82,$AL$87=0,$AL$90=0),0,IF(AND($C$81>$AL$82,ISNUMBER($AP81)),5,IF(AND($C$81<$AL$82,$AL$88=0,ISNUMBER($AP81)),2,IF(AND($C$81>$AL$88,ISNUMBER($AQ81)),4,0)))))) -> 2 | AS81: =IF(OR($AR81=1,$AR81=2,$AR81=5),$AP81,IF(OR($AR81=3,$AR81=4),$AQ81,"")) -> 1138
A82: =IF($B$2=1,"",IF(OR($C82=$AB$20,$C82=$AB$21+1,$C82=$AB$27,$C82=$AB$28+1),"Einteilung geä.",IF(ISNA(VLOOKUP($C82,Feiertage,3,FALSE)),"",VLOOKUP($C82,Feiertage,3,FALSE)))) ->  | B82: =WEEKDAY(C82) -> 1900-01-04 | C82: =$C$75 -> 2025-01-01 | D82: =IF(ISNUMBER($AS82),VLOOKUP($AS82,Touren,2,FALSE),"") -> + | E82: =IF($S82="F","Ferien",IF(ISNUMBER(#REF!),VLOOKUP(#REF!,Touren,2,FALSE),"")) ->  | F82: =IF(ISNUMBER($AS82),VLOOKUP($AS82,Touren,3,FALSE),"") ->  | G82: =IF(ISNUMBER($AS82),VLOOKUP($AS82,Touren,4,FALSE),"") ->  | H82: =IF(ISNUMBER($AS82),VLOOKUP($AS82,Touren,5,FALSE),IF(AND(ISNUMBER(LOOKUP($Y$81,$Y$83:$Y$112,$AF$83:$AF$112)),ISNA(LOOKUP($Y$81,$Y$83:$Y$112,$AH$83:$AH$112))),"Rotation nicht besetzt !","Nicht zugeteilt ! !")) ->  | I82: =IF(ISERROR(AS82),"",IF(AM82="F"," Tour nach Rotation >>> Ferien ! !","")) ->  | V82: 1010 | W82: =LOOKUP(V82,Touren!$A$14:$A$2313,Touren!$B$14:$B$2313) -> 6 102 | Y82: Zähler | Z82: Tour | AA82: RangRot | AB82: RotWoche | AC82: Tour | AD82: WoDiff | AE82: Wo2 | AF82: RotNr | AG82: Rot 1 / 2 | AH82: LfName | AK82: Gültig bis | AL82: =IF($AL$80=0,0,LOOKUP($AL$80,$AA$10:$AA$17,$AD$10:$AD$17)) -> 46368 | AM82: =IF(OR(AND($AL$95-2<$C$82,$AL$95+7>$C$82),AND($AL$96-2<$C$82,$AL$96+7>$C$82),AND($AL$97-2<$C$82,$AL$97+7>$C$82),AND($AL$98-2<$C$82,$AL$98+7>$C$82),AND($AL$99-2<$C$82,$AL$99+7>$C$82),AND($AL$100-2<$C$82,$AL$100+7>$C$82),AND($AL$101-2<$C$82,$AL$101+7>$C$82),AND($AL$102-2<$C$82,$AL$102+7>$C$82),AND($AL$103-2<$C$82,$AL$103+7>$C$82),AND($AL$104-2<$C$82,$AL$104+7>$C$82),AND($AL$105-2<$C$82,$AL$105+7>$C$82),AND($AL$106-2<$C$82,$AL$106+7>$C$82),AND($AL$107-2<$C$82,$AL$107+7>$C$82),AND($AL$108-2<$C$82,$AL$108+7>$C$82))=TRUE,"F",) -> 0 | AN82: =IF(AN81-$AL$86=$AL$85,1+$AL$86,AN81+1) -> 1018 | AO82: =IF(AO81-$AL$93=$AL$92,1+$AL$93,AO81+1) ->  | AP82: 1137 | AR82: =IF(AND($C$82>=$AL$81,$C$82<=$AL$82,ISNUMBER($AP82)),1,IF(AND($C$82>=$AL$88,$C$82<=$AL$89,ISNUMBER($AQ82)),3,IF(AND($C$82>$AL$82,$AL$87=0,$AL$90=0),0,IF(AND($C$82>$AL$82,ISNUMBER($AP82)),5,IF(AND($C$82<$AL$82,$AL$88=0,ISNUMBER($AP82)),2,IF(AND($C$82>$AL$88,ISNUMBER($AQ82)),4,0)))))) -> 2 | AS82: =IF(OR($AR82=1,$AR82=2,$AR82=5),$AP82,IF(OR($AR82=3,$AR82=4),$AQ82,"")) -> 1137
A83: =IF($B$2=1,"",IF(OR($C83=$AB$20,$C83=$AB$21+1,$C83=$AB$27,$C83=$AB$28+1),"Einteilung geä.",IF(ISNA(VLOOKUP($C83,Feiertage,3,FALSE)),"",VLOOKUP($C83,Feiertage,3,FALSE)))) ->  | B83: =WEEKDAY(C83) -> 1900-01-05 | C83: =$C$82+1 -> 2025-01-02 | D83: =IF(ISNUMBER($AS83),VLOOKUP($AS83,Touren,2,FALSE),"") -> 104 | E83: =IF($S83="F","Ferien",IF(ISNUMBER(#REF!),VLOOKUP(#REF!,Touren,2,FALSE),"")) ->  | F83: =IF(ISNUMBER($AS83),VLOOKUP($AS83,Touren,3,FALSE),"") -> 07:00:00 | G83: =IF(ISNUMBER($AS83),VLOOKUP($AS83,Touren,4,FALSE),"") -> 16:55:00 | H83: =IF(ISNUMBER($AS83),VLOOKUP($AS83,Touren,5,FALSE),"") -> 0 | I83: =IF(ISERROR(AS83),"",IF(AM83="F"," Ferien","")) ->  | V83: 1011 | W83: =LOOKUP(V83,Touren!$A$14:$A$2313,Touren!$B$14:$B$2313) -> 6 103 | Y83: 1 | Z83: =IF($AB$72=1,LOOKUP($Z$72,$Y$73:$Y$80,$AA$73:$AA$80)+$AA$72+137,IF($AB$72=2,LOOKUP($Z$72,$Y$73:$Y$80,$AA$73:$AA$80)+$AA$72+135,LOOKUP($Z$72,$Y$73:$Y$80,$AA$73:$AA$80)+$AA$72-2)) -> 1137 | AA83: =IF(ROW(RotB!B1)>SUM((RotB!B$9:B$5668&RotB!D$9:D$5668=$Z$83&$B$75)*1),0,INDEX(RotB!A$9:A$5668,SMALL(IF((RotB!B$9:B$5668=$Z$83)*(RotB!D$9:D$5668=$B$75),ROW($1:$5660)),ROW(RotB!B1)))) -> 1018 | AB83: =IF(AA83=0,"",INT((AA83-LOOKUP($Z$72,$Y$73:$Y$80,$AA$73:$AA$80))/7)+1) -> 3 | AC83: =VLOOKUP($AA83,Rotation,2,FALSE) -> 1137 | AD83: =INT(($C$75-LOOKUP($Z$72,$Y$73:$Y$80,$AC$73:$AC$80))/7) -> -50 | AE83: =INT($AD83/LOOKUP($Z$72,$Y$73:$Y$80,$AB$73:$AB$80))*LOOKUP($Z$72,$Y$73:$Y$80,$AB$73:$AB$80) -> -50 | AF83: =IF(($AB83+$AE$83-$AD$83)>0,$AB83+$AE$83-$AD$83,$AB83+$AE$83-AD83+LOOKUP($Z$72,$Y$73:$Y$80,$AB$73:$AB$80)) -> 3 | AG83: =IF($Z$72*1000-LOOKUP($Z$72,$Y$73:$Y$80,$AA$73:$AA$80)+1=0,1,2) -> 1 | AH83: =IF($AG$83=1,INDEX(Namen!$A$5:$A$354,MATCH($Z$72&$AF83,Namen!$E$5:$E$354&Namen!$F$5:$F$354,0)),INDEX(Namen!$A$5:$A$354,MATCH($Z$72&$AF83,Namen!$G$5:$G$354&Namen!$H$5:$H$354,0))) -> 7 | AK83: Rotation 1 | AL83: =LOOKUP($AH$81,Namen!$A$5:$A$354,Namen!$F$5:$F$354) -> 3 | AM83: =IF(OR(AND($AL$95-2<$C$83,$AL$95+7>$C$83),AND($AL$96-2<$C$83,$AL$96+7>$C$83),AND($AL$97-2<$C$83,$AL$97+7>$C$83),AND($AL$98-2<$C$83,$AL$98+7>$C$83),AND($AL$99-2<$C$83,$AL$99+7>$C$83),AND($AL$100-2<$C$83,$AL$100+7>$C$83),AND($AL$101-2<$C$83,$AL$101+7>$C$83),AND($AL$102-2<$C$83,$AL$102+7>$C$83),AND($AL$103-2<$C$83,$AL$103+7>$C$83),AND($AL$104-2<$C$83,$AL$104+7>$C$83),AND($AL$105-2<$C$83,$AL$105+7>$C$83),AND($AL$106-2<$C$83,$AL$106+7>$C$83),AND($AL$107-2<$C$83,$AL$107+7>$C$83),AND($AL$108-2<$C$83,$AL$108+7>$C$83))=TRUE,"F",) -> 0 | AN83: =IF(AN82-$AL$86=$AL$85,1+$AL$86,AN82+1) -> 1019 | AO83: =IF(AO82-$AL$93=$AL$92,1+$AL$93,AO82+1) ->  | AP83: 1005 | AR83: =IF(AND($C$83>=$AL$81,$C$83<=$AL$82,ISNUMBER($AP83)),1,IF(AND($C$83>=$AL$88,$C$83<=$AL$89,ISNUMBER($AQ83)),3,IF(AND($C$83>$AL$82,$AL$87=0,$AL$90=0),0,IF(AND($C$83>$AL$82,ISNUMBER($AP83)),5,IF(AND($C$83<$AL$82,$AL$88=0,ISNUMBER($AP83)),2,IF(AND($C$83>$AL$88,ISNUMBER($AQ83)),4,0)))))) -> 2 | AS83: =IF(OR($AR83=1,$AR83=2,$AR83=5),$AP83,IF(OR($AR83=3,$AR83=4),$AQ83,"")) -> 1005
A84: =IF($B$2=1,"",IF(OR($C84=$AB$20,$C84=$AB$21+1,$C84=$AB$27,$C84=$AB$28+1),"Einteilung geä.",IF(ISNA(VLOOKUP($C84,Feiertage,3,FALSE)),"",VLOOKUP($C84,Feiertage,3,FALSE)))) ->  | B84: =WEEKDAY(C84) -> 1900-01-06 | C84: =$C$82+2 -> 2025-01-03 | D84: =IF(ISNUMBER($AS84),VLOOKUP($AS84,Touren,2,FALSE),"") -> 104 | E84: =IF($S84="F","Ferien",IF(ISNUMBER(#REF!),VLOOKUP(#REF!,Touren,2,FALSE),"")) ->  | F84: =IF(ISNUMBER($AS84),VLOOKUP($AS84,Touren,3,FALSE),"") -> 07:00:00 | G84: =IF(ISNUMBER($AS84),VLOOKUP($AS84,Touren,4,FALSE),"") -> 16:55:00 | H84: =IF(ISNUMBER($AS84),VLOOKUP($AS84,Touren,5,FALSE),"") -> 0 | I84: =IF(ISERROR(AS84),"",IF(AM84="F"," Ferien","")) ->  | V84: 1012 | W84: =LOOKUP(V84,Touren!$A$14:$A$2313,Touren!$B$14:$B$2313) -> 6 104 | Y84: 2 | AA84: =IF(ROW(RotB!B2)>SUM((RotB!B$9:B$5668&RotB!D$9:D$5668=$Z$83&$B$75)*1),0,INDEX(RotB!A$9:A$5668,SMALL(IF((RotB!B$9:B$5668=$Z$83)*(RotB!D$9:D$5668=$B$75),ROW($1:$5660)),ROW(RotB!B2)))) -> 0 | AB84: =IF(AA84=0,"",INT((AA84-LOOKUP($Z$72,$Y$73:$Y$80,$AA$73:$AA$80))/7)+1) ->  | AF84: =IF(($AB84+$AE$83-$AD$83)>0,$AB84+$AE$83-$AD$83,$AB84+$AE$83-$AD$83+LOOKUP($Z$72,$Y$73:$Y$80,$AB$73:$AB$80)) ->  | AH84: =IF($AG$83=1,INDEX(Namen!$A$5:$A$354,MATCH($Z$72&$AF84,Namen!$E$5:$E$354&Namen!$F$5:$F$354,0)),INDEX(Namen!$A$5:$A$354,MATCH($Z$72&$AF84,Namen!$G$5:$G$354&Namen!$H$5:$H$354,0))) ->  | AK84: Starttour 1 | AL84: =($AL$83-1)*7+1 -> 15 | AM84: =IF(OR(AND($AL$95-2<$C$84,$AL$95+7>$C$84),AND($AL$96-2<$C$84,$AL$96+7>$C$84),AND($AL$97-2<$C$84,$AL$97+7>$C$84),AND($AL$98-2<$C$84,$AL$98+7>$C$84),AND($AL$99-2<$C$84,$AL$99+7>$C$84),AND($AL$100-2<$C$84,$AL$100+7>$C$84),AND($AL$101-2<$C$84,$AL$101+7>$C$84),AND($AL$102-2<$C$84,$AL$102+7>$C$84),AND($AL$103-2<$C$84,$AL$103+7>$C$84),AND($AL$104-2<$C$84,$AL$104+7>$C$84),AND($AL$105-2<$C$84,$AL$105+7>$C$84),AND($AL$106-2<$C$84,$AL$106+7>$C$84),AND($AL$107-2<$C$84,$AL$107+7>$C$84),AND($AL$108-2<$C$84,$AL$108+7>$C$84))=TRUE,"F",) -> 0 | AN84: =IF(AN83-$AL$86=$AL$85,1+$AL$86,AN83+1) -> 1020 | AO84: =IF(AO83-$AL$93=$AL$92,1+$AL$93,AO83+1) ->  | AP84: 1005 | AR84: =IF(AND($C$84>=$AL$81,$C$84<=$AL$82,ISNUMBER($AP84)),1,IF(AND($C$84>=$AL$88,$C$84<=$AL$89,ISNUMBER($AQ84)),3,IF(AND($C$84>$AL$82,$AL$87=0,$AL$90=0),0,IF(AND($C$84>$AL$82,ISNUMBER($AP84)),5,IF(AND($C$84<$AL$82,$AL$88=0,ISNUMBER($AP84)),2,IF(AND($C$84>$AL$88,ISNUMBER($AQ84)),4,0)))))) -> 2 | AS84: =IF(OR($AR84=1,$AR84=2,$AR84=5),$AP84,IF(OR($AR84=3,$AR84=4),$AQ84,"")) -> 1005
V85: 1013 | W85: =LOOKUP(V85,Touren!$A$14:$A$2313,Touren!$B$14:$B$2313) -> 0 | Y85: 3 | AK85: Anzahl T 1 | AL85: =LOOKUP($AL$80,$AA$10:$AA$17,$AE$10:$AE$17) -> 35
V86: 1014 | W86: =LOOKUP(V86,Touren!$A$14:$A$2313,Touren!$B$14:$B$2313) -> 7 103 | Y86: 4 | AK86: Tour-Finder | AL86: =LOOKUP($AL$80,$AA$10:$AA$17,$AF$10:$AF$17) -> 1000
V87: 1015 | W87: =LOOKUP(V87,Touren!$A$14:$A$2313,Touren!$B$14:$B$2313) -> 0 | Y87: 5 | AK87: Gr. Num. 2 | AL87: =LOOKUP($AH$81,Namen!$A$5:$A$354,Namen!$G$5:$G$354) -> 0
V88: 1016 | W88: =LOOKUP(V88,Touren!$A$14:$A$2313,Touren!$B$14:$B$2313) -> 0 | Y88: 6 | AK88: Gültig ab | AL88: =IF($AL$87=0,0,LOOKUP($AL$87,$AA$10:$AA$17,$AI$10:$AI$17)) -> 0
A89: Feiertage | B89: Datum | D89: Name | G89: Sonntag=1 | H89: Info | I89: 2025-12-02 | K89: Datum letzte Änderung | V89: 1017 | W89: =LOOKUP(V89,Touren!$A$14:$A$2313,Touren!$B$14:$B$2313) -> 0 | Y89: 7 | AK89: Gültig bis | AL89: =IF($AL$87=0,0,LOOKUP($AL$87,$AA$10:$AA$17,$AJ$10:$AJ$17)) -> 0
C90: Eigene Einträge | I90: 0 | K90: Update Nummer | V90: 1018 | W90: =LOOKUP(V90,Touren!$A$14:$A$2313,Touren!$B$14:$B$2313) -> 0 | Y90: 8 | AK90: Rotation 2 | AL90: =LOOKUP($AH$81,Namen!$A$5:$A$354,Namen!$H$5:$H$354) -> 0
V91: 1019 | W91: =LOOKUP(V91,Touren!$A$14:$A$2313,Touren!$B$14:$B$2313) -> 0 | Y91: 9 | AK91: Starttour 2 | AL91: =($AL$90-1)*7+1 -> -6
V92: 1020 | W92: =LOOKUP(V92,Touren!$A$14:$A$2313,Touren!$B$14:$B$2313) -> 0 | Y92: 10 | AK92: Anzahl T 2 | AL92: =LOOKUP($AL$87,$AA$10:$AA$17,$AK$10:$AK$17) -> 
V93: 1021 | W93: =LOOKUP(V93,Touren!$A$14:$A$2313,Touren!$B$14:$B$2313) -> 0 | Y93: 11 | AK93: Tour-Finder | AL93: =LOOKUP($AL$87,$AA$10:$AA$17,$AL$10:$AL$17) -> 
V94: 1022 | W94: =LOOKUP(V94,Touren!$A$14:$A$2313,Touren!$B$14:$B$2313) -> 0 | Y94: 12 | AK94: Ferien:
I95: © C h r i s t i a n M e y e r | V95: 1023 | W95: =LOOKUP(V95,Touren!$A$14:$A$2313,Touren!$B$14:$B$2313) -> 0 | Y95: 13 | AK95: 1 / 1 | AL95: =IF(LOOKUP($AH$81,Namen!$A$5:$A$354,Namen!$I$5:$I$354)="",,LOOKUP($AH$81,Namen!$A$5:$A$354,Namen!$I$5:$I$354)*7+Namen!$I$2-7) -> 46117
I96: t r a w e g @ g m x . c h | V96: 1024 | W96: =LOOKUP(V96,Touren!$A$14:$A$2313,Touren!$B$14:$B$2313) -> 0 | Y96: 14 | AK96: 2 / 1 | AL96: =IF(LOOKUP($AH$81,Namen!$A$5:$A$354,Namen!$J$5:$J$354)="",,LOOKUP($AH$81,Namen!$A$5:$A$354,Namen!$J$5:$J$354)*7+Namen!$I$2-7) -> 46124
I97: https://traweg.ch | V97: 1025 | W97: =LOOKUP(V97,Touren!$A$14:$A$2313,Touren!$B$14:$B$2313) -> 0 | Y97: 15 | AK97: 3 / 1 | AL97: =IF(LOOKUP($AH$81,Namen!$A$5:$A$354,Namen!$K$5:$K$354)="",,LOOKUP($AH$81,Namen!$A$5:$A$354,Namen!$K$5:$K$354)*7+Namen!$I$2-7) -> 46131
B98: =DATE($B$116-1,11,1)+7*4-MOD(DATE($B$116-1,11,1)+4,7)-1 -> 2025-11-24 | C98: =IF(WEEKDAY(DATE($B$116-1,11,1))=2,DATE($B$116-1,11,22),DATE($B$116-1,11,30-WEEKDAY(DATE($B$116-1,11,28)))) -> 2025-11-24 | D98: Zibelemärit | V98: 1026 | W98: =LOOKUP(V98,Touren!$A$14:$A$2313,Touren!$B$14:$B$2313) -> 0 | Y98: 16 | AK98: 4 / 1 | AL98: =IF(LOOKUP($AH$81,Namen!$A$5:$A$354,Namen!$L$5:$L$354)="",,LOOKUP($AH$81,Namen!$A$5:$A$354,Namen!$L$5:$L$354)*7+Namen!$I$2-7) -> 46215
B99: =DATE($B$116,11,1)+7*4-MOD(DATE($B$116,11,1)+4,7)-1 -> 2026-11-23 | C99: =IF(WEEKDAY(DATE($B$116,11,1))=2,DATE($B$116,11,22),DATE($B$116,11,30-WEEKDAY(DATE($B$116,11,28)))) -> 2026-11-23 | D99: Zibelemärit | V99: 1027 | W99: =LOOKUP(V99,Touren!$A$14:$A$2313,Touren!$B$14:$B$2313) -> 0 | Y99: 17 | AK99: 5 / 1 | AL99: =IF(LOOKUP($AH$81,Namen!$A$5:$A$354,Namen!$M$5:$M$354)="",,LOOKUP($AH$81,Namen!$A$5:$A$354,Namen!$M$5:$M$354)*7+Namen!$I$2-7) -> 46222
B100: =DATE($B$116+1,11,1)+7*4-MOD(DATE($B$116+1,11,1)+4,7)-1 -> 2027-11-22 | C100: =IF(WEEKDAY(DATE($B$116+1,11,1))=2,DATE($B$116+1,11,22),DATE($B$116+1,11,30-WEEKDAY(DATE($B$116+1,11,28)))) -> 2027-11-22 | D100: Zibelemärit | V100: 1028 | W100: =LOOKUP(V100,Touren!$A$14:$A$2313,Touren!$B$14:$B$2313) -> 0 | Y100: 18 | AK100: 6 / 1 | AL100: =IF(LOOKUP($AH$81,Namen!$A$5:$A$354,Namen!$N$5:$N$354)="",,LOOKUP($AH$81,Namen!$A$5:$A$354,Namen!$N$5:$N$354)*7+Namen!$I$2-7) -> 0
B101: =B116-1 -> 2025 | V101: 1029 | W101: =LOOKUP(V101,Touren!$A$14:$A$2313,Touren!$B$14:$B$2313) -> 0 | Y101: 19 | AK101: 7 / 1 | AL101: =IF(LOOKUP($AH$81,Namen!$A$5:$A$354,Namen!$O$5:$O$354)="",,LOOKUP($AH$81,Namen!$A$5:$A$354,Namen!$O$5:$O$354)*7+Namen!$I$2-7) -> 0
B102: =DATE(B101,1,1) -> 2025-01-01 | D102: Neujahr | G102: 1 | V102: 1030 | W102: =LOOKUP(V102,Touren!$A$14:$A$2313,Touren!$B$14:$B$2313) -> 0 | Y102: 20 | AK102: 1 / 2 | AL102: =IF(LOOKUP($AH$81,Namen!$A$5:$A$354,Namen!$P$5:$P$354)="",,LOOKUP($AH$81,Namen!$A$5:$A$354,Namen!$P$5:$P$354)*7+Namen!$P$2-7) -> 46390
B103: =DATE(B101,1,2) -> 2025-01-02 | D103: Berchtoldstag | G103: 1 | V103: 1031 | W103: =LOOKUP(V103,Touren!$A$14:$A$2313,Touren!$B$14:$B$2313) -> 0 | Y103: 21 | AK103: 2 / 2 | AL103: =IF(LOOKUP($AH$81,Namen!$A$5:$A$354,Namen!$Q$5:$Q$354)="",,LOOKUP($AH$81,Namen!$A$5:$A$354,Namen!$Q$5:$Q$354)*7+Namen!$P$2-7) -> 46397
V104: 1032 | W104: =LOOKUP(V104,Touren!$A$14:$A$2313,Touren!$B$14:$B$2313) -> 0 | Y104: 22 | AK104: 3 / 2 | AL104: =IF(LOOKUP($AH$81,Namen!$A$5:$A$354,Namen!$R$5:$R$354)="",,LOOKUP($AH$81,Namen!$A$5:$A$354,Namen!$R$5:$R$354)*7+Namen!$P$2-7) -> 46404
B105: =B106-2 -> 2025-04-18 | D105: Karfreitag | G105: 1 | V105: 1033 | W105: =LOOKUP(V105,Touren!$A$14:$A$2313,Touren!$B$14:$B$2313) -> 0 | Y105: 23 | AK105: 4 / 2 | AL105: =IF(LOOKUP($AH$81,Namen!$A$5:$A$354,Namen!$S$5:$S$354)="",,LOOKUP($AH$81,Namen!$A$5:$A$354,Namen!$S$5:$S$354)*7+Namen!$P$2-7) -> 46593
B106: =DOLLAR((DAY(MINUTE(B101/38)/2+55)&".4."&B101)/7,)*7-6 -> 2025-04-20 | D106: Ostersonntag | G106: 1 | V106: 1034 | W106: =LOOKUP(V106,Touren!$A$14:$A$2313,Touren!$B$14:$B$2313) -> 0 | Y106: 24 | AK106: 5 / 2 | AL106: =IF(LOOKUP($AH$81,Namen!$A$5:$A$354,Namen!$T$5:$T$354)="",,LOOKUP($AH$81,Namen!$A$5:$A$354,Namen!$T$5:$T$354)*7+Namen!$P$2-7) -> 46600
B107: =B106+1 -> 2025-04-21 | D107: Ostermontag | G107: 1 | V107: 1035 | W107: =LOOKUP(V107,Touren!$A$14:$A$2313,Touren!$B$14:$B$2313) -> 0 | Y107: 25 | AK107: 6 / 2 | AL107: =IF(LOOKUP($AH$81,Namen!$A$5:$A$354,Namen!$U$5:$U$354)="",,LOOKUP($AH$81,Namen!$A$5:$A$354,Namen!$U$5:$U$354)*7+Namen!$P$2-7) -> 46733
B108: =B106+39 -> 2025-05-29 | D108: Auffahrt | G108: 1 | V108: 1036 | W108: =LOOKUP(V108,Touren!$A$14:$A$2313,Touren!$B$14:$B$2313) -> 0 | Y108: 26 | AK108: 7 / 2 | AL108: =IF(LOOKUP($AH$81,Namen!$A$5:$A$354,Namen!$V$5:$V$354)="",,LOOKUP($AH$81,Namen!$A$5:$A$354,Namen!$V$5:$V$354)*7+Namen!$P$2-7) -> 0
B109: =B106+49 -> 2025-06-08 | D109: Pfingstsonntag | G109: 1 | V109: 1037 | W109: =LOOKUP(V109,Touren!$A$14:$A$2313,Touren!$B$14:$B$2313) -> 0 | Y109: 27
B110: =B106+50 -> 2025-06-09 | D110: Pfingstmontag | G110: 1 | V110: 1038 | W110: =LOOKUP(V110,Touren!$A$14:$A$2313,Touren!$B$14:$B$2313) -> 0 | Y110: 28
B111: =B106+60 -> 2025-06-19 | D111: Fronleichnam | G111: 0 | V111: 1039 | W111: =LOOKUP(V111,Touren!$A$14:$A$2313,Touren!$B$14:$B$2313) -> 0 | Y111: 29
B112: =DATE(B101,8,1) -> 2025-08-01 | D112: 1. August | G112: 1 | V112: 1040 | W112: =LOOKUP(V112,Touren!$A$14:$A$2313,Touren!$B$14:$B$2313) -> 0 | Y112: 30
B113: =DATE(B101,11,30)+7*2-MOD(DATE(B101,11,30)+7,7)+1 -> 2025-12-14 | D113: Fahrplanwechsel | V113: 1041 | W113: =LOOKUP(V113,Touren!$A$14:$A$2313,Touren!$B$14:$B$2313) -> 0
B114: =DATE(B101,12,25) -> 2025-12-25 | D114: Weihnachten | G114: 1 | V114: 1042 | W114: =LOOKUP(V114,Touren!$A$14:$A$2313,Touren!$B$14:$B$2313) -> 0
B115: =DATE(B101,12,26) -> 2025-12-26 | D115: Stephanstag | G115: 1 | V115: 1043 | W115: =LOOKUP(V115,Touren!$A$14:$A$2313,Touren!$B$14:$B$2313) -> 0
B116: =YEAR($H$2) -> 2026 | V116: 1044 | W116: =LOOKUP(V116,Touren!$A$14:$A$2313,Touren!$B$14:$B$2313) -> 0
B117: =DATE(B116,1,1) -> 2026-01-01 | D117: Neujahr | G117: 1 | V117: 1045 | W117: =LOOKUP(V117,Touren!$A$14:$A$2313,Touren!$B$14:$B$2313) -> 0
B118: =DATE(B116,1,2) -> 2026-01-02 | D118: Berchtoldstag | G118: 1 | V118: 1046 | W118: =LOOKUP(V118,Touren!$A$14:$A$2313,Touren!$B$14:$B$2313) -> 0
V119: 1047 | W119: =LOOKUP(V119,Touren!$A$14:$A$2313,Touren!$B$14:$B$2313) -> 0
B120: =B121-2 -> 2026-04-03 | D120: Karfreitag | G120: 1 | V120: 1048 | W120: =LOOKUP(V120,Touren!$A$14:$A$2313,Touren!$B$14:$B$2313) -> 0
B121: =DOLLAR((DAY(MINUTE(B116/38)/2+55)&".4."&B116)/7,)*7-6 -> 2026-04-05 | D121: Ostersonntag | G121: 1 | V121: 1049 | W121: =LOOKUP(V121,Touren!$A$14:$A$2313,Touren!$B$14:$B$2313) -> 0
B122: =B121+1 -> 2026-04-06 | D122: Ostermontag | G122: 1 | V122: 1050 | W122: =LOOKUP(V122,Touren!$A$14:$A$2313,Touren!$B$14:$B$2313) -> 0
B123: =B121+39 -> 2026-05-14 | D123: Auffahrt | G123: 1 | V123: 1051 | W123: =LOOKUP(V123,Touren!$A$14:$A$2313,Touren!$B$14:$B$2313) -> 0
B124: =B121+49 -> 2026-05-24 | D124: Pfingstsonntag | G124: 1 | V124: 1052 | W124: =LOOKUP(V124,Touren!$A$14:$A$2313,Touren!$B$14:$B$2313) -> 0
B125: =B121+50 -> 2026-05-25 | D125: Pfingstmontag | G125: 1 | V125: 1053 | W125: =LOOKUP(V125,Touren!$A$14:$A$2313,Touren!$B$14:$B$2313) -> 0
B126: =B121+60 -> 2026-06-04 | D126: Fronleichnam | G126: 0 | V126: 1054 | W126: =LOOKUP(V126,Touren!$A$14:$A$2313,Touren!$B$14:$B$2313) -> 0
B127: =DATE(B116,8,1) -> 2026-08-01 | D127: 1. August | G127: 1 | V127: 1055 | W127: =LOOKUP(V127,Touren!$A$14:$A$2313,Touren!$B$14:$B$2313) -> 0
B128: =DATE(B116,11,30)+7*2-MOD(DATE(B116,11,30)+7,7)+1 -> 2026-12-13 | D128: Fahrplanwechsel | V128: 1056 | W128: =LOOKUP(V128,Touren!$A$14:$A$2313,Touren!$B$14:$B$2313) -> 0
B129: =DATE(B116,12,25) -> 2026-12-25 | D129: Weihnachten | G129: 1 | V129: 1057 | W129: =LOOKUP(V129,Touren!$A$14:$A$2313,Touren!$B$14:$B$2313) -> 0
B130: =DATE(B116,12,26) -> 2026-12-26 | D130: Stephanstag | G130: 1 | V130: 1058 | W130: =LOOKUP(V130,Touren!$A$14:$A$2313,Touren!$B$14:$B$2313) -> 0
B131: =B116+1 -> 2027 | V131: 1059 | W131: =LOOKUP(V131,Touren!$A$14:$A$2313,Touren!$B$14:$B$2313) -> 0
B132: =DATE(B131,1,1) -> 2027-01-01 | D132: Neujahr | G132: 1 | V132: 1060 | W132: =LOOKUP(V132,Touren!$A$14:$A$2313,Touren!$B$14:$B$2313) -> 0
B133: =DATE(B131,1,2) -> 2027-01-02 | D133: Berchtoldstag | G133: 1 | V133: 1061 | W133: =LOOKUP(V133,Touren!$A$14:$A$2313,Touren!$B$14:$B$2313) -> 0
V134: 1062 | W134: =LOOKUP(V134,Touren!$A$14:$A$2313,Touren!$B$14:$B$2313) -> 0
B135: =B136-2 -> 2027-03-26 | D135: Karfreitag | G135: 1 | V135: 1063 | W135: =LOOKUP(V135,Touren!$A$14:$A$2313,Touren!$B$14:$B$2313) -> 0
B136: =DOLLAR((DAY(MINUTE(B131/38)/2+55)&".4."&B131)/7,)*7-6 -> 2027-03-28 | D136: Ostersonntag | G136: 1 | V136: 1064 | W136: =LOOKUP(V136,Touren!$A$14:$A$2313,Touren!$B$14:$B$2313) -> 0
B137: =B136+1 -> 2027-03-29 | D137: Ostermontag | G137: 1 | V137: 1065 | W137: =LOOKUP(V137,Touren!$A$14:$A$2313,Touren!$B$14:$B$2313) -> 0
B138: =B136+39 -> 2027-05-06 | D138: Auffahrt | G138: 1 | V138: 1066 | W138: =LOOKUP(V138,Touren!$A$14:$A$2313,Touren!$B$14:$B$2313) -> 0
B139: =B136+49 -> 2027-05-16 | D139: Pfingstsonntag | G139: 1 | V139: =V138+1 -> 1067 | W139: =LOOKUP(V139,Touren!$A$14:$A$2313,Touren!$B$14:$B$2313) -> 0
B140: =B136+50 -> 2027-05-17 | D140: Pfingstmontag | G140: 1 | V140: 1068 | W140: =LOOKUP(V140,Touren!$A$14:$A$2313,Touren!$B$14:$B$2313) -> 0
B141: =B136+60 -> 2027-05-27 | D141: Fronleichnam | G141: 0 | V141: 1069 | W141: =LOOKUP(V141,Touren!$A$14:$A$2313,Touren!$B$14:$B$2313) -> 0
B142: =DATE(B131,8,1) -> 2027-08-01 | D142: 1. August | G142: 1 | V142: 1070 | W142: =LOOKUP(V142,Touren!$A$14:$A$2313,Touren!$B$14:$B$2313) -> 0
B143: =DATE(B131,11,30)+7*2-MOD(DATE(B131,11,30)+7,7)+1 -> 2027-12-12 | D143: Fahrplanwechsel | V143: 1071 | W143: =LOOKUP(V143,Touren!$A$14:$A$2313,Touren!$B$14:$B$2313) -> 0
B144: =DATE(B131,12,25) -> 2027-12-25 | D144: Weihnachten | G144: 1 | V144: 1072 | W144: =LOOKUP(V144,Touren!$A$14:$A$2313,Touren!$B$14:$B$2313) -> 0
B145: =DATE(B131,12,26) -> 2027-12-26 | D145: Stephanstag | G145: 1 | V145: 1073 | W145: =LOOKUP(V145,Touren!$A$14:$A$2313,Touren!$B$14:$B$2313) -> 0
V146: 1074 | W146: =LOOKUP(V146,Touren!$A$14:$A$2313,Touren!$B$14:$B$2313) -> 0
V147: 1075 | W147: =LOOKUP(V147,Touren!$A$14:$A$2313,Touren!$B$14:$B$2313) -> 0
V148: 1076 | W148: =LOOKUP(V148,Touren!$A$14:$A$2313,Touren!$B$14:$B$2313) -> 0
V149: 1077 | W149: =LOOKUP(V149,Touren!$A$14:$A$2313,Touren!$B$14:$B$2313) -> 0
V150: 1078 | W150: =LOOKUP(V150,Touren!$A$14:$A$2313,Touren!$B$14:$B$2313) -> 0
V151: 1079 | W151: =LOOKUP(V151,Touren!$A$14:$A$2313,Touren!$B$14:$B$2313) -> 0
V152: 1080 | W152: =LOOKUP(V152,Touren!$A$14:$A$2313,Touren!$B$14:$B$2313) -> 0
V153: 1081 | W153: =LOOKUP(V153,Touren!$A$14:$A$2313,Touren!$B$14:$B$2313) -> 0
V154: 1082 | W154: =LOOKUP(V154,Touren!$A$14:$A$2313,Touren!$B$14:$B$2313) -> 0
V155: 1083 | W155: =LOOKUP(V155,Touren!$A$14:$A$2313,Touren!$B$14:$B$2313) -> 0
V156: 1084 | W156: =LOOKUP(V156,Touren!$A$14:$A$2313,Touren!$B$14:$B$2313) -> 0
V157: 1085 | W157: =LOOKUP(V157,Touren!$A$14:$A$2313,Touren!$B$14:$B$2313) -> 0
V158: 1086 | W158: =LOOKUP(V158,Touren!$A$14:$A$2313,Touren!$B$14:$B$2313) -> 0
V159: 1087 | W159: =LOOKUP(V159,Touren!$A$14:$A$2313,Touren!$B$14:$B$2313) -> 0
V160: 1088 | W160: =LOOKUP(V160,Touren!$A$14:$A$2313,Touren!$B$14:$B$2313) -> 0
V161: 1089 | W161: =LOOKUP(V161,Touren!$A$14:$A$2313,Touren!$B$14:$B$2313) -> 0
V162: 1090 | W162: =LOOKUP(V162,Touren!$A$14:$A$2313,Touren!$B$14:$B$2313) -> 0
V163: 1091 | W163: =LOOKUP(V163,Touren!$A$14:$A$2313,Touren!$B$14:$B$2313) -> 0
V164: 1092 | W164: =LOOKUP(V164,Touren!$A$14:$A$2313,Touren!$B$14:$B$2313) -> 0
V165: 1093 | W165: =LOOKUP(V165,Touren!$A$14:$A$2313,Touren!$B$14:$B$2313) -> 0
V166: 1094 | W166: =LOOKUP(V166,Touren!$A$14:$A$2313,Touren!$B$14:$B$2313) -> 0
V167: 1095 | W167: =LOOKUP(V167,Touren!$A$14:$A$2313,Touren!$B$14:$B$2313) -> 0
V168: 1096 | W168: =LOOKUP(V168,Touren!$A$14:$A$2313,Touren!$B$14:$B$2313) -> 0
V169: 1097 | W169: =LOOKUP(V169,Touren!$A$14:$A$2313,Touren!$B$14:$B$2313) -> 0
V170: 1098 | W170: =LOOKUP(V170,Touren!$A$14:$A$2313,Touren!$B$14:$B$2313) -> 0
V171: 1099 | W171: =LOOKUP(V171,Touren!$A$14:$A$2313,Touren!$B$14:$B$2313) -> 0
V172: 1100 | W172: =LOOKUP(V172,Touren!$A$14:$A$2313,Touren!$B$14:$B$2313) -> 0
V173: 1101 | W173: =LOOKUP(V173,Touren!$A$14:$A$2313,Touren!$B$14:$B$2313) -> 0
V174: 1102 | W174: =LOOKUP(V174,Touren!$A$14:$A$2313,Touren!$B$14:$B$2313) -> 0
V175: 1103 | W175: =LOOKUP(V175,Touren!$A$14:$A$2313,Touren!$B$14:$B$2313) -> 0
V176: 1104 | W176: =LOOKUP(V176,Touren!$A$14:$A$2313,Touren!$B$14:$B$2313) -> 0
V177: 1105 | W177: =LOOKUP(V177,Touren!$A$14:$A$2313,Touren!$B$14:$B$2313) -> 0
V178: 1106 | W178: =LOOKUP(V178,Touren!$A$14:$A$2313,Touren!$B$14:$B$2313) -> 0
V179: 1107 | W179: =LOOKUP(V179,Touren!$A$14:$A$2313,Touren!$B$14:$B$2313) -> 0
V180: 1108 | W180: =LOOKUP(V180,Touren!$A$14:$A$2313,Touren!$B$14:$B$2313) -> 0
V181: 1109 | W181: =LOOKUP(V181,Touren!$A$14:$A$2313,Touren!$B$14:$B$2313) -> 0
V182: 1110 | W182: =LOOKUP(V182,Touren!$A$14:$A$2313,Touren!$B$14:$B$2313) -> 0
V183: 1111 | W183: =LOOKUP(V183,Touren!$A$14:$A$2313,Touren!$B$14:$B$2313) -> 0
V184: 1112 | W184: =LOOKUP(V184,Touren!$A$14:$A$2313,Touren!$B$14:$B$2313) -> 0
V185: 1113 | W185: =LOOKUP(V185,Touren!$A$14:$A$2313,Touren!$B$14:$B$2313) -> 0
V186: 1114 | W186: =LOOKUP(V186,Touren!$A$14:$A$2313,Touren!$B$14:$B$2313) -> 0
V187: 1115 | W187: =LOOKUP(V187,Touren!$A$14:$A$2313,Touren!$B$14:$B$2313) -> 0
V188: 1116 | W188: =LOOKUP(V188,Touren!$A$14:$A$2313,Touren!$B$14:$B$2313) -> 0
V189: 1117 | W189: =LOOKUP(V189,Touren!$A$14:$A$2313,Touren!$B$14:$B$2313) -> 0
V190: 1118 | W190: =LOOKUP(V190,Touren!$A$14:$A$2313,Touren!$B$14:$B$2313) -> 0
V191: 1119 | W191: =LOOKUP(V191,Touren!$A$14:$A$2313,Touren!$B$14:$B$2313) -> 0
V192: 1120 | W192: =LOOKUP(V192,Touren!$A$14:$A$2313,Touren!$B$14:$B$2313) -> 0
V193: 1121 | W193: =LOOKUP(V193,Touren!$A$14:$A$2313,Touren!$B$14:$B$2313) -> 0
V194: 1122 | W194: =LOOKUP(V194,Touren!$A$14:$A$2313,Touren!$B$14:$B$2313) -> 0
V195: 1123 | W195: =LOOKUP(V195,Touren!$A$14:$A$2313,Touren!$B$14:$B$2313) -> 0
V196: 1124 | W196: =LOOKUP(V196,Touren!$A$14:$A$2313,Touren!$B$14:$B$2313) -> 0
V197: 1125 | W197: =LOOKUP(V197,Touren!$A$14:$A$2313,Touren!$B$14:$B$2313) -> 0
V198: 1126 | W198: =LOOKUP(V198,Touren!$A$14:$A$2313,Touren!$B$14:$B$2313) -> 0
V199: 1127 | W199: =LOOKUP(V199,Touren!$A$14:$A$2313,Touren!$B$14:$B$2313) -> 0
V200: 1128 | W200: =LOOKUP(V200,Touren!$A$14:$A$2313,Touren!$B$14:$B$2313) -> 0
V201: 1129 | W201: =LOOKUP(V201,Touren!$A$14:$A$2313,Touren!$B$14:$B$2313) -> 0
... 11 more rows

Sheet 5-er Liste
A2: 5-er Liste | B2: 2026-01-01 | J2: Alle Angaben und Berechnungen ohne Gewähr
B3: =DATE(YEAR($B$2),MONTH($B$2)+1,DAY(1)) -> 2026-02-01 | C3: =IF(DAY($B$2)=1,DATE(YEAR($B$2),MONTH($B$2)-1,DAY(1)),DATE(YEAR($B$2),MONTH($B$2),DAY(1))) -> 2025-12-01 | J3: =IF($A$8<62,"Geänderte Touren wegen Feiertagen sind nicht berücksichtigt","") -> Geänderte Touren wegen Feiertagen sind nicht berücksichtigt | U3: =B3 -> 46054
U4: =C3 -> 45992
E5: =IF($U$5=1,"",V77) ->  | H5: =IF($V$5=1,"",W77) ->  | K5: =IF($W$5=1,"",X77) ->  | N5: =IF($X$5=1,"",Y77) ->  | Q5: =IF($Y$5=1,"",Z77) ->  | U5: 1 | V5: 1 | W5: 1 | X5: 1 | Y5: 1
E6: =IF($U$5=1,"",LOOKUP($U$5,Namen!$A$5:$A$354,Namen!$D$5:$D$354)) ->  | F6: =IF($U$5=1,"",IF(AND($V$86>0,$B$2>$V$80),LOOKUP($V$85,Berechnen!$AA$10:$AA$17,Berechnen!$AH$10:$AH$17),LOOKUP($V$78,Berechnen!$AA$10:$AA$17,Berechnen!$AB$10:$AB$17))) ->  | H6: =IF($V$5=1,"",LOOKUP($V$5,Namen!$A$5:$A$354,Namen!$D$5:$D$354)) ->  | I6: =IF($V$5=1,"",IF(AND($W$86>0,$B$2>$W$80),LOOKUP($W$85,Berechnen!$AA$10:$AA$17,Berechnen!$AH$10:$AH$17),LOOKUP($W$78,Berechnen!$AA$10:$AA$17,Berechnen!$AB$10:$AB$17))) ->  | K6: =IF($W$5=1,"",LOOKUP($W$5,Namen!$A$5:$A$354,Namen!$D$5:$D$354)) ->  | L6: =IF($W$5=1,"",IF(AND($X$86>0,$B$2>$X$80),LOOKUP($X$85,Berechnen!$AA$10:$AA$17,Berechnen!$AH$10:$AH$17),LOOKUP($X$78,Berechnen!$AA$10:$AA$17,Berechnen!$AB$10:$AB$17))) ->  | N6: =IF($X$5=1,"",LOOKUP($X$5,Namen!$A$5:$A$354,Namen!$D$5:$D$354)) ->  | O6: =IF($X$5=1,"",IF(AND($Y$86>0,$B$2>$Y$80),LOOKUP($Y$85,Berechnen!$AA$10:$AA$17,Berechnen!$AH$10:$AH$17),LOOKUP($Y$78,Berechnen!$AA$10:$AA$17,Berechnen!$AB$10:$AB$17))) ->  | Q6: =IF($Y$5=1,"",LOOKUP($Y$5,Namen!$A$5:$A$354,Namen!$D$5:$D$354)) ->  | R6: =IF($Y$5=1,"",IF(AND($Z$86>0,$B$2>$Z$80),LOOKUP($Z$85,Berechnen!$AA$10:$AA$17,Berechnen!$AH$10:$AH$17),LOOKUP($Z$78,Berechnen!$AA$10:$AA$17,Berechnen!$AB$10:$AB$17))) -> 
E7: =IF($U$5=1,"",LOOKUP($U$5,Namen!$A$5:$A$354,Namen!$W$5:$W$354)) ->  | H7: =IF($V$5=1,"",LOOKUP($V$5,Namen!$A$5:$A$354,Namen!$W$5:$W$354)) ->  | K7: =IF($W$5=1,"",LOOKUP($W$5,Namen!$A$5:$A$354,Namen!$W$5:$W$354)) ->  | N7: =IF($X$5=1,"",LOOKUP($X$5,Namen!$A$5:$A$354,Namen!$W$5:$W$354)) ->  | Q7: =IF($Y$5=1,"",LOOKUP($Y$5,Namen!$A$5:$A$354,Namen!$W$5:$W$354)) ->  | AC7: 2 | AK7: 3 | AS7: 4 | BA7: 5
A8: =COUNTBLANK($A$9:$A$70) -> 60 | B8: Tag | C8: Datum | D8: DIN | E8: Tour | F8: AB | G8: AE | H8: Tour | I8: AB | J8: AE | K8: Tour | L8: AB | M8: AE | N8: Tour | O8: AB | P8: AE | Q8: Tour | R8: AB | S8: AE | U8: Ferien | V8: Rotation 1 | W8: Rotation 2 | X8: Tour 1 | Y8: Tour 2 | Z8: Art | AA8: Berechnet | AC8: Ferien | AD8: Rotation 1 | AE8: Rotation 2 | AF8: Tour 1 | AG8: Tour 2 | AH8: Art | AI8: Berechnet | AK8: Ferien | AL8: Rotation 1 | AM8: Rotation 2 | AN8: Tour 1 | AO8: Tour 2 | AP8: Art | AQ8: Berechnet | AS8: Ferien | AT8: Rotation 1 | AU8: Rotation 2 | AV8: Tour 1 | AW8: Tour 2 | AX8: Art | AY8: Berechnet | BA8: Ferien | BB8: Rotation 1 | BC8: Rotation 2 | BD8: Tour 1 | BE8: Tour 2 | BF8: Art | BG8: Berechnet
A9: =IF(ISNA(VLOOKUP($C9,Feiertage,3,FALSE)),"",VLOOKUP($C9,Feiertage,3,FALSE)) -> Neujahr | B9: =WEEKDAY(C9) -> 1900-01-05 | C9: =B2 -> 2026-01-01 | D9: =IF($B9=2,TRUNC(($C9-WEEKDAY($C9,2)-DATE(YEAR($C9+4-WEEKDAY($C9,2)),1,-10))/7),"") ->  | E9: =IF($U$5=1,"",IF($U9="F","Ferien",IF(ISNUMBER($AA9),VLOOKUP($AA9,Touren,2,FALSE),"?"))) ->  | F9: =IF($U$5=1,"",IF($U9="F","",IF(ISNUMBER($AA9),VLOOKUP($AA9,Touren,3,FALSE),""))) ->  | G9: =IF($U$5=1,"",IF($U9="F","",IF(ISNUMBER($AA9),VLOOKUP($AA9,Touren,4,FALSE),""))) ->  | H9: =IF($V$5=1,"",IF($AC9="F","Ferien",IF(ISNUMBER($AI9),VLOOKUP($AI9,Touren,2,FALSE),"?"))) ->  | I9: =IF($V$5=1,"",IF($AC9="F","",IF(ISNUMBER($AI9),VLOOKUP($AI9,Touren,3,FALSE),""))) ->  | J9: =IF($V$5=1,"",IF($AC9="F","",IF(ISNUMBER($AI9),VLOOKUP($AI9,Touren,4,FALSE),""))) ->  | K9: =IF($W$5=1,"",IF($AK9="F","Ferien",IF(ISNUMBER($AQ9),VLOOKUP($AQ9,Touren,2,FALSE),"?"))) ->  | L9: =IF($W$5=1,"",IF($AK9="F","",IF(ISNUMBER($AQ9),VLOOKUP($AQ9,Touren,3,FALSE),""))) ->  | M9: =IF($W$5=1,"",IF($AK9="F","",IF(ISNUMBER($AQ9),VLOOKUP($AQ9,Touren,4,FALSE),""))) ->  | N9: =IF($X$5=1,"",IF($AS9="F","Ferien",IF(ISNUMBER($AY9),VLOOKUP($AY9,Touren,2,FALSE),"?"))) ->  | O9: =IF($X$5=1,"",IF($AS9="F","",IF(ISNUMBER($AY9),VLOOKUP($AY9,Touren,3,FALSE),""))) ->  | P9: =IF($X$5=1,"",IF($AS9="F","",IF(ISNUMBER($AY9),VLOOKUP($AY9,Touren,4,FALSE),""))) ->  | Q9: =IF($Y$5=1,"",IF($BA9="F","Ferien",IF(ISNUMBER($BG9),VLOOKUP($BG9,Touren,2,FALSE),"?"))) ->  | R9: =IF($Y$5=1,"",IF($BA9="F","",IF(ISNUMBER($BG9),VLOOKUP($BG9,Touren,3,FALSE),""))) ->  | S9: =IF($Y$5=1,"",IF($BA9="F","",IF(ISNUMBER($BG9),VLOOKUP($BG9,Touren,4,FALSE),""))) ->  | U9: =IF(OR(AND($V$93-2<$C9,$V$93+7>$C9),AND($V$94-2<$C9,$V$94+7>$C9),AND($V$95-2<$C9,$V$95+7>$C9),AND($V$96-2<$C9,$V$96+7>$C9),AND($V$97-2<$C9,$V$97+7>$C9),AND($V$98-2<$C9,$V$98+7>$C9),AND($V$99-2<$C9,$V$99+7>$C9),AND($V$100-2<$C9,$V$100+7>$C9),AND($V$101-2<$C9,$V$101+7>$C9),AND($V$102-2<$C9,$V$102+7>$C9),AND($V$103-2<$C9,$V$103+7>$C9),AND($V$104-2<$C9,$V$104+7>$C9),AND($V$105-2<$C9,$V$105+7>$C9),AND($V$106-2<$C9,$V$106+7>$C9))=TRUE,"F",) ->  | V9: =($C$9-RotA!$K$4+$V$82-INT(($C$9-RotA!$K$4+$V$82-1)/$V$83)*$V$83+$V$84) ->  | W9: =($C$9-RotA!$K$5+$V$89-INT(($C$9-RotA!$K$5+$V$89-1)/$V$90)*$V$90+$V$91) ->  | X9: =VLOOKUP(V9,Rotation,2,FALSE) ->  | Y9: =VLOOKUP(W9,Rotation,2,FALSE) ->  | Z9: =IF(AND($C9>=V$79,$C9<=V$80,ISNUMBER(X9)),1,IF(AND($C9>=V$86,$C9<=V$87,ISNUMBER(Y9)),3,IF(AND($C9>V$80,ISNUMBER(X9),LOOKUP($V$78,Berechnen!$AA$10:$AA$17,Berechnen!$AI$10:$AI$17)=0),5,IF(AND($C9<V$80,V$86=0,ISNUMBER(X9)),2,IF(AND($C9>$V$87,ISNUMBER(Y9)),4,0))))) ->  | AA9: =IF(OR(Z9=1,Z9=2,Z9=5),X9,IF(OR(Z9=3,Z9=4),Y9,"")) ->  | AC9: =IF(OR(AND($W$93-2<$C9,$W$93+7>$C9),AND($W$94-2<$C9,$W$94+7>$C9),AND($W$95-2<$C9,$W$95+7>$C9),AND($W$96-2<$C9,$W$96+7>$C9),AND($W$97-2<$C9,$W$97+7>$C9),AND($W$98-2<$C9,$W$98+7>$C9),AND($W$99-2<$C9,$W$99+7>$C9),AND($W$100-2<$C9,$W$100+7>$C9),AND($W$101-2<$C9,$W$101+7>$C9),AND($W$102-2<$C9,$W$102+7>$C9),AND($W$103-2<$C9,$W$103+7>$C9),AND($W$104-2<$C9,$W$104+7>$C9),AND($W$105-2<$C9,$W$105+7>$C9),AND($W$106-2<$C9,$W$106+7>$C9))=TRUE,"F",) ->  | AD9: =($C$9-RotA!$K$4+$W$82-INT(($C$9-RotA!$K$4+$W$82-1)/$W$83)*$W$83+$W$84) ->  | AE9: =($C$9-RotA!$K$5+$W$89-INT(($C$9-RotA!$K$5+$W$89-1)/$W$90)*$W$90+$W$91) ->  | AF9: =VLOOKUP(AD9,Rotation,2,FALSE) ->  | AG9: =VLOOKUP(AE9,Rotation,2,FALSE) ->  | AH9: =IF(AND($C9>=W$79,$C9<=W$80,ISNUMBER(AF9)),1,IF(AND($C9>=W$86,$C9<=W$87,ISNUMBER(AG9)),3,IF(AND($C9>W$80,ISNUMBER(AF9),LOOKUP($W$78,Berechnen!$AA$10:$AA$17,Berechnen!$AI$10:$AI$17)=0),5,IF(AND($C9<W$80,W$86=0,ISNUMBER(AF9)),2,IF(AND($C9>$W$87,ISNUMBER(AG9)),4,0))))) ->  | AI9: =IF(OR(AH9=1,AH9=2,AH9=5),AF9,IF(OR(AH9=3,AH9=4),AG9,"")) ->  | AK9: =IF(OR(AND($X$93-2<$C9,$X$93+7>$C9),AND($X$94-2<$C9,$X$94+7>$C9),AND($X$95-2<$C9,$X$95+7>$C9),AND($X$96-2<$C9,$X$96+7>$C9),AND($X$97-2<$C9,$X$97+7>$C9),AND($X$98-2<$C9,$X$98+7>$C9),AND($X$99-2<$C9,$X$99+7>$C9),AND($X$100-2<$C9,$X$100+7>$C9),AND($X$101-2<$C9,$X$101+7>$C9),AND($X$102-2<$C9,$X$102+7>$C9),AND($X$103-2<$C9,$X$103+7>$C9),AND($X$104-2<$C9,$X$104+7>$C9),AND($X$105-2<$C9,$X$105+7>$C9),AND($X$106-2<$C9,$X$106+7>$C9))=TRUE,"F",) ->  | AL9: =($C$9-RotA!$K$4+$X$82-INT(($C$9-RotA!$K$4+$X$82-1)/$X$83)*$X$83+$X$84) ->  | AM9: =($C$9-RotA!$K$5+$X$89-INT(($C$9-RotA!$K$5+$X$89-1)/$X$90)*$X$90+$X$91) ->  | AN9: =VLOOKUP(AL9,Rotation,2,FALSE) ->  | AO9: =VLOOKUP(AM9,Rotation,2,FALSE) ->  | AP9: =IF(AND($C9>=X$79,$C9<=X$80,ISNUMBER(AN9)),1,IF(AND($C9>=X$86,$C9<=X$87,ISNUMBER(AO9)),3,IF(AND($C9>X$80,ISNUMBER(AN9),LOOKUP($X$78,Berechnen!$AA$10:$AA$17,Berechnen!$AI$10:$AI$17)=0),5,IF(AND($C9<X$80,X$86=0,ISNUMBER(AN9)),2,IF(AND($C9>X$87,ISNUMBER(AO9)),4,0))))) ->  | AQ9: =IF(OR(AP9=1,AP9=2,AP9=5),AN9,IF(OR(AP9=3,AP9=4),AO9,"")) ->  | AS9: =IF(OR(AND($Y$93-2<$C9,$Y$93+7>$C9),AND($Y$94-2<$C9,$Y$94+7>$C9),AND($Y$95-2<$C9,$Y$95+7>$C9),AND($Y$96-2<$C9,$Y$96+7>$C9),AND($Y$97-2<$C9,$Y$97+7>$C9),AND($Y$98-2<$C9,$Y$98+7>$C9),AND($Y$99-2<$C9,$Y$99+7>$C9),AND($Y$100-2<$C9,$Y$100+7>$C9),AND($Y$101-2<$C9,$Y$101+7>$C9),AND($Y$102-2<$C9,$Y$102+7>$C9),AND($Y$103-2<$C9,$Y$103+7>$C9),AND($Y$104-2<$C9,$Y$104+7>$C9),AND($Y$105-2<$C9,$Y$105+7>$C9),AND($Y$106-2<$C9,$Y$106+7>$C9))=TRUE,"F",) ->  | AT9: =($C$9-RotA!$K$4+$Y$82-INT(($C$9-RotA!$K$4+$Y$82-1)/$Y$83)*$Y$83+$Y$84) ->  | AU9: =($C$9-RotA!$K$5+$Y$89-INT(($C$9-RotA!$K$5+$Y$89-1)/$Y$90)*$Y$90+$Y$91) ->  | AV9: =VLOOKUP(AT9,Rotation,2,FALSE) ->  | AW9: =VLOOKUP(AU9,Rotation,2,FALSE) ->  | AX9: =IF(AND($C9>=Y$79,$C9<=Y$80,ISNUMBER(AV9)),1,IF(AND($C9>=Y$86,$C9<=Y$87,ISNUMBER(AW9)),3,IF(AND($C9>Y$80,ISNUMBER(AV9),LOOKUP($Y$78,Berechnen!$AA$10:$AA$17,Berechnen!$AI$10:$AI$17)=0),5,IF(AND($C9<Y$80,Y$86=0,ISNUMBER(AV9)),2,IF(AND($C9>Y$87,ISNUMBER(AW9)),4,0))))) ->  | AY9: =IF(OR(AX9=1,AX9=2,AX9=5),AV9,IF(OR(AX9=3,AX9=4),AW9,"")) ->  | BA9: =IF(OR(AND($Z$93-2<$C9,$Z$93+7>$C9),AND($Z$94-2<$C9,$Z$94+7>$C9),AND($Z$95-2<$C9,$Z$95+7>$C9),AND($Z$96-2<$C9,$Z$96+7>$C9),AND($Z$97-2<$C9,$Z$97+7>$C9),AND($Z$98-2<$C9,$Z$98+7>$C9),AND($Z$99-2<$C9,$Z$99+7>$C9),AND($Z$100-2<$C9,$Z$100+7>$C9),AND($Z$101-2<$C9,$Z$101+7>$C9),AND($Z$102-2<$C9,$Z$102+7>$C9),AND($Z$103-2<$C9,$Z$103+7>$C9),AND($Z$104-2<$C9,$Z$104+7>$C9),AND($Z$105-2<$C9,$Z$105+7>$C9),AND($Z$106-2<$C9,$Z$106+7>$C9))=TRUE,"F",) ->  | BB9: =($C$9-RotA!$K$4+$Z$82-INT(($C$9-RotA!$K$4+$Z$82-1)/$Z$83)*$Z$83+$Z$84) ->  | BC9: =($C$9-RotA!$K$5+$Z$89-INT(($C$9-RotA!$K$5+$Z$89-1)/$Z$90)*$Z$90+$Z$91) ->  | BD9: =VLOOKUP(BB9,Rotation,2,FALSE) ->  | BE9: =VLOOKUP(BC9,Rotation,2,FALSE) ->  | BF9: =IF(AND($C9>=Z$79,$C9<=Z$80,ISNUMBER(BD9)),1,IF(AND($C9>=Z$86,$C9<=Z$87,ISNUMBER(BE9)),3,IF(AND($C9>Z$80,ISNUMBER(BD9),LOOKUP($Z$78,Berechnen!$AA$10:$AA$17,Berechnen!$AI$10:$AI$17)=0),5,IF(AND($C9<Z$80,Z$86=0,ISNUMBER(BD9)),2,IF(AND($C9>Z$87,ISNUMBER(BE9)),4,0))))) ->  | BG9: =IF(OR(BF9=1,BF9=2,BF9=5),BD9,IF(OR(BF9=3,BF9=4),BE9,"")) -> 
A10: Berchtoldstag | B10: 1900-01-06 | C10: =C9+1 -> 2026-01-02 | D10: =IF($B10=2,TRUNC(($C10-WEEKDAY($C10,2)-DATE(YEAR($C10+4-WEEKDAY($C10,2)),1,-10))/7),"") ->  | V10: =IF(V9-$V$84=$V$83,1+$V$84,V9+1) ->  | W10: =IF(W9-$V$91=$V$90,1+$V$91,W9+1) ->  | Z10: =IF(AND($C10>=V$79,$C10<=V$80,ISNUMBER(X10)),1,IF(AND($C10>=V$86,$C10<=V$87,ISNUMBER(Y10)),3,IF(AND($C10>V$80,ISNUMBER(X10),LOOKUP($V$78,Berechnen!$AA$10:$AA$17,Berechnen!$AI$10:$AI$17)=0),5,IF(AND($C10<V$80,V$86=0,ISNUMBER(X10)),2,IF(AND($C10>$V$87,ISNUMBER(Y10)),4,0))))) ->  | AA10: =IF(OR(Z10=1,Z10=2,Z10=5),X10,IF(OR(Z10=3,Z10=4),Y10,"")) ->  | AD10: =IF(AD9-$W$84=$W$83,1+$W$84,AD9+1) ->  | AE10: =IF(AE9-$W$91=$W$90,1+$W$91,AE9+1) ->  | AH10: =IF(AND($C10>=W$79,$C10<=W$80,ISNUMBER(AF10)),1,IF(AND($C10>=W$86,$C10<=W$87,ISNUMBER(AG10)),3,IF(AND($C10>W$80,ISNUMBER(AF10),LOOKUP($W$78,Berechnen!$AA$10:$AA$17,Berechnen!$AI$10:$AI$17)=0),5,IF(AND($C10<W$80,W$86=0,ISNUMBER(AF10)),2,IF(AND($C10>$W$87,ISNUMBER(AG10)),4,0))))) ->  | AI10: =IF(OR(AH10=1,AH10=2,AH10=5),AF10,IF(OR(AH10=3,AH10=4),AG10,"")) ->  | AL10: =IF(AL9-$X$84=$X$83,1+$X$84,AL9+1) ->  | AM10: =IF(AM9-$X$91=$X$90,1+$X$91,AM9+1) ->  | AP10: =IF(AND($C10>=X$79,$C10<=X$80,ISNUMBER(AN10)),1,IF(AND($C10>=X$86,$C10<=X$87,ISNUMBER(AO10)),3,IF(AND($C10>X$80,ISNUMBER(AN10),LOOKUP($X$78,Berechnen!$AA$10:$AA$17,Berechnen!$AI$10:$AI$17)=0),5,IF(AND($C10<X$80,X$86=0,ISNUMBER(AN10)),2,IF(AND($C10>X$87,ISNUMBER(AO10)),4,0))))) ->  | AQ10: =IF(OR(AP10=1,AP10=2,AP10=5),AN10,IF(OR(AP10=3,AP10=4),AO10,"")) ->  | AT10: =IF(AT9-$Y$84=$Y$83,1+$Y$84,AT9+1) ->  | AU10: =IF(AU9-$Y$91=$Y$90,1+$Y$91,AU9+1) ->  | AX10: =IF(AND($C10>=Y$79,$C10<=Y$80,ISNUMBER(AV10)),1,IF(AND($C10>=Y$86,$C10<=Y$87,ISNUMBER(AW10)),3,IF(AND($C10>Y$80,ISNUMBER(AV10),LOOKUP($Y$78,Berechnen!$AA$10:$AA$17,Berechnen!$AI$10:$AI$17)=0),5,IF(AND($C10<Y$80,Y$86=0,ISNUMBER(AV10)),2,IF(AND($C10>Y$87,ISNUMBER(AW10)),4,0))))) ->  | AY10: =IF(OR(AX10=1,AX10=2,AX10=5),AV10,IF(OR(AX10=3,AX10=4),AW10,"")) ->  | BB10: =IF(BB9-$Z$84=$Z$83,1+$Z$84,BB9+1) ->  | BC10: =IF(BC9-$Z$91=$Z$90,1+$Z$91,BC9+1) ->  | BF10: =IF(AND($C10>=Z$79,$C10<=Z$80,ISNUMBER(BD10)),1,IF(AND($C10>=Z$86,$C10<=Z$87,ISNUMBER(BE10)),3,IF(AND($C10>Z$80,ISNUMBER(BD10),LOOKUP($Z$78,Berechnen!$AA$10:$AA$17,Berechnen!$AI$10:$AI$17)=0),5,IF(AND($C10<Z$80,Z$86=0,ISNUMBER(BD10)),2,IF(AND($C10>Z$87,ISNUMBER(BE10)),4,0))))) ->  | BG10: =IF(OR(BF10=1,BF10=2,BF10=5),BD10,IF(OR(BF10=3,BF10=4),BE10,"")) -> 
B11: 1900-01-07 | C11: =C9+2 -> 2026-01-03 | Z11: =IF(AND($C11>=V$79,$C11<=V$80,ISNUMBER(X11)),1,IF(AND($C11>=V$86,$C11<=V$87,ISNUMBER(Y11)),3,IF(AND($C11>V$80,ISNUMBER(X11),LOOKUP($V$78,Berechnen!$AA$10:$AA$17,Berechnen!$AI$10:$AI$17)=0),5,IF(AND($C11<V$80,V$86=0,ISNUMBER(X11)),2,IF(AND($C11>$V$87,ISNUMBER(Y11)),4,0))))) ->  | AH11: =IF(AND($C11>=W$79,$C11<=W$80,ISNUMBER(AF11)),1,IF(AND($C11>=W$86,$C11<=W$87,ISNUMBER(AG11)),3,IF(AND($C11>W$80,ISNUMBER(AF11),LOOKUP($W$78,Berechnen!$AA$10:$AA$17,Berechnen!$AI$10:$AI$17)=0),5,IF(AND($C11<W$80,W$86=0,ISNUMBER(AF11)),2,IF(AND($C11>$W$87,ISNUMBER(AG11)),4,0))))) ->  | AP11: =IF(AND($C11>=X$79,$C11<=X$80,ISNUMBER(AN11)),1,IF(AND($C11>=X$86,$C11<=X$87,ISNUMBER(AO11)),3,IF(AND($C11>X$80,ISNUMBER(AN11),LOOKUP($X$78,Berechnen!$AA$10:$AA$17,Berechnen!$AI$10:$AI$17)=0),5,IF(AND($C11<X$80,X$86=0,ISNUMBER(AN11)),2,IF(AND($C11>X$87,ISNUMBER(AO11)),4,0))))) ->  | AX11: =IF(AND($C11>=Y$79,$C11<=Y$80,ISNUMBER(AV11)),1,IF(AND($C11>=Y$86,$C11<=Y$87,ISNUMBER(AW11)),3,IF(AND($C11>Y$80,ISNUMBER(AV11),LOOKUP($Y$78,Berechnen!$AA$10:$AA$17,Berechnen!$AI$10:$AI$17)=0),5,IF(AND($C11<Y$80,Y$86=0,ISNUMBER(AV11)),2,IF(AND($C11>Y$87,ISNUMBER(AW11)),4,0))))) ->  | BF11: =IF(AND($C11>=Z$79,$C11<=Z$80,ISNUMBER(BD11)),1,IF(AND($C11>=Z$86,$C11<=Z$87,ISNUMBER(BE11)),3,IF(AND($C11>Z$80,ISNUMBER(BD11),LOOKUP($Z$78,Berechnen!$AA$10:$AA$17,Berechnen!$AI$10:$AI$17)=0),5,IF(AND($C11<Z$80,Z$86=0,ISNUMBER(BD11)),2,IF(AND($C11>Z$87,ISNUMBER(BE11)),4,0))))) -> 
B12: 1900-01-01 | C12: =C9+3 -> 2026-01-04 | Z12: =IF(AND($C12>=V$79,$C12<=V$80,ISNUMBER(X12)),1,IF(AND($C12>=V$86,$C12<=V$87,ISNUMBER(Y12)),3,IF(AND($C12>V$80,ISNUMBER(X12),LOOKUP($V$78,Berechnen!$AA$10:$AA$17,Berechnen!$AI$10:$AI$17)=0),5,IF(AND($C12<V$80,V$86=0,ISNUMBER(X12)),2,IF(AND($C12>$V$87,ISNUMBER(Y12)),4,0))))) ->  | AH12: =IF(AND($C12>=W$79,$C12<=W$80,ISNUMBER(AF12)),1,IF(AND($C12>=W$86,$C12<=W$87,ISNUMBER(AG12)),3,IF(AND($C12>W$80,ISNUMBER(AF12),LOOKUP($W$78,Berechnen!$AA$10:$AA$17,Berechnen!$AI$10:$AI$17)=0),5,IF(AND($C12<W$80,W$86=0,ISNUMBER(AF12)),2,IF(AND($C12>$W$87,ISNUMBER(AG12)),4,0))))) ->  | AP12: =IF(AND($C12>=X$79,$C12<=X$80,ISNUMBER(AN12)),1,IF(AND($C12>=X$86,$C12<=X$87,ISNUMBER(AO12)),3,IF(AND($C12>X$80,ISNUMBER(AN12),LOOKUP($X$78,Berechnen!$AA$10:$AA$17,Berechnen!$AI$10:$AI$17)=0),5,IF(AND($C12<X$80,X$86=0,ISNUMBER(AN12)),2,IF(AND($C12>X$87,ISNUMBER(AO12)),4,0))))) ->  | AX12: =IF(AND($C12>=Y$79,$C12<=Y$80,ISNUMBER(AV12)),1,IF(AND($C12>=Y$86,$C12<=Y$87,ISNUMBER(AW12)),3,IF(AND($C12>Y$80,ISNUMBER(AV12),LOOKUP($Y$78,Berechnen!$AA$10:$AA$17,Berechnen!$AI$10:$AI$17)=0),5,IF(AND($C12<Y$80,Y$86=0,ISNUMBER(AV12)),2,IF(AND($C12>Y$87,ISNUMBER(AW12)),4,0))))) ->  | BF12: =IF(AND($C12>=Z$79,$C12<=Z$80,ISNUMBER(BD12)),1,IF(AND($C12>=Z$86,$C12<=Z$87,ISNUMBER(BE12)),3,IF(AND($C12>Z$80,ISNUMBER(BD12),LOOKUP($Z$78,Berechnen!$AA$10:$AA$17,Berechnen!$AI$10:$AI$17)=0),5,IF(AND($C12<Z$80,Z$86=0,ISNUMBER(BD12)),2,IF(AND($C12>Z$87,ISNUMBER(BE12)),4,0))))) -> 
B13: 1900-01-02 | C13: =C9+4 -> 2026-01-05 | D13: 2 | Z13: =IF(AND($C13>=V$79,$C13<=V$80,ISNUMBER(X13)),1,IF(AND($C13>=V$86,$C13<=V$87,ISNUMBER(Y13)),3,IF(AND($C13>V$80,ISNUMBER(X13),LOOKUP($V$78,Berechnen!$AA$10:$AA$17,Berechnen!$AI$10:$AI$17)=0),5,IF(AND($C13<V$80,V$86=0,ISNUMBER(X13)),2,IF(AND($C13>$V$87,ISNUMBER(Y13)),4,0))))) ->  | AH13: =IF(AND($C13>=W$79,$C13<=W$80,ISNUMBER(AF13)),1,IF(AND($C13>=W$86,$C13<=W$87,ISNUMBER(AG13)),3,IF(AND($C13>W$80,ISNUMBER(AF13),LOOKUP($W$78,Berechnen!$AA$10:$AA$17,Berechnen!$AI$10:$AI$17)=0),5,IF(AND($C13<W$80,W$86=0,ISNUMBER(AF13)),2,IF(AND($C13>$W$87,ISNUMBER(AG13)),4,0))))) ->  | AP13: =IF(AND($C13>=X$79,$C13<=X$80,ISNUMBER(AN13)),1,IF(AND($C13>=X$86,$C13<=X$87,ISNUMBER(AO13)),3,IF(AND($C13>X$80,ISNUMBER(AN13),LOOKUP($X$78,Berechnen!$AA$10:$AA$17,Berechnen!$AI$10:$AI$17)=0),5,IF(AND($C13<X$80,X$86=0,ISNUMBER(AN13)),2,IF(AND($C13>X$87,ISNUMBER(AO13)),4,0))))) ->  | AX13: =IF(AND($C13>=Y$79,$C13<=Y$80,ISNUMBER(AV13)),1,IF(AND($C13>=Y$86,$C13<=Y$87,ISNUMBER(AW13)),3,IF(AND($C13>Y$80,ISNUMBER(AV13),LOOKUP($Y$78,Berechnen!$AA$10:$AA$17,Berechnen!$AI$10:$AI$17)=0),5,IF(AND($C13<Y$80,Y$86=0,ISNUMBER(AV13)),2,IF(AND($C13>Y$87,ISNUMBER(AW13)),4,0))))) ->  | BF13: =IF(AND($C13>=Z$79,$C13<=Z$80,ISNUMBER(BD13)),1,IF(AND($C13>=Z$86,$C13<=Z$87,ISNUMBER(BE13)),3,IF(AND($C13>Z$80,ISNUMBER(BD13),LOOKUP($Z$78,Berechnen!$AA$10:$AA$17,Berechnen!$AI$10:$AI$17)=0),5,IF(AND($C13<Z$80,Z$86=0,ISNUMBER(BD13)),2,IF(AND($C13>Z$87,ISNUMBER(BE13)),4,0))))) -> 
B14: 1900-01-03 | C14: =C9+5 -> 2026-01-06 | Z14: =IF(AND($C14>=V$79,$C14<=V$80,ISNUMBER(X14)),1,IF(AND($C14>=V$86,$C14<=V$87,ISNUMBER(Y14)),3,IF(AND($C14>V$80,ISNUMBER(X14),LOOKUP($V$78,Berechnen!$AA$10:$AA$17,Berechnen!$AI$10:$AI$17)=0),5,IF(AND($C14<V$80,V$86=0,ISNUMBER(X14)),2,IF(AND($C14>$V$87,ISNUMBER(Y14)),4,0))))) ->  | AH14: =IF(AND($C14>=W$79,$C14<=W$80,ISNUMBER(AF14)),1,IF(AND($C14>=W$86,$C14<=W$87,ISNUMBER(AG14)),3,IF(AND($C14>W$80,ISNUMBER(AF14),LOOKUP($W$78,Berechnen!$AA$10:$AA$17,Berechnen!$AI$10:$AI$17)=0),5,IF(AND($C14<W$80,W$86=0,ISNUMBER(AF14)),2,IF(AND($C14>$W$87,ISNUMBER(AG14)),4,0))))) ->  | AP14: =IF(AND($C14>=X$79,$C14<=X$80,ISNUMBER(AN14)),1,IF(AND($C14>=X$86,$C14<=X$87,ISNUMBER(AO14)),3,IF(AND($C14>X$80,ISNUMBER(AN14),LOOKUP($X$78,Berechnen!$AA$10:$AA$17,Berechnen!$AI$10:$AI$17)=0),5,IF(AND($C14<X$80,X$86=0,ISNUMBER(AN14)),2,IF(AND($C14>X$87,ISNUMBER(AO14)),4,0))))) ->  | AX14: =IF(AND($C14>=Y$79,$C14<=Y$80,ISNUMBER(AV14)),1,IF(AND($C14>=Y$86,$C14<=Y$87,ISNUMBER(AW14)),3,IF(AND($C14>Y$80,ISNUMBER(AV14),LOOKUP($Y$78,Berechnen!$AA$10:$AA$17,Berechnen!$AI$10:$AI$17)=0),5,IF(AND($C14<Y$80,Y$86=0,ISNUMBER(AV14)),2,IF(AND($C14>Y$87,ISNUMBER(AW14)),4,0))))) ->  | BF14: =IF(AND($C14>=Z$79,$C14<=Z$80,ISNUMBER(BD14)),1,IF(AND($C14>=Z$86,$C14<=Z$87,ISNUMBER(BE14)),3,IF(AND($C14>Z$80,ISNUMBER(BD14),LOOKUP($Z$78,Berechnen!$AA$10:$AA$17,Berechnen!$AI$10:$AI$17)=0),5,IF(AND($C14<Z$80,Z$86=0,ISNUMBER(BD14)),2,IF(AND($C14>Z$87,ISNUMBER(BE14)),4,0))))) -> 
B15: 1900-01-04 | C15: =C9+6 -> 2026-01-07 | Z15: =IF(AND($C15>=V$79,$C15<=V$80,ISNUMBER(X15)),1,IF(AND($C15>=V$86,$C15<=V$87,ISNUMBER(Y15)),3,IF(AND($C15>V$80,ISNUMBER(X15),LOOKUP($V$78,Berechnen!$AA$10:$AA$17,Berechnen!$AI$10:$AI$17)=0),5,IF(AND($C15<V$80,V$86=0,ISNUMBER(X15)),2,IF(AND($C15>$V$87,ISNUMBER(Y15)),4,0))))) ->  | AH15: =IF(AND($C15>=W$79,$C15<=W$80,ISNUMBER(AF15)),1,IF(AND($C15>=W$86,$C15<=W$87,ISNUMBER(AG15)),3,IF(AND($C15>W$80,ISNUMBER(AF15),LOOKUP($W$78,Berechnen!$AA$10:$AA$17,Berechnen!$AI$10:$AI$17)=0),5,IF(AND($C15<W$80,W$86=0,ISNUMBER(AF15)),2,IF(AND($C15>$W$87,ISNUMBER(AG15)),4,0))))) ->  | AP15: =IF(AND($C15>=X$79,$C15<=X$80,ISNUMBER(AN15)),1,IF(AND($C15>=X$86,$C15<=X$87,ISNUMBER(AO15)),3,IF(AND($C15>X$80,ISNUMBER(AN15),LOOKUP($X$78,Berechnen!$AA$10:$AA$17,Berechnen!$AI$10:$AI$17)=0),5,IF(AND($C15<X$80,X$86=0,ISNUMBER(AN15)),2,IF(AND($C15>X$87,ISNUMBER(AO15)),4,0))))) ->  | AX15: =IF(AND($C15>=Y$79,$C15<=Y$80,ISNUMBER(AV15)),1,IF(AND($C15>=Y$86,$C15<=Y$87,ISNUMBER(AW15)),3,IF(AND($C15>Y$80,ISNUMBER(AV15),LOOKUP($Y$78,Berechnen!$AA$10:$AA$17,Berechnen!$AI$10:$AI$17)=0),5,IF(AND($C15<Y$80,Y$86=0,ISNUMBER(AV15)),2,IF(AND($C15>Y$87,ISNUMBER(AW15)),4,0))))) ->  | BF15: =IF(AND($C15>=Z$79,$C15<=Z$80,ISNUMBER(BD15)),1,IF(AND($C15>=Z$86,$C15<=Z$87,ISNUMBER(BE15)),3,IF(AND($C15>Z$80,ISNUMBER(BD15),LOOKUP($Z$78,Berechnen!$AA$10:$AA$17,Berechnen!$AI$10:$AI$17)=0),5,IF(AND($C15<Z$80,Z$86=0,ISNUMBER(BD15)),2,IF(AND($C15>Z$87,ISNUMBER(BE15)),4,0))))) -> 
B16: 1900-01-05 | C16: =C9+7 -> 2026-01-08 | Z16: =IF(AND($C16>=V$79,$C16<=V$80,ISNUMBER(X16)),1,IF(AND($C16>=V$86,$C16<=V$87,ISNUMBER(Y16)),3,IF(AND($C16>V$80,ISNUMBER(X16),LOOKUP($V$78,Berechnen!$AA$10:$AA$17,Berechnen!$AI$10:$AI$17)=0),5,IF(AND($C16<V$80,V$86=0,ISNUMBER(X16)),2,IF(AND($C16>$V$87,ISNUMBER(Y16)),4,0))))) ->  | AH16: =IF(AND($C16>=W$79,$C16<=W$80,ISNUMBER(AF16)),1,IF(AND($C16>=W$86,$C16<=W$87,ISNUMBER(AG16)),3,IF(AND($C16>W$80,ISNUMBER(AF16),LOOKUP($W$78,Berechnen!$AA$10:$AA$17,Berechnen!$AI$10:$AI$17)=0),5,IF(AND($C16<W$80,W$86=0,ISNUMBER(AF16)),2,IF(AND($C16>$W$87,ISNUMBER(AG16)),4,0))))) ->  | AP16: =IF(AND($C16>=X$79,$C16<=X$80,ISNUMBER(AN16)),1,IF(AND($C16>=X$86,$C16<=X$87,ISNUMBER(AO16)),3,IF(AND($C16>X$80,ISNUMBER(AN16),LOOKUP($X$78,Berechnen!$AA$10:$AA$17,Berechnen!$AI$10:$AI$17)=0),5,IF(AND($C16<X$80,X$86=0,ISNUMBER(AN16)),2,IF(AND($C16>X$87,ISNUMBER(AO16)),4,0))))) ->  | AX16: =IF(AND($C16>=Y$79,$C16<=Y$80,ISNUMBER(AV16)),1,IF(AND($C16>=Y$86,$C16<=Y$87,ISNUMBER(AW16)),3,IF(AND($C16>Y$80,ISNUMBER(AV16),LOOKUP($Y$78,Berechnen!$AA$10:$AA$17,Berechnen!$AI$10:$AI$17)=0),5,IF(AND($C16<Y$80,Y$86=0,ISNUMBER(AV16)),2,IF(AND($C16>Y$87,ISNUMBER(AW16)),4,0))))) ->  | BF16: =IF(AND($C16>=Z$79,$C16<=Z$80,ISNUMBER(BD16)),1,IF(AND($C16>=Z$86,$C16<=Z$87,ISNUMBER(BE16)),3,IF(AND($C16>Z$80,ISNUMBER(BD16),LOOKUP($Z$78,Berechnen!$AA$10:$AA$17,Berechnen!$AI$10:$AI$17)=0),5,IF(AND($C16<Z$80,Z$86=0,ISNUMBER(BD16)),2,IF(AND($C16>Z$87,ISNUMBER(BE16)),4,0))))) -> 
B17: 1900-01-06 | C17: =C9+8 -> 2026-01-09 | Z17: =IF(AND($C17>=V$79,$C17<=V$80,ISNUMBER(X17)),1,IF(AND($C17>=V$86,$C17<=V$87,ISNUMBER(Y17)),3,IF(AND($C17>V$80,ISNUMBER(X17),LOOKUP($V$78,Berechnen!$AA$10:$AA$17,Berechnen!$AI$10:$AI$17)=0),5,IF(AND($C17<V$80,V$86=0,ISNUMBER(X17)),2,IF(AND($C17>$V$87,ISNUMBER(Y17)),4,0))))) ->  | AH17: =IF(AND($C17>=W$79,$C17<=W$80,ISNUMBER(AF17)),1,IF(AND($C17>=W$86,$C17<=W$87,ISNUMBER(AG17)),3,IF(AND($C17>W$80,ISNUMBER(AF17),LOOKUP($W$78,Berechnen!$AA$10:$AA$17,Berechnen!$AI$10:$AI$17)=0),5,IF(AND($C17<W$80,W$86=0,ISNUMBER(AF17)),2,IF(AND($C17>$W$87,ISNUMBER(AG17)),4,0))))) ->  | AP17: =IF(AND($C17>=X$79,$C17<=X$80,ISNUMBER(AN17)),1,IF(AND($C17>=X$86,$C17<=X$87,ISNUMBER(AO17)),3,IF(AND($C17>X$80,ISNUMBER(AN17),LOOKUP($X$78,Berechnen!$AA$10:$AA$17,Berechnen!$AI$10:$AI$17)=0),5,IF(AND($C17<X$80,X$86=0,ISNUMBER(AN17)),2,IF(AND($C17>X$87,ISNUMBER(AO17)),4,0))))) ->  | AX17: =IF(AND($C17>=Y$79,$C17<=Y$80,ISNUMBER(AV17)),1,IF(AND($C17>=Y$86,$C17<=Y$87,ISNUMBER(AW17)),3,IF(AND($C17>Y$80,ISNUMBER(AV17),LOOKUP($Y$78,Berechnen!$AA$10:$AA$17,Berechnen!$AI$10:$AI$17)=0),5,IF(AND($C17<Y$80,Y$86=0,ISNUMBER(AV17)),2,IF(AND($C17>Y$87,ISNUMBER(AW17)),4,0))))) ->  | BF17: =IF(AND($C17>=Z$79,$C17<=Z$80,ISNUMBER(BD17)),1,IF(AND($C17>=Z$86,$C17<=Z$87,ISNUMBER(BE17)),3,IF(AND($C17>Z$80,ISNUMBER(BD17),LOOKUP($Z$78,Berechnen!$AA$10:$AA$17,Berechnen!$AI$10:$AI$17)=0),5,IF(AND($C17<Z$80,Z$86=0,ISNUMBER(BD17)),2,IF(AND($C17>Z$87,ISNUMBER(BE17)),4,0))))) -> 
B18: 1900-01-07 | C18: =C9+9 -> 2026-01-10 | Z18: =IF(AND($C18>=V$79,$C18<=V$80,ISNUMBER(X18)),1,IF(AND($C18>=V$86,$C18<=V$87,ISNUMBER(Y18)),3,IF(AND($C18>V$80,ISNUMBER(X18),LOOKUP($V$78,Berechnen!$AA$10:$AA$17,Berechnen!$AI$10:$AI$17)=0),5,IF(AND($C18<V$80,V$86=0,ISNUMBER(X18)),2,IF(AND($C18>$V$87,ISNUMBER(Y18)),4,0))))) ->  | AH18: =IF(AND($C18>=W$79,$C18<=W$80,ISNUMBER(AF18)),1,IF(AND($C18>=W$86,$C18<=W$87,ISNUMBER(AG18)),3,IF(AND($C18>W$80,ISNUMBER(AF18),LOOKUP($W$78,Berechnen!$AA$10:$AA$17,Berechnen!$AI$10:$AI$17)=0),5,IF(AND($C18<W$80,W$86=0,ISNUMBER(AF18)),2,IF(AND($C18>$W$87,ISNUMBER(AG18)),4,0))))) ->  | AP18: =IF(AND($C18>=X$79,$C18<=X$80,ISNUMBER(AN18)),1,IF(AND($C18>=X$86,$C18<=X$87,ISNUMBER(AO18)),3,IF(AND($C18>X$80,ISNUMBER(AN18),LOOKUP($X$78,Berechnen!$AA$10:$AA$17,Berechnen!$AI$10:$AI$17)=0),5,IF(AND($C18<X$80,X$86=0,ISNUMBER(AN18)),2,IF(AND($C18>X$87,ISNUMBER(AO18)),4,0))))) ->  | AX18: =IF(AND($C18>=Y$79,$C18<=Y$80,ISNUMBER(AV18)),1,IF(AND($C18>=Y$86,$C18<=Y$87,ISNUMBER(AW18)),3,IF(AND($C18>Y$80,ISNUMBER(AV18),LOOKUP($Y$78,Berechnen!$AA$10:$AA$17,Berechnen!$AI$10:$AI$17)=0),5,IF(AND($C18<Y$80,Y$86=0,ISNUMBER(AV18)),2,IF(AND($C18>Y$87,ISNUMBER(AW18)),4,0))))) ->  | BF18: =IF(AND($C18>=Z$79,$C18<=Z$80,ISNUMBER(BD18)),1,IF(AND($C18>=Z$86,$C18<=Z$87,ISNUMBER(BE18)),3,IF(AND($C18>Z$80,ISNUMBER(BD18),LOOKUP($Z$78,Berechnen!$AA$10:$AA$17,Berechnen!$AI$10:$AI$17)=0),5,IF(AND($C18<Z$80,Z$86=0,ISNUMBER(BD18)),2,IF(AND($C18>Z$87,ISNUMBER(BE18)),4,0))))) -> 
B19: 1900-01-01 | C19: =C9+10 -> 2026-01-11 | Z19: =IF(AND($C19>=V$79,$C19<=V$80,ISNUMBER(X19)),1,IF(AND($C19>=V$86,$C19<=V$87,ISNUMBER(Y19)),3,IF(AND($C19>V$80,ISNUMBER(X19),LOOKUP($V$78,Berechnen!$AA$10:$AA$17,Berechnen!$AI$10:$AI$17)=0),5,IF(AND($C19<V$80,V$86=0,ISNUMBER(X19)),2,IF(AND($C19>$V$87,ISNUMBER(Y19)),4,0))))) ->  | AH19: =IF(AND($C19>=W$79,$C19<=W$80,ISNUMBER(AF19)),1,IF(AND($C19>=W$86,$C19<=W$87,ISNUMBER(AG19)),3,IF(AND($C19>W$80,ISNUMBER(AF19),LOOKUP($W$78,Berechnen!$AA$10:$AA$17,Berechnen!$AI$10:$AI$17)=0),5,IF(AND($C19<W$80,W$86=0,ISNUMBER(AF19)),2,IF(AND($C19>$W$87,ISNUMBER(AG19)),4,0))))) ->  | AP19: =IF(AND($C19>=X$79,$C19<=X$80,ISNUMBER(AN19)),1,IF(AND($C19>=X$86,$C19<=X$87,ISNUMBER(AO19)),3,IF(AND($C19>X$80,ISNUMBER(AN19),LOOKUP($X$78,Berechnen!$AA$10:$AA$17,Berechnen!$AI$10:$AI$17)=0),5,IF(AND($C19<X$80,X$86=0,ISNUMBER(AN19)),2,IF(AND($C19>X$87,ISNUMBER(AO19)),4,0))))) ->  | AX19: =IF(AND($C19>=Y$79,$C19<=Y$80,ISNUMBER(AV19)),1,IF(AND($C19>=Y$86,$C19<=Y$87,ISNUMBER(AW19)),3,IF(AND($C19>Y$80,ISNUMBER(AV19),LOOKUP($Y$78,Berechnen!$AA$10:$AA$17,Berechnen!$AI$10:$AI$17)=0),5,IF(AND($C19<Y$80,Y$86=0,ISNUMBER(AV19)),2,IF(AND($C19>Y$87,ISNUMBER(AW19)),4,0))))) ->  | BF19: =IF(AND($C19>=Z$79,$C19<=Z$80,ISNUMBER(BD19)),1,IF(AND($C19>=Z$86,$C19<=Z$87,ISNUMBER(BE19)),3,IF(AND($C19>Z$80,ISNUMBER(BD19),LOOKUP($Z$78,Berechnen!$AA$10:$AA$17,Berechnen!$AI$10:$AI$17)=0),5,IF(AND($C19<Z$80,Z$86=0,ISNUMBER(BD19)),2,IF(AND($C19>Z$87,ISNUMBER(BE19)),4,0))))) -> 
B20: 1900-01-02 | C20: =C9+11 -> 2026-01-12 | D20: 3 | Z20: =IF(AND($C20>=V$79,$C20<=V$80,ISNUMBER(X20)),1,IF(AND($C20>=V$86,$C20<=V$87,ISNUMBER(Y20)),3,IF(AND($C20>V$80,ISNUMBER(X20),LOOKUP($V$78,Berechnen!$AA$10:$AA$17,Berechnen!$AI$10:$AI$17)=0),5,IF(AND($C20<V$80,V$86=0,ISNUMBER(X20)),2,IF(AND($C20>$V$87,ISNUMBER(Y20)),4,0))))) ->  | AH20: =IF(AND($C20>=W$79,$C20<=W$80,ISNUMBER(AF20)),1,IF(AND($C20>=W$86,$C20<=W$87,ISNUMBER(AG20)),3,IF(AND($C20>W$80,ISNUMBER(AF20),LOOKUP($W$78,Berechnen!$AA$10:$AA$17,Berechnen!$AI$10:$AI$17)=0),5,IF(AND($C20<W$80,W$86=0,ISNUMBER(AF20)),2,IF(AND($C20>$W$87,ISNUMBER(AG20)),4,0))))) ->  | AP20: =IF(AND($C20>=X$79,$C20<=X$80,ISNUMBER(AN20)),1,IF(AND($C20>=X$86,$C20<=X$87,ISNUMBER(AO20)),3,IF(AND($C20>X$80,ISNUMBER(AN20),LOOKUP($X$78,Berechnen!$AA$10:$AA$17,Berechnen!$AI$10:$AI$17)=0),5,IF(AND($C20<X$80,X$86=0,ISNUMBER(AN20)),2,IF(AND($C20>X$87,ISNUMBER(AO20)),4,0))))) ->  | AX20: =IF(AND($C20>=Y$79,$C20<=Y$80,ISNUMBER(AV20)),1,IF(AND($C20>=Y$86,$C20<=Y$87,ISNUMBER(AW20)),3,IF(AND($C20>Y$80,ISNUMBER(AV20),LOOKUP($Y$78,Berechnen!$AA$10:$AA$17,Berechnen!$AI$10:$AI$17)=0),5,IF(AND($C20<Y$80,Y$86=0,ISNUMBER(AV20)),2,IF(AND($C20>Y$87,ISNUMBER(AW20)),4,0))))) ->  | BF20: =IF(AND($C20>=Z$79,$C20<=Z$80,ISNUMBER(BD20)),1,IF(AND($C20>=Z$86,$C20<=Z$87,ISNUMBER(BE20)),3,IF(AND($C20>Z$80,ISNUMBER(BD20),LOOKUP($Z$78,Berechnen!$AA$10:$AA$17,Berechnen!$AI$10:$AI$17)=0),5,IF(AND($C20<Z$80,Z$86=0,ISNUMBER(BD20)),2,IF(AND($C20>Z$87,ISNUMBER(BE20)),4,0))))) -> 
B21: 1900-01-03 | C21: =C9+12 -> 2026-01-13 | Z21: =IF(AND($C21>=V$79,$C21<=V$80,ISNUMBER(X21)),1,IF(AND($C21>=V$86,$C21<=V$87,ISNUMBER(Y21)),3,IF(AND($C21>V$80,ISNUMBER(X21),LOOKUP($V$78,Berechnen!$AA$10:$AA$17,Berechnen!$AI$10:$AI$17)=0),5,IF(AND($C21<V$80,V$86=0,ISNUMBER(X21)),2,IF(AND($C21>$V$87,ISNUMBER(Y21)),4,0))))) ->  | AH21: =IF(AND($C21>=W$79,$C21<=W$80,ISNUMBER(AF21)),1,IF(AND($C21>=W$86,$C21<=W$87,ISNUMBER(AG21)),3,IF(AND($C21>W$80,ISNUMBER(AF21),LOOKUP($W$78,Berechnen!$AA$10:$AA$17,Berechnen!$AI$10:$AI$17)=0),5,IF(AND($C21<W$80,W$86=0,ISNUMBER(AF21)),2,IF(AND($C21>$W$87,ISNUMBER(AG21)),4,0))))) ->  | AP21: =IF(AND($C21>=X$79,$C21<=X$80,ISNUMBER(AN21)),1,IF(AND($C21>=X$86,$C21<=X$87,ISNUMBER(AO21)),3,IF(AND($C21>X$80,ISNUMBER(AN21),LOOKUP($X$78,Berechnen!$AA$10:$AA$17,Berechnen!$AI$10:$AI$17)=0),5,IF(AND($C21<X$80,X$86=0,ISNUMBER(AN21)),2,IF(AND($C21>X$87,ISNUMBER(AO21)),4,0))))) ->  | AX21: =IF(AND($C21>=Y$79,$C21<=Y$80,ISNUMBER(AV21)),1,IF(AND($C21>=Y$86,$C21<=Y$87,ISNUMBER(AW21)),3,IF(AND($C21>Y$80,ISNUMBER(AV21),LOOKUP($Y$78,Berechnen!$AA$10:$AA$17,Berechnen!$AI$10:$AI$17)=0),5,IF(AND($C21<Y$80,Y$86=0,ISNUMBER(AV21)),2,IF(AND($C21>Y$87,ISNUMBER(AW21)),4,0))))) ->  | BF21: =IF(AND($C21>=Z$79,$C21<=Z$80,ISNUMBER(BD21)),1,IF(AND($C21>=Z$86,$C21<=Z$87,ISNUMBER(BE21)),3,IF(AND($C21>Z$80,ISNUMBER(BD21),LOOKUP($Z$78,Berechnen!$AA$10:$AA$17,Berechnen!$AI$10:$AI$17)=0),5,IF(AND($C21<Z$80,Z$86=0,ISNUMBER(BD21)),2,IF(AND($C21>Z$87,ISNUMBER(BE21)),4,0))))) -> 
B22: 1900-01-04 | C22: =C9+13 -> 2026-01-14 | Z22: =IF(AND($C22>=V$79,$C22<=V$80,ISNUMBER(X22)),1,IF(AND($C22>=V$86,$C22<=V$87,ISNUMBER(Y22)),3,IF(AND($C22>V$80,ISNUMBER(X22),LOOKUP($V$78,Berechnen!$AA$10:$AA$17,Berechnen!$AI$10:$AI$17)=0),5,IF(AND($C22<V$80,V$86=0,ISNUMBER(X22)),2,IF(AND($C22>$V$87,ISNUMBER(Y22)),4,0))))) ->  | AH22: =IF(AND($C22>=W$79,$C22<=W$80,ISNUMBER(AF22)),1,IF(AND($C22>=W$86,$C22<=W$87,ISNUMBER(AG22)),3,IF(AND($C22>W$80,ISNUMBER(AF22),LOOKUP($W$78,Berechnen!$AA$10:$AA$17,Berechnen!$AI$10:$AI$17)=0),5,IF(AND($C22<W$80,W$86=0,ISNUMBER(AF22)),2,IF(AND($C22>$W$87,ISNUMBER(AG22)),4,0))))) ->  | AP22: =IF(AND($C22>=X$79,$C22<=X$80,ISNUMBER(AN22)),1,IF(AND($C22>=X$86,$C22<=X$87,ISNUMBER(AO22)),3,IF(AND($C22>X$80,ISNUMBER(AN22),LOOKUP($X$78,Berechnen!$AA$10:$AA$17,Berechnen!$AI$10:$AI$17)=0),5,IF(AND($C22<X$80,X$86=0,ISNUMBER(AN22)),2,IF(AND($C22>X$87,ISNUMBER(AO22)),4,0))))) ->  | AX22: =IF(AND($C22>=Y$79,$C22<=Y$80,ISNUMBER(AV22)),1,IF(AND($C22>=Y$86,$C22<=Y$87,ISNUMBER(AW22)),3,IF(AND($C22>Y$80,ISNUMBER(AV22),LOOKUP($Y$78,Berechnen!$AA$10:$AA$17,Berechnen!$AI$10:$AI$17)=0),5,IF(AND($C22<Y$80,Y$86=0,ISNUMBER(AV22)),2,IF(AND($C22>Y$87,ISNUMBER(AW22)),4,0))))) ->  | BF22: =IF(AND($C22>=Z$79,$C22<=Z$80,ISNUMBER(BD22)),1,IF(AND($C22>=Z$86,$C22<=Z$87,ISNUMBER(BE22)),3,IF(AND($C22>Z$80,ISNUMBER(BD22),LOOKUP($Z$78,Berechnen!$AA$10:$AA$17,Berechnen!$AI$10:$AI$17)=0),5,IF(AND($C22<Z$80,Z$86=0,ISNUMBER(BD22)),2,IF(AND($C22>Z$87,ISNUMBER(BE22)),4,0))))) -> 
B23: 1900-01-05 | C23: =C9+14 -> 2026-01-15 | Z23: =IF(AND($C23>=V$79,$C23<=V$80,ISNUMBER(X23)),1,IF(AND($C23>=V$86,$C23<=V$87,ISNUMBER(Y23)),3,IF(AND($C23>V$80,ISNUMBER(X23),LOOKUP($V$78,Berechnen!$AA$10:$AA$17,Berechnen!$AI$10:$AI$17)=0),5,IF(AND($C23<V$80,V$86=0,ISNUMBER(X23)),2,IF(AND($C23>$V$87,ISNUMBER(Y23)),4,0))))) ->  | AH23: =IF(AND($C23>=W$79,$C23<=W$80,ISNUMBER(AF23)),1,IF(AND($C23>=W$86,$C23<=W$87,ISNUMBER(AG23)),3,IF(AND($C23>W$80,ISNUMBER(AF23),LOOKUP($W$78,Berechnen!$AA$10:$AA$17,Berechnen!$AI$10:$AI$17)=0),5,IF(AND($C23<W$80,W$86=0,ISNUMBER(AF23)),2,IF(AND($C23>$W$87,ISNUMBER(AG23)),4,0))))) ->  | AP23: =IF(AND($C23>=X$79,$C23<=X$80,ISNUMBER(AN23)),1,IF(AND($C23>=X$86,$C23<=X$87,ISNUMBER(AO23)),3,IF(AND($C23>X$80,ISNUMBER(AN23),LOOKUP($X$78,Berechnen!$AA$10:$AA$17,Berechnen!$AI$10:$AI$17)=0),5,IF(AND($C23<X$80,X$86=0,ISNUMBER(AN23)),2,IF(AND($C23>X$87,ISNUMBER(AO23)),4,0))))) ->  | AX23: =IF(AND($C23>=Y$79,$C23<=Y$80,ISNUMBER(AV23)),1,IF(AND($C23>=Y$86,$C23<=Y$87,ISNUMBER(AW23)),3,IF(AND($C23>Y$80,ISNUMBER(AV23),LOOKUP($Y$78,Berechnen!$AA$10:$AA$17,Berechnen!$AI$10:$AI$17)=0),5,IF(AND($C23<Y$80,Y$86=0,ISNUMBER(AV23)),2,IF(AND($C23>Y$87,ISNUMBER(AW23)),4,0))))) ->  | BF23: =IF(AND($C23>=Z$79,$C23<=Z$80,ISNUMBER(BD23)),1,IF(AND($C23>=Z$86,$C23<=Z$87,ISNUMBER(BE23)),3,IF(AND($C23>Z$80,ISNUMBER(BD23),LOOKUP($Z$78,Berechnen!$AA$10:$AA$17,Berechnen!$AI$10:$AI$17)=0),5,IF(AND($C23<Z$80,Z$86=0,ISNUMBER(BD23)),2,IF(AND($C23>Z$87,ISNUMBER(BE23)),4,0))))) -> 
B24: 1900-01-06 | C24: =C9+15 -> 2026-01-16 | Z24: =IF(AND($C24>=V$79,$C24<=V$80,ISNUMBER(X24)),1,IF(AND($C24>=V$86,$C24<=V$87,ISNUMBER(Y24)),3,IF(AND($C24>V$80,ISNUMBER(X24),LOOKUP($V$78,Berechnen!$AA$10:$AA$17,Berechnen!$AI$10:$AI$17)=0),5,IF(AND($C24<V$80,V$86=0,ISNUMBER(X24)),2,IF(AND($C24>$V$87,ISNUMBER(Y24)),4,0))))) ->  | AH24: =IF(AND($C24>=W$79,$C24<=W$80,ISNUMBER(AF24)),1,IF(AND($C24>=W$86,$C24<=W$87,ISNUMBER(AG24)),3,IF(AND($C24>W$80,ISNUMBER(AF24),LOOKUP($W$78,Berechnen!$AA$10:$AA$17,Berechnen!$AI$10:$AI$17)=0),5,IF(AND($C24<W$80,W$86=0,ISNUMBER(AF24)),2,IF(AND($C24>$W$87,ISNUMBER(AG24)),4,0))))) ->  | AP24: =IF(AND($C24>=X$79,$C24<=X$80,ISNUMBER(AN24)),1,IF(AND($C24>=X$86,$C24<=X$87,ISNUMBER(AO24)),3,IF(AND($C24>X$80,ISNUMBER(AN24),LOOKUP($X$78,Berechnen!$AA$10:$AA$17,Berechnen!$AI$10:$AI$17)=0),5,IF(AND($C24<X$80,X$86=0,ISNUMBER(AN24)),2,IF(AND($C24>X$87,ISNUMBER(AO24)),4,0))))) ->  | AX24: =IF(AND($C24>=Y$79,$C24<=Y$80,ISNUMBER(AV24)),1,IF(AND($C24>=Y$86,$C24<=Y$87,ISNUMBER(AW24)),3,IF(AND($C24>Y$80,ISNUMBER(AV24),LOOKUP($Y$78,Berechnen!$AA$10:$AA$17,Berechnen!$AI$10:$AI$17)=0),5,IF(AND($C24<Y$80,Y$86=0,ISNUMBER(AV24)),2,IF(AND($C24>Y$87,ISNUMBER(AW24)),4,0))))) ->  | BF24: =IF(AND($C24>=Z$79,$C24<=Z$80,ISNUMBER(BD24)),1,IF(AND($C24>=Z$86,$C24<=Z$87,ISNUMBER(BE24)),3,IF(AND($C24>Z$80,ISNUMBER(BD24),LOOKUP($Z$78,Berechnen!$AA$10:$AA$17,Berechnen!$AI$10:$AI$17)=0),5,IF(AND($C24<Z$80,Z$86=0,ISNUMBER(BD24)),2,IF(AND($C24>Z$87,ISNUMBER(BE24)),4,0))))) -> 
B25: 1900-01-07 | C25: =C9+16 -> 2026-01-17 | Z25: =IF(AND($C25>=V$79,$C25<=V$80,ISNUMBER(X25)),1,IF(AND($C25>=V$86,$C25<=V$87,ISNUMBER(Y25)),3,IF(AND($C25>V$80,ISNUMBER(X25),LOOKUP($V$78,Berechnen!$AA$10:$AA$17,Berechnen!$AI$10:$AI$17)=0),5,IF(AND($C25<V$80,V$86=0,ISNUMBER(X25)),2,IF(AND($C25>$V$87,ISNUMBER(Y25)),4,0))))) ->  | AH25: =IF(AND($C25>=W$79,$C25<=W$80,ISNUMBER(AF25)),1,IF(AND($C25>=W$86,$C25<=W$87,ISNUMBER(AG25)),3,IF(AND($C25>W$80,ISNUMBER(AF25),LOOKUP($W$78,Berechnen!$AA$10:$AA$17,Berechnen!$AI$10:$AI$17)=0),5,IF(AND($C25<W$80,W$86=0,ISNUMBER(AF25)),2,IF(AND($C25>$W$87,ISNUMBER(AG25)),4,0))))) ->  | AP25: =IF(AND($C25>=X$79,$C25<=X$80,ISNUMBER(AN25)),1,IF(AND($C25>=X$86,$C25<=X$87,ISNUMBER(AO25)),3,IF(AND($C25>X$80,ISNUMBER(AN25),LOOKUP($X$78,Berechnen!$AA$10:$AA$17,Berechnen!$AI$10:$AI$17)=0),5,IF(AND($C25<X$80,X$86=0,ISNUMBER(AN25)),2,IF(AND($C25>X$87,ISNUMBER(AO25)),4,0))))) ->  | AX25: =IF(AND($C25>=Y$79,$C25<=Y$80,ISNUMBER(AV25)),1,IF(AND($C25>=Y$86,$C25<=Y$87,ISNUMBER(AW25)),3,IF(AND($C25>Y$80,ISNUMBER(AV25),LOOKUP($Y$78,Berechnen!$AA$10:$AA$17,Berechnen!$AI$10:$AI$17)=0),5,IF(AND($C25<Y$80,Y$86=0,ISNUMBER(AV25)),2,IF(AND($C25>Y$87,ISNUMBER(AW25)),4,0))))) ->  | BF25: =IF(AND($C25>=Z$79,$C25<=Z$80,ISNUMBER(BD25)),1,IF(AND($C25>=Z$86,$C25<=Z$87,ISNUMBER(BE25)),3,IF(AND($C25>Z$80,ISNUMBER(BD25),LOOKUP($Z$78,Berechnen!$AA$10:$AA$17,Berechnen!$AI$10:$AI$17)=0),5,IF(AND($C25<Z$80,Z$86=0,ISNUMBER(BD25)),2,IF(AND($C25>Z$87,ISNUMBER(BE25)),4,0))))) -> 
B26: 1900-01-01 | C26: =C9+17 -> 2026-01-18 | Z26: =IF(AND($C26>=V$79,$C26<=V$80,ISNUMBER(X26)),1,IF(AND($C26>=V$86,$C26<=V$87,ISNUMBER(Y26)),3,IF(AND($C26>V$80,ISNUMBER(X26),LOOKUP($V$78,Berechnen!$AA$10:$AA$17,Berechnen!$AI$10:$AI$17)=0),5,IF(AND($C26<V$80,V$86=0,ISNUMBER(X26)),2,IF(AND($C26>$V$87,ISNUMBER(Y26)),4,0))))) ->  | AH26: =IF(AND($C26>=W$79,$C26<=W$80,ISNUMBER(AF26)),1,IF(AND($C26>=W$86,$C26<=W$87,ISNUMBER(AG26)),3,IF(AND($C26>W$80,ISNUMBER(AF26),LOOKUP($W$78,Berechnen!$AA$10:$AA$17,Berechnen!$AI$10:$AI$17)=0),5,IF(AND($C26<W$80,W$86=0,ISNUMBER(AF26)),2,IF(AND($C26>$W$87,ISNUMBER(AG26)),4,0))))) ->  | AP26: =IF(AND($C26>=X$79,$C26<=X$80,ISNUMBER(AN26)),1,IF(AND($C26>=X$86,$C26<=X$87,ISNUMBER(AO26)),3,IF(AND($C26>X$80,ISNUMBER(AN26),LOOKUP($X$78,Berechnen!$AA$10:$AA$17,Berechnen!$AI$10:$AI$17)=0),5,IF(AND($C26<X$80,X$86=0,ISNUMBER(AN26)),2,IF(AND($C26>X$87,ISNUMBER(AO26)),4,0))))) ->  | AX26: =IF(AND($C26>=Y$79,$C26<=Y$80,ISNUMBER(AV26)),1,IF(AND($C26>=Y$86,$C26<=Y$87,ISNUMBER(AW26)),3,IF(AND($C26>Y$80,ISNUMBER(AV26),LOOKUP($Y$78,Berechnen!$AA$10:$AA$17,Berechnen!$AI$10:$AI$17)=0),5,IF(AND($C26<Y$80,Y$86=0,ISNUMBER(AV26)),2,IF(AND($C26>Y$87,ISNUMBER(AW26)),4,0))))) ->  | BF26: =IF(AND($C26>=Z$79,$C26<=Z$80,ISNUMBER(BD26)),1,IF(AND($C26>=Z$86,$C26<=Z$87,ISNUMBER(BE26)),3,IF(AND($C26>Z$80,ISNUMBER(BD26),LOOKUP($Z$78,Berechnen!$AA$10:$AA$17,Berechnen!$AI$10:$AI$17)=0),5,IF(AND($C26<Z$80,Z$86=0,ISNUMBER(BD26)),2,IF(AND($C26>Z$87,ISNUMBER(BE26)),4,0))))) -> 
B27: 1900-01-02 | C27: =C9+18 -> 2026-01-19 | D27: 4 | Z27: =IF(AND($C27>=V$79,$C27<=V$80,ISNUMBER(X27)),1,IF(AND($C27>=V$86,$C27<=V$87,ISNUMBER(Y27)),3,IF(AND($C27>V$80,ISNUMBER(X27),LOOKUP($V$78,Berechnen!$AA$10:$AA$17,Berechnen!$AI$10:$AI$17)=0),5,IF(AND($C27<V$80,V$86=0,ISNUMBER(X27)),2,IF(AND($C27>$V$87,ISNUMBER(Y27)),4,0))))) ->  | AH27: =IF(AND($C27>=W$79,$C27<=W$80,ISNUMBER(AF27)),1,IF(AND($C27>=W$86,$C27<=W$87,ISNUMBER(AG27)),3,IF(AND($C27>W$80,ISNUMBER(AF27),LOOKUP($W$78,Berechnen!$AA$10:$AA$17,Berechnen!$AI$10:$AI$17)=0),5,IF(AND($C27<W$80,W$86=0,ISNUMBER(AF27)),2,IF(AND($C27>$W$87,ISNUMBER(AG27)),4,0))))) ->  | AP27: =IF(AND($C27>=X$79,$C27<=X$80,ISNUMBER(AN27)),1,IF(AND($C27>=X$86,$C27<=X$87,ISNUMBER(AO27)),3,IF(AND($C27>X$80,ISNUMBER(AN27),LOOKUP($X$78,Berechnen!$AA$10:$AA$17,Berechnen!$AI$10:$AI$17)=0),5,IF(AND($C27<X$80,X$86=0,ISNUMBER(AN27)),2,IF(AND($C27>X$87,ISNUMBER(AO27)),4,0))))) ->  | AX27: =IF(AND($C27>=Y$79,$C27<=Y$80,ISNUMBER(AV27)),1,IF(AND($C27>=Y$86,$C27<=Y$87,ISNUMBER(AW27)),3,IF(AND($C27>Y$80,ISNUMBER(AV27),LOOKUP($Y$78,Berechnen!$AA$10:$AA$17,Berechnen!$AI$10:$AI$17)=0),5,IF(AND($C27<Y$80,Y$86=0,ISNUMBER(AV27)),2,IF(AND($C27>Y$87,ISNUMBER(AW27)),4,0))))) ->  | BF27: =IF(AND($C27>=Z$79,$C27<=Z$80,ISNUMBER(BD27)),1,IF(AND($C27>=Z$86,$C27<=Z$87,ISNUMBER(BE27)),3,IF(AND($C27>Z$80,ISNUMBER(BD27),LOOKUP($Z$78,Berechnen!$AA$10:$AA$17,Berechnen!$AI$10:$AI$17)=0),5,IF(AND($C27<Z$80,Z$86=0,ISNUMBER(BD27)),2,IF(AND($C27>Z$87,ISNUMBER(BE27)),4,0))))) -> 
B28: 1900-01-03 | C28: =C9+19 -> 2026-01-20 | Z28: =IF(AND($C28>=V$79,$C28<=V$80,ISNUMBER(X28)),1,IF(AND($C28>=V$86,$C28<=V$87,ISNUMBER(Y28)),3,IF(AND($C28>V$80,ISNUMBER(X28),LOOKUP($V$78,Berechnen!$AA$10:$AA$17,Berechnen!$AI$10:$AI$17)=0),5,IF(AND($C28<V$80,V$86=0,ISNUMBER(X28)),2,IF(AND($C28>$V$87,ISNUMBER(Y28)),4,0))))) ->  | AH28: =IF(AND($C28>=W$79,$C28<=W$80,ISNUMBER(AF28)),1,IF(AND($C28>=W$86,$C28<=W$87,ISNUMBER(AG28)),3,IF(AND($C28>W$80,ISNUMBER(AF28),LOOKUP($W$78,Berechnen!$AA$10:$AA$17,Berechnen!$AI$10:$AI$17)=0),5,IF(AND($C28<W$80,W$86=0,ISNUMBER(AF28)),2,IF(AND($C28>$W$87,ISNUMBER(AG28)),4,0))))) ->  | AP28: =IF(AND($C28>=X$79,$C28<=X$80,ISNUMBER(AN28)),1,IF(AND($C28>=X$86,$C28<=X$87,ISNUMBER(AO28)),3,IF(AND($C28>X$80,ISNUMBER(AN28),LOOKUP($X$78,Berechnen!$AA$10:$AA$17,Berechnen!$AI$10:$AI$17)=0),5,IF(AND($C28<X$80,X$86=0,ISNUMBER(AN28)),2,IF(AND($C28>X$87,ISNUMBER(AO28)),4,0))))) ->  | AX28: =IF(AND($C28>=Y$79,$C28<=Y$80,ISNUMBER(AV28)),1,IF(AND($C28>=Y$86,$C28<=Y$87,ISNUMBER(AW28)),3,IF(AND($C28>Y$80,ISNUMBER(AV28),LOOKUP($Y$78,Berechnen!$AA$10:$AA$17,Berechnen!$AI$10:$AI$17)=0),5,IF(AND($C28<Y$80,Y$86=0,ISNUMBER(AV28)),2,IF(AND($C28>Y$87,ISNUMBER(AW28)),4,0))))) ->  | BF28: =IF(AND($C28>=Z$79,$C28<=Z$80,ISNUMBER(BD28)),1,IF(AND($C28>=Z$86,$C28<=Z$87,ISNUMBER(BE28)),3,IF(AND($C28>Z$80,ISNUMBER(BD28),LOOKUP($Z$78,Berechnen!$AA$10:$AA$17,Berechnen!$AI$10:$AI$17)=0),5,IF(AND($C28<Z$80,Z$86=0,ISNUMBER(BD28)),2,IF(AND($C28>Z$87,ISNUMBER(BE28)),4,0))))) -> 
B29: 1900-01-04 | C29: =C9+20 -> 2026-01-21 | Z29: =IF(AND($C29>=V$79,$C29<=V$80,ISNUMBER(X29)),1,IF(AND($C29>=V$86,$C29<=V$87,ISNUMBER(Y29)),3,IF(AND($C29>V$80,ISNUMBER(X29),LOOKUP($V$78,Berechnen!$AA$10:$AA$17,Berechnen!$AI$10:$AI$17)=0),5,IF(AND($C29<V$80,V$86=0,ISNUMBER(X29)),2,IF(AND($C29>$V$87,ISNUMBER(Y29)),4,0))))) ->  | AH29: =IF(AND($C29>=W$79,$C29<=W$80,ISNUMBER(AF29)),1,IF(AND($C29>=W$86,$C29<=W$87,ISNUMBER(AG29)),3,IF(AND($C29>W$80,ISNUMBER(AF29),LOOKUP($W$78,Berechnen!$AA$10:$AA$17,Berechnen!$AI$10:$AI$17)=0),5,IF(AND($C29<W$80,W$86=0,ISNUMBER(AF29)),2,IF(AND($C29>$W$87,ISNUMBER(AG29)),4,0))))) ->  | AP29: =IF(AND($C29>=X$79,$C29<=X$80,ISNUMBER(AN29)),1,IF(AND($C29>=X$86,$C29<=X$87,ISNUMBER(AO29)),3,IF(AND($C29>X$80,ISNUMBER(AN29),LOOKUP($X$78,Berechnen!$AA$10:$AA$17,Berechnen!$AI$10:$AI$17)=0),5,IF(AND($C29<X$80,X$86=0,ISNUMBER(AN29)),2,IF(AND($C29>X$87,ISNUMBER(AO29)),4,0))))) ->  | AX29: =IF(AND($C29>=Y$79,$C29<=Y$80,ISNUMBER(AV29)),1,IF(AND($C29>=Y$86,$C29<=Y$87,ISNUMBER(AW29)),3,IF(AND($C29>Y$80,ISNUMBER(AV29),LOOKUP($Y$78,Berechnen!$AA$10:$AA$17,Berechnen!$AI$10:$AI$17)=0),5,IF(AND($C29<Y$80,Y$86=0,ISNUMBER(AV29)),2,IF(AND($C29>Y$87,ISNUMBER(AW29)),4,0))))) ->  | BF29: =IF(AND($C29>=Z$79,$C29<=Z$80,ISNUMBER(BD29)),1,IF(AND($C29>=Z$86,$C29<=Z$87,ISNUMBER(BE29)),3,IF(AND($C29>Z$80,ISNUMBER(BD29),LOOKUP($Z$78,Berechnen!$AA$10:$AA$17,Berechnen!$AI$10:$AI$17)=0),5,IF(AND($C29<Z$80,Z$86=0,ISNUMBER(BD29)),2,IF(AND($C29>Z$87,ISNUMBER(BE29)),4,0))))) -> 
B30: 1900-01-05 | C30: =C9+21 -> 2026-01-22 | Z30: =IF(AND($C30>=V$79,$C30<=V$80,ISNUMBER(X30)),1,IF(AND($C30>=V$86,$C30<=V$87,ISNUMBER(Y30)),3,IF(AND($C30>V$80,ISNUMBER(X30),LOOKUP($V$78,Berechnen!$AA$10:$AA$17,Berechnen!$AI$10:$AI$17)=0),5,IF(AND($C30<V$80,V$86=0,ISNUMBER(X30)),2,IF(AND($C30>$V$87,ISNUMBER(Y30)),4,0))))) ->  | AH30: =IF(AND($C30>=W$79,$C30<=W$80,ISNUMBER(AF30)),1,IF(AND($C30>=W$86,$C30<=W$87,ISNUMBER(AG30)),3,IF(AND($C30>W$80,ISNUMBER(AF30),LOOKUP($W$78,Berechnen!$AA$10:$AA$17,Berechnen!$AI$10:$AI$17)=0),5,IF(AND($C30<W$80,W$86=0,ISNUMBER(AF30)),2,IF(AND($C30>$W$87,ISNUMBER(AG30)),4,0))))) ->  | AP30: =IF(AND($C30>=X$79,$C30<=X$80,ISNUMBER(AN30)),1,IF(AND($C30>=X$86,$C30<=X$87,ISNUMBER(AO30)),3,IF(AND($C30>X$80,ISNUMBER(AN30),LOOKUP($X$78,Berechnen!$AA$10:$AA$17,Berechnen!$AI$10:$AI$17)=0),5,IF(AND($C30<X$80,X$86=0,ISNUMBER(AN30)),2,IF(AND($C30>X$87,ISNUMBER(AO30)),4,0))))) ->  | AX30: =IF(AND($C30>=Y$79,$C30<=Y$80,ISNUMBER(AV30)),1,IF(AND($C30>=Y$86,$C30<=Y$87,ISNUMBER(AW30)),3,IF(AND($C30>Y$80,ISNUMBER(AV30),LOOKUP($Y$78,Berechnen!$AA$10:$AA$17,Berechnen!$AI$10:$AI$17)=0),5,IF(AND($C30<Y$80,Y$86=0,ISNUMBER(AV30)),2,IF(AND($C30>Y$87,ISNUMBER(AW30)),4,0))))) ->  | BF30: =IF(AND($C30>=Z$79,$C30<=Z$80,ISNUMBER(BD30)),1,IF(AND($C30>=Z$86,$C30<=Z$87,ISNUMBER(BE30)),3,IF(AND($C30>Z$80,ISNUMBER(BD30),LOOKUP($Z$78,Berechnen!$AA$10:$AA$17,Berechnen!$AI$10:$AI$17)=0),5,IF(AND($C30<Z$80,Z$86=0,ISNUMBER(BD30)),2,IF(AND($C30>Z$87,ISNUMBER(BE30)),4,0))))) -> 
B31: 1900-01-06 | C31: =C9+22 -> 2026-01-23 | Z31: =IF(AND($C31>=V$79,$C31<=V$80,ISNUMBER(X31)),1,IF(AND($C31>=V$86,$C31<=V$87,ISNUMBER(Y31)),3,IF(AND($C31>V$80,ISNUMBER(X31),LOOKUP($V$78,Berechnen!$AA$10:$AA$17,Berechnen!$AI$10:$AI$17)=0),5,IF(AND($C31<V$80,V$86=0,ISNUMBER(X31)),2,IF(AND($C31>$V$87,ISNUMBER(Y31)),4,0))))) ->  | AH31: =IF(AND($C31>=W$79,$C31<=W$80,ISNUMBER(AF31)),1,IF(AND($C31>=W$86,$C31<=W$87,ISNUMBER(AG31)),3,IF(AND($C31>W$80,ISNUMBER(AF31),LOOKUP($W$78,Berechnen!$AA$10:$AA$17,Berechnen!$AI$10:$AI$17)=0),5,IF(AND($C31<W$80,W$86=0,ISNUMBER(AF31)),2,IF(AND($C31>$W$87,ISNUMBER(AG31)),4,0))))) ->  | AP31: =IF(AND($C31>=X$79,$C31<=X$80,ISNUMBER(AN31)),1,IF(AND($C31>=X$86,$C31<=X$87,ISNUMBER(AO31)),3,IF(AND($C31>X$80,ISNUMBER(AN31),LOOKUP($X$78,Berechnen!$AA$10:$AA$17,Berechnen!$AI$10:$AI$17)=0),5,IF(AND($C31<X$80,X$86=0,ISNUMBER(AN31)),2,IF(AND($C31>X$87,ISNUMBER(AO31)),4,0))))) ->  | AX31: =IF(AND($C31>=Y$79,$C31<=Y$80,ISNUMBER(AV31)),1,IF(AND($C31>=Y$86,$C31<=Y$87,ISNUMBER(AW31)),3,IF(AND($C31>Y$80,ISNUMBER(AV31),LOOKUP($Y$78,Berechnen!$AA$10:$AA$17,Berechnen!$AI$10:$AI$17)=0),5,IF(AND($C31<Y$80,Y$86=0,ISNUMBER(AV31)),2,IF(AND($C31>Y$87,ISNUMBER(AW31)),4,0))))) ->  | BF31: =IF(AND($C31>=Z$79,$C31<=Z$80,ISNUMBER(BD31)),1,IF(AND($C31>=Z$86,$C31<=Z$87,ISNUMBER(BE31)),3,IF(AND($C31>Z$80,ISNUMBER(BD31),LOOKUP($Z$78,Berechnen!$AA$10:$AA$17,Berechnen!$AI$10:$AI$17)=0),5,IF(AND($C31<Z$80,Z$86=0,ISNUMBER(BD31)),2,IF(AND($C31>Z$87,ISNUMBER(BE31)),4,0))))) -> 
B32: 1900-01-07 | C32: =C9+23 -> 2026-01-24 | Z32: =IF(AND($C32>=V$79,$C32<=V$80,ISNUMBER(X32)),1,IF(AND($C32>=V$86,$C32<=V$87,ISNUMBER(Y32)),3,IF(AND($C32>V$80,ISNUMBER(X32),LOOKUP($V$78,Berechnen!$AA$10:$AA$17,Berechnen!$AI$10:$AI$17)=0),5,IF(AND($C32<V$80,V$86=0,ISNUMBER(X32)),2,IF(AND($C32>$V$87,ISNUMBER(Y32)),4,0))))) ->  | AH32: =IF(AND($C32>=W$79,$C32<=W$80,ISNUMBER(AF32)),1,IF(AND($C32>=W$86,$C32<=W$87,ISNUMBER(AG32)),3,IF(AND($C32>W$80,ISNUMBER(AF32),LOOKUP($W$78,Berechnen!$AA$10:$AA$17,Berechnen!$AI$10:$AI$17)=0),5,IF(AND($C32<W$80,W$86=0,ISNUMBER(AF32)),2,IF(AND($C32>$W$87,ISNUMBER(AG32)),4,0))))) ->  | AP32: =IF(AND($C32>=X$79,$C32<=X$80,ISNUMBER(AN32)),1,IF(AND($C32>=X$86,$C32<=X$87,ISNUMBER(AO32)),3,IF(AND($C32>X$80,ISNUMBER(AN32),LOOKUP($X$78,Berechnen!$AA$10:$AA$17,Berechnen!$AI$10:$AI$17)=0),5,IF(AND($C32<X$80,X$86=0,ISNUMBER(AN32)),2,IF(AND($C32>X$87,ISNUMBER(AO32)),4,0))))) ->  | AX32: =IF(AND($C32>=Y$79,$C32<=Y$80,ISNUMBER(AV32)),1,IF(AND($C32>=Y$86,$C32<=Y$87,ISNUMBER(AW32)),3,IF(AND($C32>Y$80,ISNUMBER(AV32),LOOKUP($Y$78,Berechnen!$AA$10:$AA$17,Berechnen!$AI$10:$AI$17)=0),5,IF(AND($C32<Y$80,Y$86=0,ISNUMBER(AV32)),2,IF(AND($C32>Y$87,ISNUMBER(AW32)),4,0))))) ->  | BF32: =IF(AND($C32>=Z$79,$C32<=Z$80,ISNUMBER(BD32)),1,IF(AND($C32>=Z$86,$C32<=Z$87,ISNUMBER(BE32)),3,IF(AND($C32>Z$80,ISNUMBER(BD32),LOOKUP($Z$78,Berechnen!$AA$10:$AA$17,Berechnen!$AI$10:$AI$17)=0),5,IF(AND($C32<Z$80,Z$86=0,ISNUMBER(BD32)),2,IF(AND($C32>Z$87,ISNUMBER(BE32)),4,0))))) -> 
B33: 1900-01-01 | C33: =C9+24 -> 2026-01-25 | Z33: =IF(AND($C33>=V$79,$C33<=V$80,ISNUMBER(X33)),1,IF(AND($C33>=V$86,$C33<=V$87,ISNUMBER(Y33)),3,IF(AND($C33>V$80,ISNUMBER(X33),LOOKUP($V$78,Berechnen!$AA$10:$AA$17,Berechnen!$AI$10:$AI$17)=0),5,IF(AND($C33<V$80,V$86=0,ISNUMBER(X33)),2,IF(AND($C33>$V$87,ISNUMBER(Y33)),4,0))))) ->  | AH33: =IF(AND($C33>=W$79,$C33<=W$80,ISNUMBER(AF33)),1,IF(AND($C33>=W$86,$C33<=W$87,ISNUMBER(AG33)),3,IF(AND($C33>W$80,ISNUMBER(AF33),LOOKUP($W$78,Berechnen!$AA$10:$AA$17,Berechnen!$AI$10:$AI$17)=0),5,IF(AND($C33<W$80,W$86=0,ISNUMBER(AF33)),2,IF(AND($C33>$W$87,ISNUMBER(AG33)),4,0))))) ->  | AP33: =IF(AND($C33>=X$79,$C33<=X$80,ISNUMBER(AN33)),1,IF(AND($C33>=X$86,$C33<=X$87,ISNUMBER(AO33)),3,IF(AND($C33>X$80,ISNUMBER(AN33),LOOKUP($X$78,Berechnen!$AA$10:$AA$17,Berechnen!$AI$10:$AI$17)=0),5,IF(AND($C33<X$80,X$86=0,ISNUMBER(AN33)),2,IF(AND($C33>X$87,ISNUMBER(AO33)),4,0))))) ->  | AX33: =IF(AND($C33>=Y$79,$C33<=Y$80,ISNUMBER(AV33)),1,IF(AND($C33>=Y$86,$C33<=Y$87,ISNUMBER(AW33)),3,IF(AND($C33>Y$80,ISNUMBER(AV33),LOOKUP($Y$78,Berechnen!$AA$10:$AA$17,Berechnen!$AI$10:$AI$17)=0),5,IF(AND($C33<Y$80,Y$86=0,ISNUMBER(AV33)),2,IF(AND($C33>Y$87,ISNUMBER(AW33)),4,0))))) ->  | BF33: =IF(AND($C33>=Z$79,$C33<=Z$80,ISNUMBER(BD33)),1,IF(AND($C33>=Z$86,$C33<=Z$87,ISNUMBER(BE33)),3,IF(AND($C33>Z$80,ISNUMBER(BD33),LOOKUP($Z$78,Berechnen!$AA$10:$AA$17,Berechnen!$AI$10:$AI$17)=0),5,IF(AND($C33<Z$80,Z$86=0,ISNUMBER(BD33)),2,IF(AND($C33>Z$87,ISNUMBER(BE33)),4,0))))) -> 
B34: 1900-01-02 | C34: =C9+25 -> 2026-01-26 | D34: 5 | Z34: =IF(AND($C34>=V$79,$C34<=V$80,ISNUMBER(X34)),1,IF(AND($C34>=V$86,$C34<=V$87,ISNUMBER(Y34)),3,IF(AND($C34>V$80,ISNUMBER(X34),LOOKUP($V$78,Berechnen!$AA$10:$AA$17,Berechnen!$AI$10:$AI$17)=0),5,IF(AND($C34<V$80,V$86=0,ISNUMBER(X34)),2,IF(AND($C34>$V$87,ISNUMBER(Y34)),4,0))))) ->  | AH34: =IF(AND($C34>=W$79,$C34<=W$80,ISNUMBER(AF34)),1,IF(AND($C34>=W$86,$C34<=W$87,ISNUMBER(AG34)),3,IF(AND($C34>W$80,ISNUMBER(AF34),LOOKUP($W$78,Berechnen!$AA$10:$AA$17,Berechnen!$AI$10:$AI$17)=0),5,IF(AND($C34<W$80,W$86=0,ISNUMBER(AF34)),2,IF(AND($C34>$W$87,ISNUMBER(AG34)),4,0))))) ->  | AP34: =IF(AND($C34>=X$79,$C34<=X$80,ISNUMBER(AN34)),1,IF(AND($C34>=X$86,$C34<=X$87,ISNUMBER(AO34)),3,IF(AND($C34>X$80,ISNUMBER(AN34),LOOKUP($X$78,Berechnen!$AA$10:$AA$17,Berechnen!$AI$10:$AI$17)=0),5,IF(AND($C34<X$80,X$86=0,ISNUMBER(AN34)),2,IF(AND($C34>X$87,ISNUMBER(AO34)),4,0))))) ->  | AX34: =IF(AND($C34>=Y$79,$C34<=Y$80,ISNUMBER(AV34)),1,IF(AND($C34>=Y$86,$C34<=Y$87,ISNUMBER(AW34)),3,IF(AND($C34>Y$80,ISNUMBER(AV34),LOOKUP($Y$78,Berechnen!$AA$10:$AA$17,Berechnen!$AI$10:$AI$17)=0),5,IF(AND($C34<Y$80,Y$86=0,ISNUMBER(AV34)),2,IF(AND($C34>Y$87,ISNUMBER(AW34)),4,0))))) ->  | BF34: =IF(AND($C34>=Z$79,$C34<=Z$80,ISNUMBER(BD34)),1,IF(AND($C34>=Z$86,$C34<=Z$87,ISNUMBER(BE34)),3,IF(AND($C34>Z$80,ISNUMBER(BD34),LOOKUP($Z$78,Berechnen!$AA$10:$AA$17,Berechnen!$AI$10:$AI$17)=0),5,IF(AND($C34<Z$80,Z$86=0,ISNUMBER(BD34)),2,IF(AND($C34>Z$87,ISNUMBER(BE34)),4,0))))) -> 
B35: 1900-01-03 | C35: =C9+26 -> 2026-01-27 | Z35: =IF(AND($C35>=V$79,$C35<=V$80,ISNUMBER(X35)),1,IF(AND($C35>=V$86,$C35<=V$87,ISNUMBER(Y35)),3,IF(AND($C35>V$80,ISNUMBER(X35),LOOKUP($V$78,Berechnen!$AA$10:$AA$17,Berechnen!$AI$10:$AI$17)=0),5,IF(AND($C35<V$80,V$86=0,ISNUMBER(X35)),2,IF(AND($C35>$V$87,ISNUMBER(Y35)),4,0))))) ->  | AH35: =IF(AND($C35>=W$79,$C35<=W$80,ISNUMBER(AF35)),1,IF(AND($C35>=W$86,$C35<=W$87,ISNUMBER(AG35)),3,IF(AND($C35>W$80,ISNUMBER(AF35),LOOKUP($W$78,Berechnen!$AA$10:$AA$17,Berechnen!$AI$10:$AI$17)=0),5,IF(AND($C35<W$80,W$86=0,ISNUMBER(AF35)),2,IF(AND($C35>$W$87,ISNUMBER(AG35)),4,0))))) ->  | AP35: =IF(AND($C35>=X$79,$C35<=X$80,ISNUMBER(AN35)),1,IF(AND($C35>=X$86,$C35<=X$87,ISNUMBER(AO35)),3,IF(AND($C35>X$80,ISNUMBER(AN35),LOOKUP($X$78,Berechnen!$AA$10:$AA$17,Berechnen!$AI$10:$AI$17)=0),5,IF(AND($C35<X$80,X$86=0,ISNUMBER(AN35)),2,IF(AND($C35>X$87,ISNUMBER(AO35)),4,0))))) ->  | AX35: =IF(AND($C35>=Y$79,$C35<=Y$80,ISNUMBER(AV35)),1,IF(AND($C35>=Y$86,$C35<=Y$87,ISNUMBER(AW35)),3,IF(AND($C35>Y$80,ISNUMBER(AV35),LOOKUP($Y$78,Berechnen!$AA$10:$AA$17,Berechnen!$AI$10:$AI$17)=0),5,IF(AND($C35<Y$80,Y$86=0,ISNUMBER(AV35)),2,IF(AND($C35>Y$87,ISNUMBER(AW35)),4,0))))) ->  | BF35: =IF(AND($C35>=Z$79,$C35<=Z$80,ISNUMBER(BD35)),1,IF(AND($C35>=Z$86,$C35<=Z$87,ISNUMBER(BE35)),3,IF(AND($C35>Z$80,ISNUMBER(BD35),LOOKUP($Z$78,Berechnen!$AA$10:$AA$17,Berechnen!$AI$10:$AI$17)=0),5,IF(AND($C35<Z$80,Z$86=0,ISNUMBER(BD35)),2,IF(AND($C35>Z$87,ISNUMBER(BE35)),4,0))))) -> 
B36: 1900-01-04 | C36: =C9+27 -> 2026-01-28 | Z36: =IF(AND($C36>=V$79,$C36<=V$80,ISNUMBER(X36)),1,IF(AND($C36>=V$86,$C36<=V$87,ISNUMBER(Y36)),3,IF(AND($C36>V$80,ISNUMBER(X36),LOOKUP($V$78,Berechnen!$AA$10:$AA$17,Berechnen!$AI$10:$AI$17)=0),5,IF(AND($C36<V$80,V$86=0,ISNUMBER(X36)),2,IF(AND($C36>$V$87,ISNUMBER(Y36)),4,0))))) ->  | AH36: =IF(AND($C36>=W$79,$C36<=W$80,ISNUMBER(AF36)),1,IF(AND($C36>=W$86,$C36<=W$87,ISNUMBER(AG36)),3,IF(AND($C36>W$80,ISNUMBER(AF36),LOOKUP($W$78,Berechnen!$AA$10:$AA$17,Berechnen!$AI$10:$AI$17)=0),5,IF(AND($C36<W$80,W$86=0,ISNUMBER(AF36)),2,IF(AND($C36>$W$87,ISNUMBER(AG36)),4,0))))) ->  | AP36: =IF(AND($C36>=X$79,$C36<=X$80,ISNUMBER(AN36)),1,IF(AND($C36>=X$86,$C36<=X$87,ISNUMBER(AO36)),3,IF(AND($C36>X$80,ISNUMBER(AN36),LOOKUP($X$78,Berechnen!$AA$10:$AA$17,Berechnen!$AI$10:$AI$17)=0),5,IF(AND($C36<X$80,X$86=0,ISNUMBER(AN36)),2,IF(AND($C36>X$87,ISNUMBER(AO36)),4,0))))) ->  | AX36: =IF(AND($C36>=Y$79,$C36<=Y$80,ISNUMBER(AV36)),1,IF(AND($C36>=Y$86,$C36<=Y$87,ISNUMBER(AW36)),3,IF(AND($C36>Y$80,ISNUMBER(AV36),LOOKUP($Y$78,Berechnen!$AA$10:$AA$17,Berechnen!$AI$10:$AI$17)=0),5,IF(AND($C36<Y$80,Y$86=0,ISNUMBER(AV36)),2,IF(AND($C36>Y$87,ISNUMBER(AW36)),4,0))))) ->  | BF36: =IF(AND($C36>=Z$79,$C36<=Z$80,ISNUMBER(BD36)),1,IF(AND($C36>=Z$86,$C36<=Z$87,ISNUMBER(BE36)),3,IF(AND($C36>Z$80,ISNUMBER(BD36),LOOKUP($Z$78,Berechnen!$AA$10:$AA$17,Berechnen!$AI$10:$AI$17)=0),5,IF(AND($C36<Z$80,Z$86=0,ISNUMBER(BD36)),2,IF(AND($C36>Z$87,ISNUMBER(BE36)),4,0))))) -> 
B37: =IF(C37="","",WEEKDAY(C37)) -> 1900-01-05 | C37: =IF(DAY($C$9)=1,IF(MONTH(C36+1)=MONTH(C36),C36+1,""),C36+1) -> 2026-01-29 | E37: =IF($C$37="","",IF($U$5=1,"",IF($U37="F","Ferien",IF(ISNUMBER($AA37),VLOOKUP($AA37,Touren,2,FALSE),"?")))) ->  | H37: =IF($C$37="","",IF($V$5=1,"",IF($AC37="F","Ferien",IF(ISNUMBER($AI37),VLOOKUP($AI37,Touren,2,FALSE),"?")))) ->  | K37: =IF($C$37="","",IF($W$5=1,"",IF($AK37="F","Ferien",IF(ISNUMBER($AQ37),VLOOKUP($AQ37,Touren,2,FALSE),"?")))) ->  | N37: =IF($C$37="","",IF($X$5=1,"",IF($AS37="F","Ferien",IF(ISNUMBER($AY37),VLOOKUP($AY37,Touren,2,FALSE),"?")))) ->  | Q37: =IF($C$37="","",IF($Y$5=1,"",IF($BA37="F","Ferien",IF(ISNUMBER($BG37),VLOOKUP($BG37,Touren,2,FALSE),"?")))) ->  | V37: =IF($C37="","",IF(V36-$V$84=$V$83,1+$V$84,V36+1)) ->  | W37: =IF($C37="","",IF(W36-$V$91=$V$90,1+$V$91,W36+1)) ->  | Z37: =IF(AND($C37>=V$79,$C37<=V$80,ISNUMBER(X37)),1,IF(AND($C37>=V$86,$C37<=V$87,ISNUMBER(Y37)),3,IF(AND($C37>V$80,ISNUMBER(X37),LOOKUP($V$78,Berechnen!$AA$10:$AA$17,Berechnen!$AI$10:$AI$17)=0),5,IF(AND($C37<V$80,V$86=0,ISNUMBER(X37)),2,IF(AND($C37>$V$87,ISNUMBER(Y37)),4,0))))) ->  | AD37: =IF($C37="","",IF(AD36-$W$84=$W$83,1+$W$84,AD36+1)) ->  | AE37: =IF($C37="","",IF(AE36-$W$91=$W$90,1+$W$91,AE36+1)) ->  | AH37: =IF(AND($C37>=W$79,$C37<=W$80,ISNUMBER(AF37)),1,IF(AND($C37>=W$86,$C37<=W$87,ISNUMBER(AG37)),3,IF(AND($C37>W$80,ISNUMBER(AF37),LOOKUP($W$78,Berechnen!$AA$10:$AA$17,Berechnen!$AI$10:$AI$17)=0),5,IF(AND($C37<W$80,W$86=0,ISNUMBER(AF37)),2,IF(AND($C37>$W$87,ISNUMBER(AG37)),4,0))))) ->  | AL37: =IF($C37="","",IF(AL36-$X$84=$X$83,1+$X$84,AL36+1)) ->  | AM37: =IF($C37="","",IF(AM36-$X$91=$X$90,1+$X$91,AM36+1)) ->  | AP37: =IF(AND($C37>=X$79,$C37<=X$80,ISNUMBER(AN37)),1,IF(AND($C37>=X$86,$C37<=X$87,ISNUMBER(AO37)),3,IF(AND($C37>X$80,ISNUMBER(AN37),LOOKUP($X$78,Berechnen!$AA$10:$AA$17,Berechnen!$AI$10:$AI$17)=0),5,IF(AND($C37<X$80,X$86=0,ISNUMBER(AN37)),2,IF(AND($C37>X$87,ISNUMBER(AO37)),4,0))))) ->  | AT37: =IF($C37="","",IF(AT36-$Y$84=$Y$83,1+$Y$84,AT36+1)) ->  | AU37: =IF($C37="","",IF(AU36-$Y$91=$Y$90,1+$Y$91,AU36+1)) ->  | AX37: =IF(AND($C37>=Y$79,$C37<=Y$80,ISNUMBER(AV37)),1,IF(AND($C37>=Y$86,$C37<=Y$87,ISNUMBER(AW37)),3,IF(AND($C37>Y$80,ISNUMBER(AV37),LOOKUP($Y$78,Berechnen!$AA$10:$AA$17,Berechnen!$AI$10:$AI$17)=0),5,IF(AND($C37<Y$80,Y$86=0,ISNUMBER(AV37)),2,IF(AND($C37>Y$87,ISNUMBER(AW37)),4,0))))) ->  | BB37: =IF($C37="","",IF(BB36-$Z$84=$Z$83,1+$Z$84,BB36+1)) ->  | BC37: =IF($C37="","",IF(BC36-$Z$91=$Z$90,1+$Z$91,BC36+1)) ->  | BF37: =IF(AND($C37>=Z$79,$C37<=Z$80,ISNUMBER(BD37)),1,IF(AND($C37>=Z$86,$C37<=Z$87,ISNUMBER(BE37)),3,IF(AND($C37>Z$80,ISNUMBER(BD37),LOOKUP($Z$78,Berechnen!$AA$10:$AA$17,Berechnen!$AI$10:$AI$17)=0),5,IF(AND($C37<Z$80,Z$86=0,ISNUMBER(BD37)),2,IF(AND($C37>Z$87,ISNUMBER(BE37)),4,0))))) -> 
B38: =IF(C38="","",WEEKDAY(C38)) -> 1900-01-06 | C38: =IF(DAY($C$9)=1,IF(MONTH(C36+2)=MONTH(C36),C36+2,""),C36+2) -> 2026-01-30 | E38: =IF($C$38="","",IF($U$5=1,"",IF($U38="F","Ferien",IF(ISNUMBER($AA38),VLOOKUP($AA38,Touren,2,FALSE),"?")))) ->  | H38: =IF($C$38="","",IF($V$5=1,"",IF($AC38="F","Ferien",IF(ISNUMBER($AI38),VLOOKUP($AI38,Touren,2,FALSE),"?")))) ->  | K38: =IF($C$38="","",IF($W$5=1,"",IF($AK38="F","Ferien",IF(ISNUMBER($AQ38),VLOOKUP($AQ38,Touren,2,FALSE),"?")))) ->  | N38: =IF($C$38="","",IF($X$5=1,"",IF($AS38="F","Ferien",IF(ISNUMBER($AY38),VLOOKUP($AY38,Touren,2,FALSE),"?")))) ->  | Q38: =IF($C$38="","",IF($Y$5=1,"",IF($BA38="F","Ferien",IF(ISNUMBER($BG38),VLOOKUP($BG38,Touren,2,FALSE),"?")))) ->  | V38: =IF($C38="","",IF(V37-$V$84=$V$83,1+$V$84,V37+1)) ->  | W38: =IF($C38="","",IF(W37-$V$91=$V$90,1+$V$91,W37+1)) ->  | Z38: =IF(AND($C38>=V$79,$C38<=V$80,ISNUMBER(X38)),1,IF(AND($C38>=V$86,$C38<=V$87,ISNUMBER(Y38)),3,IF(AND($C38>V$80,ISNUMBER(X38),LOOKUP($V$78,Berechnen!$AA$10:$AA$17,Berechnen!$AI$10:$AI$17)=0),5,IF(AND($C38<V$80,V$86=0,ISNUMBER(X38)),2,IF(AND($C38>$V$87,ISNUMBER(Y38)),4,0))))) ->  | AD38: =IF($C38="","",IF(AD37-$W$84=$W$83,1+$W$84,AD37+1)) ->  | AE38: =IF($C38="","",IF(AE37-$W$91=$W$90,1+$W$91,AE37+1)) ->  | AH38: =IF(AND($C38>=W$79,$C38<=W$80,ISNUMBER(AF38)),1,IF(AND($C38>=W$86,$C38<=W$87,ISNUMBER(AG38)),3,IF(AND($C38>W$80,ISNUMBER(AF38),LOOKUP($W$78,Berechnen!$AA$10:$AA$17,Berechnen!$AI$10:$AI$17)=0),5,IF(AND($C38<W$80,W$86=0,ISNUMBER(AF38)),2,IF(AND($C38>$W$87,ISNUMBER(AG38)),4,0))))) ->  | AL38: =IF($C38="","",IF(AL37-$X$84=$X$83,1+$X$84,AL37+1)) ->  | AM38: =IF($C38="","",IF(AM37-$X$91=$X$90,1+$X$91,AM37+1)) ->  | AP38: =IF(AND($C38>=X$79,$C38<=X$80,ISNUMBER(AN38)),1,IF(AND($C38>=X$86,$C38<=X$87,ISNUMBER(AO38)),3,IF(AND($C38>X$80,ISNUMBER(AN38),LOOKUP($X$78,Berechnen!$AA$10:$AA$17,Berechnen!$AI$10:$AI$17)=0),5,IF(AND($C38<X$80,X$86=0,ISNUMBER(AN38)),2,IF(AND($C38>X$87,ISNUMBER(AO38)),4,0))))) ->  | AT38: =IF($C38="","",IF(AT37-$Y$84=$Y$83,1+$Y$84,AT37+1)) ->  | AU38: =IF($C38="","",IF(AU37-$Y$91=$Y$90,1+$Y$91,AU37+1)) ->  | AX38: =IF(AND($C38>=Y$79,$C38<=Y$80,ISNUMBER(AV38)),1,IF(AND($C38>=Y$86,$C38<=Y$87,ISNUMBER(AW38)),3,IF(AND($C38>Y$80,ISNUMBER(AV38),LOOKUP($Y$78,Berechnen!$AA$10:$AA$17,Berechnen!$AI$10:$AI$17)=0),5,IF(AND($C38<Y$80,Y$86=0,ISNUMBER(AV38)),2,IF(AND($C38>Y$87,ISNUMBER(AW38)),4,0))))) ->  | BB38: =IF($C38="","",IF(BB37-$Z$84=$Z$83,1+$Z$84,BB37+1)) ->  | BC38: =IF($C38="","",IF(BC37-$Z$91=$Z$90,1+$Z$91,BC37+1)) ->  | BF38: =IF(AND($C38>=Z$79,$C38<=Z$80,ISNUMBER(BD38)),1,IF(AND($C38>=Z$86,$C38<=Z$87,ISNUMBER(BE38)),3,IF(AND($C38>Z$80,ISNUMBER(BD38),LOOKUP($Z$78,Berechnen!$AA$10:$AA$17,Berechnen!$AI$10:$AI$17)=0),5,IF(AND($C38<Z$80,Z$86=0,ISNUMBER(BD38)),2,IF(AND($C38>Z$87,ISNUMBER(BE38)),4,0))))) -> 
B39: =IF(C39="","",WEEKDAY(C39)) -> 1900-01-07 | C39: =IF(DAY($C$9)=1,IF(MONTH(C36+3)=MONTH(C36),C36+3,""),C36+3) -> 2026-01-31 | E39: =IF($C$39="","",IF($U$5=1,"",IF($U39="F","Ferien",IF(ISNUMBER($AA39),VLOOKUP($AA39,Touren,2,FALSE),"?")))) ->  | H39: =IF($C$39="","",IF($V$5=1,"",IF($AC39="F","Ferien",IF(ISNUMBER($AI39),VLOOKUP($AI39,Touren,2,FALSE),"?")))) ->  | K39: =IF($C$39="","",IF($W$5=1,"",IF($AK39="F","Ferien",IF(ISNUMBER($AQ39),VLOOKUP($AQ39,Touren,2,FALSE),"?")))) ->  | N39: =IF($C$39="","",IF($X$5=1,"",IF($AS39="F","Ferien",IF(ISNUMBER($AY39),VLOOKUP($AY39,Touren,2,FALSE),"?")))) ->  | Q39: =IF($C$39="","",IF($Y$5=1,"",IF($BA39="F","Ferien",IF(ISNUMBER($BG39),VLOOKUP($BG39,Touren,2,FALSE),"?")))) ->  | V39: =IF($C39="","",IF(V38-$V$84=$V$83,1+$V$84,V38+1)) ->  | W39: =IF($C39="","",IF(W38-$V$91=$V$90,1+$V$91,W38+1)) ->  | Z39: =IF(AND($C39>=V$79,$C39<=V$80,ISNUMBER(X39)),1,IF(AND($C39>=V$86,$C39<=V$87,ISNUMBER(Y39)),3,IF(AND($C39>V$80,ISNUMBER(X39),LOOKUP($V$78,Berechnen!$AA$10:$AA$17,Berechnen!$AI$10:$AI$17)=0),5,IF(AND($C39<V$80,V$86=0,ISNUMBER(X39)),2,IF(AND($C39>$V$87,ISNUMBER(Y39)),4,0))))) ->  | AD39: =IF($C39="","",IF(AD38-$W$84=$W$83,1+$W$84,AD38+1)) ->  | AE39: =IF($C39="","",IF(AE38-$W$91=$W$90,1+$W$91,AE38+1)) ->  | AH39: =IF(AND($C39>=W$79,$C39<=W$80,ISNUMBER(AF39)),1,IF(AND($C39>=W$86,$C39<=W$87,ISNUMBER(AG39)),3,IF(AND($C39>W$80,ISNUMBER(AF39),LOOKUP($W$78,Berechnen!$AA$10:$AA$17,Berechnen!$AI$10:$AI$17)=0),5,IF(AND($C39<W$80,W$86=0,ISNUMBER(AF39)),2,IF(AND($C39>$W$87,ISNUMBER(AG39)),4,0))))) ->  | AL39: =IF($C39="","",IF(AL38-$X$84=$X$83,1+$X$84,AL38+1)) ->  | AM39: =IF($C39="","",IF(AM38-$X$91=$X$90,1+$X$91,AM38+1)) ->  | AP39: =IF(AND($C39>=X$79,$C39<=X$80,ISNUMBER(AN39)),1,IF(AND($C39>=X$86,$C39<=X$87,ISNUMBER(AO39)),3,IF(AND($C39>X$80,ISNUMBER(AN39),LOOKUP($X$78,Berechnen!$AA$10:$AA$17,Berechnen!$AI$10:$AI$17)=0),5,IF(AND($C39<X$80,X$86=0,ISNUMBER(AN39)),2,IF(AND($C39>X$87,ISNUMBER(AO39)),4,0))))) ->  | AT39: =IF($C39="","",IF(AT38-$Y$84=$Y$83,1+$Y$84,AT38+1)) ->  | AU39: =IF($C39="","",IF(AU38-$Y$91=$Y$90,1+$Y$91,AU38+1)) ->  | AX39: =IF(AND($C39>=Y$79,$C39<=Y$80,ISNUMBER(AV39)),1,IF(AND($C39>=Y$86,$C39<=Y$87,ISNUMBER(AW39)),3,IF(AND($C39>Y$80,ISNUMBER(AV39),LOOKUP($Y$78,Berechnen!$AA$10:$AA$17,Berechnen!$AI$10:$AI$17)=0),5,IF(AND($C39<Y$80,Y$86=0,ISNUMBER(AV39)),2,IF(AND($C39>Y$87,ISNUMBER(AW39)),4,0))))) ->  | BB39: =IF($C39="","",IF(BB38-$Z$84=$Z$83,1+$Z$84,BB38+1)) ->  | BC39: =IF($C39="","",IF(BC38-$Z$91=$Z$90,1+$Z$91,BC38+1)) ->  | BF39: =IF(AND($C39>=Z$79,$C39<=Z$80,ISNUMBER(BD39)),1,IF(AND($C39>=Z$86,$C39<=Z$87,ISNUMBER(BE39)),3,IF(AND($C39>Z$80,ISNUMBER(BD39),LOOKUP($Z$78,Berechnen!$AA$10:$AA$17,Berechnen!$AI$10:$AI$17)=0),5,IF(AND($C39<Z$80,Z$86=0,ISNUMBER(BD39)),2,IF(AND($C39>Z$87,ISNUMBER(BE39)),4,0))))) -> 
B40: =WEEKDAY(C40) -> 1900-01-01 | C40: =IF(C37="",C36+1,(IF(C38="",C37+1,IF(C39="",C38+1,C39+1)))) -> 2026-02-01 | V40: =IF(V37="",IF(V36-$V$84=$V$83,1+$V$84,V36+1),IF(V38="",IF(V37-$V$84=$V$83,1+$V$84,V37+1),IF(V39="",IF(V38-$V$84=$V$83,1+$V$84,V38+1),IF(V39-$V$84=$V$83,1+$V$84,V39+1)))) ->  | W40: =IF(W37="",IF(W36-$V$91=$V$90,1+$V$91,W36+1),IF(W38="",IF(W37-$V$91=$V$90,1+$V$91,W37+1),IF(W39="",IF($W38-$V$91=$V$90,1+$V$91,W38+1),IF(W39-$V$91=$V$90,1+$V$91,W39+1)))) ->  | Z40: =IF(AND($C40>=V$79,$C40<=V$80,ISNUMBER(X40)),1,IF(AND($C40>=V$86,$C40<=V$87,ISNUMBER(Y40)),3,IF(AND($C40>V$80,ISNUMBER(X40),LOOKUP($V$78,Berechnen!$AA$10:$AA$17,Berechnen!$AI$10:$AI$17)=0),5,IF(AND($C40<V$80,V$86=0,ISNUMBER(X40)),2,IF(AND($C40>$V$87,ISNUMBER(Y40)),4,0))))) ->  | AD40: =IF(AD37="",IF(AD36-$W$84=$W$83,1+$W$84,AD36+1),IF(AD38="",IF(AD37-$W$84=$W$83,1+$W$84,AD37+1),IF(AD39="",IF(AD38-$W$84=$W$83,1+$W$84,AD38+1),IF(AD39-$W$84=$W$83,1+$W$84,AD39+1)))) ->  | AE40: =IF(AE37="",IF(AE36-$W$91=$W$90,1+$W$91,AE36+1),IF(AE38="",IF(AE37-$W$91=$W$90,1+$W$91,AE37+1),IF(AE39="",IF($W38-$W$91=$W$90,1+$W$91,AE38+1),IF(AE39-$W$91=$W$90,1+$W$91,AE39+1)))) ->  | AH40: =IF(AND($C40>=W$79,$C40<=W$80,ISNUMBER(AF40)),1,IF(AND($C40>=W$86,$C40<=W$87,ISNUMBER(AG40)),3,IF(AND($C40>W$80,ISNUMBER(AF40),LOOKUP($W$78,Berechnen!$AA$10:$AA$17,Berechnen!$AI$10:$AI$17)=0),5,IF(AND($C40<W$80,W$86=0,ISNUMBER(AF40)),2,IF(AND($C40>$W$87,ISNUMBER(AG40)),4,0))))) ->  | AL40: =IF(AL37="",IF(AL36-$X$84=$X$83,1+$X$84,AL36+1),IF(AL38="",IF(AL37-$X$84=$X$83,1+$X$84,AL37+1),IF(AL39="",IF(AL38-$X$84=$X$83,1+$X$84,AL38+1),IF(AL39-$X$84=$X$83,1+$X$84,AL39+1)))) ->  | AM40: =IF(AM37="",IF(AM36-$X$91=$X$90,1+$X$91,AM36+1),IF(AM38="",IF(AM37-$X$91=$X$90,1+$X$91,AM37+1),IF(AM39="",IF($W38-$X$91=$X$90,1+$X$91,AM38+1),IF(AM39-$X$91=$X$90,1+$X$91,AM39+1)))) ->  | AP40: =IF(AND($C40>=X$79,$C40<=X$80,ISNUMBER(AN40)),1,IF(AND($C40>=X$86,$C40<=X$87,ISNUMBER(AO40)),3,IF(AND($C40>X$80,ISNUMBER(AN40),LOOKUP($X$78,Berechnen!$AA$10:$AA$17,Berechnen!$AI$10:$AI$17)=0),5,IF(AND($C40<X$80,X$86=0,ISNUMBER(AN40)),2,IF(AND($C40>X$87,ISNUMBER(AO40)),4,0))))) ->  | AT40: =IF(AT37="",IF(AT36-$Y$84=$Y$83,1+$Y$84,AT36+1),IF(AT38="",IF(AT37-$Y$84=$Y$83,1+$Y$84,AT37+1),IF(AT39="",IF(AT38-$Y$84=$Y$83,1+$Y$84,AT38+1),IF(AT39-$Y$84=$Y$83,1+$Y$84,AT39+1)))) ->  | AU40: =IF(AU37="",IF(AU36-$Y$91=$Y$90,1+$Y$91,AU36+1),IF(AU38="",IF(AU37-$Y$91=$Y$90,1+$Y$91,AU37+1),IF(AU39="",IF($W38-$Y$91=$Y$90,1+$Y$91,AU38+1),IF(AU39-$Y$91=$Y$90,1+$Y$91,AU39+1)))) ->  | AX40: =IF(AND($C40>=Y$79,$C40<=Y$80,ISNUMBER(AV40)),1,IF(AND($C40>=Y$86,$C40<=Y$87,ISNUMBER(AW40)),3,IF(AND($C40>Y$80,ISNUMBER(AV40),LOOKUP($Y$78,Berechnen!$AA$10:$AA$17,Berechnen!$AI$10:$AI$17)=0),5,IF(AND($C40<Y$80,Y$86=0,ISNUMBER(AV40)),2,IF(AND($C40>Y$87,ISNUMBER(AW40)),4,0))))) ->  | BB40: =IF(BB37="",IF(BB36-$Z$84=$Z$83,1+$Z$84,BB36+1),IF(BB38="",IF(BB37-$Z$84=$Z$83,1+$Z$84,BB37+1),IF(BB39="",IF(BB38-$Z$84=$Z$83,1+$Z$84,BB38+1),IF(BB39-$Z$84=$Z$83,1+$Z$84,BB39+1)))) ->  | BC40: =IF(BC37="",IF(BC36-$Z$91=$Z$90,1+$Z$91,BC36+1),IF(BC38="",IF(BC37-$Z$91=$Z$90,1+$Z$91,BC37+1),IF(BC39="",IF($W38-$Z$91=$Z$90,1+$Z$91,BC38+1),IF(BC39-$Z$91=$Z$90,1+$Z$91,BC39+1)))) ->  | BF40: =IF(AND($C40>=Z$79,$C40<=Z$80,ISNUMBER(BD40)),1,IF(AND($C40>=Z$86,$C40<=Z$87,ISNUMBER(BE40)),3,IF(AND($C40>Z$80,ISNUMBER(BD40),LOOKUP($Z$78,Berechnen!$AA$10:$AA$17,Berechnen!$AI$10:$AI$17)=0),5,IF(AND($C40<Z$80,Z$86=0,ISNUMBER(BD40)),2,IF(AND($C40>Z$87,ISNUMBER(BE40)),4,0))))) -> 
A41: =IF(ISNA(VLOOKUP($C41,Feiertage,3,FALSE)),"",VLOOKUP($C41,Feiertage,3,FALSE)) ->  | B41: 1900-01-02 | C41: =C40+1 -> 2026-02-02 | D41: 6 | E41: =IF($U$5=1,"",IF($U41="F","Ferien",IF(ISNUMBER($AA41),VLOOKUP($AA41,Touren,2,FALSE),"?"))) ->  | F41: =IF($U$5=1,"",IF($U41="F","",IF(ISNUMBER($AA41),VLOOKUP($AA41,Touren,3,FALSE),""))) ->  | G41: =IF($U$5=1,"",IF($U41="F","",IF(ISNUMBER($AA41),VLOOKUP($AA41,Touren,4,FALSE),""))) ->  | H41: =IF($V$5=1,"",IF($AC41="F","Ferien",IF(ISNUMBER($AI41),VLOOKUP($AI41,Touren,2,FALSE),"?"))) ->  | I41: =IF($V$5=1,"",IF($AC41="F","",IF(ISNUMBER($AI41),VLOOKUP($AI41,Touren,3,FALSE),""))) ->  | J41: =IF($V$5=1,"",IF($AC41="F","",IF(ISNUMBER($AI41),VLOOKUP($AI41,Touren,4,FALSE),""))) ->  | K41: =IF($W$5=1,"",IF($AK41="F","Ferien",IF(ISNUMBER($AQ41),VLOOKUP($AQ41,Touren,2,FALSE),"?"))) ->  | L41: =IF($W$5=1,"",IF($AK41="F","",IF(ISNUMBER($AQ41),VLOOKUP($AQ41,Touren,3,FALSE),""))) ->  | M41: =IF($W$5=1,"",IF($AK41="F","",IF(ISNUMBER($AQ41),VLOOKUP($AQ41,Touren,4,FALSE),""))) ->  | N41: =IF($X$5=1,"",IF($AS41="F","Ferien",IF(ISNUMBER($AY41),VLOOKUP($AY41,Touren,2,FALSE),"?"))) ->  | O41: =IF($X$5=1,"",IF($AS41="F","",IF(ISNUMBER($AY41),VLOOKUP($AY41,Touren,3,FALSE),""))) ->  | P41: =IF($X$5=1,"",IF($AS41="F","",IF(ISNUMBER($AY41),VLOOKUP($AY41,Touren,4,FALSE),""))) ->  | Q41: =IF($Y$5=1,"",IF($BA41="F","Ferien",IF(ISNUMBER($BG41),VLOOKUP($BG41,Touren,2,FALSE),"?"))) ->  | R41: =IF($Y$5=1,"",IF($BA41="F","",IF(ISNUMBER($BG41),VLOOKUP($BG41,Touren,3,FALSE),""))) ->  | S41: =IF($Y$5=1,"",IF($BA41="F","",IF(ISNUMBER($BG41),VLOOKUP($BG41,Touren,4,FALSE),""))) ->  | U41: =IF(OR(AND($V$93-2<$C41,$V$93+7>$C41),AND($V$94-2<$C41,$V$94+7>$C41),AND($V$95-2<$C41,$V$95+7>$C41),AND($V$96-2<$C41,$V$96+7>$C41),AND($V$97-2<$C41,$V$97+7>$C41),AND($V$98-2<$C41,$V$98+7>$C41),AND($V$99-2<$C41,$V$99+7>$C41),AND($V$100-2<$C41,$V$100+7>$C41),AND($V$101-2<$C41,$V$101+7>$C41),AND($V$102-2<$C41,$V$102+7>$C41),AND($V$103-2<$C41,$V$103+7>$C41),AND($V$104-2<$C41,$V$104+7>$C41),AND($V$105-2<$C41,$V$105+7>$C41),AND($V$106-2<$C41,$V$106+7>$C41))=TRUE,"F",) ->  | V41: =IF(V40-$V$84=$V$83,1+$V$84,V40+1) ->  | W41: =IF(W40-$V$91=$V$90,1+$V$91,W40+1) ->  | X41: =VLOOKUP(V41,Rotation,2,FALSE) ->  | Y41: =VLOOKUP(W41,Rotation,2,FALSE) ->  | Z41: =IF(AND($C41>=V$79,$C41<=V$80,ISNUMBER(X41)),1,IF(AND($C41>=V$86,$C41<=V$87,ISNUMBER(Y41)),3,IF(AND($C41>V$80,ISNUMBER(X41),LOOKUP($V$78,Berechnen!$AA$10:$AA$17,Berechnen!$AI$10:$AI$17)=0),5,IF(AND($C41<V$80,V$86=0,ISNUMBER(X41)),2,IF(AND($C41>$V$87,ISNUMBER(Y41)),4,0))))) ->  | AC41: =IF(OR(AND($W$93-2<$C41,$W$93+7>$C41),AND($W$94-2<$C41,$W$94+7>$C41),AND($W$95-2<$C41,$W$95+7>$C41),AND($W$96-2<$C41,$W$96+7>$C41),AND($W$97-2<$C41,$W$97+7>$C41),AND($W$98-2<$C41,$W$98+7>$C41),AND($W$99-2<$C41,$W$99+7>$C41),AND($W$100-2<$C41,$W$100+7>$C41),AND($W$101-2<$C41,$W$101+7>$C41),AND($W$102-2<$C41,$W$102+7>$C41),AND($W$103-2<$C41,$W$103+7>$C41),AND($W$104-2<$C41,$W$104+7>$C41),AND($W$105-2<$C41,$W$105+7>$C41),AND($W$106-2<$C41,$W$106+7>$C41))=TRUE,"F",) ->  | AD41: =IF(AD40-$W$84=$W$83,1+$W$84,AD40+1) ->  | AE41: =IF(AE40-$W$91=$W$90,1+$W$91,AE40+1) ->  | AH41: =IF(AND($C41>=W$79,$C41<=W$80,ISNUMBER(AF41)),1,IF(AND($C41>=W$86,$C41<=W$87,ISNUMBER(AG41)),3,IF(AND($C41>W$80,ISNUMBER(AF41),LOOKUP($W$78,Berechnen!$AA$10:$AA$17,Berechnen!$AI$10:$AI$17)=0),5,IF(AND($C41<W$80,W$86=0,ISNUMBER(AF41)),2,IF(AND($C41>$W$87,ISNUMBER(AG41)),4,0))))) ->  | AK41: =IF(OR(AND($X$93-2<$C41,$X$93+7>$C41),AND($X$94-2<$C41,$X$94+7>$C41),AND($X$95-2<$C41,$X$95+7>$C41),AND($X$96-2<$C41,$X$96+7>$C41),AND($X$97-2<$C41,$X$97+7>$C41),AND($X$98-2<$C41,$X$98+7>$C41),AND($X$99-2<$C41,$X$99+7>$C41),AND($X$100-2<$C41,$X$100+7>$C41),AND($X$101-2<$C41,$X$101+7>$C41),AND($X$102-2<$C41,$X$102+7>$C41),AND($X$103-2<$C41,$X$103+7>$C41),AND($X$104-2<$C41,$X$104+7>$C41),AND($X$105-2<$C41,$X$105+7>$C41),AND($X$106-2<$C41,$X$106+7>$C41))=TRUE,"F",) ->  | AL41: =IF(AL40-$X$84=$X$83,1+$X$84,AL40+1) ->  | AM41: =IF(AM40-$X$91=$X$90,1+$X$91,AM40+1) ->  | AP41: =IF(AND($C41>=X$79,$C41<=X$80,ISNUMBER(AN41)),1,IF(AND($C41>=X$86,$C41<=X$87,ISNUMBER(AO41)),3,IF(AND($C41>X$80,ISNUMBER(AN41),LOOKUP($X$78,Berechnen!$AA$10:$AA$17,Berechnen!$AI$10:$AI$17)=0),5,IF(AND($C41<X$80,X$86=0,ISNUMBER(AN41)),2,IF(AND($C41>X$87,ISNUMBER(AO41)),4,0))))) ->  | AS41: =IF(OR(AND($Y$93-2<$C41,$Y$93+7>$C41),AND($Y$94-2<$C41,$Y$94+7>$C41),AND($Y$95-2<$C41,$Y$95+7>$C41),AND($Y$96-2<$C41,$Y$96+7>$C41),AND($Y$97-2<$C41,$Y$97+7>$C41),AND($Y$98-2<$C41,$Y$98+7>$C41),AND($Y$99-2<$C41,$Y$99+7>$C41),AND($Y$100-2<$C41,$Y$100+7>$C41),AND($Y$101-2<$C41,$Y$101+7>$C41),AND($Y$102-2<$C41,$Y$102+7>$C41),AND($Y$103-2<$C41,$Y$103+7>$C41),AND($Y$104-2<$C41,$Y$104+7>$C41),AND($Y$105-2<$C41,$Y$105+7>$C41),AND($Y$106-2<$C41,$Y$106+7>$C41))=TRUE,"F",) ->  | AT41: =IF(AT40-$Y$84=$Y$83,1+$Y$84,AT40+1) ->  | AU41: =IF(AU40-$Y$91=$Y$90,1+$Y$91,AU40+1) ->  | AX41: =IF(AND($C41>=Y$79,$C41<=Y$80,ISNUMBER(AV41)),1,IF(AND($C41>=Y$86,$C41<=Y$87,ISNUMBER(AW41)),3,IF(AND($C41>Y$80,ISNUMBER(AV41),LOOKUP($Y$78,Berechnen!$AA$10:$AA$17,Berechnen!$AI$10:$AI$17)=0),5,IF(AND($C41<Y$80,Y$86=0,ISNUMBER(AV41)),2,IF(AND($C41>Y$87,ISNUMBER(AW41)),4,0))))) ->  | BA41: =IF(OR(AND($Z$93-2<$C41,$Z$93+7>$C41),AND($Z$94-2<$C41,$Z$94+7>$C41),AND($Z$95-2<$C41,$Z$95+7>$C41),AND($Z$96-2<$C41,$Z$96+7>$C41),AND($Z$97-2<$C41,$Z$97+7>$C41),AND($Z$98-2<$C41,$Z$98+7>$C41),AND($Z$99-2<$C41,$Z$99+7>$C41),AND($Z$100-2<$C41,$Z$100+7>$C41),AND($Z$101-2<$C41,$Z$101+7>$C41),AND($Z$102-2<$C41,$Z$102+7>$C41),AND($Z$103-2<$C41,$Z$103+7>$C41),AND($Z$104-2<$C41,$Z$104+7>$C41),AND($Z$105-2<$C41,$Z$105+7>$C41),AND($Z$106-2<$C41,$Z$106+7>$C41))=TRUE,"F",) ->  | BB41: =IF(BB40-$Z$84=$Z$83,1+$Z$84,BB40+1) ->  | BC41: =IF(BC40-$Z$91=$Z$90,1+$Z$91,BC40+1) ->  | BF41: =IF(AND($C41>=Z$79,$C41<=Z$80,ISNUMBER(BD41)),1,IF(AND($C41>=Z$86,$C41<=Z$87,ISNUMBER(BE41)),3,IF(AND($C41>Z$80,ISNUMBER(BD41),LOOKUP($Z$78,Berechnen!$AA$10:$AA$17,Berechnen!$AI$10:$AI$17)=0),5,IF(AND($C41<Z$80,Z$86=0,ISNUMBER(BD41)),2,IF(AND($C41>Z$87,ISNUMBER(BE41)),4,0))))) -> 
B42: 1900-01-03 | C42: =C40+2 -> 2026-02-03 | Z42: =IF(AND($C42>=V$79,$C42<=V$80,ISNUMBER(X42)),1,IF(AND($C42>=V$86,$C42<=V$87,ISNUMBER(Y42)),3,IF(AND($C42>V$80,ISNUMBER(X42),LOOKUP($V$78,Berechnen!$AA$10:$AA$17,Berechnen!$AI$10:$AI$17)=0),5,IF(AND($C42<V$80,V$86=0,ISNUMBER(X42)),2,IF(AND($C42>$V$87,ISNUMBER(Y42)),4,0))))) ->  | AH42: =IF(AND($C42>=W$79,$C42<=W$80,ISNUMBER(AF42)),1,IF(AND($C42>=W$86,$C42<=W$87,ISNUMBER(AG42)),3,IF(AND($C42>W$80,ISNUMBER(AF42),LOOKUP($W$78,Berechnen!$AA$10:$AA$17,Berechnen!$AI$10:$AI$17)=0),5,IF(AND($C42<W$80,W$86=0,ISNUMBER(AF42)),2,IF(AND($C42>$W$87,ISNUMBER(AG42)),4,0))))) ->  | AP42: =IF(AND($C42>=X$79,$C42<=X$80,ISNUMBER(AN42)),1,IF(AND($C42>=X$86,$C42<=X$87,ISNUMBER(AO42)),3,IF(AND($C42>X$80,ISNUMBER(AN42),LOOKUP($X$78,Berechnen!$AA$10:$AA$17,Berechnen!$AI$10:$AI$17)=0),5,IF(AND($C42<X$80,X$86=0,ISNUMBER(AN42)),2,IF(AND($C42>X$87,ISNUMBER(AO42)),4,0))))) ->  | AX42: =IF(AND($C42>=Y$79,$C42<=Y$80,ISNUMBER(AV42)),1,IF(AND($C42>=Y$86,$C42<=Y$87,ISNUMBER(AW42)),3,IF(AND($C42>Y$80,ISNUMBER(AV42),LOOKUP($Y$78,Berechnen!$AA$10:$AA$17,Berechnen!$AI$10:$AI$17)=0),5,IF(AND($C42<Y$80,Y$86=0,ISNUMBER(AV42)),2,IF(AND($C42>Y$87,ISNUMBER(AW42)),4,0))))) ->  | BF42: =IF(AND($C42>=Z$79,$C42<=Z$80,ISNUMBER(BD42)),1,IF(AND($C42>=Z$86,$C42<=Z$87,ISNUMBER(BE42)),3,IF(AND($C42>Z$80,ISNUMBER(BD42),LOOKUP($Z$78,Berechnen!$AA$10:$AA$17,Berechnen!$AI$10:$AI$17)=0),5,IF(AND($C42<Z$80,Z$86=0,ISNUMBER(BD42)),2,IF(AND($C42>Z$87,ISNUMBER(BE42)),4,0))))) -> 
B43: 1900-01-04 | C43: =C40+3 -> 2026-02-04 | Z43: =IF(AND($C43>=V$79,$C43<=V$80,ISNUMBER(X43)),1,IF(AND($C43>=V$86,$C43<=V$87,ISNUMBER(Y43)),3,IF(AND($C43>V$80,ISNUMBER(X43),LOOKUP($V$78,Berechnen!$AA$10:$AA$17,Berechnen!$AI$10:$AI$17)=0),5,IF(AND($C43<V$80,V$86=0,ISNUMBER(X43)),2,IF(AND($C43>$V$87,ISNUMBER(Y43)),4,0))))) ->  | AH43: =IF(AND($C43>=W$79,$C43<=W$80,ISNUMBER(AF43)),1,IF(AND($C43>=W$86,$C43<=W$87,ISNUMBER(AG43)),3,IF(AND($C43>W$80,ISNUMBER(AF43),LOOKUP($W$78,Berechnen!$AA$10:$AA$17,Berechnen!$AI$10:$AI$17)=0),5,IF(AND($C43<W$80,W$86=0,ISNUMBER(AF43)),2,IF(AND($C43>$W$87,ISNUMBER(AG43)),4,0))))) ->  | AP43: =IF(AND($C43>=X$79,$C43<=X$80,ISNUMBER(AN43)),1,IF(AND($C43>=X$86,$C43<=X$87,ISNUMBER(AO43)),3,IF(AND($C43>X$80,ISNUMBER(AN43),LOOKUP($X$78,Berechnen!$AA$10:$AA$17,Berechnen!$AI$10:$AI$17)=0),5,IF(AND($C43<X$80,X$86=0,ISNUMBER(AN43)),2,IF(AND($C43>X$87,ISNUMBER(AO43)),4,0))))) ->  | AX43: =IF(AND($C43>=Y$79,$C43<=Y$80,ISNUMBER(AV43)),1,IF(AND($C43>=Y$86,$C43<=Y$87,ISNUMBER(AW43)),3,IF(AND($C43>Y$80,ISNUMBER(AV43),LOOKUP($Y$78,Berechnen!$AA$10:$AA$17,Berechnen!$AI$10:$AI$17)=0),5,IF(AND($C43<Y$80,Y$86=0,ISNUMBER(AV43)),2,IF(AND($C43>Y$87,ISNUMBER(AW43)),4,0))))) ->  | BF43: =IF(AND($C43>=Z$79,$C43<=Z$80,ISNUMBER(BD43)),1,IF(AND($C43>=Z$86,$C43<=Z$87,ISNUMBER(BE43)),3,IF(AND($C43>Z$80,ISNUMBER(BD43),LOOKUP($Z$78,Berechnen!$AA$10:$AA$17,Berechnen!$AI$10:$AI$17)=0),5,IF(AND($C43<Z$80,Z$86=0,ISNUMBER(BD43)),2,IF(AND($C43>Z$87,ISNUMBER(BE43)),4,0))))) -> 
B44: 1900-01-05 | C44: =C40+4 -> 2026-02-05 | Z44: =IF(AND($C44>=V$79,$C44<=V$80,ISNUMBER(X44)),1,IF(AND($C44>=V$86,$C44<=V$87,ISNUMBER(Y44)),3,IF(AND($C44>V$80,ISNUMBER(X44),LOOKUP($V$78,Berechnen!$AA$10:$AA$17,Berechnen!$AI$10:$AI$17)=0),5,IF(AND($C44<V$80,V$86=0,ISNUMBER(X44)),2,IF(AND($C44>$V$87,ISNUMBER(Y44)),4,0))))) ->  | AH44: =IF(AND($C44>=W$79,$C44<=W$80,ISNUMBER(AF44)),1,IF(AND($C44>=W$86,$C44<=W$87,ISNUMBER(AG44)),3,IF(AND($C44>W$80,ISNUMBER(AF44),LOOKUP($W$78,Berechnen!$AA$10:$AA$17,Berechnen!$AI$10:$AI$17)=0),5,IF(AND($C44<W$80,W$86=0,ISNUMBER(AF44)),2,IF(AND($C44>$W$87,ISNUMBER(AG44)),4,0))))) ->  | AP44: =IF(AND($C44>=X$79,$C44<=X$80,ISNUMBER(AN44)),1,IF(AND($C44>=X$86,$C44<=X$87,ISNUMBER(AO44)),3,IF(AND($C44>X$80,ISNUMBER(AN44),LOOKUP($X$78,Berechnen!$AA$10:$AA$17,Berechnen!$AI$10:$AI$17)=0),5,IF(AND($C44<X$80,X$86=0,ISNUMBER(AN44)),2,IF(AND($C44>X$87,ISNUMBER(AO44)),4,0))))) ->  | AX44: =IF(AND($C44>=Y$79,$C44<=Y$80,ISNUMBER(AV44)),1,IF(AND($C44>=Y$86,$C44<=Y$87,ISNUMBER(AW44)),3,IF(AND($C44>Y$80,ISNUMBER(AV44),LOOKUP($Y$78,Berechnen!$AA$10:$AA$17,Berechnen!$AI$10:$AI$17)=0),5,IF(AND($C44<Y$80,Y$86=0,ISNUMBER(AV44)),2,IF(AND($C44>Y$87,ISNUMBER(AW44)),4,0))))) ->  | BF44: =IF(AND($C44>=Z$79,$C44<=Z$80,ISNUMBER(BD44)),1,IF(AND($C44>=Z$86,$C44<=Z$87,ISNUMBER(BE44)),3,IF(AND($C44>Z$80,ISNUMBER(BD44),LOOKUP($Z$78,Berechnen!$AA$10:$AA$17,Berechnen!$AI$10:$AI$17)=0),5,IF(AND($C44<Z$80,Z$86=0,ISNUMBER(BD44)),2,IF(AND($C44>Z$87,ISNUMBER(BE44)),4,0))))) -> 
B45: 1900-01-06 | C45: =C40+5 -> 2026-02-06 | Z45: =IF(AND($C45>=V$79,$C45<=V$80,ISNUMBER(X45)),1,IF(AND($C45>=V$86,$C45<=V$87,ISNUMBER(Y45)),3,IF(AND($C45>V$80,ISNUMBER(X45),LOOKUP($V$78,Berechnen!$AA$10:$AA$17,Berechnen!$AI$10:$AI$17)=0),5,IF(AND($C45<V$80,V$86=0,ISNUMBER(X45)),2,IF(AND($C45>$V$87,ISNUMBER(Y45)),4,0))))) ->  | AH45: =IF(AND($C45>=W$79,$C45<=W$80,ISNUMBER(AF45)),1,IF(AND($C45>=W$86,$C45<=W$87,ISNUMBER(AG45)),3,IF(AND($C45>W$80,ISNUMBER(AF45),LOOKUP($W$78,Berechnen!$AA$10:$AA$17,Berechnen!$AI$10:$AI$17)=0),5,IF(AND($C45<W$80,W$86=0,ISNUMBER(AF45)),2,IF(AND($C45>$W$87,ISNUMBER(AG45)),4,0))))) ->  | AP45: =IF(AND($C45>=X$79,$C45<=X$80,ISNUMBER(AN45)),1,IF(AND($C45>=X$86,$C45<=X$87,ISNUMBER(AO45)),3,IF(AND($C45>X$80,ISNUMBER(AN45),LOOKUP($X$78,Berechnen!$AA$10:$AA$17,Berechnen!$AI$10:$AI$17)=0),5,IF(AND($C45<X$80,X$86=0,ISNUMBER(AN45)),2,IF(AND($C45>X$87,ISNUMBER(AO45)),4,0))))) ->  | AX45: =IF(AND($C45>=Y$79,$C45<=Y$80,ISNUMBER(AV45)),1,IF(AND($C45>=Y$86,$C45<=Y$87,ISNUMBER(AW45)),3,IF(AND($C45>Y$80,ISNUMBER(AV45),LOOKUP($Y$78,Berechnen!$AA$10:$AA$17,Berechnen!$AI$10:$AI$17)=0),5,IF(AND($C45<Y$80,Y$86=0,ISNUMBER(AV45)),2,IF(AND($C45>Y$87,ISNUMBER(AW45)),4,0))))) ->  | BF45: =IF(AND($C45>=Z$79,$C45<=Z$80,ISNUMBER(BD45)),1,IF(AND($C45>=Z$86,$C45<=Z$87,ISNUMBER(BE45)),3,IF(AND($C45>Z$80,ISNUMBER(BD45),LOOKUP($Z$78,Berechnen!$AA$10:$AA$17,Berechnen!$AI$10:$AI$17)=0),5,IF(AND($C45<Z$80,Z$86=0,ISNUMBER(BD45)),2,IF(AND($C45>Z$87,ISNUMBER(BE45)),4,0))))) -> 
B46: 1900-01-07 | C46: =C40+6 -> 2026-02-07 | Z46: =IF(AND($C46>=V$79,$C46<=V$80,ISNUMBER(X46)),1,IF(AND($C46>=V$86,$C46<=V$87,ISNUMBER(Y46)),3,IF(AND($C46>V$80,ISNUMBER(X46),LOOKUP($V$78,Berechnen!$AA$10:$AA$17,Berechnen!$AI$10:$AI$17)=0),5,IF(AND($C46<V$80,V$86=0,ISNUMBER(X46)),2,IF(AND($C46>$V$87,ISNUMBER(Y46)),4,0))))) ->  | AH46: =IF(AND($C46>=W$79,$C46<=W$80,ISNUMBER(AF46)),1,IF(AND($C46>=W$86,$C46<=W$87,ISNUMBER(AG46)),3,IF(AND($C46>W$80,ISNUMBER(AF46),LOOKUP($W$78,Berechnen!$AA$10:$AA$17,Berechnen!$AI$10:$AI$17)=0),5,IF(AND($C46<W$80,W$86=0,ISNUMBER(AF46)),2,IF(AND($C46>$W$87,ISNUMBER(AG46)),4,0))))) ->  | AP46: =IF(AND($C46>=X$79,$C46<=X$80,ISNUMBER(AN46)),1,IF(AND($C46>=X$86,$C46<=X$87,ISNUMBER(AO46)),3,IF(AND($C46>X$80,ISNUMBER(AN46),LOOKUP($X$78,Berechnen!$AA$10:$AA$17,Berechnen!$AI$10:$AI$17)=0),5,IF(AND($C46<X$80,X$86=0,ISNUMBER(AN46)),2,IF(AND($C46>X$87,ISNUMBER(AO46)),4,0))))) ->  | AX46: =IF(AND($C46>=Y$79,$C46<=Y$80,ISNUMBER(AV46)),1,IF(AND($C46>=Y$86,$C46<=Y$87,ISNUMBER(AW46)),3,IF(AND($C46>Y$80,ISNUMBER(AV46),LOOKUP($Y$78,Berechnen!$AA$10:$AA$17,Berechnen!$AI$10:$AI$17)=0),5,IF(AND($C46<Y$80,Y$86=0,ISNUMBER(AV46)),2,IF(AND($C46>Y$87,ISNUMBER(AW46)),4,0))))) ->  | BF46: =IF(AND($C46>=Z$79,$C46<=Z$80,ISNUMBER(BD46)),1,IF(AND($C46>=Z$86,$C46<=Z$87,ISNUMBER(BE46)),3,IF(AND($C46>Z$80,ISNUMBER(BD46),LOOKUP($Z$78,Berechnen!$AA$10:$AA$17,Berechnen!$AI$10:$AI$17)=0),5,IF(AND($C46<Z$80,Z$86=0,ISNUMBER(BD46)),2,IF(AND($C46>Z$87,ISNUMBER(BE46)),4,0))))) -> 
B47: 1900-01-01 | C47: =C40+7 -> 2026-02-08 | Z47: =IF(AND($C47>=V$79,$C47<=V$80,ISNUMBER(X47)),1,IF(AND($C47>=V$86,$C47<=V$87,ISNUMBER(Y47)),3,IF(AND($C47>V$80,ISNUMBER(X47),LOOKUP($V$78,Berechnen!$AA$10:$AA$17,Berechnen!$AI$10:$AI$17)=0),5,IF(AND($C47<V$80,V$86=0,ISNUMBER(X47)),2,IF(AND($C47>$V$87,ISNUMBER(Y47)),4,0))))) ->  | AH47: =IF(AND($C47>=W$79,$C47<=W$80,ISNUMBER(AF47)),1,IF(AND($C47>=W$86,$C47<=W$87,ISNUMBER(AG47)),3,IF(AND($C47>W$80,ISNUMBER(AF47),LOOKUP($W$78,Berechnen!$AA$10:$AA$17,Berechnen!$AI$10:$AI$17)=0),5,IF(AND($C47<W$80,W$86=0,ISNUMBER(AF47)),2,IF(AND($C47>$W$87,ISNUMBER(AG47)),4,0))))) ->  | AP47: =IF(AND($C47>=X$79,$C47<=X$80,ISNUMBER(AN47)),1,IF(AND($C47>=X$86,$C47<=X$87,ISNUMBER(AO47)),3,IF(AND($C47>X$80,ISNUMBER(AN47),LOOKUP($X$78,Berechnen!$AA$10:$AA$17,Berechnen!$AI$10:$AI$17)=0),5,IF(AND($C47<X$80,X$86=0,ISNUMBER(AN47)),2,IF(AND($C47>X$87,ISNUMBER(AO47)),4,0))))) ->  | AX47: =IF(AND($C47>=Y$79,$C47<=Y$80,ISNUMBER(AV47)),1,IF(AND($C47>=Y$86,$C47<=Y$87,ISNUMBER(AW47)),3,IF(AND($C47>Y$80,ISNUMBER(AV47),LOOKUP($Y$78,Berechnen!$AA$10:$AA$17,Berechnen!$AI$10:$AI$17)=0),5,IF(AND($C47<Y$80,Y$86=0,ISNUMBER(AV47)),2,IF(AND($C47>Y$87,ISNUMBER(AW47)),4,0))))) ->  | BF47: =IF(AND($C47>=Z$79,$C47<=Z$80,ISNUMBER(BD47)),1,IF(AND($C47>=Z$86,$C47<=Z$87,ISNUMBER(BE47)),3,IF(AND($C47>Z$80,ISNUMBER(BD47),LOOKUP($Z$78,Berechnen!$AA$10:$AA$17,Berechnen!$AI$10:$AI$17)=0),5,IF(AND($C47<Z$80,Z$86=0,ISNUMBER(BD47)),2,IF(AND($C47>Z$87,ISNUMBER(BE47)),4,0))))) -> 
B48: 1900-01-02 | C48: =C40+8 -> 2026-02-09 | D48: 7 | Z48: =IF(AND($C48>=V$79,$C48<=V$80,ISNUMBER(X48)),1,IF(AND($C48>=V$86,$C48<=V$87,ISNUMBER(Y48)),3,IF(AND($C48>V$80,ISNUMBER(X48),LOOKUP($V$78,Berechnen!$AA$10:$AA$17,Berechnen!$AI$10:$AI$17)=0),5,IF(AND($C48<V$80,V$86=0,ISNUMBER(X48)),2,IF(AND($C48>$V$87,ISNUMBER(Y48)),4,0))))) ->  | AH48: =IF(AND($C48>=W$79,$C48<=W$80,ISNUMBER(AF48)),1,IF(AND($C48>=W$86,$C48<=W$87,ISNUMBER(AG48)),3,IF(AND($C48>W$80,ISNUMBER(AF48),LOOKUP($W$78,Berechnen!$AA$10:$AA$17,Berechnen!$AI$10:$AI$17)=0),5,IF(AND($C48<W$80,W$86=0,ISNUMBER(AF48)),2,IF(AND($C48>$W$87,ISNUMBER(AG48)),4,0))))) ->  | AP48: =IF(AND($C48>=X$79,$C48<=X$80,ISNUMBER(AN48)),1,IF(AND($C48>=X$86,$C48<=X$87,ISNUMBER(AO48)),3,IF(AND($C48>X$80,ISNUMBER(AN48),LOOKUP($X$78,Berechnen!$AA$10:$AA$17,Berechnen!$AI$10:$AI$17)=0),5,IF(AND($C48<X$80,X$86=0,ISNUMBER(AN48)),2,IF(AND($C48>X$87,ISNUMBER(AO48)),4,0))))) ->  | AX48: =IF(AND($C48>=Y$79,$C48<=Y$80,ISNUMBER(AV48)),1,IF(AND($C48>=Y$86,$C48<=Y$87,ISNUMBER(AW48)),3,IF(AND($C48>Y$80,ISNUMBER(AV48),LOOKUP($Y$78,Berechnen!$AA$10:$AA$17,Berechnen!$AI$10:$AI$17)=0),5,IF(AND($C48<Y$80,Y$86=0,ISNUMBER(AV48)),2,IF(AND($C48>Y$87,ISNUMBER(AW48)),4,0))))) ->  | BF48: =IF(AND($C48>=Z$79,$C48<=Z$80,ISNUMBER(BD48)),1,IF(AND($C48>=Z$86,$C48<=Z$87,ISNUMBER(BE48)),3,IF(AND($C48>Z$80,ISNUMBER(BD48),LOOKUP($Z$78,Berechnen!$AA$10:$AA$17,Berechnen!$AI$10:$AI$17)=0),5,IF(AND($C48<Z$80,Z$86=0,ISNUMBER(BD48)),2,IF(AND($C48>Z$87,ISNUMBER(BE48)),4,0))))) -> 
B49: 1900-01-03 | C49: =C40+9 -> 2026-02-10 | Z49: =IF(AND($C49>=V$79,$C49<=V$80,ISNUMBER(X49)),1,IF(AND($C49>=V$86,$C49<=V$87,ISNUMBER(Y49)),3,IF(AND($C49>V$80,ISNUMBER(X49),LOOKUP($V$78,Berechnen!$AA$10:$AA$17,Berechnen!$AI$10:$AI$17)=0),5,IF(AND($C49<V$80,V$86=0,ISNUMBER(X49)),2,IF(AND($C49>$V$87,ISNUMBER(Y49)),4,0))))) ->  | AH49: =IF(AND($C49>=W$79,$C49<=W$80,ISNUMBER(AF49)),1,IF(AND($C49>=W$86,$C49<=W$87,ISNUMBER(AG49)),3,IF(AND($C49>W$80,ISNUMBER(AF49),LOOKUP($W$78,Berechnen!$AA$10:$AA$17,Berechnen!$AI$10:$AI$17)=0),5,IF(AND($C49<W$80,W$86=0,ISNUMBER(AF49)),2,IF(AND($C49>$W$87,ISNUMBER(AG49)),4,0))))) ->  | AP49: =IF(AND($C49>=X$79,$C49<=X$80,ISNUMBER(AN49)),1,IF(AND($C49>=X$86,$C49<=X$87,ISNUMBER(AO49)),3,IF(AND($C49>X$80,ISNUMBER(AN49),LOOKUP($X$78,Berechnen!$AA$10:$AA$17,Berechnen!$AI$10:$AI$17)=0),5,IF(AND($C49<X$80,X$86=0,ISNUMBER(AN49)),2,IF(AND($C49>X$87,ISNUMBER(AO49)),4,0))))) ->  | AX49: =IF(AND($C49>=Y$79,$C49<=Y$80,ISNUMBER(AV49)),1,IF(AND($C49>=Y$86,$C49<=Y$87,ISNUMBER(AW49)),3,IF(AND($C49>Y$80,ISNUMBER(AV49),LOOKUP($Y$78,Berechnen!$AA$10:$AA$17,Berechnen!$AI$10:$AI$17)=0),5,IF(AND($C49<Y$80,Y$86=0,ISNUMBER(AV49)),2,IF(AND($C49>Y$87,ISNUMBER(AW49)),4,0))))) ->  | BF49: =IF(AND($C49>=Z$79,$C49<=Z$80,ISNUMBER(BD49)),1,IF(AND($C49>=Z$86,$C49<=Z$87,ISNUMBER(BE49)),3,IF(AND($C49>Z$80,ISNUMBER(BD49),LOOKUP($Z$78,Berechnen!$AA$10:$AA$17,Berechnen!$AI$10:$AI$17)=0),5,IF(AND($C49<Z$80,Z$86=0,ISNUMBER(BD49)),2,IF(AND($C49>Z$87,ISNUMBER(BE49)),4,0))))) -> 
B50: 1900-01-04 | C50: =C40+10 -> 2026-02-11 | Z50: =IF(AND($C50>=V$79,$C50<=V$80,ISNUMBER(X50)),1,IF(AND($C50>=V$86,$C50<=V$87,ISNUMBER(Y50)),3,IF(AND($C50>V$80,ISNUMBER(X50),LOOKUP($V$78,Berechnen!$AA$10:$AA$17,Berechnen!$AI$10:$AI$17)=0),5,IF(AND($C50<V$80,V$86=0,ISNUMBER(X50)),2,IF(AND($C50>$V$87,ISNUMBER(Y50)),4,0))))) ->  | AH50: =IF(AND($C50>=W$79,$C50<=W$80,ISNUMBER(AF50)),1,IF(AND($C50>=W$86,$C50<=W$87,ISNUMBER(AG50)),3,IF(AND($C50>W$80,ISNUMBER(AF50),LOOKUP($W$78,Berechnen!$AA$10:$AA$17,Berechnen!$AI$10:$AI$17)=0),5,IF(AND($C50<W$80,W$86=0,ISNUMBER(AF50)),2,IF(AND($C50>$W$87,ISNUMBER(AG50)),4,0))))) ->  | AP50: =IF(AND($C50>=X$79,$C50<=X$80,ISNUMBER(AN50)),1,IF(AND($C50>=X$86,$C50<=X$87,ISNUMBER(AO50)),3,IF(AND($C50>X$80,ISNUMBER(AN50),LOOKUP($X$78,Berechnen!$AA$10:$AA$17,Berechnen!$AI$10:$AI$17)=0),5,IF(AND($C50<X$80,X$86=0,ISNUMBER(AN50)),2,IF(AND($C50>X$87,ISNUMBER(AO50)),4,0))))) ->  | AX50: =IF(AND($C50>=Y$79,$C50<=Y$80,ISNUMBER(AV50)),1,IF(AND($C50>=Y$86,$C50<=Y$87,ISNUMBER(AW50)),3,IF(AND($C50>Y$80,ISNUMBER(AV50),LOOKUP($Y$78,Berechnen!$AA$10:$AA$17,Berechnen!$AI$10:$AI$17)=0),5,IF(AND($C50<Y$80,Y$86=0,ISNUMBER(AV50)),2,IF(AND($C50>Y$87,ISNUMBER(AW50)),4,0))))) ->  | BF50: =IF(AND($C50>=Z$79,$C50<=Z$80,ISNUMBER(BD50)),1,IF(AND($C50>=Z$86,$C50<=Z$87,ISNUMBER(BE50)),3,IF(AND($C50>Z$80,ISNUMBER(BD50),LOOKUP($Z$78,Berechnen!$AA$10:$AA$17,Berechnen!$AI$10:$AI$17)=0),5,IF(AND($C50<Z$80,Z$86=0,ISNUMBER(BD50)),2,IF(AND($C50>Z$87,ISNUMBER(BE50)),4,0))))) -> 
B51: 1900-01-05 | C51: =C40+11 -> 2026-02-12 | Z51: =IF(AND($C51>=V$79,$C51<=V$80,ISNUMBER(X51)),1,IF(AND($C51>=V$86,$C51<=V$87,ISNUMBER(Y51)),3,IF(AND($C51>V$80,ISNUMBER(X51),LOOKUP($V$78,Berechnen!$AA$10:$AA$17,Berechnen!$AI$10:$AI$17)=0),5,IF(AND($C51<V$80,V$86=0,ISNUMBER(X51)),2,IF(AND($C51>$V$87,ISNUMBER(Y51)),4,0))))) ->  | AH51: =IF(AND($C51>=W$79,$C51<=W$80,ISNUMBER(AF51)),1,IF(AND($C51>=W$86,$C51<=W$87,ISNUMBER(AG51)),3,IF(AND($C51>W$80,ISNUMBER(AF51),LOOKUP($W$78,Berechnen!$AA$10:$AA$17,Berechnen!$AI$10:$AI$17)=0),5,IF(AND($C51<W$80,W$86=0,ISNUMBER(AF51)),2,IF(AND($C51>$W$87,ISNUMBER(AG51)),4,0))))) ->  | AP51: =IF(AND($C51>=X$79,$C51<=X$80,ISNUMBER(AN51)),1,IF(AND($C51>=X$86,$C51<=X$87,ISNUMBER(AO51)),3,IF(AND($C51>X$80,ISNUMBER(AN51),LOOKUP($X$78,Berechnen!$AA$10:$AA$17,Berechnen!$AI$10:$AI$17)=0),5,IF(AND($C51<X$80,X$86=0,ISNUMBER(AN51)),2,IF(AND($C51>X$87,ISNUMBER(AO51)),4,0))))) ->  | AX51: =IF(AND($C51>=Y$79,$C51<=Y$80,ISNUMBER(AV51)),1,IF(AND($C51>=Y$86,$C51<=Y$87,ISNUMBER(AW51)),3,IF(AND($C51>Y$80,ISNUMBER(AV51),LOOKUP($Y$78,Berechnen!$AA$10:$AA$17,Berechnen!$AI$10:$AI$17)=0),5,IF(AND($C51<Y$80,Y$86=0,ISNUMBER(AV51)),2,IF(AND($C51>Y$87,ISNUMBER(AW51)),4,0))))) ->  | BF51: =IF(AND($C51>=Z$79,$C51<=Z$80,ISNUMBER(BD51)),1,IF(AND($C51>=Z$86,$C51<=Z$87,ISNUMBER(BE51)),3,IF(AND($C51>Z$80,ISNUMBER(BD51),LOOKUP($Z$78,Berechnen!$AA$10:$AA$17,Berechnen!$AI$10:$AI$17)=0),5,IF(AND($C51<Z$80,Z$86=0,ISNUMBER(BD51)),2,IF(AND($C51>Z$87,ISNUMBER(BE51)),4,0))))) -> 
B52: 1900-01-06 | C52: =C40+12 -> 2026-02-13 | Z52: =IF(AND($C52>=V$79,$C52<=V$80,ISNUMBER(X52)),1,IF(AND($C52>=V$86,$C52<=V$87,ISNUMBER(Y52)),3,IF(AND($C52>V$80,ISNUMBER(X52),LOOKUP($V$78,Berechnen!$AA$10:$AA$17,Berechnen!$AI$10:$AI$17)=0),5,IF(AND($C52<V$80,V$86=0,ISNUMBER(X52)),2,IF(AND($C52>$V$87,ISNUMBER(Y52)),4,0))))) ->  | AH52: =IF(AND($C52>=W$79,$C52<=W$80,ISNUMBER(AF52)),1,IF(AND($C52>=W$86,$C52<=W$87,ISNUMBER(AG52)),3,IF(AND($C52>W$80,ISNUMBER(AF52),LOOKUP($W$78,Berechnen!$AA$10:$AA$17,Berechnen!$AI$10:$AI$17)=0),5,IF(AND($C52<W$80,W$86=0,ISNUMBER(AF52)),2,IF(AND($C52>$W$87,ISNUMBER(AG52)),4,0))))) ->  | AP52: =IF(AND($C52>=X$79,$C52<=X$80,ISNUMBER(AN52)),1,IF(AND($C52>=X$86,$C52<=X$87,ISNUMBER(AO52)),3,IF(AND($C52>X$80,ISNUMBER(AN52),LOOKUP($X$78,Berechnen!$AA$10:$AA$17,Berechnen!$AI$10:$AI$17)=0),5,IF(AND($C52<X$80,X$86=0,ISNUMBER(AN52)),2,IF(AND($C52>X$87,ISNUMBER(AO52)),4,0))))) ->  | AX52: =IF(AND($C52>=Y$79,$C52<=Y$80,ISNUMBER(AV52)),1,IF(AND($C52>=Y$86,$C52<=Y$87,ISNUMBER(AW52)),3,IF(AND($C52>Y$80,ISNUMBER(AV52),LOOKUP($Y$78,Berechnen!$AA$10:$AA$17,Berechnen!$AI$10:$AI$17)=0),5,IF(AND($C52<Y$80,Y$86=0,ISNUMBER(AV52)),2,IF(AND($C52>Y$87,ISNUMBER(AW52)),4,0))))) ->  | BF52: =IF(AND($C52>=Z$79,$C52<=Z$80,ISNUMBER(BD52)),1,IF(AND($C52>=Z$86,$C52<=Z$87,ISNUMBER(BE52)),3,IF(AND($C52>Z$80,ISNUMBER(BD52),LOOKUP($Z$78,Berechnen!$AA$10:$AA$17,Berechnen!$AI$10:$AI$17)=0),5,IF(AND($C52<Z$80,Z$86=0,ISNUMBER(BD52)),2,IF(AND($C52>Z$87,ISNUMBER(BE52)),4,0))))) -> 
B53: 1900-01-07 | C53: =C40+13 -> 2026-02-14 | Z53: =IF(AND($C53>=V$79,$C53<=V$80,ISNUMBER(X53)),1,IF(AND($C53>=V$86,$C53<=V$87,ISNUMBER(Y53)),3,IF(AND($C53>V$80,ISNUMBER(X53),LOOKUP($V$78,Berechnen!$AA$10:$AA$17,Berechnen!$AI$10:$AI$17)=0),5,IF(AND($C53<V$80,V$86=0,ISNUMBER(X53)),2,IF(AND($C53>$V$87,ISNUMBER(Y53)),4,0))))) ->  | AH53: =IF(AND($C53>=W$79,$C53<=W$80,ISNUMBER(AF53)),1,IF(AND($C53>=W$86,$C53<=W$87,ISNUMBER(AG53)),3,IF(AND($C53>W$80,ISNUMBER(AF53),LOOKUP($W$78,Berechnen!$AA$10:$AA$17,Berechnen!$AI$10:$AI$17)=0),5,IF(AND($C53<W$80,W$86=0,ISNUMBER(AF53)),2,IF(AND($C53>$W$87,ISNUMBER(AG53)),4,0))))) ->  | AP53: =IF(AND($C53>=X$79,$C53<=X$80,ISNUMBER(AN53)),1,IF(AND($C53>=X$86,$C53<=X$87,ISNUMBER(AO53)),3,IF(AND($C53>X$80,ISNUMBER(AN53),LOOKUP($X$78,Berechnen!$AA$10:$AA$17,Berechnen!$AI$10:$AI$17)=0),5,IF(AND($C53<X$80,X$86=0,ISNUMBER(AN53)),2,IF(AND($C53>X$87,ISNUMBER(AO53)),4,0))))) ->  | AX53: =IF(AND($C53>=Y$79,$C53<=Y$80,ISNUMBER(AV53)),1,IF(AND($C53>=Y$86,$C53<=Y$87,ISNUMBER(AW53)),3,IF(AND($C53>Y$80,ISNUMBER(AV53),LOOKUP($Y$78,Berechnen!$AA$10:$AA$17,Berechnen!$AI$10:$AI$17)=0),5,IF(AND($C53<Y$80,Y$86=0,ISNUMBER(AV53)),2,IF(AND($C53>Y$87,ISNUMBER(AW53)),4,0))))) ->  | BF53: =IF(AND($C53>=Z$79,$C53<=Z$80,ISNUMBER(BD53)),1,IF(AND($C53>=Z$86,$C53<=Z$87,ISNUMBER(BE53)),3,IF(AND($C53>Z$80,ISNUMBER(BD53),LOOKUP($Z$78,Berechnen!$AA$10:$AA$17,Berechnen!$AI$10:$AI$17)=0),5,IF(AND($C53<Z$80,Z$86=0,ISNUMBER(BD53)),2,IF(AND($C53>Z$87,ISNUMBER(BE53)),4,0))))) -> 
B54: 1900-01-01 | C54: =C40+14 -> 2026-02-15 | Z54: =IF(AND($C54>=V$79,$C54<=V$80,ISNUMBER(X54)),1,IF(AND($C54>=V$86,$C54<=V$87,ISNUMBER(Y54)),3,IF(AND($C54>V$80,ISNUMBER(X54),LOOKUP($V$78,Berechnen!$AA$10:$AA$17,Berechnen!$AI$10:$AI$17)=0),5,IF(AND($C54<V$80,V$86=0,ISNUMBER(X54)),2,IF(AND($C54>$V$87,ISNUMBER(Y54)),4,0))))) ->  | AH54: =IF(AND($C54>=W$79,$C54<=W$80,ISNUMBER(AF54)),1,IF(AND($C54>=W$86,$C54<=W$87,ISNUMBER(AG54)),3,IF(AND($C54>W$80,ISNUMBER(AF54),LOOKUP($W$78,Berechnen!$AA$10:$AA$17,Berechnen!$AI$10:$AI$17)=0),5,IF(AND($C54<W$80,W$86=0,ISNUMBER(AF54)),2,IF(AND($C54>$W$87,ISNUMBER(AG54)),4,0))))) ->  | AP54: =IF(AND($C54>=X$79,$C54<=X$80,ISNUMBER(AN54)),1,IF(AND($C54>=X$86,$C54<=X$87,ISNUMBER(AO54)),3,IF(AND($C54>X$80,ISNUMBER(AN54),LOOKUP($X$78,Berechnen!$AA$10:$AA$17,Berechnen!$AI$10:$AI$17)=0),5,IF(AND($C54<X$80,X$86=0,ISNUMBER(AN54)),2,IF(AND($C54>X$87,ISNUMBER(AO54)),4,0))))) ->  | AX54: =IF(AND($C54>=Y$79,$C54<=Y$80,ISNUMBER(AV54)),1,IF(AND($C54>=Y$86,$C54<=Y$87,ISNUMBER(AW54)),3,IF(AND($C54>Y$80,ISNUMBER(AV54),LOOKUP($Y$78,Berechnen!$AA$10:$AA$17,Berechnen!$AI$10:$AI$17)=0),5,IF(AND($C54<Y$80,Y$86=0,ISNUMBER(AV54)),2,IF(AND($C54>Y$87,ISNUMBER(AW54)),4,0))))) ->  | BF54: =IF(AND($C54>=Z$79,$C54<=Z$80,ISNUMBER(BD54)),1,IF(AND($C54>=Z$86,$C54<=Z$87,ISNUMBER(BE54)),3,IF(AND($C54>Z$80,ISNUMBER(BD54),LOOKUP($Z$78,Berechnen!$AA$10:$AA$17,Berechnen!$AI$10:$AI$17)=0),5,IF(AND($C54<Z$80,Z$86=0,ISNUMBER(BD54)),2,IF(AND($C54>Z$87,ISNUMBER(BE54)),4,0))))) -> 
B55: 1900-01-02 | C55: =C40+15 -> 2026-02-16 | D55: 8 | Z55: =IF(AND($C55>=V$79,$C55<=V$80,ISNUMBER(X55)),1,IF(AND($C55>=V$86,$C55<=V$87,ISNUMBER(Y55)),3,IF(AND($C55>V$80,ISNUMBER(X55),LOOKUP($V$78,Berechnen!$AA$10:$AA$17,Berechnen!$AI$10:$AI$17)=0),5,IF(AND($C55<V$80,V$86=0,ISNUMBER(X55)),2,IF(AND($C55>$V$87,ISNUMBER(Y55)),4,0))))) ->  | AH55: =IF(AND($C55>=W$79,$C55<=W$80,ISNUMBER(AF55)),1,IF(AND($C55>=W$86,$C55<=W$87,ISNUMBER(AG55)),3,IF(AND($C55>W$80,ISNUMBER(AF55),LOOKUP($W$78,Berechnen!$AA$10:$AA$17,Berechnen!$AI$10:$AI$17)=0),5,IF(AND($C55<W$80,W$86=0,ISNUMBER(AF55)),2,IF(AND($C55>$W$87,ISNUMBER(AG55)),4,0))))) ->  | AP55: =IF(AND($C55>=X$79,$C55<=X$80,ISNUMBER(AN55)),1,IF(AND($C55>=X$86,$C55<=X$87,ISNUMBER(AO55)),3,IF(AND($C55>X$80,ISNUMBER(AN55),LOOKUP($X$78,Berechnen!$AA$10:$AA$17,Berechnen!$AI$10:$AI$17)=0),5,IF(AND($C55<X$80,X$86=0,ISNUMBER(AN55)),2,IF(AND($C55>X$87,ISNUMBER(AO55)),4,0))))) ->  | AX55: =IF(AND($C55>=Y$79,$C55<=Y$80,ISNUMBER(AV55)),1,IF(AND($C55>=Y$86,$C55<=Y$87,ISNUMBER(AW55)),3,IF(AND($C55>Y$80,ISNUMBER(AV55),LOOKUP($Y$78,Berechnen!$AA$10:$AA$17,Berechnen!$AI$10:$AI$17)=0),5,IF(AND($C55<Y$80,Y$86=0,ISNUMBER(AV55)),2,IF(AND($C55>Y$87,ISNUMBER(AW55)),4,0))))) ->  | BF55: =IF(AND($C55>=Z$79,$C55<=Z$80,ISNUMBER(BD55)),1,IF(AND($C55>=Z$86,$C55<=Z$87,ISNUMBER(BE55)),3,IF(AND($C55>Z$80,ISNUMBER(BD55),LOOKUP($Z$78,Berechnen!$AA$10:$AA$17,Berechnen!$AI$10:$AI$17)=0),5,IF(AND($C55<Z$80,Z$86=0,ISNUMBER(BD55)),2,IF(AND($C55>Z$87,ISNUMBER(BE55)),4,0))))) -> 
B56: 1900-01-03 | C56: =C40+16 -> 2026-02-17 | Z56: =IF(AND($C56>=V$79,$C56<=V$80,ISNUMBER(X56)),1,IF(AND($C56>=V$86,$C56<=V$87,ISNUMBER(Y56)),3,IF(AND($C56>V$80,ISNUMBER(X56),LOOKUP($V$78,Berechnen!$AA$10:$AA$17,Berechnen!$AI$10:$AI$17)=0),5,IF(AND($C56<V$80,V$86=0,ISNUMBER(X56)),2,IF(AND($C56>$V$87,ISNUMBER(Y56)),4,0))))) ->  | AH56: =IF(AND($C56>=W$79,$C56<=W$80,ISNUMBER(AF56)),1,IF(AND($C56>=W$86,$C56<=W$87,ISNUMBER(AG56)),3,IF(AND($C56>W$80,ISNUMBER(AF56),LOOKUP($W$78,Berechnen!$AA$10:$AA$17,Berechnen!$AI$10:$AI$17)=0),5,IF(AND($C56<W$80,W$86=0,ISNUMBER(AF56)),2,IF(AND($C56>$W$87,ISNUMBER(AG56)),4,0))))) ->  | AP56: =IF(AND($C56>=X$79,$C56<=X$80,ISNUMBER(AN56)),1,IF(AND($C56>=X$86,$C56<=X$87,ISNUMBER(AO56)),3,IF(AND($C56>X$80,ISNUMBER(AN56),LOOKUP($X$78,Berechnen!$AA$10:$AA$17,Berechnen!$AI$10:$AI$17)=0),5,IF(AND($C56<X$80,X$86=0,ISNUMBER(AN56)),2,IF(AND($C56>X$87,ISNUMBER(AO56)),4,0))))) ->  | AX56: =IF(AND($C56>=Y$79,$C56<=Y$80,ISNUMBER(AV56)),1,IF(AND($C56>=Y$86,$C56<=Y$87,ISNUMBER(AW56)),3,IF(AND($C56>Y$80,ISNUMBER(AV56),LOOKUP($Y$78,Berechnen!$AA$10:$AA$17,Berechnen!$AI$10:$AI$17)=0),5,IF(AND($C56<Y$80,Y$86=0,ISNUMBER(AV56)),2,IF(AND($C56>Y$87,ISNUMBER(AW56)),4,0))))) ->  | BF56: =IF(AND($C56>=Z$79,$C56<=Z$80,ISNUMBER(BD56)),1,IF(AND($C56>=Z$86,$C56<=Z$87,ISNUMBER(BE56)),3,IF(AND($C56>Z$80,ISNUMBER(BD56),LOOKUP($Z$78,Berechnen!$AA$10:$AA$17,Berechnen!$AI$10:$AI$17)=0),5,IF(AND($C56<Z$80,Z$86=0,ISNUMBER(BD56)),2,IF(AND($C56>Z$87,ISNUMBER(BE56)),4,0))))) -> 
B57: 1900-01-04 | C57: =C40+17 -> 2026-02-18 | Z57: =IF(AND($C57>=V$79,$C57<=V$80,ISNUMBER(X57)),1,IF(AND($C57>=V$86,$C57<=V$87,ISNUMBER(Y57)),3,IF(AND($C57>V$80,ISNUMBER(X57),LOOKUP($V$78,Berechnen!$AA$10:$AA$17,Berechnen!$AI$10:$AI$17)=0),5,IF(AND($C57<V$80,V$86=0,ISNUMBER(X57)),2,IF(AND($C57>$V$87,ISNUMBER(Y57)),4,0))))) ->  | AH57: =IF(AND($C57>=W$79,$C57<=W$80,ISNUMBER(AF57)),1,IF(AND($C57>=W$86,$C57<=W$87,ISNUMBER(AG57)),3,IF(AND($C57>W$80,ISNUMBER(AF57),LOOKUP($W$78,Berechnen!$AA$10:$AA$17,Berechnen!$AI$10:$AI$17)=0),5,IF(AND($C57<W$80,W$86=0,ISNUMBER(AF57)),2,IF(AND($C57>$W$87,ISNUMBER(AG57)),4,0))))) ->  | AP57: =IF(AND($C57>=X$79,$C57<=X$80,ISNUMBER(AN57)),1,IF(AND($C57>=X$86,$C57<=X$87,ISNUMBER(AO57)),3,IF(AND($C57>X$80,ISNUMBER(AN57),LOOKUP($X$78,Berechnen!$AA$10:$AA$17,Berechnen!$AI$10:$AI$17)=0),5,IF(AND($C57<X$80,X$86=0,ISNUMBER(AN57)),2,IF(AND($C57>X$87,ISNUMBER(AO57)),4,0))))) ->  | AX57: =IF(AND($C57>=Y$79,$C57<=Y$80,ISNUMBER(AV57)),1,IF(AND($C57>=Y$86,$C57<=Y$87,ISNUMBER(AW57)),3,IF(AND($C57>Y$80,ISNUMBER(AV57),LOOKUP($Y$78,Berechnen!$AA$10:$AA$17,Berechnen!$AI$10:$AI$17)=0),5,IF(AND($C57<Y$80,Y$86=0,ISNUMBER(AV57)),2,IF(AND($C57>Y$87,ISNUMBER(AW57)),4,0))))) ->  | BF57: =IF(AND($C57>=Z$79,$C57<=Z$80,ISNUMBER(BD57)),1,IF(AND($C57>=Z$86,$C57<=Z$87,ISNUMBER(BE57)),3,IF(AND($C57>Z$80,ISNUMBER(BD57),LOOKUP($Z$78,Berechnen!$AA$10:$AA$17,Berechnen!$AI$10:$AI$17)=0),5,IF(AND($C57<Z$80,Z$86=0,ISNUMBER(BD57)),2,IF(AND($C57>Z$87,ISNUMBER(BE57)),4,0))))) -> 
B58: 1900-01-05 | C58: =C40+18 -> 2026-02-19 | Z58: =IF(AND($C58>=V$79,$C58<=V$80,ISNUMBER(X58)),1,IF(AND($C58>=V$86,$C58<=V$87,ISNUMBER(Y58)),3,IF(AND($C58>V$80,ISNUMBER(X58),LOOKUP($V$78,Berechnen!$AA$10:$AA$17,Berechnen!$AI$10:$AI$17)=0),5,IF(AND($C58<V$80,V$86=0,ISNUMBER(X58)),2,IF(AND($C58>$V$87,ISNUMBER(Y58)),4,0))))) ->  | AH58: =IF(AND($C58>=W$79,$C58<=W$80,ISNUMBER(AF58)),1,IF(AND($C58>=W$86,$C58<=W$87,ISNUMBER(AG58)),3,IF(AND($C58>W$80,ISNUMBER(AF58),LOOKUP($W$78,Berechnen!$AA$10:$AA$17,Berechnen!$AI$10:$AI$17)=0),5,IF(AND($C58<W$80,W$86=0,ISNUMBER(AF58)),2,IF(AND($C58>$W$87,ISNUMBER(AG58)),4,0))))) ->  | AP58: =IF(AND($C58>=X$79,$C58<=X$80,ISNUMBER(AN58)),1,IF(AND($C58>=X$86,$C58<=X$87,ISNUMBER(AO58)),3,IF(AND($C58>X$80,ISNUMBER(AN58),LOOKUP($X$78,Berechnen!$AA$10:$AA$17,Berechnen!$AI$10:$AI$17)=0),5,IF(AND($C58<X$80,X$86=0,ISNUMBER(AN58)),2,IF(AND($C58>X$87,ISNUMBER(AO58)),4,0))))) ->  | AX58: =IF(AND($C58>=Y$79,$C58<=Y$80,ISNUMBER(AV58)),1,IF(AND($C58>=Y$86,$C58<=Y$87,ISNUMBER(AW58)),3,IF(AND($C58>Y$80,ISNUMBER(AV58),LOOKUP($Y$78,Berechnen!$AA$10:$AA$17,Berechnen!$AI$10:$AI$17)=0),5,IF(AND($C58<Y$80,Y$86=0,ISNUMBER(AV58)),2,IF(AND($C58>Y$87,ISNUMBER(AW58)),4,0))))) ->  | BF58: =IF(AND($C58>=Z$79,$C58<=Z$80,ISNUMBER(BD58)),1,IF(AND($C58>=Z$86,$C58<=Z$87,ISNUMBER(BE58)),3,IF(AND($C58>Z$80,ISNUMBER(BD58),LOOKUP($Z$78,Berechnen!$AA$10:$AA$17,Berechnen!$AI$10:$AI$17)=0),5,IF(AND($C58<Z$80,Z$86=0,ISNUMBER(BD58)),2,IF(AND($C58>Z$87,ISNUMBER(BE58)),4,0))))) -> 
B59: 1900-01-06 | C59: =C40+19 -> 2026-02-20 | Z59: =IF(AND($C59>=V$79,$C59<=V$80,ISNUMBER(X59)),1,IF(AND($C59>=V$86,$C59<=V$87,ISNUMBER(Y59)),3,IF(AND($C59>V$80,ISNUMBER(X59),LOOKUP($V$78,Berechnen!$AA$10:$AA$17,Berechnen!$AI$10:$AI$17)=0),5,IF(AND($C59<V$80,V$86=0,ISNUMBER(X59)),2,IF(AND($C59>$V$87,ISNUMBER(Y59)),4,0))))) ->  | AH59: =IF(AND($C59>=W$79,$C59<=W$80,ISNUMBER(AF59)),1,IF(AND($C59>=W$86,$C59<=W$87,ISNUMBER(AG59)),3,IF(AND($C59>W$80,ISNUMBER(AF59),LOOKUP($W$78,Berechnen!$AA$10:$AA$17,Berechnen!$AI$10:$AI$17)=0),5,IF(AND($C59<W$80,W$86=0,ISNUMBER(AF59)),2,IF(AND($C59>$W$87,ISNUMBER(AG59)),4,0))))) ->  | AP59: =IF(AND($C59>=X$79,$C59<=X$80,ISNUMBER(AN59)),1,IF(AND($C59>=X$86,$C59<=X$87,ISNUMBER(AO59)),3,IF(AND($C59>X$80,ISNUMBER(AN59),LOOKUP($X$78,Berechnen!$AA$10:$AA$17,Berechnen!$AI$10:$AI$17)=0),5,IF(AND($C59<X$80,X$86=0,ISNUMBER(AN59)),2,IF(AND($C59>X$87,ISNUMBER(AO59)),4,0))))) ->  | AX59: =IF(AND($C59>=Y$79,$C59<=Y$80,ISNUMBER(AV59)),1,IF(AND($C59>=Y$86,$C59<=Y$87,ISNUMBER(AW59)),3,IF(AND($C59>Y$80,ISNUMBER(AV59),LOOKUP($Y$78,Berechnen!$AA$10:$AA$17,Berechnen!$AI$10:$AI$17)=0),5,IF(AND($C59<Y$80,Y$86=0,ISNUMBER(AV59)),2,IF(AND($C59>Y$87,ISNUMBER(AW59)),4,0))))) ->  | BF59: =IF(AND($C59>=Z$79,$C59<=Z$80,ISNUMBER(BD59)),1,IF(AND($C59>=Z$86,$C59<=Z$87,ISNUMBER(BE59)),3,IF(AND($C59>Z$80,ISNUMBER(BD59),LOOKUP($Z$78,Berechnen!$AA$10:$AA$17,Berechnen!$AI$10:$AI$17)=0),5,IF(AND($C59<Z$80,Z$86=0,ISNUMBER(BD59)),2,IF(AND($C59>Z$87,ISNUMBER(BE59)),4,0))))) -> 
B60: 1900-01-07 | C60: =C40+20 -> 2026-02-21 | Z60: =IF(AND($C60>=V$79,$C60<=V$80,ISNUMBER(X60)),1,IF(AND($C60>=V$86,$C60<=V$87,ISNUMBER(Y60)),3,IF(AND($C60>V$80,ISNUMBER(X60),LOOKUP($V$78,Berechnen!$AA$10:$AA$17,Berechnen!$AI$10:$AI$17)=0),5,IF(AND($C60<V$80,V$86=0,ISNUMBER(X60)),2,IF(AND($C60>$V$87,ISNUMBER(Y60)),4,0))))) ->  | AH60: =IF(AND($C60>=W$79,$C60<=W$80,ISNUMBER(AF60)),1,IF(AND($C60>=W$86,$C60<=W$87,ISNUMBER(AG60)),3,IF(AND($C60>W$80,ISNUMBER(AF60),LOOKUP($W$78,Berechnen!$AA$10:$AA$17,Berechnen!$AI$10:$AI$17)=0),5,IF(AND($C60<W$80,W$86=0,ISNUMBER(AF60)),2,IF(AND($C60>$W$87,ISNUMBER(AG60)),4,0))))) ->  | AP60: =IF(AND($C60>=X$79,$C60<=X$80,ISNUMBER(AN60)),1,IF(AND($C60>=X$86,$C60<=X$87,ISNUMBER(AO60)),3,IF(AND($C60>X$80,ISNUMBER(AN60),LOOKUP($X$78,Berechnen!$AA$10:$AA$17,Berechnen!$AI$10:$AI$17)=0),5,IF(AND($C60<X$80,X$86=0,ISNUMBER(AN60)),2,IF(AND($C60>X$87,ISNUMBER(AO60)),4,0))))) ->  | AX60: =IF(AND($C60>=Y$79,$C60<=Y$80,ISNUMBER(AV60)),1,IF(AND($C60>=Y$86,$C60<=Y$87,ISNUMBER(AW60)),3,IF(AND($C60>Y$80,ISNUMBER(AV60),LOOKUP($Y$78,Berechnen!$AA$10:$AA$17,Berechnen!$AI$10:$AI$17)=0),5,IF(AND($C60<Y$80,Y$86=0,ISNUMBER(AV60)),2,IF(AND($C60>Y$87,ISNUMBER(AW60)),4,0))))) ->  | BF60: =IF(AND($C60>=Z$79,$C60<=Z$80,ISNUMBER(BD60)),1,IF(AND($C60>=Z$86,$C60<=Z$87,ISNUMBER(BE60)),3,IF(AND($C60>Z$80,ISNUMBER(BD60),LOOKUP($Z$78,Berechnen!$AA$10:$AA$17,Berechnen!$AI$10:$AI$17)=0),5,IF(AND($C60<Z$80,Z$86=0,ISNUMBER(BD60)),2,IF(AND($C60>Z$87,ISNUMBER(BE60)),4,0))))) -> 
B61: 1900-01-01 | C61: =C40+21 -> 2026-02-22 | Z61: =IF(AND($C61>=V$79,$C61<=V$80,ISNUMBER(X61)),1,IF(AND($C61>=V$86,$C61<=V$87,ISNUMBER(Y61)),3,IF(AND($C61>V$80,ISNUMBER(X61),LOOKUP($V$78,Berechnen!$AA$10:$AA$17,Berechnen!$AI$10:$AI$17)=0),5,IF(AND($C61<V$80,V$86=0,ISNUMBER(X61)),2,IF(AND($C61>$V$87,ISNUMBER(Y61)),4,0))))) ->  | AH61: =IF(AND($C61>=W$79,$C61<=W$80,ISNUMBER(AF61)),1,IF(AND($C61>=W$86,$C61<=W$87,ISNUMBER(AG61)),3,IF(AND($C61>W$80,ISNUMBER(AF61),LOOKUP($W$78,Berechnen!$AA$10:$AA$17,Berechnen!$AI$10:$AI$17)=0),5,IF(AND($C61<W$80,W$86=0,ISNUMBER(AF61)),2,IF(AND($C61>$W$87,ISNUMBER(AG61)),4,0))))) ->  | AP61: =IF(AND($C61>=X$79,$C61<=X$80,ISNUMBER(AN61)),1,IF(AND($C61>=X$86,$C61<=X$87,ISNUMBER(AO61)),3,IF(AND($C61>X$80,ISNUMBER(AN61),LOOKUP($X$78,Berechnen!$AA$10:$AA$17,Berechnen!$AI$10:$AI$17)=0),5,IF(AND($C61<X$80,X$86=0,ISNUMBER(AN61)),2,IF(AND($C61>X$87,ISNUMBER(AO61)),4,0))))) ->  | AX61: =IF(AND($C61>=Y$79,$C61<=Y$80,ISNUMBER(AV61)),1,IF(AND($C61>=Y$86,$C61<=Y$87,ISNUMBER(AW61)),3,IF(AND($C61>Y$80,ISNUMBER(AV61),LOOKUP($Y$78,Berechnen!$AA$10:$AA$17,Berechnen!$AI$10:$AI$17)=0),5,IF(AND($C61<Y$80,Y$86=0,ISNUMBER(AV61)),2,IF(AND($C61>Y$87,ISNUMBER(AW61)),4,0))))) ->  | BF61: =IF(AND($C61>=Z$79,$C61<=Z$80,ISNUMBER(BD61)),1,IF(AND($C61>=Z$86,$C61<=Z$87,ISNUMBER(BE61)),3,IF(AND($C61>Z$80,ISNUMBER(BD61),LOOKUP($Z$78,Berechnen!$AA$10:$AA$17,Berechnen!$AI$10:$AI$17)=0),5,IF(AND($C61<Z$80,Z$86=0,ISNUMBER(BD61)),2,IF(AND($C61>Z$87,ISNUMBER(BE61)),4,0))))) -> 
B62: 1900-01-02 | C62: =C40+22 -> 2026-02-23 | D62: 9 | Z62: =IF(AND($C62>=V$79,$C62<=V$80,ISNUMBER(X62)),1,IF(AND($C62>=V$86,$C62<=V$87,ISNUMBER(Y62)),3,IF(AND($C62>V$80,ISNUMBER(X62),LOOKUP($V$78,Berechnen!$AA$10:$AA$17,Berechnen!$AI$10:$AI$17)=0),5,IF(AND($C62<V$80,V$86=0,ISNUMBER(X62)),2,IF(AND($C62>$V$87,ISNUMBER(Y62)),4,0))))) ->  | AH62: =IF(AND($C62>=W$79,$C62<=W$80,ISNUMBER(AF62)),1,IF(AND($C62>=W$86,$C62<=W$87,ISNUMBER(AG62)),3,IF(AND($C62>W$80,ISNUMBER(AF62),LOOKUP($W$78,Berechnen!$AA$10:$AA$17,Berechnen!$AI$10:$AI$17)=0),5,IF(AND($C62<W$80,W$86=0,ISNUMBER(AF62)),2,IF(AND($C62>$W$87,ISNUMBER(AG62)),4,0))))) ->  | AP62: =IF(AND($C62>=X$79,$C62<=X$80,ISNUMBER(AN62)),1,IF(AND($C62>=X$86,$C62<=X$87,ISNUMBER(AO62)),3,IF(AND($C62>X$80,ISNUMBER(AN62),LOOKUP($X$78,Berechnen!$AA$10:$AA$17,Berechnen!$AI$10:$AI$17)=0),5,IF(AND($C62<X$80,X$86=0,ISNUMBER(AN62)),2,IF(AND($C62>X$87,ISNUMBER(AO62)),4,0))))) ->  | AX62: =IF(AND($C62>=Y$79,$C62<=Y$80,ISNUMBER(AV62)),1,IF(AND($C62>=Y$86,$C62<=Y$87,ISNUMBER(AW62)),3,IF(AND($C62>Y$80,ISNUMBER(AV62),LOOKUP($Y$78,Berechnen!$AA$10:$AA$17,Berechnen!$AI$10:$AI$17)=0),5,IF(AND($C62<Y$80,Y$86=0,ISNUMBER(AV62)),2,IF(AND($C62>Y$87,ISNUMBER(AW62)),4,0))))) ->  | BF62: =IF(AND($C62>=Z$79,$C62<=Z$80,ISNUMBER(BD62)),1,IF(AND($C62>=Z$86,$C62<=Z$87,ISNUMBER(BE62)),3,IF(AND($C62>Z$80,ISNUMBER(BD62),LOOKUP($Z$78,Berechnen!$AA$10:$AA$17,Berechnen!$AI$10:$AI$17)=0),5,IF(AND($C62<Z$80,Z$86=0,ISNUMBER(BD62)),2,IF(AND($C62>Z$87,ISNUMBER(BE62)),4,0))))) -> 
B63: 1900-01-03 | C63: =C40+23 -> 2026-02-24 | Z63: =IF(AND($C63>=V$79,$C63<=V$80,ISNUMBER(X63)),1,IF(AND($C63>=V$86,$C63<=V$87,ISNUMBER(Y63)),3,IF(AND($C63>V$80,ISNUMBER(X63),LOOKUP($V$78,Berechnen!$AA$10:$AA$17,Berechnen!$AI$10:$AI$17)=0),5,IF(AND($C63<V$80,V$86=0,ISNUMBER(X63)),2,IF(AND($C63>$V$87,ISNUMBER(Y63)),4,0))))) ->  | AH63: =IF(AND($C63>=W$79,$C63<=W$80,ISNUMBER(AF63)),1,IF(AND($C63>=W$86,$C63<=W$87,ISNUMBER(AG63)),3,IF(AND($C63>W$80,ISNUMBER(AF63),LOOKUP($W$78,Berechnen!$AA$10:$AA$17,Berechnen!$AI$10:$AI$17)=0),5,IF(AND($C63<W$80,W$86=0,ISNUMBER(AF63)),2,IF(AND($C63>$W$87,ISNUMBER(AG63)),4,0))))) ->  | AP63: =IF(AND($C63>=X$79,$C63<=X$80,ISNUMBER(AN63)),1,IF(AND($C63>=X$86,$C63<=X$87,ISNUMBER(AO63)),3,IF(AND($C63>X$80,ISNUMBER(AN63),LOOKUP($X$78,Berechnen!$AA$10:$AA$17,Berechnen!$AI$10:$AI$17)=0),5,IF(AND($C63<X$80,X$86=0,ISNUMBER(AN63)),2,IF(AND($C63>X$87,ISNUMBER(AO63)),4,0))))) ->  | AX63: =IF(AND($C63>=Y$79,$C63<=Y$80,ISNUMBER(AV63)),1,IF(AND($C63>=Y$86,$C63<=Y$87,ISNUMBER(AW63)),3,IF(AND($C63>Y$80,ISNUMBER(AV63),LOOKUP($Y$78,Berechnen!$AA$10:$AA$17,Berechnen!$AI$10:$AI$17)=0),5,IF(AND($C63<Y$80,Y$86=0,ISNUMBER(AV63)),2,IF(AND($C63>Y$87,ISNUMBER(AW63)),4,0))))) ->  | BF63: =IF(AND($C63>=Z$79,$C63<=Z$80,ISNUMBER(BD63)),1,IF(AND($C63>=Z$86,$C63<=Z$87,ISNUMBER(BE63)),3,IF(AND($C63>Z$80,ISNUMBER(BD63),LOOKUP($Z$78,Berechnen!$AA$10:$AA$17,Berechnen!$AI$10:$AI$17)=0),5,IF(AND($C63<Z$80,Z$86=0,ISNUMBER(BD63)),2,IF(AND($C63>Z$87,ISNUMBER(BE63)),4,0))))) -> 
B64: 1900-01-04 | C64: =C40+24 -> 2026-02-25 | Z64: =IF(AND($C64>=V$79,$C64<=V$80,ISNUMBER(X64)),1,IF(AND($C64>=V$86,$C64<=V$87,ISNUMBER(Y64)),3,IF(AND($C64>V$80,ISNUMBER(X64),LOOKUP($V$78,Berechnen!$AA$10:$AA$17,Berechnen!$AI$10:$AI$17)=0),5,IF(AND($C64<V$80,V$86=0,ISNUMBER(X64)),2,IF(AND($C64>$V$87,ISNUMBER(Y64)),4,0))))) ->  | AH64: =IF(AND($C64>=W$79,$C64<=W$80,ISNUMBER(AF64)),1,IF(AND($C64>=W$86,$C64<=W$87,ISNUMBER(AG64)),3,IF(AND($C64>W$80,ISNUMBER(AF64),LOOKUP($W$78,Berechnen!$AA$10:$AA$17,Berechnen!$AI$10:$AI$17)=0),5,IF(AND($C64<W$80,W$86=0,ISNUMBER(AF64)),2,IF(AND($C64>$W$87,ISNUMBER(AG64)),4,0))))) ->  | AP64: =IF(AND($C64>=X$79,$C64<=X$80,ISNUMBER(AN64)),1,IF(AND($C64>=X$86,$C64<=X$87,ISNUMBER(AO64)),3,IF(AND($C64>X$80,ISNUMBER(AN64),LOOKUP($X$78,Berechnen!$AA$10:$AA$17,Berechnen!$AI$10:$AI$17)=0),5,IF(AND($C64<X$80,X$86=0,ISNUMBER(AN64)),2,IF(AND($C64>X$87,ISNUMBER(AO64)),4,0))))) ->  | AX64: =IF(AND($C64>=Y$79,$C64<=Y$80,ISNUMBER(AV64)),1,IF(AND($C64>=Y$86,$C64<=Y$87,ISNUMBER(AW64)),3,IF(AND($C64>Y$80,ISNUMBER(AV64),LOOKUP($Y$78,Berechnen!$AA$10:$AA$17,Berechnen!$AI$10:$AI$17)=0),5,IF(AND($C64<Y$80,Y$86=0,ISNUMBER(AV64)),2,IF(AND($C64>Y$87,ISNUMBER(AW64)),4,0))))) ->  | BF64: =IF(AND($C64>=Z$79,$C64<=Z$80,ISNUMBER(BD64)),1,IF(AND($C64>=Z$86,$C64<=Z$87,ISNUMBER(BE64)),3,IF(AND($C64>Z$80,ISNUMBER(BD64),LOOKUP($Z$78,Berechnen!$AA$10:$AA$17,Berechnen!$AI$10:$AI$17)=0),5,IF(AND($C64<Z$80,Z$86=0,ISNUMBER(BD64)),2,IF(AND($C64>Z$87,ISNUMBER(BE64)),4,0))))) -> 
B65: 1900-01-05 | C65: =C40+25 -> 2026-02-26 | Z65: =IF(AND($C65>=V$79,$C65<=V$80,ISNUMBER(X65)),1,IF(AND($C65>=V$86,$C65<=V$87,ISNUMBER(Y65)),3,IF(AND($C65>V$80,ISNUMBER(X65),LOOKUP($V$78,Berechnen!$AA$10:$AA$17,Berechnen!$AI$10:$AI$17)=0),5,IF(AND($C65<V$80,V$86=0,ISNUMBER(X65)),2,IF(AND($C65>$V$87,ISNUMBER(Y65)),4,0))))) ->  | AH65: =IF(AND($C65>=W$79,$C65<=W$80,ISNUMBER(AF65)),1,IF(AND($C65>=W$86,$C65<=W$87,ISNUMBER(AG65)),3,IF(AND($C65>W$80,ISNUMBER(AF65),LOOKUP($W$78,Berechnen!$AA$10:$AA$17,Berechnen!$AI$10:$AI$17)=0),5,IF(AND($C65<W$80,W$86=0,ISNUMBER(AF65)),2,IF(AND($C65>$W$87,ISNUMBER(AG65)),4,0))))) ->  | AP65: =IF(AND($C65>=X$79,$C65<=X$80,ISNUMBER(AN65)),1,IF(AND($C65>=X$86,$C65<=X$87,ISNUMBER(AO65)),3,IF(AND($C65>X$80,ISNUMBER(AN65),LOOKUP($X$78,Berechnen!$AA$10:$AA$17,Berechnen!$AI$10:$AI$17)=0),5,IF(AND($C65<X$80,X$86=0,ISNUMBER(AN65)),2,IF(AND($C65>X$87,ISNUMBER(AO65)),4,0))))) ->  | AX65: =IF(AND($C65>=Y$79,$C65<=Y$80,ISNUMBER(AV65)),1,IF(AND($C65>=Y$86,$C65<=Y$87,ISNUMBER(AW65)),3,IF(AND($C65>Y$80,ISNUMBER(AV65),LOOKUP($Y$78,Berechnen!$AA$10:$AA$17,Berechnen!$AI$10:$AI$17)=0),5,IF(AND($C65<Y$80,Y$86=0,ISNUMBER(AV65)),2,IF(AND($C65>Y$87,ISNUMBER(AW65)),4,0))))) ->  | BF65: =IF(AND($C65>=Z$79,$C65<=Z$80,ISNUMBER(BD65)),1,IF(AND($C65>=Z$86,$C65<=Z$87,ISNUMBER(BE65)),3,IF(AND($C65>Z$80,ISNUMBER(BD65),LOOKUP($Z$78,Berechnen!$AA$10:$AA$17,Berechnen!$AI$10:$AI$17)=0),5,IF(AND($C65<Z$80,Z$86=0,ISNUMBER(BD65)),2,IF(AND($C65>Z$87,ISNUMBER(BE65)),4,0))))) -> 
B66: 1900-01-06 | C66: =C40+26 -> 2026-02-27 | Z66: =IF(AND($C66>=V$79,$C66<=V$80,ISNUMBER(X66)),1,IF(AND($C66>=V$86,$C66<=V$87,ISNUMBER(Y66)),3,IF(AND($C66>V$80,ISNUMBER(X66),LOOKUP($V$78,Berechnen!$AA$10:$AA$17,Berechnen!$AI$10:$AI$17)=0),5,IF(AND($C66<V$80,V$86=0,ISNUMBER(X66)),2,IF(AND($C66>$V$87,ISNUMBER(Y66)),4,0))))) ->  | AH66: =IF(AND($C66>=W$79,$C66<=W$80,ISNUMBER(AF66)),1,IF(AND($C66>=W$86,$C66<=W$87,ISNUMBER(AG66)),3,IF(AND($C66>W$80,ISNUMBER(AF66),LOOKUP($W$78,Berechnen!$AA$10:$AA$17,Berechnen!$AI$10:$AI$17)=0),5,IF(AND($C66<W$80,W$86=0,ISNUMBER(AF66)),2,IF(AND($C66>$W$87,ISNUMBER(AG66)),4,0))))) ->  | AP66: =IF(AND($C66>=X$79,$C66<=X$80,ISNUMBER(AN66)),1,IF(AND($C66>=X$86,$C66<=X$87,ISNUMBER(AO66)),3,IF(AND($C66>X$80,ISNUMBER(AN66),LOOKUP($X$78,Berechnen!$AA$10:$AA$17,Berechnen!$AI$10:$AI$17)=0),5,IF(AND($C66<X$80,X$86=0,ISNUMBER(AN66)),2,IF(AND($C66>X$87,ISNUMBER(AO66)),4,0))))) ->  | AX66: =IF(AND($C66>=Y$79,$C66<=Y$80,ISNUMBER(AV66)),1,IF(AND($C66>=Y$86,$C66<=Y$87,ISNUMBER(AW66)),3,IF(AND($C66>Y$80,ISNUMBER(AV66),LOOKUP($Y$78,Berechnen!$AA$10:$AA$17,Berechnen!$AI$10:$AI$17)=0),5,IF(AND($C66<Y$80,Y$86=0,ISNUMBER(AV66)),2,IF(AND($C66>Y$87,ISNUMBER(AW66)),4,0))))) ->  | BF66: =IF(AND($C66>=Z$79,$C66<=Z$80,ISNUMBER(BD66)),1,IF(AND($C66>=Z$86,$C66<=Z$87,ISNUMBER(BE66)),3,IF(AND($C66>Z$80,ISNUMBER(BD66),LOOKUP($Z$78,Berechnen!$AA$10:$AA$17,Berechnen!$AI$10:$AI$17)=0),5,IF(AND($C66<Z$80,Z$86=0,ISNUMBER(BD66)),2,IF(AND($C66>Z$87,ISNUMBER(BE66)),4,0))))) -> 
B67: 1900-01-07 | C67: =C40+27 -> 2026-02-28 | Z67: =IF(AND($C67>=V$79,$C67<=V$80,ISNUMBER(X67)),1,IF(AND($C67>=V$86,$C67<=V$87,ISNUMBER(Y67)),3,IF(AND($C67>V$80,ISNUMBER(X67),LOOKUP($V$78,Berechnen!$AA$10:$AA$17,Berechnen!$AI$10:$AI$17)=0),5,IF(AND($C67<V$80,V$86=0,ISNUMBER(X67)),2,IF(AND($C67>$V$87,ISNUMBER(Y67)),4,0))))) ->  | AH67: =IF(AND($C67>=W$79,$C67<=W$80,ISNUMBER(AF67)),1,IF(AND($C67>=W$86,$C67<=W$87,ISNUMBER(AG67)),3,IF(AND($C67>W$80,ISNUMBER(AF67),LOOKUP($W$78,Berechnen!$AA$10:$AA$17,Berechnen!$AI$10:$AI$17)=0),5,IF(AND($C67<W$80,W$86=0,ISNUMBER(AF67)),2,IF(AND($C67>$W$87,ISNUMBER(AG67)),4,0))))) ->  | AP67: =IF(AND($C67>=X$79,$C67<=X$80,ISNUMBER(AN67)),1,IF(AND($C67>=X$86,$C67<=X$87,ISNUMBER(AO67)),3,IF(AND($C67>X$80,ISNUMBER(AN67),LOOKUP($X$78,Berechnen!$AA$10:$AA$17,Berechnen!$AI$10:$AI$17)=0),5,IF(AND($C67<X$80,X$86=0,ISNUMBER(AN67)),2,IF(AND($C67>X$87,ISNUMBER(AO67)),4,0))))) ->  | AX67: =IF(AND($C67>=Y$79,$C67<=Y$80,ISNUMBER(AV67)),1,IF(AND($C67>=Y$86,$C67<=Y$87,ISNUMBER(AW67)),3,IF(AND($C67>Y$80,ISNUMBER(AV67),LOOKUP($Y$78,Berechnen!$AA$10:$AA$17,Berechnen!$AI$10:$AI$17)=0),5,IF(AND($C67<Y$80,Y$86=0,ISNUMBER(AV67)),2,IF(AND($C67>Y$87,ISNUMBER(AW67)),4,0))))) ->  | BF67: =IF(AND($C67>=Z$79,$C67<=Z$80,ISNUMBER(BD67)),1,IF(AND($C67>=Z$86,$C67<=Z$87,ISNUMBER(BE67)),3,IF(AND($C67>Z$80,ISNUMBER(BD67),LOOKUP($Z$78,Berechnen!$AA$10:$AA$17,Berechnen!$AI$10:$AI$17)=0),5,IF(AND($C67<Z$80,Z$86=0,ISNUMBER(BD67)),2,IF(AND($C67>Z$87,ISNUMBER(BE67)),4,0))))) -> 
B68: =IF(C68="","",WEEKDAY(C68)) ->  | C68: =IF(DAY($C$9)=1,IF(MONTH(C67+1)=MONTH(C67),C67+1,""),C67+1) ->  | E68: =IF($C$68="","",IF($U$5=1,"",IF($U68="F","Ferien",IF(ISNUMBER($AA68),VLOOKUP($AA68,Touren,2,FALSE),"?")))) ->  | H68: =IF($C$68="","",IF($V$5=1,"",IF($AC68="F","Ferien",IF(ISNUMBER($AI68),VLOOKUP($AI68,Touren,2,FALSE),"?")))) ->  | K68: =IF($C$68="","",IF($W$5=1,"",IF($AK68="F","Ferien",IF(ISNUMBER($AQ68),VLOOKUP($AQ68,Touren,2,FALSE),"?")))) ->  | N68: =IF($C$68="","",IF($X$5=1,"",IF($AS68="F","Ferien",IF(ISNUMBER($AY68),VLOOKUP($AY68,Touren,2,FALSE),"?")))) ->  | Q68: =IF($C$68="","",IF($Y$5=1,"",IF($BA68="F","Ferien",IF(ISNUMBER($BG68),VLOOKUP($BG68,Touren,2,FALSE),"?")))) ->  | V68: =IF($C68="","",IF(V67-$V$84=$V$83,1+$V$84,V67+1)) ->  | W68: =IF($C68="","",IF(W67-$V$91=$V$90,1+$V$91,W67+1)) ->  | Z68: =IF(AND($C68>=V$79,$C68<=V$80,ISNUMBER(X68)),1,IF(AND($C68>=V$86,$C68<=V$87,ISNUMBER(Y68)),3,IF(AND($C68>V$80,ISNUMBER(X68),LOOKUP($V$78,Berechnen!$AA$10:$AA$17,Berechnen!$AI$10:$AI$17)=0),5,IF(AND($C68<V$80,V$86=0,ISNUMBER(X68)),2,IF(AND($C68>$V$87,ISNUMBER(Y68)),4,0))))) ->  | AD68: =IF($C68="","",IF(AD67-$W$84=$W$83,1+$W$84,AD67+1)) ->  | AE68: =IF($C68="","",IF(AE67-$W$91=$W$90,1+$W$91,AE67+1)) ->  | AH68: =IF(AND($C68>=W$79,$C68<=W$80,ISNUMBER(AF68)),1,IF(AND($C68>=W$86,$C68<=W$87,ISNUMBER(AG68)),3,IF(AND($C68>W$80,ISNUMBER(AF68),LOOKUP($W$78,Berechnen!$AA$10:$AA$17,Berechnen!$AI$10:$AI$17)=0),5,IF(AND($C68<W$80,W$86=0,ISNUMBER(AF68)),2,IF(AND($C68>$W$87,ISNUMBER(AG68)),4,0))))) ->  | AL68: =IF($C68="","",IF(AL67-$X$84=$X$83,1+$X$84,AL67+1)) ->  | AM68: =IF($C68="","",IF(AM67-$X$91=$X$90,1+$X$91,AM67+1)) ->  | AP68: =IF(AND($C68>=X$79,$C68<=X$80,ISNUMBER(AN68)),1,IF(AND($C68>=X$86,$C68<=X$87,ISNUMBER(AO68)),3,IF(AND($C68>X$80,ISNUMBER(AN68),LOOKUP($X$78,Berechnen!$AA$10:$AA$17,Berechnen!$AI$10:$AI$17)=0),5,IF(AND($C68<X$80,X$86=0,ISNUMBER(AN68)),2,IF(AND($C68>X$87,ISNUMBER(AO68)),4,0))))) ->  | AT68: =IF($C68="","",IF(AT67-$Y$84=$Y$83,1+$Y$84,AT67+1)) ->  | AU68: =IF($C68="","",IF(AU67-$Y$91=$Y$90,1+$Y$91,AU67+1)) ->  | AX68: =IF(AND($C68>=Y$79,$C68<=Y$80,ISNUMBER(AV68)),1,IF(AND($C68>=Y$86,$C68<=Y$87,ISNUMBER(AW68)),3,IF(AND($C68>Y$80,ISNUMBER(AV68),LOOKUP($Y$78,Berechnen!$AA$10:$AA$17,Berechnen!$AI$10:$AI$17)=0),5,IF(AND($C68<Y$80,Y$86=0,ISNUMBER(AV68)),2,IF(AND($C68>Y$87,ISNUMBER(AW68)),4,0))))) ->  | BB68: =IF($C68="","",IF(BB67-$Z$84=$Z$83,1+$Z$84,BB67+1)) ->  | BC68: =IF($C68="","",IF(BC67-$Z$91=$Z$90,1+$Z$91,BC67+1)) ->  | BF68: =IF(AND($C68>=Z$79,$C68<=Z$80,ISNUMBER(BD68)),1,IF(AND($C68>=Z$86,$C68<=Z$87,ISNUMBER(BE68)),3,IF(AND($C68>Z$80,ISNUMBER(BD68),LOOKUP($Z$78,Berechnen!$AA$10:$AA$17,Berechnen!$AI$10:$AI$17)=0),5,IF(AND($C68<Z$80,Z$86=0,ISNUMBER(BD68)),2,IF(AND($C68>Z$87,ISNUMBER(BE68)),4,0))))) -> 
B69: =IF(C69="","",WEEKDAY(C69)) ->  | C69: =IF(DAY($C$9)=1,IF(MONTH(C67+2)=MONTH(C67),C67+2,""),C67+2) ->  | E69: =IF($C$69="","",IF($U$5=1,"",IF($U69="F","Ferien",IF(ISNUMBER($AA69),VLOOKUP($AA69,Touren,2,FALSE),"?")))) ->  | H69: =IF($C$69="","",IF($V$5=1,"",IF($AC69="F","Ferien",IF(ISNUMBER($AI69),VLOOKUP($AI69,Touren,2,FALSE),"?")))) ->  | K69: =IF($C$69="","",IF($W$5=1,"",IF($AK69="F","Ferien",IF(ISNUMBER($AQ69),VLOOKUP($AQ69,Touren,2,FALSE),"?")))) ->  | N69: =IF($C$69="","",IF($X$5=1,"",IF($AS69="F","Ferien",IF(ISNUMBER($AY69),VLOOKUP($AY69,Touren,2,FALSE),"?")))) ->  | Q69: =IF($C$69="","",IF($Y$5=1,"",IF($BA69="F","Ferien",IF(ISNUMBER($BG69),VLOOKUP($BG69,Touren,2,FALSE),"?")))) ->  | V69: =IF($C69="","",IF(V68-$V$84=$V$83,1+$V$84,V68+1)) ->  | W69: =IF($C69="","",IF(W68-$V$91=$V$90,1+$V$91,W68+1)) ->  | Z69: =IF(AND($C69>=V$79,$C69<=V$80,ISNUMBER(X69)),1,IF(AND($C69>=V$86,$C69<=V$87,ISNUMBER(Y69)),3,IF(AND($C69>V$80,ISNUMBER(X69),LOOKUP($V$78,Berechnen!$AA$10:$AA$17,Berechnen!$AI$10:$AI$17)=0),5,IF(AND($C69<V$80,V$86=0,ISNUMBER(X69)),2,IF(AND($C69>$V$87,ISNUMBER(Y69)),4,0))))) ->  | AD69: =IF($C69="","",IF(AD68-$W$84=$W$83,1+$W$84,AD68+1)) ->  | AE69: =IF($C69="","",IF(AE68-$W$91=$W$90,1+$W$91,AE68+1)) ->  | AH69: =IF(AND($C69>=W$79,$C69<=W$80,ISNUMBER(AF69)),1,IF(AND($C69>=W$86,$C69<=W$87,ISNUMBER(AG69)),3,IF(AND($C69>W$80,ISNUMBER(AF69),LOOKUP($W$78,Berechnen!$AA$10:$AA$17,Berechnen!$AI$10:$AI$17)=0),5,IF(AND($C69<W$80,W$86=0,ISNUMBER(AF69)),2,IF(AND($C69>$W$87,ISNUMBER(AG69)),4,0))))) ->  | AL69: =IF($C69="","",IF(AL68-$X$84=$X$83,1+$X$84,AL68+1)) ->  | AM69: =IF($C69="","",IF(AM68-$X$91=$X$90,1+$X$91,AM68+1)) ->  | AP69: =IF(AND($C69>=X$79,$C69<=X$80,ISNUMBER(AN69)),1,IF(AND($C69>=X$86,$C69<=X$87,ISNUMBER(AO69)),3,IF(AND($C69>X$80,ISNUMBER(AN69),LOOKUP($X$78,Berechnen!$AA$10:$AA$17,Berechnen!$AI$10:$AI$17)=0),5,IF(AND($C69<X$80,X$86=0,ISNUMBER(AN69)),2,IF(AND($C69>X$87,ISNUMBER(AO69)),4,0))))) ->  | AT69: =IF($C69="","",IF(AT68-$Y$84=$Y$83,1+$Y$84,AT68+1)) ->  | AU69: =IF($C69="","",IF(AU68-$Y$91=$Y$90,1+$Y$91,AU68+1)) ->  | AX69: =IF(AND($C69>=Y$79,$C69<=Y$80,ISNUMBER(AV69)),1,IF(AND($C69>=Y$86,$C69<=Y$87,ISNUMBER(AW69)),3,IF(AND($C69>Y$80,ISNUMBER(AV69),LOOKUP($Y$78,Berechnen!$AA$10:$AA$17,Berechnen!$AI$10:$AI$17)=0),5,IF(AND($C69<Y$80,Y$86=0,ISNUMBER(AV69)),2,IF(AND($C69>Y$87,ISNUMBER(AW69)),4,0))))) ->  | BB69: =IF($C69="","",IF(BB68-$Z$84=$Z$83,1+$Z$84,BB68+1)) ->  | BC69: =IF($C69="","",IF(BC68-$Z$91=$Z$90,1+$Z$91,BC68+1)) ->  | BF69: =IF(AND($C69>=Z$79,$C69<=Z$80,ISNUMBER(BD69)),1,IF(AND($C69>=Z$86,$C69<=Z$87,ISNUMBER(BE69)),3,IF(AND($C69>Z$80,ISNUMBER(BD69),LOOKUP($Z$78,Berechnen!$AA$10:$AA$17,Berechnen!$AI$10:$AI$17)=0),5,IF(AND($C69<Z$80,Z$86=0,ISNUMBER(BD69)),2,IF(AND($C69>Z$87,ISNUMBER(BE69)),4,0))))) -> 
B70: =IF(C70="","",WEEKDAY(C70)) ->  | C70: =IF(DAY($C$9)=1,IF(MONTH(C67+3)=MONTH(C67),C67+3,""),C67+3) ->  | E70: =IF($C$70="","",IF($U$5=1,"",IF($U70="F","Ferien",IF(ISNUMBER($AA70),VLOOKUP($AA70,Touren,2,FALSE),"?")))) ->  | H70: =IF($C$70="","",IF($V$5=1,"",IF($AC70="F","Ferien",IF(ISNUMBER($AI70),VLOOKUP($AI70,Touren,2,FALSE),"?")))) ->  | K70: =IF($C$70="","",IF($W$5=1,"",IF($AK70="F","Ferien",IF(ISNUMBER($AQ70),VLOOKUP($AQ70,Touren,2,FALSE),"?")))) ->  | N70: =IF($C$70="","",IF($X$5=1,"",IF($AS70="F","Ferien",IF(ISNUMBER($AY70),VLOOKUP($AY70,Touren,2,FALSE),"?")))) ->  | Q70: =IF($C$70="","",IF($Y$5=1,"",IF($BA70="F","Ferien",IF(ISNUMBER($BG70),VLOOKUP($BG70,Touren,2,FALSE),"?")))) ->  | V70: =IF($C70="","",IF(V69-$V$84=$V$83,1+$V$84,V69+1)) ->  | W70: =IF($C70="","",IF(W69-$V$91=$V$90,1+$V$91,W69+1)) ->  | Z70: =IF(AND($C70>=V$79,$C70<=V$80,ISNUMBER(X70)),1,IF(AND($C70>=V$86,$C70<=V$87,ISNUMBER(Y70)),3,IF(AND($C70>V$80,ISNUMBER(X70),LOOKUP($V$78,Berechnen!$AA$10:$AA$17,Berechnen!$AI$10:$AI$17)=0),5,IF(AND($C70<V$80,V$86=0,ISNUMBER(X70)),2,IF(AND($C70>$V$87,ISNUMBER(Y70)),4,0))))) ->  | AD70: =IF($C70="","",IF(AD69-$W$84=$W$83,1+$W$84,AD69+1)) ->  | AE70: =IF($C70="","",IF(AE69-$W$91=$W$90,1+$W$91,AE69+1)) ->  | AH70: =IF(AND($C70>=W$79,$C70<=W$80,ISNUMBER(AF70)),1,IF(AND($C70>=W$86,$C70<=W$87,ISNUMBER(AG70)),3,IF(AND($C70>W$80,ISNUMBER(AF70),LOOKUP($W$78,Berechnen!$AA$10:$AA$17,Berechnen!$AI$10:$AI$17)=0),5,IF(AND($C70<W$80,W$86=0,ISNUMBER(AF70)),2,IF(AND($C70>$W$87,ISNUMBER(AG70)),4,0))))) ->  | AL70: =IF($C70="","",IF(AL69-$X$84=$X$83,1+$X$84,AL69+1)) ->  | AM70: =IF($C70="","",IF(AM69-$X$91=$X$90,1+$X$91,AM69+1)) ->  | AP70: =IF(AND($C70>=X$79,$C70<=X$80,ISNUMBER(AN70)),1,IF(AND($C70>=X$86,$C70<=X$87,ISNUMBER(AO70)),3,IF(AND($C70>X$80,ISNUMBER(AN70),LOOKUP($X$78,Berechnen!$AA$10:$AA$17,Berechnen!$AI$10:$AI$17)=0),5,IF(AND($C70<X$80,X$86=0,ISNUMBER(AN70)),2,IF(AND($C70>X$87,ISNUMBER(AO70)),4,0))))) ->  | AT70: =IF($C70="","",IF(AT69-$Y$84=$Y$83,1+$Y$84,AT69+1)) ->  | AU70: =IF($C70="","",IF(AU69-$Y$91=$Y$90,1+$Y$91,AU69+1)) ->  | AX70: =IF(AND($C70>=Y$79,$C70<=Y$80,ISNUMBER(AV70)),1,IF(AND($C70>=Y$86,$C70<=Y$87,ISNUMBER(AW70)),3,IF(AND($C70>Y$80,ISNUMBER(AV70),LOOKUP($Y$78,Berechnen!$AA$10:$AA$17,Berechnen!$AI$10:$AI$17)=0),5,IF(AND($C70<Y$80,Y$86=0,ISNUMBER(AV70)),2,IF(AND($C70>Y$87,ISNUMBER(AW70)),4,0))))) ->  | BB70: =IF($C70="","",IF(BB69-$Z$84=$Z$83,1+$Z$84,BB69+1)) ->  | BC70: =IF($C70="","",IF(BC69-$Z$91=$Z$90,1+$Z$91,BC69+1)) ->  | BF70: =IF(AND($C70>=Z$79,$C70<=Z$80,ISNUMBER(BD70)),1,IF(AND($C70>=Z$86,$C70<=Z$87,ISNUMBER(BE70)),3,IF(AND($C70>Z$80,ISNUMBER(BD70),LOOKUP($Z$78,Berechnen!$AA$10:$AA$17,Berechnen!$AI$10:$AI$17)=0),5,IF(AND($C70<Z$80,Z$86=0,ISNUMBER(BD70)),2,IF(AND($C70>Z$87,ISNUMBER(BE70)),4,0))))) -> 
V76: 1 | W76: 2 | X76: 3 | Y76: 4 | Z76: 5
V77: =LOOKUP($U$5,Namen!$A$5:$A$354,Namen!$X$5:$X$354) ->  | W77: =LOOKUP($V$5,Namen!$A$5:$A$354,Namen!$X$5:$X$354) ->  | X77: =LOOKUP($W$5,Namen!$A$5:$A$354,Namen!$X$5:$X$354) ->  | Y77: =LOOKUP($X$5,Namen!$A$5:$A$354,Namen!$X$5:$X$354) ->  | Z77: =LOOKUP($Y$5,Namen!$A$5:$A$354,Namen!$X$5:$X$354) -> 
U78: Gr. Num. 1 | V78: =LOOKUP($U$5,Namen!$A$5:$A$354,Namen!$E$5:$E$354) ->  | W78: =LOOKUP($V$5,Namen!$A$5:$A$354,Namen!$E$5:$E$354) ->  | X78: =LOOKUP($W$5,Namen!$A$5:$A$354,Namen!$E$5:$E$354) ->  | Y78: =LOOKUP($X$5,Namen!$A$5:$A$354,Namen!$E$5:$E$354) ->  | Z78: =LOOKUP($Y$5,Namen!$A$5:$A$354,Namen!$E$5:$E$354) -> 
U79: Gültig ab | V79: =IF(V78=0,0,LOOKUP(V78,Berechnen!$AA$10:$AA$17,Berechnen!$AC$10:$AC$17)) ->  | W79: =IF(W78=0,0,LOOKUP(W78,Berechnen!$AA$10:$AA$17,Berechnen!$AC$10:$AC$17)) ->  | X79: =IF(X78=0,0,LOOKUP(X78,Berechnen!$AA$10:$AA$17,Berechnen!$AC$10:$AC$17)) ->  | Y79: =IF(Y78=0,0,LOOKUP(Y78,Berechnen!$AA$10:$AA$17,Berechnen!$AC$10:$AC$17)) ->  | Z79: =IF(Z78=0,0,LOOKUP(Z78,Berechnen!$AA$10:$AA$17,Berechnen!$AC$10:$AC$17)) -> 
U80: Gültig bis | V80: =IF(V78=0,0,LOOKUP(V78,Berechnen!$AA$10:$AA$17,Berechnen!$AD$10:$AD$17)) ->  | W80: =IF(W78=0,0,LOOKUP(W78,Berechnen!$AA$10:$AA$17,Berechnen!$AD$10:$AD$17)) ->  | X80: =IF(X78=0,0,LOOKUP(X78,Berechnen!$AA$10:$AA$17,Berechnen!$AD$10:$AD$17)) ->  | Y80: =IF(Y78=0,0,LOOKUP(Y78,Berechnen!$AA$10:$AA$17,Berechnen!$AD$10:$AD$17)) ->  | Z80: =IF(Z78=0,0,LOOKUP(Z78,Berechnen!$AA$10:$AA$17,Berechnen!$AD$10:$AD$17)) -> 
U81: Rotation 1 | V81: =LOOKUP($U$5,Namen!$A$5:$A$354,Namen!$F$5:$F$354) ->  | W81: =LOOKUP($V$5,Namen!$A$5:$A$354,Namen!$F$5:$F$354) ->  | X81: =LOOKUP($W$5,Namen!$A$5:$A$354,Namen!$F$5:$F$354) ->  | Y81: =LOOKUP($X$5,Namen!$A$5:$A$354,Namen!$F$5:$F$354) ->  | Z81: =LOOKUP($Y$5,Namen!$A$5:$A$354,Namen!$F$5:$F$354) -> 
U82: Starttour 1 | V82: =(V81-1)*7+1 ->  | W82: =(W81-1)*7+1 ->  | X82: =(X81-1)*7+1 ->  | Y82: =(Y81-1)*7+1 ->  | Z82: =(Z81-1)*7+1 -> 
U83: Anzahl T 1 | V83: =LOOKUP(V78,Berechnen!$AA$10:$AA$17,Berechnen!$AE$10:$AE$17) ->  | W83: =LOOKUP(W78,Berechnen!$AA$10:$AA$17,Berechnen!$AE$10:$AE$17) ->  | X83: =LOOKUP(X78,Berechnen!$AA$10:$AA$17,Berechnen!$AE$10:$AE$17) ->  | Y83: =LOOKUP(Y78,Berechnen!$AA$10:$AA$17,Berechnen!$AE$10:$AE$17) ->  | Z83: =LOOKUP(Z78,Berechnen!$AA$10:$AA$17,Berechnen!$AE$10:$AE$17) -> 
U84: Tour-Finder | V84: =LOOKUP(V78,Berechnen!$AA$10:$AA$17,Berechnen!$AF$10:$AF$17) ->  | W84: =LOOKUP(W78,Berechnen!$AA$10:$AA$17,Berechnen!$AF$10:$AF$17) ->  | X84: =LOOKUP(X78,Berechnen!$AA$10:$AA$17,Berechnen!$AF$10:$AF$17) ->  | Y84: =LOOKUP(Y78,Berechnen!$AA$10:$AA$17,Berechnen!$AF$10:$AF$17) ->  | Z84: =LOOKUP(Z78,Berechnen!$AA$10:$AA$17,Berechnen!$AF$10:$AF$17) -> 
U85: Gr. Num. 2 | V85: =LOOKUP($U$5,Namen!$A$5:$A$354,Namen!$G$5:$G$354) ->  | W85: =LOOKUP($V$5,Namen!$A$5:$A$354,Namen!$G$5:$G$354) ->  | X85: =LOOKUP($W$5,Namen!$A$5:$A$354,Namen!$G$5:$G$354) ->  | Y85: =LOOKUP($X$5,Namen!$A$5:$A$354,Namen!$G$5:$G$354) ->  | Z85: =LOOKUP($Y$5,Namen!$A$5:$A$354,Namen!$G$5:$G$354) -> 
U86: Gültig ab | V86: =IF(V85=0,0,LOOKUP(V85,Berechnen!$AA$10:$AA$17,Berechnen!$AI$10:$AI$17)) ->  | W86: =IF(W85=0,0,LOOKUP(W85,Berechnen!$AA$10:$AA$17,Berechnen!$AI$10:$AI$17)) ->  | X86: =IF(X85=0,0,LOOKUP(X85,Berechnen!$AA$10:$AA$17,Berechnen!$AI$10:$AI$17)) ->  | Y86: =IF(Y85=0,0,LOOKUP(Y85,Berechnen!$AA$10:$AA$17,Berechnen!$AI$10:$AI$17)) ->  | Z86: =IF(Z85=0,0,LOOKUP(Z85,Berechnen!$AA$10:$AA$17,Berechnen!$AI$10:$AI$17)) -> 
U87: Gültig bis | V87: =IF(V85=0,0,LOOKUP(V85,Berechnen!$AA$10:$AA$17,Berechnen!$AJ$10:$AJ$17)) ->  | W87: =IF(W85=0,0,LOOKUP(W85,Berechnen!$AA$10:$AA$17,Berechnen!$AJ$10:$AJ$17)) ->  | X87: =IF(X85=0,0,LOOKUP(X85,Berechnen!$AA$10:$AA$17,Berechnen!$AJ$10:$AJ$17)) ->  | Y87: =IF(Y85=0,0,LOOKUP(Y85,Berechnen!$AA$10:$AA$17,Berechnen!$AJ$10:$AJ$17)) ->  | Z87: =IF(Z85=0,0,LOOKUP(Z85,Berechnen!$AA$10:$AA$17,Berechnen!$AJ$10:$AJ$17)) -> 
U88: Rotation 2 | V88: =LOOKUP($U$5,Namen!$A$5:$A$354,Namen!$H$5:$H$354) ->  | W88: =LOOKUP($V$5,Namen!$A$5:$A$354,Namen!$H$5:$H$354) ->  | X88: =LOOKUP($W$5,Namen!$A$5:$A$354,Namen!$H$5:$H$354) ->  | Y88: =LOOKUP($X$5,Namen!$A$5:$A$354,Namen!$H$5:$H$354) ->  | Z88: =LOOKUP($Y$5,Namen!$A$5:$A$354,Namen!$H$5:$H$354) -> 
U89: Starttour 2 | V89: =(V88-1)*7+1 ->  | W89: =(W88-1)*7+1 ->  | X89: =(X88-1)*7+1 ->  | Y89: =(Y88-1)*7+1 ->  | Z89: =(Z88-1)*7+1 -> 
U90: Anzahl T 2 | V90: =LOOKUP(V85,Berechnen!$AA$10:$AA$17,Berechnen!$AK$10:$AK$17) ->  | W90: =LOOKUP(W85,Berechnen!$AA$10:$AA$17,Berechnen!$AK$10:$AK$17) ->  | X90: =LOOKUP(X85,Berechnen!$AA$10:$AA$17,Berechnen!$AK$10:$AK$17) ->  | Y90: =LOOKUP(Y85,Berechnen!$AA$10:$AA$17,Berechnen!$AK$10:$AK$17) ->  | Z90: =LOOKUP(Z85,Berechnen!$AA$10:$AA$17,Berechnen!$AK$10:$AK$17) -> 
U91: Tour-Finder | V91: =LOOKUP(V85,Berechnen!$AA$10:$AA$17,Berechnen!$AL$10:$AL$17) ->  | W91: =LOOKUP(W85,Berechnen!$AA$10:$AA$17,Berechnen!$AL$10:$AL$17) ->  | X91: =LOOKUP(X85,Berechnen!$AA$10:$AA$17,Berechnen!$AL$10:$AL$17) ->  | Y91: =LOOKUP(Y85,Berechnen!$AA$10:$AA$17,Berechnen!$AL$10:$AL$17) ->  | Z91: =LOOKUP(Z85,Berechnen!$AA$10:$AA$17,Berechnen!$AL$10:$AL$17) -> 
U92: Ferien:
U93: 1 / 1 | V93: =IF(LOOKUP($U$5,Namen!$A$5:$A$354,Namen!$I$5:$I$354)="",,LOOKUP($U$5,Namen!$A$5:$A$354,Namen!$I$5:$I$354)*7+Namen!$I$2-7) ->  | W93: =IF(LOOKUP($V$5,Namen!$A$5:$A$354,Namen!$I$5:$I$354)="",,LOOKUP($V$5,Namen!$A$5:$A$354,Namen!$I$5:$I$354)*7+Namen!$I$2-7) ->  | X93: =IF(LOOKUP($W$5,Namen!$A$5:$A$354,Namen!$I$5:$I$354)="",,LOOKUP($W$5,Namen!$A$5:$A$354,Namen!$I$5:$I$354)*7+Namen!$I$2-7) ->  | Y93: =IF(LOOKUP($X$5,Namen!$A$5:$A$354,Namen!$I$5:$I$354)="",,LOOKUP($X$5,Namen!$A$5:$A$354,Namen!$I$5:$I$354)*7+Namen!$I$2-7) ->  | Z93: =IF(LOOKUP($Y$5,Namen!$A$5:$A$354,Namen!$I$5:$I$354)="",,LOOKUP($Y$5,Namen!$A$5:$A$354,Namen!$I$5:$I$354)*7+Namen!$I$2-7) -> 
U94: 2 / 1 | V94: =IF(LOOKUP($U$5,Namen!$A$5:$A$354,Namen!$J$5:$J$354)="",,LOOKUP($U$5,Namen!$A$5:$A$354,Namen!$J$5:$J$354)*7+Namen!$I$2-7) ->  | W94: =IF(LOOKUP($V$5,Namen!$A$5:$A$354,Namen!$J$5:$J$354)="",,LOOKUP($V$5,Namen!$A$5:$A$354,Namen!$J$5:$J$354)*7+Namen!$I$2-7) ->  | X94: =IF(LOOKUP($W$5,Namen!$A$5:$A$354,Namen!$J$5:$J$354)="",,LOOKUP($W$5,Namen!$A$5:$A$354,Namen!$J$5:$J$354)*7+Namen!$I$2-7) ->  | Y94: =IF(LOOKUP($X$5,Namen!$A$5:$A$354,Namen!$J$5:$J$354)="",,LOOKUP($X$5,Namen!$A$5:$A$354,Namen!$J$5:$J$354)*7+Namen!$I$2-7) ->  | Z94: =IF(LOOKUP($Y$5,Namen!$A$5:$A$354,Namen!$J$5:$J$354)="",,LOOKUP($Y$5,Namen!$A$5:$A$354,Namen!$J$5:$J$354)*7+Namen!$I$2-7) -> 
U95: 3 / 1 | V95: =IF(LOOKUP($U$5,Namen!$A$5:$A$354,Namen!$K$5:$K$354)="",,LOOKUP($U$5,Namen!$A$5:$A$354,Namen!$K$5:$K$354)*7+Namen!$I$2-7) ->  | W95: =IF(LOOKUP($V$5,Namen!$A$5:$A$354,Namen!$K$5:$K$354)="",,LOOKUP($V$5,Namen!$A$5:$A$354,Namen!$K$5:$K$354)*7+Namen!$I$2-7) ->  | X95: =IF(LOOKUP($W$5,Namen!$A$5:$A$354,Namen!$K$5:$K$354)="",,LOOKUP($W$5,Namen!$A$5:$A$354,Namen!$K$5:$K$354)*7+Namen!$I$2-7) ->  | Y95: =IF(LOOKUP($X$5,Namen!$A$5:$A$354,Namen!$K$5:$K$354)="",,LOOKUP($X$5,Namen!$A$5:$A$354,Namen!$K$5:$K$354)*7+Namen!$I$2-7) ->  | Z95: =IF(LOOKUP($Y$5,Namen!$A$5:$A$354,Namen!$K$5:$K$354)="",,LOOKUP($Y$5,Namen!$A$5:$A$354,Namen!$K$5:$K$354)*7+Namen!$I$2-7) -> 
U96: 4 / 1 | V96: =IF(LOOKUP($U$5,Namen!$A$5:$A$354,Namen!$L$5:$L$354)="",,LOOKUP($U$5,Namen!$A$5:$A$354,Namen!$L$5:$L$354)*7+Namen!$I$2-7) ->  | W96: =IF(LOOKUP($V$5,Namen!$A$5:$A$354,Namen!$L$5:$L$354)="",,LOOKUP($V$5,Namen!$A$5:$A$354,Namen!$L$5:$L$354)*7+Namen!$I$2-7) ->  | X96: =IF(LOOKUP($W$5,Namen!$A$5:$A$354,Namen!$L$5:$L$354)="",,LOOKUP($W$5,Namen!$A$5:$A$354,Namen!$L$5:$L$354)*7+Namen!$I$2-7) ->  | Y96: =IF(LOOKUP($X$5,Namen!$A$5:$A$354,Namen!$L$5:$L$354)="",,LOOKUP($X$5,Namen!$A$5:$A$354,Namen!$L$5:$L$354)*7+Namen!$I$2-7) ->  | Z96: =IF(LOOKUP($Y$5,Namen!$A$5:$A$354,Namen!$L$5:$L$354)="",,LOOKUP($Y$5,Namen!$A$5:$A$354,Namen!$L$5:$L$354)*7+Namen!$I$2-7) -> 
U97: 5 / 1 | V97: =IF(LOOKUP($U$5,Namen!$A$5:$A$354,Namen!$M$5:$M$354)="",,LOOKUP($U$5,Namen!$A$5:$A$354,Namen!$M$5:$M$354)*7+Namen!$I$2-7) ->  | W97: =IF(LOOKUP($V$5,Namen!$A$5:$A$354,Namen!$M$5:$M$354)="",,LOOKUP($V$5,Namen!$A$5:$A$354,Namen!$M$5:$M$354)*7+Namen!$I$2-7) ->  | X97: =IF(LOOKUP($W$5,Namen!$A$5:$A$354,Namen!$M$5:$M$354)="",,LOOKUP($W$5,Namen!$A$5:$A$354,Namen!$M$5:$M$354)*7+Namen!$I$2-7) ->  | Y97: =IF(LOOKUP($X$5,Namen!$A$5:$A$354,Namen!$M$5:$M$354)="",,LOOKUP($X$5,Namen!$A$5:$A$354,Namen!$M$5:$M$354)*7+Namen!$I$2-7) ->  | Z97: =IF(LOOKUP($Y$5,Namen!$A$5:$A$354,Namen!$M$5:$M$354)="",,LOOKUP($Y$5,Namen!$A$5:$A$354,Namen!$M$5:$M$354)*7+Namen!$I$2-7) -> 
U98: 6 / 1 | V98: =IF(LOOKUP($U$5,Namen!$A$5:$A$354,Namen!$N$5:$N$354)="",,LOOKUP($U$5,Namen!$A$5:$A$354,Namen!$N$5:$N$354)*7+Namen!$I$2-7) ->  | W98: =IF(LOOKUP($V$5,Namen!$A$5:$A$354,Namen!$N$5:$N$354)="",,LOOKUP($V$5,Namen!$A$5:$A$354,Namen!$N$5:$N$354)*7+Namen!$I$2-7) ->  | X98: =IF(LOOKUP($W$5,Namen!$A$5:$A$354,Namen!$N$5:$N$354)="",,LOOKUP($W$5,Namen!$A$5:$A$354,Namen!$N$5:$N$354)*7+Namen!$I$2-7) ->  | Y98: =IF(LOOKUP($X$5,Namen!$A$5:$A$354,Namen!$N$5:$N$354)="",,LOOKUP($X$5,Namen!$A$5:$A$354,Namen!$N$5:$N$354)*7+Namen!$I$2-7) ->  | Z98: =IF(LOOKUP($Y$5,Namen!$A$5:$A$354,Namen!$N$5:$N$354)="",,LOOKUP($Y$5,Namen!$A$5:$A$354,Namen!$N$5:$N$354)*7+Namen!$I$2-7) -> 
U99: 7 / 1 | V99: =IF(LOOKUP($U$5,Namen!$A$5:$A$354,Namen!$O$5:$O$354)="",,LOOKUP($U$5,Namen!$A$5:$A$354,Namen!$O$5:$O$354)*7+Namen!$I$2-7) ->  | W99: =IF(LOOKUP($V$5,Namen!$A$5:$A$354,Namen!$O$5:$O$354)="",,LOOKUP($V$5,Namen!$A$5:$A$354,Namen!$O$5:$O$354)*7+Namen!$I$2-7) ->  | X99: =IF(LOOKUP($W$5,Namen!$A$5:$A$354,Namen!$O$5:$O$354)="",,LOOKUP($W$5,Namen!$A$5:$A$354,Namen!$O$5:$O$354)*7+Namen!$I$2-7) ->  | Y99: =IF(LOOKUP($X$5,Namen!$A$5:$A$354,Namen!$O$5:$O$354)="",,LOOKUP($X$5,Namen!$A$5:$A$354,Namen!$O$5:$O$354)*7+Namen!$I$2-7) ->  | Z99: =IF(LOOKUP($Y$5,Namen!$A$5:$A$354,Namen!$O$5:$O$354)="",,LOOKUP($Y$5,Namen!$A$5:$A$354,Namen!$O$5:$O$354)*7+Namen!$I$2-7) -> 
U100: 1 / 2 | V100: =IF(LOOKUP($U$5,Namen!$A$5:$A$354,Namen!$P$5:$P$354)="",,LOOKUP($U$5,Namen!$A$5:$A$354,Namen!$P$5:$P$354)*7+Namen!$P$2-7) ->  | W100: =IF(LOOKUP($V$5,Namen!$A$5:$A$354,Namen!$P$5:$P$354)="",,LOOKUP($V$5,Namen!$A$5:$A$354,Namen!$P$5:$P$354)*7+Namen!$P$2-7) ->  | X100: =IF(LOOKUP($W$5,Namen!$A$5:$A$354,Namen!$P$5:$P$354)="",,LOOKUP($W$5,Namen!$A$5:$A$354,Namen!$P$5:$P$354)*7+Namen!$P$2-7) ->  | Y100: =IF(LOOKUP($X$5,Namen!$A$5:$A$354,Namen!$P$5:$P$354)="",,LOOKUP($X$5,Namen!$A$5:$A$354,Namen!$P$5:$P$354)*7+Namen!$P$2-7) ->  | Z100: =IF(LOOKUP($Y$5,Namen!$A$5:$A$354,Namen!$P$5:$P$354)="",,LOOKUP($Y$5,Namen!$A$5:$A$354,Namen!$P$5:$P$354)*7+Namen!$P$2-7) -> 
U101: 2 / 2 | V101: =IF(LOOKUP($U$5,Namen!$A$5:$A$354,Namen!$Q$5:$Q$354)="",,LOOKUP($U$5,Namen!$A$5:$A$354,Namen!$Q$5:$Q$354)*7+Namen!$P$2-7) ->  | W101: =IF(LOOKUP($V$5,Namen!$A$5:$A$354,Namen!$Q$5:$Q$354)="",,LOOKUP($V$5,Namen!$A$5:$A$354,Namen!$Q$5:$Q$354)*7+Namen!$P$2-7) ->  | X101: =IF(LOOKUP($W$5,Namen!$A$5:$A$354,Namen!$Q$5:$Q$354)="",,LOOKUP($W$5,Namen!$A$5:$A$354,Namen!$Q$5:$Q$354)*7+Namen!$P$2-7) ->  | Y101: =IF(LOOKUP($X$5,Namen!$A$5:$A$354,Namen!$Q$5:$Q$354)="",,LOOKUP($X$5,Namen!$A$5:$A$354,Namen!$Q$5:$Q$354)*7+Namen!$P$2-7) ->  | Z101: =IF(LOOKUP($Y$5,Namen!$A$5:$A$354,Namen!$Q$5:$Q$354)="",,LOOKUP($Y$5,Namen!$A$5:$A$354,Namen!$Q$5:$Q$354)*7+Namen!$P$2-7) -> 
U102: 3 / 2 | V102: =IF(LOOKUP($U$5,Namen!$A$5:$A$354,Namen!$R$5:$R$354)="",,LOOKUP($U$5,Namen!$A$5:$A$354,Namen!$R$5:$R$354)*7+Namen!$P$2-7) ->  | W102: =IF(LOOKUP($V$5,Namen!$A$5:$A$354,Namen!$R$5:$R$354)="",,LOOKUP($V$5,Namen!$A$5:$A$354,Namen!$R$5:$R$354)*7+Namen!$P$2-7) ->  | X102: =IF(LOOKUP($W$5,Namen!$A$5:$A$354,Namen!$R$5:$R$354)="",,LOOKUP($W$5,Namen!$A$5:$A$354,Namen!$R$5:$R$354)*7+Namen!$P$2-7) ->  | Y102: =IF(LOOKUP($X$5,Namen!$A$5:$A$354,Namen!$R$5:$R$354)="",,LOOKUP($X$5,Namen!$A$5:$A$354,Namen!$R$5:$R$354)*7+Namen!$P$2-7) ->  | Z102: =IF(LOOKUP($Y$5,Namen!$A$5:$A$354,Namen!$R$5:$R$354)="",,LOOKUP($Y$5,Namen!$A$5:$A$354,Namen!$R$5:$R$354)*7+Namen!$P$2-7) -> 
U103: 4 / 2 | V103: =IF(LOOKUP($U$5,Namen!$A$5:$A$354,Namen!$S$5:$S$354)="",,LOOKUP($U$5,Namen!$A$5:$A$354,Namen!$S$5:$S$354)*7+Namen!$P$2-7) ->  | W103: =IF(LOOKUP($V$5,Namen!$A$5:$A$354,Namen!$S$5:$S$354)="",,LOOKUP($V$5,Namen!$A$5:$A$354,Namen!$S$5:$S$354)*7+Namen!$P$2-7) ->  | X103: =IF(LOOKUP($W$5,Namen!$A$5:$A$354,Namen!$S$5:$S$354)="",,LOOKUP($W$5,Namen!$A$5:$A$354,Namen!$S$5:$S$354)*7+Namen!$P$2-7) ->  | Y103: =IF(LOOKUP($X$5,Namen!$A$5:$A$354,Namen!$S$5:$S$354)="",,LOOKUP($X$5,Namen!$A$5:$A$354,Namen!$S$5:$S$354)*7+Namen!$P$2-7) ->  | Z103: =IF(LOOKUP($Y$5,Namen!$A$5:$A$354,Namen!$S$5:$S$354)="",,LOOKUP($Y$5,Namen!$A$5:$A$354,Namen!$S$5:$S$354)*7+Namen!$P$2-7) -> 
U104: 5 / 2 | V104: =IF(LOOKUP($U$5,Namen!$A$5:$A$354,Namen!$T$5:$T$354)="",,LOOKUP($U$5,Namen!$A$5:$A$354,Namen!$T$5:$T$354)*7+Namen!$P$2-7) ->  | W104: =IF(LOOKUP($V$5,Namen!$A$5:$A$354,Namen!$T$5:$T$354)="",,LOOKUP($V$5,Namen!$A$5:$A$354,Namen!$T$5:$T$354)*7+Namen!$P$2-7) ->  | X104: =IF(LOOKUP($W$5,Namen!$A$5:$A$354,Namen!$T$5:$T$354)="",,LOOKUP($W$5,Namen!$A$5:$A$354,Namen!$T$5:$T$354)*7+Namen!$P$2-7) ->  | Y104: =IF(LOOKUP($X$5,Namen!$A$5:$A$354,Namen!$T$5:$T$354)="",,LOOKUP($X$5,Namen!$A$5:$A$354,Namen!$T$5:$T$354)*7+Namen!$P$2-7) ->  | Z104: =IF(LOOKUP($Y$5,Namen!$A$5:$A$354,Namen!$T$5:$T$354)="",,LOOKUP($Y$5,Namen!$A$5:$A$354,Namen!$T$5:$T$354)*7+Namen!$P$2-7) -> 
U105: 6 / 2 | V105: =IF(LOOKUP($U$5,Namen!$A$5:$A$354,Namen!$U$5:$U$354)="",,LOOKUP($U$5,Namen!$A$5:$A$354,Namen!$U$5:$U$354)*7+Namen!$P$2-7) ->  | W105: =IF(LOOKUP($V$5,Namen!$A$5:$A$354,Namen!$U$5:$U$354)="",,LOOKUP($V$5,Namen!$A$5:$A$354,Namen!$U$5:$U$354)*7+Namen!$P$2-7) ->  | X105: =IF(LOOKUP($W$5,Namen!$A$5:$A$354,Namen!$U$5:$U$354)="",,LOOKUP($W$5,Namen!$A$5:$A$354,Namen!$U$5:$U$354)*7+Namen!$P$2-7) ->  | Y105: =IF(LOOKUP($X$5,Namen!$A$5:$A$354,Namen!$U$5:$U$354)="",,LOOKUP($X$5,Namen!$A$5:$A$354,Namen!$U$5:$U$354)*7+Namen!$P$2-7) ->  | Z105: =IF(LOOKUP($Y$5,Namen!$A$5:$A$354,Namen!$U$5:$U$354)="",,LOOKUP($Y$5,Namen!$A$5:$A$354,Namen!$U$5:$U$354)*7+Namen!$P$2-7) -> 
U106: 7 / 2 | V106: =IF(LOOKUP($U$5,Namen!$A$5:$A$354,Namen!$V$5:$V$354)="",,LOOKUP($U$5,Namen!$A$5:$A$354,Namen!$V$5:$V$354)*7+Namen!$P$2-7) ->  | W106: =IF(LOOKUP($V$5,Namen!$A$5:$A$354,Namen!$V$5:$V$354)="",,LOOKUP($V$5,Namen!$A$5:$A$354,Namen!$V$5:$V$354)*7+Namen!$P$2-7) ->  | X106: =IF(LOOKUP($W$5,Namen!$A$5:$A$354,Namen!$V$5:$V$354)="",,LOOKUP($W$5,Namen!$A$5:$A$354,Namen!$V$5:$V$354)*7+Namen!$P$2-7) ->  | Y106: =IF(LOOKUP($X$5,Namen!$A$5:$A$354,Namen!$V$5:$V$354)="",,LOOKUP($X$5,Namen!$A$5:$A$354,Namen!$V$5:$V$354)*7+Namen!$P$2-7) ->  | Z106: =IF(LOOKUP($Y$5,Namen!$A$5:$A$354,Namen!$V$5:$V$354)="",,LOOKUP($Y$5,Namen!$A$5:$A$354,Namen!$V$5:$V$354)*7+Namen!$P$2-7) -> 

Sheet Agenda
B1: ='AZ Jahr'!$C$1 -> 2026 | C1: =DATE($B$1,B3,1) -> 2026-01-01 | E1: =IF(ISNA(VLOOKUP($C$1,$C$10:$C$403,1,FALSE))=FALSE,1,0) -> 0
A2: Agenda | B2: =CONCATENATE($B$1&" / "&ROUND(100*(B1/100-INT(B1/100))+1,0)) -> 2026 / 27 | I2: Notizen: Text 1 | L2: 0
B3: 1 | C3: =E3+(B3-1)*31 -> 1 | E3: 1 | G3: 15 | I3: Notizen: Text 2 | L3: 1
C4: =IF($C$3>372,$C$3-372,$C$3) -> 1 | E4: =E3+1 -> 2 | I4: Notizen: Text 3 | L4: A4 quer
C5: ='AZ Monat'!$C$3 -> 1 | I5: Notizen: Text 4 | L5: A5
L6: Agenda
B7: Name Vorname | G7: Pers.Nr | I7: =IF(I8=0,"","Telefon") ->  | L7: A7 Klein
B8: ='AZ Jahr'!D1 ->  | G8: =Berechnen!$C$3 -> u-Nr. ?
B9: Tag | C9: Datum | D9: DIN | E9: Tour | F9: AB | G9: AE | H9: Bemerkungen | I9: Notizen
A10: =IF($C10="","",IF(OR($C10=$M$11,$C10=$M$12+1,$C10=$M$18,$C10=$M$19+1),"Einteilung geä.",IF(ISNA(VLOOKUP($C10,Feiertage,3,FALSE)),"",VLOOKUP($C10,Feiertage,3,FALSE)))) ->  | K10: 1 | L10: Gr. Num. 1 | M10: =LOOKUP($B$407,Namen!$A$5:$A$354,Namen!$E$5:$E$354) -> 
A11: =IF($C11="","",IF(OR($C11=$M$11,$C11=$M$12+1,$C11=$M$18,$C11=$M$19+1),"Einteilung geä.",IF(ISNA(VLOOKUP($C11,Feiertage,3,FALSE)),"",VLOOKUP($C11,Feiertage,3,FALSE)))) ->  | K11: 2 | L11: Gültig ab | M11: =IF($M$10=0,0,LOOKUP($M$10,Berechnen!$AA$10:$AA$17,Berechnen!$AC$10:$AC$17)) -> 
K12: 3 | L12: Gültig bis | M12: =IF($M$10=0,0,LOOKUP($M$10,Berechnen!$AA$10:$AA$17,Berechnen!$AD$10:$AD$17)) -> 
K13: 4 | L13: Rotation 1 | M13: =LOOKUP($B$407,Namen!$A$5:$A$354,Namen!$F$5:$F$354) -> 
K14: 5 | L14: Starttour 1 | M14: =($M$13-1)*7+1 -> 
K15: 6 | L15: Anzahl T 1 | M15: =LOOKUP($M$10,Berechnen!$AA$10:$AA$17,Berechnen!$AE$10:$AE$17) -> 
K16: 7 | L16: Tour-Finder | M16: =LOOKUP($M$10,Berechnen!$AA$10:$AA$17,Berechnen!$AF$10:$AF$17) -> 
K17: 8 | L17: Gr. Num. 2 | M17: =LOOKUP($B$407,Namen!$A$5:$A$354,Namen!$G$5:$G$354) -> 
K18: 9 | L18: Gültig ab | M18: =IF($M$17=0,0,LOOKUP($M$17,Berechnen!$AA$10:$AA$17,Berechnen!$AI$10:$AI$17)) -> 
K19: 10 | L19: Gültig bis | M19: =IF($M$17=0,0,LOOKUP($M$17,Berechnen!$AA$10:$AA$17,Berechnen!$AJ$10:$AJ$17)) -> 
K20: 11 | L20: Rotation 2 | M20: =LOOKUP($B$407,Namen!$A$5:$A$354,Namen!$H$5:$H$354) -> 
K21: 12 | L21: Starttour 2 | M21: =($M$20-1)*7+1 -> 
K22: 13 | L22: Anzahl T 2 | M22: =LOOKUP($M$17,Berechnen!$AA$10:$AA$17,Berechnen!$AK$10:$AK$17) -> 
K23: 14 | L23: Tour-Finder | M23: =LOOKUP($M$17,Berechnen!$AA$10:$AA$17,Berechnen!$AL$10:$AL$17) -> 
K24: 15 | L24: Ferien:
K25: 16 | L25: 1 / 1 | M25: =IF(LOOKUP($B$407,Namen!$A$5:$A$354,Namen!$I$5:$I$354)="",,LOOKUP($B$407,Namen!$A$5:$A$354,Namen!$I$5:$I$354)*7+Namen!$I$2-7) -> 
K26: 17 | L26: 2 / 1 | M26: =IF(LOOKUP($B$407,Namen!$A$5:$A$354,Namen!$J$5:$J$354)="",,LOOKUP($B$407,Namen!$A$5:$A$354,Namen!$J$5:$J$354)*7+Namen!$I$2-7) -> 
K27: 18 | L27: 3 / 1 | M27: =IF(LOOKUP($B$407,Namen!$A$5:$A$354,Namen!$K$5:$K$354)="",,LOOKUP($B$407,Namen!$A$5:$A$354,Namen!$K$5:$K$354)*7+Namen!$I$2-7) -> 
K28: 19 | L28: 4 / 1 | M28: =IF(LOOKUP($B$407,Namen!$A$5:$A$354,Namen!$L$5:$L$354)="",,LOOKUP($B$407,Namen!$A$5:$A$354,Namen!$L$5:$L$354)*7+Namen!$I$2-7) -> 
K29: 20 | L29: 5 / 1 | M29: =IF(LOOKUP($B$407,Namen!$A$5:$A$354,Namen!$M$5:$M$354)="",,LOOKUP($B$407,Namen!$A$5:$A$354,Namen!$M$5:$M$354)*7+Namen!$I$2-7) -> 
K30: 21 | L30: 6 / 1 | M30: =IF(LOOKUP($B$407,Namen!$A$5:$A$354,Namen!$N$5:$N$354)="",,LOOKUP($B$407,Namen!$A$5:$A$354,Namen!$N$5:$N$354)*7+Namen!$I$2-7) -> 
K31: 22 | L31: 7 / 1 | M31: =IF(LOOKUP($B$407,Namen!$A$5:$A$354,Namen!$O$5:$O$354)="",,LOOKUP($B$407,Namen!$A$5:$A$354,Namen!$O$5:$O$354)*7+Namen!$I$2-7) -> 
K32: 23 | L32: 1 / 2 | M32: =IF(LOOKUP($B$407,Namen!$A$5:$A$354,Namen!$P$5:$P$354)="",,LOOKUP($B$407,Namen!$A$5:$A$354,Namen!$P$5:$P$354)*7+Namen!$P$2-7) -> 
K33: 24 | L33: 2 / 2 | M33: =IF(LOOKUP($B$407,Namen!$A$5:$A$354,Namen!$Q$5:$Q$354)="",,LOOKUP($B$407,Namen!$A$5:$A$354,Namen!$Q$5:$Q$354)*7+Namen!$P$2-7) -> 
K34: 25 | L34: 3 / 2 | M34: =IF(LOOKUP($B$407,Namen!$A$5:$A$354,Namen!$R$5:$R$354)="",,LOOKUP($B$407,Namen!$A$5:$A$354,Namen!$R$5:$R$354)*7+Namen!$P$2-7) -> 
K35: 26 | L35: 4 / 2 | M35: =IF(LOOKUP($B$407,Namen!$A$5:$A$354,Namen!$S$5:$S$354)="",,LOOKUP($B$407,Namen!$A$5:$A$354,Namen!$S$5:$S$354)*7+Namen!$P$2-7) -> 
K36: 27 | L36: 5 / 2 | M36: =IF(LOOKUP($B$407,Namen!$A$5:$A$354,Namen!$T$5:$T$354)="",,LOOKUP($B$407,Namen!$A$5:$A$354,Namen!$T$5:$T$354)*7+Namen!$P$2-7) -> 
K37: 28 | L37: 6 / 2 | M37: =IF(LOOKUP($B$407,Namen!$A$5:$A$354,Namen!$U$5:$U$354)="",,LOOKUP($B$407,Namen!$A$5:$A$354,Namen!$U$5:$U$354)*7+Namen!$P$2-7) -> 
K38: 29 | L38: 7 / 2 | M38: =IF(LOOKUP($B$407,Namen!$A$5:$A$354,Namen!$V$5:$V$354)="",,LOOKUP($B$407,Namen!$A$5:$A$354,Namen!$V$5:$V$354)*7+Namen!$P$2-7) -> 
K39: 30
K40: 31
A43: =IF($C43="","",IF(OR($C43=$M$11,$C43=$M$12+1,$C43=$M$18,$C43=$M$19+1),"Einteilung geä.",IF(ISNA(VLOOKUP($C43,Feiertage,3,FALSE)),"",VLOOKUP($C43,Feiertage,3,FALSE)))) ->  | K43: 32 | L43: =CONCATENATE(" Jan. ",$B$1) -> Jan. 2026 | M43: =IF($B$3<25,DATE($B$1,$B$3,1),"XX.XX.XX") -> 2026-01-01
A44: =IF($C44="","",IF(OR($C44=$M$11,$C44=$M$12+1,$C44=$M$18,$C44=$M$19+1),"Einteilung geä.",IF(ISNA(VLOOKUP($C44,Feiertage,3,FALSE)),"",VLOOKUP($C44,Feiertage,3,FALSE)))) ->  | K44: 33 | L44: =CONCATENATE(" Feb. ",$B$1) -> Feb. 2026 | M44: =M43+1 -> 2026-01-02
K45: 34 | L45: =CONCATENATE(" Mrz. ",$B$1) -> Mrz. 2026 | M45: =M44+1 -> 2026-01-03
K46: 35 | L46: =CONCATENATE(" Apr. ",$B$1) -> Apr. 2026 | M46: 2026-01-04
K47: 36 | L47: =CONCATENATE(" Mai ",$B$1) -> Mai 2026 | M47: 2026-01-05
K48: 37 | L48: =CONCATENATE(" Juni ",$B$1) -> Juni 2026 | M48: 2026-01-06
K49: 38 | L49: =CONCATENATE(" Juli ",$B$1) -> Juli 2026 | M49: 2026-01-07
K50: 39 | L50: =CONCATENATE(" Aug. ",$B$1) -> Aug. 2026 | M50: 2026-01-08
K51: 40 | L51: =CONCATENATE(" Sep. ",$B$1) -> Sep. 2026 | M51: 2026-01-09
K52: 41 | L52: =CONCATENATE(" Okt. ",$B$1) -> Okt. 2026 | M52: 2026-01-10
K53: 42 | L53: =CONCATENATE(" Nov. ",$B$1) -> Nov. 2026 | M53: 2026-01-11
K54: 43 | L54: =CONCATENATE(" Dez. ",$B$1) -> Dez. 2026 | M54: 2026-01-12
K55: 44 | L55: =CONCATENATE(" Jan. ",$B$1+1) -> Jan. 2027 | M55: 2026-01-13
K56: 45 | L56: =CONCATENATE(" Feb. ",$B$1+1) -> Feb. 2027 | M56: 2026-01-14
K57: 46 | L57: =CONCATENATE(" Mrz. ",$B$1+1) -> Mrz. 2027 | M57: 2026-01-15
K58: 47 | L58: =CONCATENATE(" Apr. ",$B$1+1) -> Apr. 2027 | M58: 2026-01-16
K59: 48 | L59: =CONCATENATE(" Mai ",$B$1+1) -> Mai 2027 | M59: 2026-01-17
K60: 49 | L60: =CONCATENATE(" Juni ",$B$1+1) -> Juni 2027 | M60: 2026-01-18
K61: 50 | L61: =CONCATENATE(" Juli ",$B$1+1) -> Juli 2027 | M61: =M60+1 -> 2026-01-19
K62: 51 | L62: =CONCATENATE(" Aug. ",$B$1+1) -> Aug. 2027 | M62: 2026-01-20
K63: 52 | L63: =CONCATENATE(" Sep. ",$B$1+1) -> Sep. 2027 | M63: 2026-01-21
K64: 53 | L64: =CONCATENATE(" Okt. ",$B$1+1) -> Okt. 2027 | M64: 2026-01-22
K65: 54 | L65: =CONCATENATE(" Nov. ",$B$1+1) -> Nov. 2027 | M65: 2026-01-23
K66: 55 | L66: =CONCATENATE(" Dez. ",$B$1+1) -> Dez. 2027 | M66: 2026-01-24
K67: 56 | L67: LÖSCHEN | M67: 2026-01-25
K68: 57 | M68: 2026-01-26
K69: 58 | M69: 2026-01-27
K70: 59 | M70: 2026-01-28
K71: 60 | M71: =IF(MONTH(M70+1)=MONTH(M70),M70+1,"") -> 2026-01-29
K72: 61 | M72: =IF(MONTH(M70+2)=MONTH(M70),M70+2,"") -> 2026-01-30
K73: 62 | M73: =IF(MONTH(M70+3)=MONTH(M70),M70+3,"") -> 2026-01-31
A76: =IF($C76="","",IF(OR($C76=$M$11,$C76=$M$12+1,$C76=$M$18,$C76=$M$19+1),"Einteilung geä.",IF(ISNA(VLOOKUP($C76,Feiertage,3,FALSE)),"",VLOOKUP($C76,Feiertage,3,FALSE)))) ->  | K76: 63
A77: =IF($C77="","",IF(OR($C77=$M$11,$C77=$M$12+1,$C77=$M$18,$C77=$M$19+1),"Einteilung geä.",IF(ISNA(VLOOKUP($C77,Feiertage,3,FALSE)),"",VLOOKUP($C77,Feiertage,3,FALSE)))) ->  | K77: 64
K78: 65
K79: 66
K80: 67
K81: 68
K82: 69
K83: 70
K84: 71
K85: 72
K86: 73
K87: 74
K88: 75
K89: 76
K90: 77
K91: 78
K92: 79
K93: 80
K94: 81
K95: 82
K96: 83
K97: 84
K98: 85
K99: 86
K100: 87
K101: 88
K102: 89
K103: 90
K104: 91
K105: 92
K106: 93
A109: =IF($C109="","",IF(OR($C109=$M$11,$C109=$M$12+1,$C109=$M$18,$C109=$M$19+1),"Einteilung geä.",IF(ISNA(VLOOKUP($C109,Feiertage,3,FALSE)),"",VLOOKUP($C109,Feiertage,3,FALSE)))) ->  | K109: 94
A110: =IF($C110="","",IF(OR($C110=$M$11,$C110=$M$12+1,$C110=$M$18,$C110=$M$19+1),"Einteilung geä.",IF(ISNA(VLOOKUP($C110,Feiertage,3,FALSE)),"",VLOOKUP($C110,Feiertage,3,FALSE)))) ->  | K110: 95
K111: 96
K112: 97
K113: 98
K114: 99
K115: 100
K116: 101
K117: 102
K118: 103
K119: 104
K120: 105
K121: 106
K122: 107
K123: 108
K124: 109
K125: 110
K126: 111
K127: 112
K128: 113
K129: 114
K130: 115
K131: 116
K132: 117
K133: 118
K134: 119
K135: 120
K136: 121
K137: 122
K138: 123
K139: 124
A142: =IF($C142="","",IF(OR($C142=$M$11,$C142=$M$12+1,$C142=$M$18,$C142=$M$19+1),"Einteilung geä.",IF(ISNA(VLOOKUP($C142,Feiertage,3,FALSE)),"",VLOOKUP($C142,Feiertage,3,FALSE)))) ->  | K142: 125
A143: =IF($C143="","",IF(OR($C143=$M$11,$C143=$M$12+1,$C143=$M$18,$C143=$M$19+1),"Einteilung geä.",IF(ISNA(VLOOKUP($C143,Feiertage,3,FALSE)),"",VLOOKUP($C143,Feiertage,3,FALSE)))) ->  | K143: 126
K144: 127
K145: 128
K146: 129
K147: 130
K148: 131
K149: 132
K150: 133
K151: 134
K152: 135
K153: 136
K154: 137
K155: 138
K156: 139
K157: 140
K158: 141
K159: 142
K160: 143
K161: 144
K162: 145
K163: 146
K164: 147
K165: 148
K166: 149
K167: 150
K168: 151
K169: 152
K170: 153
K171: 154
K172: 155
A175: =IF($C175="","",IF(OR($C175=$M$11,$C175=$M$12+1,$C175=$M$18,$C175=$M$19+1),"Einteilung geä.",IF(ISNA(VLOOKUP($C175,Feiertage,3,FALSE)),"",VLOOKUP($C175,Feiertage,3,FALSE)))) ->  | K175: 156
A176: =IF($C176="","",IF(OR($C176=$M$11,$C176=$M$12+1,$C176=$M$18,$C176=$M$19+1),"Einteilung geä.",IF(ISNA(VLOOKUP($C176,Feiertage,3,FALSE)),"",VLOOKUP($C176,Feiertage,3,FALSE)))) ->  | K176: 157
K177: 158
K178: 159
K179: 160
K180: 161
K181: 162
K182: 163
K183: 164
K184: 165
K185: 166
K186: 167
K187: 168
K188: 169
K189: 170
K190: 171
K191: 172
K192: 173
K193: 174
K194: 175
K195: 176
K196: 177
K197: 178
K198: 179
K199: 180
K200: 181
K201: 182
K202: 183
K203: 184
K204: 185
K205: 186
A208: =IF($C208="","",IF(OR($C208=$M$11,$C208=$M$12+1,$C208=$M$18,$C208=$M$19+1),"Einteilung geä.",IF(ISNA(VLOOKUP($C208,Feiertage,3,FALSE)),"",VLOOKUP($C208,Feiertage,3,FALSE)))) ->  | K208: 187
A209: =IF($C209="","",IF(OR($C209=$M$11,$C209=$M$12+1,$C209=$M$18,$C209=$M$19+1),"Einteilung geä.",IF(ISNA(VLOOKUP($C209,Feiertage,3,FALSE)),"",VLOOKUP($C209,Feiertage,3,FALSE)))) ->  | K209: 188
K210: 189
K211: 190
K212: 191
... 353 more rows

Sheet AZ Monat
A2: AZ Monat | B2: =IF($D$3>12,1,$D$3) -> 1 | C2: =E2+(B2-1)*31 -> 1 | D2: =DAY('AZ UEZ'!D6) -> 1 | E2: 1 | G2: 1 | S2: Einstellung "hh:mm" oder "IND" | X2: 1 | AG2: FALSE
B3: =DAY('AZ UEZ'!D6)+(MONTH('AZ UEZ'!D6)-1)*31 -> 1 | C3: =(B2-1)*31+1 -> 1 | D3: 1 | E3: =E2+1 -> 2 | S3: 2 | T3: =IF($S$3=2,24,1) -> 24 | U3: =IF($S$3=2,60,1) -> 60 | V3: =IF($S$3=2,2,6) -> 2 | AG3: TRUE | AV3: Richtiger Wochentag!
AV4: =ISNA(VLOOKUP($C6,Feiertage,6,0)) -> TRUE
B5: =IF($D$3>12,"Jan. - Dez. "&'AZ Jahr'!$C$1,DATE('AZ Jahr'!$C$1,B2,1)) -> 2026-01-01 | E5: ='AZ Jahr'!$D$1 ->  | J5: Pers.Nr.: | K5: =Berechnen!$C$3 -> u-Nr. ? | N5: Gr: | O5: =CONCATENATE(IF(OR(DATE('AZ Jahr'!$C$1,'AZ Monat'!$B$2,28)<$AD$580,DATE('AZ Jahr'!$C$1,'AZ Monat'!$B$2,1)<$AD$574),LOOKUP($AD$572,Berechnen!$AA$10:'Berechnen'!$AA$17,Berechnen!$AB$10:$AB$17),""),IF(AND($AD$580>0,DATE('AZ Jahr'!$C$1,'AZ Monat'!$B$2,28)>$AD$574,OR(DATE('AZ Jahr'!$C$1,'AZ Monat'!$B$2,28)<$AD$580,DATE('AZ Jahr'!$C$1,'AZ Monat'!$B$2,1)<$AD$574))," / ",""),IF(AND($AD$580>0,DATE('AZ Jahr'!$C$1,'AZ Monat'!$B$2,28)>$AD$574),LOOKUP($AD$579,Berechnen!$AA$10:$AA$17,Berechnen!$AH$10:$AH$17),"")) ->  | V5: Beschäftigung: | W5: ='AZ Jahr'!$C$8*100 -> 100 | X5: % | AP5: ='AZ Jahr'!$AG$1 -> 492 | AV5: =IF(ISNA(VLOOKUP($C9,Feiertage,1,0))=FALSE,WEEKDAY($C7),1) -> 1
B6: Tag | C6: Datum | D6: Tour | E6: AB | F6: AE | G6: Bemerkungen | H6: Pause 1 von | I6: Pause 1 bis | J6: P1 | K6: Pause 2 von | L6: Pause 2 bis | M6: P2 | N6: ND /P | O6: AS | P6: AZ Min. | Q6: =IF($S$3=1,"AZ hh:mm","AZ IND") -> AZ IND | R6: =IF($S$3=1,"P 1 hh:mm","P 1 IND") -> P 1 IND | S6: =IF($S$3=1,"P 2 hh:mm","P 2 IND") -> P 2 IND | T6: P>60' 0 - 5h | U6: P + >60' | V6: =IF($S$3=1,"PA + hh:mm","PA + IND") -> PA + IND | W6: ND 1 30% | X6: ND LP | Y6: =IF($S$3=1,"ND 2 hh:mm","ND 2 IND") -> ND 2 IND | Z6: Korr. Min. | AA6: Korr. IND | AB6: ÜZ Min. | AC6: ÜZ IND | AD6: ÜZ Tot | AE6: Total AZ Min. hh:mm | AG6: AZ Tot. IND | AH6: =IF(AND($S$3=1,$AG$2=TRUE),"ND 3 Min.",IF(AND($S$3=2,$AG$2=TRUE),"ND 3 IND","")) ->  | AI6: =IF($S$3=1,"So hh:mm","So IND") -> So IND | AJ6: =IF($S$3=1,"ND hh:mm","ND IND") -> ND IND | AN6: Code | AO6: Art | AP6: Zeit | AQ6: % ? | AS6: AZ | AT6: P+ | AV6: So | AW6: Abwesenheit 1 | AX6: Abwesenheit 2 | AY6: AZ ø
A7: =IF(OR($C7=$AD$573,$C7=$AD$574+1,$C7=$AD$580,$C7=$AD$581+1),"Einteilung geä.",IF(ISNA(VLOOKUP($C7,Feiertage,3,FALSE)),"",VLOOKUP($C7,Feiertage,3,FALSE))) ->  | B7: =WEEKDAY(C7) -> 1900-01-05 | C7: =DATE('AZ Jahr'!$C$1,1,1) -> 2026-01-01 | O7: =IF(AND(ISNUMBER(E7),ISNUMBER(F7)),IF(E7<F7,(F7-E7)*1440,(1-E7+F7)*1440),"") ->  | P7: =IF(AND(E7=":",F7=":",$AG$3=TRUE),$AP$5,IF(O7="",0,IF(AS7<360,360,AS7))) -> 0 | Q7: =IF($S$3=1,ROUND(P7,0)/1440,P7/60) -> 00:00:00 | R7: =IF(OR(H7="",I7=""),0,IF(H7<I7,(I7-H7)*1440,IF(H7>I7,(1-H7+I7)*1440)))/$U$3 -> 0 | S7: =IF(OR(K7="",L7=""),0,IF(K7<L7,(L7-K7)*1440,IF(K7>L7,(1-K7+L7)*1440)))/$U$3 -> 0 | T7: =(IF(AND(R7*$U$3>=180,J7=2),0,IF(AND(R7*$U$3>60,N7<>1),(IF(AND(H7>I7,(H7+1/24)<=1),I7,IF(AND(H7>I7,(H7+1/24)>1),(I7+1-(H7+1/24)),IF(AND(H7<=4/24,I7<=5/24),(I7-(H7+1/24)),IF(AND((H7+1/24)<=5/24,I7>5/24),(5/24-(H7+1/24)),0))))),0))+IF(AND(S7*$U$3>=180,M7=2),0,IF(N7<>1,IF(AND(K7>L7,R7*$U$3<=60,(K7-R7*$U$3/1440+1/24)>1),(L7-(K7-R7*$U$3/1440-23/24)),IF(OR(AND(K7>L7,R7*$U$3<=60,(K7-R7*$U$3/1440+1/24)<=1),AND(K7>L7,R7*$U$3>60)),L7,IF(AND(K7<5/24,L7>=5/24,R7*$U$3<60),(5/24-(K7-R7*$U$3/1440+1/24)),IF(AND(K7<5/24,L7>=5/24,R7*$U$3>=60),(5/24-K7),IF(AND(S7*$U$3>0,K7<5/24,L7<5/24,R7*$U$3<60),(L7-(K7-R7*$U$3/1440+1/24)),IF(AND(S7*$U$3>0,K7<5/24,L7<5/24,R7*$U$3>=60),(L7-K7),0)))))))))*1440/$U$3 -> 0 | U7: =IF(AND(AS7<360,AS7+AT7<=360),0,IF(AND(AS7<360,AS7+AT7>360),AS7+AT7-360,AT7))/$U$3 -> 0 | V7: =(IF(OR(AND(R7*$U$3>=180,J7=2),AND(J7=1,N7=1)),R7*$U$3*15%,IF(AND(J7=1,R7*$U$3>60,N7=1),R7*$U$3*15%,IF(AND(J7=1,R7*$U$3>60),9,IF(AND(J7=1,R7*$U$3<=60),R7*$U$3*15%,0))))+IF(OR(AND(S7*$U$3>=180,M7=2),AND(M7=1,N7=1)),S7*$U$3*15%,IF(AND(M7=1,S7*$U$3>60,N7=1),S7*$U$3*15%,IF(AND(M7=1,S7*$U$3>0,R7*$U$3<=60),(60-R7*$U$3)*15%,0))))/$U$3 -> 0 | W7: =(IF(AND(OR(E7>F7,E7=0),F7<=5/24),F7*432,IF(AND(E7>F7,F7>5/24),90,IF(AND(E7<4/24,F7>5/24),(5/24-E7)*432,IF(AND(E7<4/24,F7<=5/24),(F7-E7)*432,0))))-IF(AND(H7>I7,I7<=5/24),I7*432,IF(AND(H7<I7,H7<=5/24,I7<=5/24),(I7-H7)*432,IF(AND(H7<I7,H7<=5/24),(5/24-H7)*432,IF(AND(H7>I7,I7>=5/24),90,0))))-IF(AND(K7>L7,L7<=5/24),L7*432,IF(AND(K7<L7,K7<=5/24,L7<=5/24),(L7-K7)*432,IF(AND(K7<L7,K7<=5/24),(5/24-K7)*432,IF(AND(K7>L7,L7>=5/24),90,0))))+T7*$U$3*30%)/$U$3 -> 0 | X7: =(IF(N7=1,0,ROUND(IF(AND(OR(E7>F7,E7=0),F7<=6/24),F7*144,IF(AND(E7>F7,F7>6/24),36,IF(AND(E7<6/24,F7<=6/24),(F7-E7)*144,IF(E7<6/24,(6/24-E7)*144,0))))-IF(AND(H7>I7,I7<=6/24),I7*144,IF(AND(H7<I7,H7<=6/24,I7<=6/24),(I7-H7)*144,IF(AND(H7<I7,H7<=6/24),(6/24-H7)*144,IF(AND(H7>I7,I7>=6/24),36,0))))-IF(AND(K7>L7,L7<=6/24),L7*144,IF(AND(K7<L7,K7<=6/24,L7<=6/24),(L7-K7)*144,IF(AND(K7<L7,K7<=6/24),(6/24-K7)*144,IF(AND(K7>L7,L7>=6/24),36,0))))+T7*$U$3*10%,1)))/$U$3 -> 0 | Y7: =(IF(O7="",0,IF(AND(E7>20/24,E7<F7),(F7-E7)*144,IF(E7>20/24,(1-E7)*144,IF(E7>F7,24,IF(F7>20/24,(F7-20/24)*144,0)))))-IF(AND(H7<=20/24,I7<H7),24,IF(AND(H7<20/24,I7<20/24),0,IF(AND(H7<=20/24,I7>20/24),(I7-20/24)*144,IF(AND(H7>20/24,I7>20/24),(I7-H7)*144,IF(AND(I7<H7,H7>20/24),(1-H7)*144,0)))))-IF(AND(K7<=20/24,L7<K7),24,IF(AND(K7<20/24,L7<20/24),0,IF(AND(K7<=20/24,L7>20/24),(L7-20/24)*144,IF(AND(K7>20/24,L7>20/24),(L7-K7)*144,IF(AND(L7<K7,K7>20/24),(1-K7)*144,0))))))/$U$3 -> 0 | AD7: =(IF(D7=$AN$12,-$AP$12,0)+AB7+AC7*60)/$U$3 -> 0 | AE7: =P7+Z7+AW7+AX7+(U7+V7+W7+X7+Y7+(AD7*-1))*$U$3+AA7*60 -> 0 | AF7: =AE7/1440 -> 00:00:00 | AG7: =AE7/60 -> 0 | AH7: =ROUND(IF($D7=$AN$15,-$AP$15/$U$3,IF(O7="",0,IF($AG$2=TRUE,W7/3,0))),$V$3) -> 0 | AI7: =ROUND((IF(O7="",,IF(E7="",0,IF(AV7=1,(IF(E7<F7,F7-E7,1-E7)-IF(AND(E7>F7,H7<I7,H7<E7),0,IF(H7<I7,I7-H7,IF(H7>I7,1-H7,0)))-IF(AND(E7>F7,K7<L7,K7<E7),0,IF(K7<L7,L7-K7,IF(K7>L7,1-K7,0)))),0))+IF(AND(AV8=1,E7>F7),(F7-IF(AND(E7>F7,H7<I7,H7<E7),I7-H7,IF(H7>I7,I7,0))-IF(AND(E7>F7,K7<L7,K7<E7),L7-K7,IF(K7>L7,L7,0))),0))+IF(AND(AV7=1,E7<5/24,P7>0),T7/1440,0)+IF(AND(E7>F7,AV8=1),T7/1440,0))*$T$3,$V$3) -> 00:00:00 | AJ7: =ROUND((IF(AND(OR(E7>F7,E7=0),F7<=6/24),F7,IF(AND(E7>F7,F7>6/24),6/24,IF(AND(E7<6/24,F7>6/24),6/24-E7,IF(AND(E7<6/24,F7<=6/24),F7-E7,0))))+IF(B7<7,IF(O7="",0,IF(AND(E7>20/24,E7<F7),F7-E7,IF(E7>20/24,1-E7,IF(E7>F7,4/24,IF(F7>20/24,F7-20/24,0))))))+IF(B7=7,IF(O7="",0,IF(AND(E7>18/24,E7<F7),F7-E7,IF(E7>18/24,1-E7,IF(E7>F7,6/24,IF(F7>18/24,F7-18/24,0))))),0))*$T$3,$V$3) -> 00:00:00 | AM7: 1 | AN7: ='AZ Jahr'!AE3 -> RT | AO7: ='AZ Jahr'!AF3 -> Ruhetag (-) | AP7: ='AZ Jahr'!AG3 -> 0 | AQ7: ='AZ Jahr'!AH3 -> 0 | AR7: =AN7&" "&AO7 -> RT Ruhetag (-) | AS7: =IF(AND(ISNUMBER(E7),ISNUMBER(F7)),ROUND(O7-R7*$U$3-S7*$U$3,0),0) -> 0 | AT7: =IF(N7=1,0,IF(AND(R7*$U$3>=180,J7=2),0,IF(R7*$U$3>60,R7*$U$3-60,0))+IF(AND(S7*$U$3>=180,M7=2),0,IF(AND(R7*$U$3>60,R7*$U$3<180),S7*$U$3,IF(AND(R7*$U$3>0,R7*$U$3<=60,S7*$U$3>0),R7*$U$3+S7*$U$3-60,0)))) -> 0 | AU7: 1 | AV7: =IF(ISNA(VLOOKUP($C7,Feiertage,1,0))=TRUE,WEEKDAY($C7),IF(VLOOKUP($C7,Feiertage,6,0)=1,1,WEEKDAY($C7))) -> 1 | AW7: =ROUND(IF(D7=$AN$24,$AP$24,IF(D7=$AN$23,$AP$23,IF(D7=$AN$22,$AP$22,IF(D7=$AN$13,$AP$13,IF(D7=$AN$14,$AP$14,IF(D7=$AN$15,$AP$15,0)))))),1) -> 0 | AX7: =ROUND(IF(D7=$AN$16,$AP$16,IF(D7=$AN$17,$AP$17,IF(D7=$AN$18,$AP$18,IF(D7=$AN$19,$AP$19,IF(D7=$AN$21,$AP$21,0))))),1)+IF(D7=$AN$20,$AP$20) -> 0 | AY7: =IF(AND(P7>0,AE7>=0),AD7*$U$3+AE7,0) -> 0
B8: 1900-01-06 | C8: =C7+1 -> 2026-01-02 | P8: 0 | Q8: 00:00:00 | R8: 0 | S8: 0 | T8: 0 | U8: =IF(AND(AS8<360,AS8+AT8<=360),0,IF(AND(AS8<360,AS8+AT8>360),AS8+AT8-360,AT8))/$U$3 -> 0 | V8: 0 | W8: 0 | X8: 0 | Y8: 0 | AD8: 0 | AE8: 0 | AF8: 00:00:00 | AG8: 0 | AH8: 0 | AI8: 00:00:00 | AJ8: =ROUND((IF(AND(OR(E8>F8,E8=0),F8<=6/24),F8,IF(AND(E8>F8,F8>6/24),6/24,IF(AND(E8<6/24,F8>6/24),6/24-E8,IF(AND(E8<6/24,F8<=6/24),F8-E8,0))))+IF(B8<7,IF(O8="",0,IF(AND(E8>20/24,E8<F8),F8-E8,IF(E8>20/24,1-E8,IF(E8>F8,4/24,IF(F8>20/24,F8-20/24,0))))))+IF(B8=7,IF(O8="",0,IF(AND(E8>18/24,E8<F8),F8-E8,IF(E8>18/24,1-E8,IF(E8>F8,6/24,IF(F8>18/24,F8-18/24,0))))),0))*$T$3,$V$3) -> 00:00:00 | AM8: 2 | AN8: ='AZ Jahr'!AE4 -> RTV | AO8: ='AZ Jahr'!AF4 -> Ruhetag verlangt | AP8: ='AZ Jahr'!AG4 -> 0 | AQ8: ='AZ Jahr'!AH4 -> 0 | AR8: RTV Ruhetag verlangt | AS8: 0 | AT8: 0 | AU8: 2 | AV8: 1 | AW8: 0 | AX8: 0 | AY8: 0
B9: 1900-01-07 | C9: =C7+2 -> 2026-01-03 | P9: 0 | Q9: 00:00:00 | R9: 0 | S9: 0 | T9: 0 | U9: 0 | V9: 0 | W9: 0 | X9: 0 | Y9: 0 | AD9: 0 | AE9: 0 | AF9: 00:00:00 | AG9: 0 | AH9: 0 | AI9: 00:00:00 | AJ9: 00:00:00 | AM9: 3 | AN9: ='AZ Jahr'!AE5 -> CT | AO9: ='AZ Jahr'!AF5 -> Ausgleichstag (+) | AP9: ='AZ Jahr'!AG5 -> 0 | AQ9: ='AZ Jahr'!AH5 -> 0 | AR9: CT Ausgleichstag (+) | AS9: 0 | AT9: 0 | AU9: 3 | AV9: 7 | AW9: 0 | AX9: 0 | AY9: 0
B10: 1900-01-01 | C10: =C7+3 -> 2026-01-04 | P10: 0 | Q10: 00:00:00 | R10: 0 | S10: 0 | T10: 0 | U10: 0 | V10: 0 | W10: 0 | X10: 0 | Y10: 0 | AD10: 0 | AE10: 0 | AF10: 00:00:00 | AG10: 0 | AH10: 0 | AI10: 00:00:00 | AJ10: 00:00:00 | AM10: 4 | AN10: ='AZ Jahr'!AE6 -> CTV | AO10: ='AZ Jahr'!AF6 -> Ausgleichstag verlangt | AP10: ='AZ Jahr'!AG6 -> 0 | AQ10: ='AZ Jahr'!AH6 -> 0 | AR10: CTV Ausgleichstag verlangt | AS10: 0 | AT10: 0 | AU10: 4 | AV10: 1 | AW10: 0 | AX10: 0 | AY10: 0
B11: 1900-01-02 | C11: =C7+4 -> 2026-01-05 | P11: 0 | Q11: 00:00:00 | R11: 0 | S11: 0 | T11: 0 | U11: 0 | V11: 0 | W11: 0 | X11: 0 | Y11: 0 | AD11: 0 | AE11: 0 | AF11: 00:00:00 | AG11: 0 | AH11: 0 | AI11: 00:00:00 | AJ11: 00:00:00 | AM11: 5 | AN11: ='AZ Jahr'!AE7 -> TZT | AO11: ='AZ Jahr'!AF7 -> Teilzeit | AP11: ='AZ Jahr'!AG7 -> 0 | AQ11: ='AZ Jahr'!AH7 -> 0 | AR11: TZT Teilzeit | AS11: 0 | AT11: 0 | AU11: 5 | AV11: 2 | AW11: 0 | AX11: 0 | AY11: 0
B12: 1900-01-03 | C12: =C7+5 -> 2026-01-06 | P12: 0 | Q12: 00:00:00 | R12: 0 | S12: 0 | T12: 0 | U12: 0 | V12: 0 | W12: 0 | X12: 0 | Y12: 0 | AD12: 0 | AE12: 0 | AF12: 00:00:00 | AG12: 0 | AH12: 0 | AI12: 00:00:00 | AJ12: 00:00:00 | AM12: 6 | AN12: ='AZ Jahr'!AE8 -> UEZ | AO12: ='AZ Jahr'!AF8 -> Zeitbezug Überzeit | AP12: ='AZ Jahr'!AG8 -> 492 | AQ12: ='AZ Jahr'!AH8 -> 0 | AR12: UEZ Zeitbezug Überzeit | AS12: 0 | AT12: 0 | AU12: 6 | AV12: 3 | AW12: 0 | AX12: 0 | AY12: 0
B13: 1900-01-04 | C13: =C7+6 -> 2026-01-07 | P13: 0 | Q13: 00:00:00 | R13: 0 | S13: 0 | T13: 0 | U13: 0 | V13: 0 | W13: 0 | X13: 0 | Y13: 0 | AD13: 0 | AE13: 0 | AF13: 00:00:00 | AG13: 0 | AH13: 0 | AI13: 00:00:00 | AJ13: 00:00:00 | AM13: 7 | AN13: ='AZ Jahr'!AE9 -> Ferien | AO13: ='AZ Jahr'!AF9 -> Ferien / F-Einzeltag | AP13: ='AZ Jahr'!AG9 -> 492 | AQ13: ='AZ Jahr'!AH9 -> 1 | AR13: Ferien Ferien / F-Einzeltag | AS13: 0 | AT13: 0 | AU13: 7 | AV13: 4 | AW13: 0 | AX13: 0 | AY13: 0
B14: 1900-01-05 | C14: =C7+7 -> 2026-01-08 | P14: 0 | Q14: 00:00:00 | R14: 0 | S14: 0 | T14: 0 | U14: 0 | V14: 0 | W14: 0 | X14: 0 | Y14: 0 | AD14: 0 | AE14: 0 | AF14: 00:00:00 | AG14: 0 | AH14: 0 | AI14: 00:00:00 | AJ14: 00:00:00 | AM14: 8 | AN14: ='AZ Jahr'!AE10 -> TRP | AO14: ='AZ Jahr'!AF10 -> Treueprämie | AP14: ='AZ Jahr'!AG10 -> 492 | AQ14: ='AZ Jahr'!AH10 -> 0 | AR14: TRP Treueprämie | AS14: 0 | AT14: 0 | AU14: 8 | AV14: 5 | AW14: 0 | AX14: 0 | AY14: 0
B15: 1900-01-06 | C15: =C7+8 -> 2026-01-09 | P15: 0 | Q15: 00:00:00 | R15: 0 | S15: 0 | T15: 0 | U15: 0 | V15: 0 | W15: 0 | X15: 0 | Y15: 0 | AD15: 0 | AE15: 0 | AF15: 00:00:00 | AG15: 0 | AH15: 0 | AI15: 00:00:00 | AJ15: 00:00:00 | AM15: 9 | AN15: ='AZ Jahr'!AE11 ->  | AO15: ='AZ Jahr'!AF11 ->  | AP15: ='AZ Jahr'!AG11 -> 0 | AQ15: ='AZ Jahr'!AH11 -> 0 | AS15: 0 | AT15: 0 | AU15: 9 | AV15: 6 | AW15: 0 | AX15: 0 | AY15: 0
B16: 1900-01-07 | C16: =C7+9 -> 2026-01-10 | P16: 0 | Q16: 00:00:00 | R16: 0 | S16: 0 | T16: 0 | U16: 0 | V16: 0 | W16: 0 | X16: 0 | Y16: 0 | AD16: 0 | AE16: 0 | AF16: 00:00:00 | AG16: 0 | AH16: 0 | AI16: 00:00:00 | AJ16: 00:00:00 | AM16: 10 | AN16: ='AZ Jahr'!AE12 -> K / U | AO16: ='AZ Jahr'!AF12 -> Krankheit / Unfall | AP16: ='AZ Jahr'!AG12 -> 492 | AQ16: ='AZ Jahr'!AH12 -> 1 | AR16: K / U Krankheit / Unfall | AS16: 0 | AT16: 0 | AU16: 10 | AV16: 7 | AW16: 0 | AX16: 0 | AY16: 0
B17: 1900-01-01 | C17: =C7+10 -> 2026-01-11 | P17: 0 | Q17: 00:00:00 | R17: 0 | S17: 0 | T17: 0 | U17: 0 | V17: 0 | W17: 0 | X17: 0 | Y17: 0 | AD17: 0 | AE17: 0 | AF17: 00:00:00 | AG17: 0 | AH17: 0 | AI17: 00:00:00 | AJ17: 00:00:00 | AM17: 11 | AN17: ='AZ Jahr'!AE13 -> M | AO17: ='AZ Jahr'!AF13 -> Militärdienst | AP17: ='AZ Jahr'!AG13 -> 492 | AQ17: ='AZ Jahr'!AH13 -> 1 | AR17: M Militärdienst | AS17: 0 | AT17: 0 | AU17: 11 | AV17: 1 | AW17: 0 | AX17: 0 | AY17: 0
B18: 1900-01-02 | C18: =C7+11 -> 2026-01-12 | P18: 0 | Q18: 00:00:00 | R18: 0 | S18: 0 | T18: 0 | U18: 0 | V18: 0 | W18: 0 | X18: 0 | Y18: 0 | AD18: 0 | AE18: 0 | AF18: 00:00:00 | AG18: 0 | AH18: 0 | AI18: 00:00:00 | AJ18: 00:00:00 | AM18: 12 | AN18: ='AZ Jahr'!AE14 -> MED | AO18: ='AZ Jahr'!AF14 -> Medizinisch | AP18: ='AZ Jahr'!AG14 -> 492 | AQ18: ='AZ Jahr'!AH14 -> 1 | AR18: MED Medizinisch | AS18: 0 | AT18: 0 | AU18: 12 | AV18: 2 | AW18: 0 | AX18: 0 | AY18: 0
B19: 1900-01-03 | C19: =C7+12 -> 2026-01-13 | P19: 0 | Q19: 00:00:00 | R19: 0 | S19: 0 | T19: 0 | U19: 0 | V19: 0 | W19: 0 | X19: 0 | Y19: 0 | AD19: 0 | AE19: 0 | AF19: 00:00:00 | AG19: 0 | AH19: 0 | AI19: 00:00:00 | AJ19: 00:00:00 | AM19: 13 | AN19: ='AZ Jahr'!AE15 -> U 1 | AO19: ='AZ Jahr'!AF15 -> Urlaub diverse | AP19: ='AZ Jahr'!AG15 -> 492 | AQ19: ='AZ Jahr'!AH15 -> 1 | AR19: U 1 Urlaub diverse | AS19: 0 | AT19: 0 | AU19: 13 | AV19: 3 | AW19: 0 | AX19: 0 | AY19: 0
B20: 1900-01-04 | C20: =C7+13 -> 2026-01-14 | P20: 0 | Q20: 00:00:00 | R20: 0 | S20: 0 | T20: 0 | U20: 0 | V20: 0 | W20: 0 | X20: 0 | Y20: 0 | AD20: 0 | AE20: 0 | AF20: 00:00:00 | AG20: 0 | AH20: 0 | AI20: 00:00:00 | AJ20: 00:00:00 | AM20: 14 | AN20: ='AZ Jahr'!AE16 -> U 2 | AO20: ='AZ Jahr'!AF16 -> Urlaub Weiterbildung | AP20: ='AZ Jahr'!AG16 -> 492 | AQ20: ='AZ Jahr'!AH16 -> 0 | AR20: U 2 Urlaub Weiterbildung | AS20: 0 | AT20: 0 | AU20: 14 | AV20: 4 | AW20: 0 | AX20: 0 | AY20: 0
B21: 1900-01-05 | C21: =C7+14 -> 2026-01-15 | P21: 0 | Q21: 00:00:00 | R21: 0 | S21: 0 | T21: 0 | U21: 0 | V21: 0 | W21: 0 | X21: 0 | Y21: 0 | AD21: 0 | AE21: 0 | AF21: 00:00:00 | AG21: 0 | AH21: 0 | AI21: 00:00:00 | AJ21: 00:00:00 | AM21: 15 | AN21: ='AZ Jahr'!AE17 -> UUB | AO21: ='AZ Jahr'!AF17 -> Urlaub unbezahlt | AP21: ='AZ Jahr'!AG17 -> 492 | AQ21: ='AZ Jahr'!AH17 -> 1 | AR21: UUB Urlaub unbezahlt | AS21: 0 | AT21: 0 | AU21: 15 | AV21: 5 | AW21: 0 | AX21: 0 | AY21: 0
B22: 1900-01-06 | C22: =C7+15 -> 2026-01-16 | P22: 0 | Q22: 00:00:00 | R22: 0 | S22: 0 | T22: 0 | U22: 0 | V22: 0 | W22: 0 | X22: 0 | Y22: 0 | AD22: 0 | AE22: 0 | AF22: 00:00:00 | AG22: 0 | AH22: 0 | AI22: 00:00:00 | AJ22: 00:00:00 | AM22: 16 | AN22: ='AZ Jahr'!AE18 ->  | AO22: ='AZ Jahr'!AF18 ->  | AP22: ='AZ Jahr'!AG18 -> 0 | AQ22: ='AZ Jahr'!AH18 -> 0 | AS22: 0 | AT22: 0 | AU22: 16 | AV22: 6 | AW22: 0 | AX22: 0 | AY22: 0
B23: 1900-01-07 | C23: =C7+16 -> 2026-01-17 | P23: 0 | Q23: 00:00:00 | R23: 0 | S23: 0 | T23: 0 | U23: 0 | V23: 0 | W23: 0 | X23: 0 | Y23: 0 | AD23: 0 | AE23: 0 | AF23: 00:00:00 | AG23: 0 | AH23: 0 | AI23: 00:00:00 | AJ23: 00:00:00 | AM23: 17 | AN23: ='AZ Jahr'!AE19 -> CTS | AO23: ='AZ Jahr'!AF19 -> Bezug CTS | AP23: ='AZ Jahr'!AG19 -> 492 | AQ23: ='AZ Jahr'!AH19 -> 0 | AR23: CTS Bezug CTS | AS23: 0 | AT23: 0 | AU23: 17 | AV23: 7 | AW23: 0 | AX23: 0 | AY23: 0
B24: 1900-01-01 | C24: =C7+17 -> 2026-01-18 | P24: 0 | Q24: 00:00:00 | R24: 0 | S24: 0 | T24: 0 | U24: 0 | V24: 0 | W24: 0 | X24: 0 | Y24: 0 | AD24: 0 | AE24: 0 | AF24: 00:00:00 | AG24: 0 | AH24: 0 | AI24: 00:00:00 | AJ24: 00:00:00 | AM24: 18 | AN24: ='AZ Jahr'!AE20 -> Flexa | AO24: ='AZ Jahr'!AF20 -> Bezug Flexa | AP24: ='AZ Jahr'!AG20 -> 492 | AQ24: ='AZ Jahr'!AH20 -> 1 | AR24: Flexa Bezug Flexa | AS24: 0 | AT24: 0 | AU24: 18 | AV24: 1 | AW24: 0 | AX24: 0 | AY24: 0 | AZ24: Januar | BA24: =DATE('AZ Jahr'!$C$1,B2,1) -> 2026-01-01
B25: 1900-01-02 | C25: =C7+18 -> 2026-01-19 | P25: 0 | Q25: 00:00:00 | R25: 0 | S25: 0 | T25: 0 | U25: 0 | V25: 0 | W25: 0 | X25: 0 | Y25: 0 | AD25: 0 | AE25: 0 | AF25: 00:00:00 | AG25: 0 | AH25: 0 | AI25: 00:00:00 | AJ25: 00:00:00 | AS25: 0 | AT25: 0 | AU25: 19 | AV25: 2 | AW25: 0 | AX25: 0 | AY25: 0 | AZ25: Februar | BA25: =BA24+1 -> 2026-01-02
B26: 1900-01-03 | C26: =C7+19 -> 2026-01-20 | P26: 0 | Q26: 00:00:00 | R26: 0 | S26: 0 | T26: 0 | U26: 0 | V26: 0 | W26: 0 | X26: 0 | Y26: 0 | AD26: 0 | AE26: 0 | AF26: 00:00:00 | AG26: 0 | AH26: 0 | AI26: 00:00:00 | AJ26: 00:00:00 | AS26: 0 | AT26: 0 | AU26: 20 | AV26: 3 | AW26: 0 | AX26: 0 | AY26: 0 | AZ26: März | BA26: =BA25+1 -> 2026-01-03
B27: 1900-01-04 | C27: =C7+20 -> 2026-01-21 | P27: 0 | Q27: 00:00:00 | R27: 0 | S27: 0 | T27: 0 | U27: 0 | V27: 0 | W27: 0 | X27: 0 | Y27: 0 | AD27: 0 | AE27: 0 | AF27: 00:00:00 | AG27: 0 | AH27: 0 | AI27: 00:00:00 | AJ27: 00:00:00 | AS27: 0 | AT27: 0 | AU27: 21 | AV27: 4 | AW27: 0 | AX27: 0 | AY27: 0 | AZ27: April | BA27: 2026-01-04
B28: 1900-01-05 | C28: =C7+21 -> 2026-01-22 | P28: 0 | Q28: 00:00:00 | R28: 0 | S28: 0 | T28: 0 | U28: 0 | V28: 0 | W28: 0 | X28: 0 | Y28: 0 | AD28: 0 | AE28: 0 | AF28: 00:00:00 | AG28: 0 | AH28: 0 | AI28: 00:00:00 | AJ28: 00:00:00 | AS28: 0 | AT28: 0 | AU28: 22 | AV28: 5 | AW28: 0 | AX28: 0 | AY28: 0 | AZ28: Mai | BA28: 2026-01-05
B29: 1900-01-06 | C29: =C7+22 -> 2026-01-23 | P29: 0 | Q29: 00:00:00 | R29: 0 | S29: 0 | T29: 0 | U29: 0 | V29: 0 | W29: 0 | X29: 0 | Y29: 0 | AD29: 0 | AE29: 0 | AF29: 00:00:00 | AG29: 0 | AH29: 0 | AI29: 00:00:00 | AJ29: 00:00:00 | AS29: 0 | AT29: 0 | AU29: 23 | AV29: 6 | AW29: 0 | AX29: 0 | AY29: 0 | AZ29: Juni | BA29: 2026-01-06
B30: 1900-01-07 | C30: =C7+23 -> 2026-01-24 | P30: 0 | Q30: 00:00:00 | R30: 0 | S30: 0 | T30: 0 | U30: 0 | V30: 0 | W30: 0 | X30: 0 | Y30: 0 | AD30: 0 | AE30: 0 | AF30: 00:00:00 | AG30: 0 | AH30: 0 | AI30: 00:00:00 | AJ30: 00:00:00 | AS30: 0 | AT30: 0 | AU30: 24 | AV30: 7 | AW30: 0 | AX30: 0 | AY30: 0 | AZ30: Juli | BA30: 2026-01-07
B31: 1900-01-01 | C31: =C7+24 -> 2026-01-25 | P31: 0 | Q31: 00:00:00 | R31: 0 | S31: 0 | T31: 0 | U31: 0 | V31: 0 | W31: 0 | X31: 0 | Y31: 0 | AD31: 0 | AE31: 0 | AF31: 00:00:00 | AG31: 0 | AH31: 0 | AI31: 00:00:00 | AJ31: 00:00:00 | AS31: 0 | AT31: 0 | AU31: 25 | AV31: 1 | AW31: 0 | AX31: 0 | AY31: 0 | AZ31: August | BA31: 2026-01-08
B32: 1900-01-02 | C32: =C7+25 -> 2026-01-26 | P32: 0 | Q32: 00:00:00 | R32: 0 | S32: 0 | T32: 0 | U32: 0 | V32: 0 | W32: 0 | X32: 0 | Y32: 0 | AD32: 0 | AE32: 0 | AF32: 00:00:00 | AG32: 0 | AH32: 0 | AI32: 00:00:00 | AJ32: 00:00:00 | AS32: 0 | AT32: 0 | AU32: 26 | AV32: 2 | AW32: 0 | AX32: 0 | AY32: 0 | AZ32: September | BA32: 2026-01-09
B33: 1900-01-03 | C33: =C7+26 -> 2026-01-27 | P33: 0 | Q33: 00:00:00 | R33: 0 | S33: 0 | T33: 0 | U33: 0 | V33: 0 | W33: 0 | X33: 0 | Y33: 0 | AD33: 0 | AE33: 0 | AF33: 00:00:00 | AG33: 0 | AH33: 0 | AI33: 00:00:00 | AJ33: 00:00:00 | AS33: 0 | AT33: 0 | AU33: 27 | AV33: 3 | AW33: 0 | AX33: 0 | AY33: 0 | AZ33: Oktober | BA33: 2026-01-10
B34: 1900-01-04 | C34: =C7+27 -> 2026-01-28 | P34: 0 | Q34: 00:00:00 | R34: 0 | S34: 0 | T34: 0 | U34: 0 | V34: 0 | W34: 0 | X34: 0 | Y34: 0 | AD34: 0 | AE34: 0 | AF34: 00:00:00 | AG34: 0 | AH34: 0 | AI34: 00:00:00 | AJ34: 00:00:00 | AS34: 0 | AT34: 0 | AU34: 28 | AV34: 4 | AW34: 0 | AX34: 0 | AY34: 0 | AZ34: November | BA34: 2026-01-11
B35: 1900-01-05 | C35: =C7+28 -> 2026-01-29 | P35: 0 | Q35: 00:00:00 | R35: 0 | S35: 0 | T35: 0 | U35: 0 | V35: 0 | W35: 0 | X35: 0 | Y35: 0 | AD35: 0 | AE35: 0 | AF35: 00:00:00 | AG35: 0 | AH35: 0 | AI35: 00:00:00 | AJ35: 00:00:00 | AS35: 0 | AT35: 0 | AU35: 29 | AV35: 5 | AW35: 0 | AX35: 0 | AY35: 0 | AZ35: Dezember | BA35: 2026-01-12
B36: 1900-01-06 | C36: =C7+29 -> 2026-01-30 | P36: 0 | Q36: 00:00:00 | R36: 0 | S36: 0 | T36: 0 | U36: 0 | V36: 0 | W36: 0 | X36: 0 | Y36: 0 | AD36: 0 | AE36: 0 | AF36: 00:00:00 | AG36: 0 | AH36: 0 | AI36: 00:00:00 | AJ36: 00:00:00 | AS36: 0 | AT36: 0 | AU36: 30 | AV36: 6 | AW36: 0 | AX36: 0 | AY36: 0 | AZ36: Alle anzeigen | BA36: 2026-01-13
B37: 1900-01-07 | C37: =C7+30 -> 2026-01-31 | P37: 0 | Q37: 00:00:00 | R37: 0 | S37: 0 | T37: 0 | U37: 0 | V37: 0 | W37: 0 | X37: 0 | Y37: 0 | AD37: 0 | AE37: 0 | AF37: 00:00:00 | AG37: 0 | AH37: 0 | AI37: 00:00:00 | AJ37: 00:00:00 | AS37: 0 | AT37: 0 | AU37: 31 | AV37: 7 | AW37: 0 | AX37: 0 | AY37: 0 | AZ37: JAHR ausfüllen | BA37: 2026-01-14
T38: =IF($S$3=1,"Total Min. > ","Total IND > ") -> Total IND > | U38: =SUM(U7:U37) -> 0 | V38: =SUM(V7:V37) -> 0 | W38: =SUM(W7:W37) -> 0 | X38: =SUM(X7:X37) -> 0 | Y38: =SUM(Y7:Y37) -> 0 | AC38: in Min. / hh:mm > | AD38: =IF($S$3=1,SUM(AD7:AD37),AD39*60) -> 0 | AE38: =SUM(AE7:AE37) -> 0 | AF38: 0 | AH38: =SUMIF(AH7:AH37,">0",AH7:AH37)*$U$3 -> 0 | AI38: =AI39/24 -> 0 | AJ38: =AJ39/24 -> 0 | AV38: =$AV54 -> 1 | AY38: =SUM(AY7:AY37) -> 0 | BA38: 2026-01-15
B39: Bemerkungen: | D39: … | T39: Total IND > | U39: =ROUND(IF($S$3=1,SUM(U38+V38)/60,SUM(U38+V38)),2) -> 0 | W39: =ROUND(IF($S$3=1,SUM(W38+X38)/60,SUM(W38+X38)),2) -> 0 | Y39: =ROUND(IF($S$3=1,Y38/60,Y38),2) -> 0 | AC39: =IF(AND($S$3=2,$AG$2=TRUE),"ND3 / So / ND = *) IND > ","IND > ") -> IND > | AD39: =IF($S$3=1,SUM(AD7:AD37)/60,SUM(AD7:AD37)) -> 0 | AE39: =AE38/60 -> 0 | AF39: =AF38*24 -> 0 | AG39: =SUM(AG7:AG37) -> 0 | AH39: =IF($S$3=1,SUM(AH7:AH37)/60,SUM(AH7:AH37)) -> 0 | AI39: =IF($S$3=1,SUM(AI7:AI37)*24,SUM(AI7:AI37)) -> 0 | AJ39: =IF($S$3=1,SUM(AJ7:AJ37)*24,SUM(AJ7:AJ37)) -> 0 | AY39: =COUNTIF(AY7:AY37,">0") -> 0 | BA39: =BA38+1 -> 2026-01-16
B40: =IF($S$3=2,"IND = Industrie Stunden > Stunden dezimal *) = Täglich gerundet auf 2 Stellen nach Komma","IND = Industrie Stunden > Stunden dezimal") -> IND = Industrie Stunden > Stunden dezimal *) = Täglich gerundet auf 2 Stellen nach Komma | I40: =IF($X$2=1,"Berechnung JAZ > SOPRE",IF($X$2=2,"Berechnung JAZ > SAP","Berechnung JAZ > LINEAR")) -> Berechnung JAZ > SOPRE | M40: IND | O40: hh:mm | Q40: Minuten | W40: IND | Y40: hh:mm | AA40: Minuten | AF40: IND | AG40: hh:mm (CHF) | AI40: Minuten (CHF) | BA40: =BA39+1 -> 2026-01-17
B41: Abwesenheitskontrolle Januar | I41: =CONCATENATE(" AZ Saldo ",TEXT(C7-1,"TT.MM.JJ")) -> AZ Saldo 31.12.25 | L41: ='AZ Jahr'!R3 -> 0 | N41: =IF('AZ Monat'!$P$41<0,TEXT(-'AZ Monat'!$P$41/1440,"- [hh]:mm"),'AZ Monat'!$P$41/1440) -> 0 | P41: =ROUND(L41*60,0) -> 0 | S41: Nachtdienst 3 | V41: =Z41/60 -> 0 | X41: ='AZ Jahr'!$R$9 -> 0 | Z41: ='AZ Jahr'!R9*1440 -> 0 | AC41: TRP | AE41: =AI41/60 -> 0 | AG41: ='AZ Jahr'!$R$4 -> 0 | AI41: ='AZ Jahr'!$R$4*1440 -> 0 | BA41: =BA40+1 -> 2026-01-18
B42: Was | E42: Anzahl | F42: Total | G42: Soll-Trend | I42: Korrektur IND od. Min | N42: =IF(Q42<0,TEXT(-Q42/1440,"- [hh]:mm"),Q42/1440) -> 0 | Q42: =IF(L42<>0,L42*60,IF(P42<>0,P42,0)) -> 0 | S42: ND3 Januar | U42: =COUNTIF(D7:D37,$AN$15) -> 0 | V42: =AH39 -> 0 | X42: =IF(Z42<0,TEXT(-Z42/1440,"- [hh]:mm"),Z42/1440) -> 0 | Z42: =AH39*60 -> 0 | AC42: Jan. | AD42: =COUNTIF(D7:D37,$AN$14) -> 0 | AF42: =AJ42/60 -> 0 | AG42: =IF(AJ42<0,TEXT(-AJ42/1440,"- [hh]:mm"),AJ42/1440) -> 0 | AJ42: =AD42*$AP$14*-1+IF(AE42<>0,AE42*60,IF(AI42<>0,AI42,0)) -> 0 | BA42: =BA41+1 -> 2026-01-19
B43: Ruhetage -, RT, Ferien- | E43: =COUNTIF(D7:D37,"-")+COUNTIF(D7:D37,"RT")+COUNTIF(D7:D37,"Ferien-") -> 0 | F43: =E43 -> 0 | G43: Trend = inkl. CT aus TZT und allfällige Kürzung | I43: AZ Januar | L43: =ROUND(AG39+Q42/60,2) -> 0 | N43: =IF(P43<0,TEXT(-P43/1440,"- [hh]:mm"),P43/1440) -> 0 | P43: =AE38+Q42 -> 0 | S43: Korrektur IND od. Min | X43: =IF(AA43<0,TEXT(-AA43/1440,"- [hh]:mm"),AA43/1440) -> 0 | AA43: =IF(V43<>0,V43*60,IF(Z43<>0,Z43,0)) -> 0 | AC43: TRP Saldo | AE43: =AI43/60 -> 0 | AG43: =IF(AI43<0,TEXT(-AI43/1440,"- [hh]:mm"),AI43/1440) -> 0 | AI43: =AI41+AJ42 -> 0 | BA43: =BA42+1 -> 2026-01-20
B44: Ruhetage verlangt RTV | E44: =COUNTIF(D7:D37,$AN$8) -> 0 | F44: =E44 -> 0 | I44: Kürzung | K44: =E52+E53 -> 0 | L44: =P44/60 -> 0 | N44: =IF(K44=0,"",CONCATENATE("-",TEXT(-P44/1440,"[hh]:mm"))) ->  | P44: =-K44*$AP$16 -> 0 | S44: ND3 Saldo | V44: =Z44/60 -> 0 | X44: =IF(Z44<0,TEXT(-Z44/1440,"- [hh]:mm"),Z44/1440) -> 0 | Z44: =Z41+Z42+AA43 -> 0 | AC44: Flexa | AE44: =AI44/60 -> 0 | AG44: ='AZ Jahr'!$R$7 -> 0 | AI44: =AG44*1440 -> 0 | BA44: 2026-01-21
B45: Ausgl.t. +, CT, Ferien+, TZT | E45: =COUNTIF(D7:D37,"+")+COUNTIF(D7:D37,"CT")+COUNTIF(D7:D37,"Ferien+") -> 0 | F45: =E45 -> 0 | I45: GLZ manuell | N45: =IF(Q45<0,TEXT(-Q45/1440,"- [hh]:mm"),Q45/1440) -> 0 | Q45: =IF(L45<>0,L45*60,IF(P45<>0,P45,0)) -> 0 | S45: Überzeit | V45: =Z45/60 -> 0 | X45: ='AZ Jahr'!$R$5 -> 0 | Z45: =X45*1440 -> 0 | AC45: Jan. | AD45: =COUNTIF(D7:D37,$AN$24) -> 0 | AF45: =AJ45/60 -> 0 | AG45: =IF(AJ45<0,TEXT(-AJ45/1440,"- [hh]:mm"),AJ45/1440) -> 0 | AJ45: =AD45*$AP$24*-1+IF(AE45<>0,AE45*60,IF(AI45<>0,AI45,0))+IF(AND(AB52="JA",'AZ Jahr'!$R$17=2),AI52,0) -> 0 | BA45: 2026-01-22
B46: CTV (CT verlangt) | E46: =COUNTIF(D7:D37,$AN$10) -> 0 | F46: =E46 -> 0 | I46: AZ Saldo | L46: =ROUND(P46/60,2) -> 0 | N46: =IF(P46<0,TEXT(-P46/1440,"- [hh]:mm"),P46/1440) -> 0 | P46: =P41+P43+P44+Q45 -> 0 | S46: ÜZ Januar | U46: =COUNTIF(D7:D37,$AN$12) -> 0 | V46: =AD39 -> 0 | X46: =IF(Z46<0,TEXT(-Z46/1440,"- [hh]:mm"),Z46/1440) -> 0 | Z46: =V46*60 -> 0 | AC46: Flexa Saldo | AE46: =AI46/60 -> 0 | AG46: =IF(AI46<0,TEXT(-AI46/1440,"- [hh]:mm"),AI46/1440) -> 0 | AI46: =AI44+AJ45 -> 0 | BA46: 2026-01-23
B47: TZT Teilzeit | E47: =COUNTIF(D7:D37,$AN$11) -> 0 | F47: =E47 -> 0 | H47: =IF($X$2=1,"SOP >",IF($X$2=2,"SAP >","LIN >")) -> SOP > | I47: Soll Ende Jan | L47: =ROUND(IF(OR($X$2=1,$X$2=2),IF($C$82="",'AZ Jahr'!$D$10/60/(365-'AZ Jahr'!$E$7)*(31-IF($X$2=1,'AZ Jahr'!$E$14,'AZ Jahr'!$E$13)),'AZ Jahr'!$D$10/60/(366-'AZ Jahr'!$E$7)*(31-IF($X$2=1,'AZ Jahr'!$E$14,'AZ Jahr'!$E$13))),IF($C$82="",'AZ Jahr'!$D$10/60/365*31,'AZ Jahr'!$D$10/60/366*31)),2) -> 180.4 | N47: =P47/1440 -> 7.516666667 | P47: =L47*60 -> 10824 | S47: Korrektur IND od. Min | X47: =IF(AA47<0,TEXT(-AA47/1440,"- [hh]:mm"),AA47/1440) -> 0 | AA47: =IF(V47<>0,V47*60,IF(Z47<>0,Z47,0)) -> 0 | AC47: So Januar | AE47: =AI39 -> 0 | AG47: =IF(AE47=0,"",CONCATENATE("à CHF ",TEXT('AZ Jahr'!$J$9,"00.00")," ")) ->  | AI47: =ROUND(AE47*'AZ Jahr'!$J$9*2,1)/2 -> 0 | BA47: 2026-01-24
B48: Total Frei / Soll-Trend | E48: =SUM(E43:E47) -> 0 | F48: =SUM(F43:F47) -> 0 | G48: =ROUND('AZ Jahr'!$R$10*2,0)/2 -> 10 | I48: Ist | L48: =ROUND(P48/60,2) -> 0 | N48: =IF(P48<0,TEXT(-P48/1440,"- [hh]:mm"),P48/1440) -> 0 | P48: =P46 -> 0 | S48: ÜZ Saldo | V48: =Z48/60 -> 0 | X48: =IF(Z48<0,TEXT(-Z48/1440,"- [hh]:mm"),Z48/1440) -> 0 | Z48: =Z45+Z46+AA47 -> 0 | AC48: ND Januar | AE48: =AJ39 -> 0 | AG48: =IF(AE47=0,"",CONCATENATE("à CHF ",TEXT('AZ Jahr'!$J$10,"00.00")," ")) ->  | AI48: =ROUND(AE48*'AZ Jahr'!$J$10*2,1)/2 -> 0 | BA48: =BA47+1 -> 2026-01-25
B49: Freitagsaldo Trend ca. | E49: =G48 -> 10 | F49: =-F48 -> 0 | G49: =G48-F48 -> 10 | I49: Abweichung + / - | L49: =ROUND(P49/60,2) -> -180.4 | N49: =IF(P49<0,TEXT(-P49/1440,"- [hh]:mm"),P49/1440) -> - 180:24 | P49: =P48-P47 -> -10824 | S49: Konto CTS | V49: =Z49/60 -> 0 | X49: ='AZ Jahr'!$R$6 -> 0 | Z49: =X49*1440 -> 0 | AC49: ZstG | AE49: =AI49/60 -> 0 | AG49: ='AZ Jahr'!$R$8 -> 0 | AI49: =AG49*1440 -> 0 | BA49: =BA48+1 -> 2026-01-26
B50: Krank, Unfall K / U | E50: =COUNTIF(D7:D37,$AN$16) -> 0 | F50: =E50 -> 0 | G50: Total | I50: =CONCATENATE(" JAZ ",TEXT(C7,"JJ")," Ende Jan.") -> JAZ 26 Ende Jan. | L50: =ROUND(P50/60,2) -> 0 | N50: =IF(P50<0,TEXT(-P50/1440,"- [hh]:mm"),P50/1440) -> 0 | P50: =P48-$P$41 -> 0 | S50: CTS Januar | U50: =COUNTIF(D7:D37,$AN$23) -> 0 | V50: =U50*-1*$AP$23/60 -> 0 | X50: =IF(Z50<0,TEXT(-Z50/1440,"- [hh]:mm"),Z50/1440) -> 0 | Z50: =U50*-1*$AP$23 -> 0 | AC50: Jan. | AD50: =COUNTIF(D7:D37,$AN$22) -> 0 | AE50: =AI50/60 -> 0 | AF50: =AJ50/60 -> 0 | AG50: =IF(AI50<0,TEXT(-AI50/1440,"- [hh]:mm"),AI50/1440) -> 0 | AH50: =IF(AJ50<0,TEXT(-AJ50/1440,"- [hh]:mm"),AJ50/1440) -> 0 | AI50: =COUNTIF(D7:D37,$AN$22)*-$AP$22 -> 0 | AJ50: =ROUND((IF('AZ Jahr'!$S$76=1,AI47,0)+IF('AZ Jahr'!$T$76=1,AI48,0))/'AZ Jahr'!$O$9,0) -> 0 | BA50: 2026-01-27
B51: Urlaub 2, U. unbez., M>6 | E51: =COUNTIF(D7:D37,$AN$21)+IF(COUNTIF(D7:D37,$AN$17)>6,COUNTIF(D7:D37,$AN$17),0)+COUNTIF(D7:D37,$AN$20) -> 0 | F51: =E51 -> 0 | G51: =F50+F51 -> 0 | I51: Tätigkeit ausserhalb Touren (TAT) | S51: Korrektur IND od. Min | X51: =IF(AA51<0,TEXT(-AA51/1440,"- [hh]:mm"),AA51/1440) -> 0 | AA51: =IF(V51<>0,V51*60,IF(Z51<>0,Z51,0)) -> 0 | AC51: Korrektur | AG51: =IF(AJ51<0,TEXT(-AJ51/1440,"- [hh]:mm"),AJ51/1440) -> 0 | AJ51: =IF(AE51<>0,AE51*60,IF(AI51<>0,AI51,0)) -> 0 | BA51: 2026-01-28
B52: Kürzung Ruhetage | E52: =IF(F50>5,ROUNDDOWN(63*(F50+F51)/'AZ Jahr'!$C$6,0),ROUNDDOWN(63*(F51)/'AZ Jahr'!$C$6,0)) -> 0 | F52: =E52 -> 0 | G52: Kürzung | I52: TAT Jan. + | K52: … | N52: =IF(Q52<0,TEXT(-Q52/1440,"- [hh]:mm"),Q52/1440) -> 0 | Q52: =IF(L52<>0,L52*60,IF(P52<>0,P52,0)) -> 0 | S52: =IF(AB52="JA"," Aus Konto ZstG","") -> Aus Konto ZstG | V52: =IF(AND(AB52="JA",'AZ Jahr'!$R$17=1),AE52,0) -> 0 | X52: =IF(AND(AB52="JA",'AZ Jahr'!$R$17=1),AG52,0) -> 0 | Z52: =IF(AND(AB52="JA",'AZ Jahr'!$R$17=1),AI52,0) -> 0 | AB52: JA | AC52: ZstG Saldo | AE52: =AI52/60 -> 0 | AG52: =IF(AI52<0,TEXT(-AI52/1440,"- [hh]:mm"),AI52/1440) -> 0 | AI52: =AI49+AI50+AJ50+AJ51 -> 0 | BA52: =IF(MONTH(BA51+1)=MONTH(BA51),BA51+1,"") -> 2026-01-29
B53: Kürzung Ausgleichstage | E53: =IF(F50>5,ROUND('AZ Jahr'!$C$7*(F50+F51)/'AZ Jahr'!$C$6,0),ROUND('AZ Jahr'!$C$7*(F51)/'AZ Jahr'!$C$6,0)) -> 0 | F53: =E53 -> 0 | G53: =F52+F53 -> 0 | I53: TAT Saldo | L53: =P53/60 -> 0 | N53: =IF(P53<0,TEXT(-P53/1440,"- [hh]:mm"),P53/1440) -> 0 | P53: =Q52 -> 0 | S53: CTS Saldo | V53: =Z53/60 -> 0 | X53: =IF(Z53<0,TEXT(-Z53/1440,"- [hh]:mm"),Z53/1440) -> 0 | Z53: =Z49+Z50+AA51+Z52 -> 0 | AC53: Anzahl / ø AZ Touren Januar | AG53: =AY39 -> 0 | AI53: =IF(AY38=0,"",AY38/AY39) ->  | BA53: =IF(MONTH(BA51+2)=MONTH(BA51),BA51+2,"") -> 2026-01-30
A54: =IF(OR($C54=$AD$573,$C54=$AD$574+1,$C54=$AD$580,$C54=$AD$581+1),"Einteilung geä.",IF(ISNA(VLOOKUP($C54,Feiertage,3,FALSE)),"",VLOOKUP($C54,Feiertage,3,FALSE))) ->  | B54: =WEEKDAY(C54) -> 1900-01-01 | C54: =DATE('AZ Jahr'!$C$1,2,1) -> 2026-02-01 | O54: =IF(AND(ISNUMBER(E54),ISNUMBER(F54)),IF(E54<F54,(F54-E54)*1440,(1-E54+F54)*1440),"") ->  | P54: =IF(AND(E54=":",F54=":",$AG$3=TRUE),$AP$5,IF(O54="",0,IF(AS54<360,360,AS54))) -> 0 | Q54: =IF($S$3=1,ROUND(P54,0)/1440,P54/60) -> 00:00:00 | R54: =IF(OR(H54="",I54=""),0,IF(H54<I54,(I54-H54)*1440,IF(H54>I54,(1-H54+I54)*1440)))/$U$3 -> 0 | S54: =IF(OR(K54="",L54=""),0,IF(K54<L54,(L54-K54)*1440,IF(K54>L54,(1-K54+L54)*1440)))/$U$3 -> 0 | T54: =(IF(AND(R54*$U$3>=180,J54=2),0,IF(AND(R54*$U$3>60,N54<>1),(IF(AND(H54>I54,(H54+1/24)<=1),I54,IF(AND(H54>I54,(H54+1/24)>1),(I54+1-(H54+1/24)),IF(AND(H54<=4/24,I54<=5/24),(I54-(H54+1/24)),IF(AND((H54+1/24)<=5/24,I54>5/24),(5/24-(H54+1/24)),0))))),0))+IF(AND(S54*$U$3>=180,M54=2),0,IF(N54<>1,IF(AND(K54>L54,R54*$U$3<=60,(K54-R54*$U$3/1440+1/24)>1),(L54-(K54-R54*$U$3/1440-23/24)),IF(OR(AND(K54>L54,R54*$U$3<=60,(K54-R54*$U$3/1440+1/24)<=1),AND(K54>L54,R54*$U$3>60)),L54,IF(AND(K54<5/24,L54>=5/24,R54*$U$3<60),(5/24-(K54-R54*$U$3/1440+1/24)),IF(AND(K54<5/24,L54>=5/24,R54*$U$3>=60),(5/24-K54),IF(AND(S54*$U$3>0,K54<5/24,L54<5/24,R54*$U$3<60),(L54-(K54-R54*$U$3/1440+1/24)),IF(AND(S54*$U$3>0,K54<5/24,L54<5/24,R54*$U$3>=60),(L54-K54),0)))))))))*1440/$U$3 -> 0 | U54: =IF(AND(AS54<360,AS54+AT54<=360),0,IF(AND(AS54<360,AS54+AT54>360),AS54+AT54-360,AT54))/$U$3 -> 0 | V54: =(IF(OR(AND(R54*$U$3>=180,J54=2),AND(J54=1,N54=1)),R54*$U$3*15%,IF(AND(J54=1,R54*$U$3>60,N54=1),R54*$U$3*15%,IF(AND(J54=1,R54*$U$3>60),9,IF(AND(J54=1,R54*$U$3<=60),R54*$U$3*15%,0))))+IF(OR(AND(S54*$U$3>=180,M54=2),AND(M54=1,N54=1)),S54*$U$3*15%,IF(AND(M54=1,S54*$U$3>60,N54=1),S54*$U$3*15%,IF(AND(M54=1,S54*$U$3>0,R54*$U$3<=60),(60-R54*$U$3)*15%,0))))/$U$3 -> 0 | W54: =(IF(AND(OR(E54>F54,E54=0),F54<=5/24),F54*432,IF(AND(E54>F54,F54>5/24),90,IF(AND(E54<4/24,F54>5/24),(5/24-E54)*432,IF(AND(E54<4/24,F54<=5/24),(F54-E54)*432,0))))-IF(AND(H54>I54,I54<=5/24),I54*432,IF(AND(H54<I54,H54<=5/24,I54<=5/24),(I54-H54)*432,IF(AND(H54<I54,H54<=5/24),(5/24-H54)*432,IF(AND(H54>I54,I54>=5/24),90,0))))-IF(AND(K54>L54,L54<=5/24),L54*432,IF(AND(K54<L54,K54<=5/24,L54<=5/24),(L54-K54)*432,IF(AND(K54<L54,K54<=5/24),(5/24-K54)*432,IF(AND(K54>L54,L54>=5/24),90,0))))+T54*$U$3*30%)/$U$3 -> 0 | X54: =(IF(N54=1,0,ROUND(IF(AND(OR(E54>F54,E54=0),F54<=6/24),F54*144,IF(AND(E54>F54,F54>6/24),36,IF(AND(E54<6/24,F54<=6/24),(F54-E54)*144,IF(E54<6/24,(6/24-E54)*144,0))))-IF(AND(H54>I54,I54<=6/24),I54*144,IF(AND(H54<I54,H54<=6/24,I54<=6/24),(I54-H54)*144,IF(AND(H54<I54,H54<=6/24),(6/24-H54)*144,IF(AND(H54>I54,I54>=6/24),36,0))))-IF(AND(K54>L54,L54<=6/24),L54*144,IF(AND(K54<L54,K54<=6/24,L54<=6/24),(L54-K54)*144,IF(AND(K54<L54,K54<=6/24),(6/24-K54)*144,IF(AND(K54>L54,L54>=6/24),36,0))))+T54*$U$3*10%,1)))/$U$3 -> 0 | Y54: =(IF(O54="",0,IF(AND(E54>20/24,E54<F54),(F54-E54)*144,IF(E54>20/24,(1-E54)*144,IF(E54>F54,24,IF(F54>20/24,(F54-20/24)*144,0)))))-IF(AND(H54<=20/24,I54<H54),24,IF(AND(H54<20/24,I54<20/24),0,IF(AND(H54<=20/24,I54>20/24),(I54-20/24)*144,IF(AND(H54>20/24,I54>20/24),(I54-H54)*144,IF(AND(I54<H54,H54>20/24),(1-H54)*144,0)))))-IF(AND(K54<=20/24,L54<K54),24,IF(AND(K54<20/24,L54<20/24),0,IF(AND(K54<=20/24,L54>20/24),(L54-20/24)*144,IF(AND(K54>20/24,L54>20/24),(L54-K54)*144,IF(AND(L54<K54,K54>20/24),(1-K54)*144,0))))))/$U$3 -> 0 | AD54: =(IF(D54=$AN$12,-$AP$12,0)+AB54+AC54*60)/$U$3 -> 0 | AE54: =P54+Z54+AW54+AX54+(U54+V54+W54+X54+Y54+(AD54*-1))*$U$3+AA54*60 -> 0 | AF54: =AE54/1440 -> 00:00:00 | AG54: =AE54/60 -> 0 | AH54: =ROUND(IF($D54=$AN$15,-$AP$15/$U$3,IF(O54="",0,IF($AG$2=TRUE,W54/3,0))),$V$3) -> 0 | AI54: =ROUND((IF(O54="",,IF(E54="",0,IF(AV54=1,(IF(E54<F54,F54-E54,1-E54)-IF(AND(E54>F54,H54<I54,H54<E54),0,IF(H54<I54,I54-H54,IF(H54>I54,1-H54,0)))-IF(AND(E54>F54,K54<L54,K54<E54),0,IF(K54<L54,L54-K54,IF(K54>L54,1-K54,0)))),0))+IF(AND(AV55=1,E54>F54),(F54-IF(AND(E54>F54,H54<I54,H54<E54),I54-H54,IF(H54>I54,I54,0))-IF(AND(E54>F54,K54<L54,K54<E54),L54-K54,IF(K54>L54,L54,0))),0))+IF(AND(AV54=1,E54<5/24,P54>0),T54/1440,0)+IF(AND(E54>F54,AV55=1),T54/1440,0))*$T$3,$V$3) -> 00:00:00 | AJ54: =ROUND((IF(AND(OR(E54>F54,E54=0),F54<=6/24),F54,IF(AND(E54>F54,F54>6/24),6/24,IF(AND(E54<6/24,F54>6/24),6/24-E54,IF(AND(E54<6/24,F54<=6/24),F54-E54,0))))+IF(B54<7,IF(O54="",0,IF(AND(E54>20/24,E54<F54),F54-E54,IF(E54>20/24,1-E54,IF(E54>F54,4/24,IF(F54>20/24,F54-20/24,0))))))+IF(B54=7,IF(O54="",0,IF(AND(E54>18/24,E54<F54),F54-E54,IF(E54>18/24,1-E54,IF(E54>F54,6/24,IF(F54>18/24,F54-18/24,0))))),0))*$T$3,$V$3) -> 00:00:00 | AS54: =IF(AND(ISNUMBER(E54),ISNUMBER(F54)),ROUND(O54-R54*$U$3-S54*$U$3,0),0) -> 0 | AT54: =IF(N54=1,0,IF(AND(R54*$U$3>=180,J54=2),0,IF(R54*$U$3>60,R54*$U$3-60,0))+IF(AND(S54*$U$3>=180,M54=2),0,IF(AND(R54*$U$3>60,R54*$U$3<180),S54*$U$3,IF(AND(R54*$U$3>0,R54*$U$3<=60,S54*$U$3>0),R54*$U$3+S54*$U$3-60,0)))) -> 0 | AU54: 32 | AV54: =IF(ISNA(VLOOKUP($C54,Feiertage,1,0))=TRUE,WEEKDAY($C54),IF(VLOOKUP($C54,Feiertage,6,0)=1,1,WEEKDAY($C54))) -> 1 | AW54: =ROUND(IF(D54=$AN$24,$AP$24,IF(D54=$AN$23,$AP$23,IF(D54=$AN$22,$AP$22,IF(D54=$AN$13,$AP$13,IF(D54=$AN$14,$AP$14,IF(D54=$AN$15,$AP$15,0)))))),1) -> 0 | AX54: =ROUND(IF(D54=$AN$16,$AP$16,IF(D54=$AN$17,$AP$17,IF(D54=$AN$18,$AP$18,IF(D54=$AN$19,$AP$19,IF(D54=$AN$21,$AP$21,0))))),1)+IF(D54=$AN$20,$AP$20) -> 0 | AY54: =IF(AND(P54>0,AE54>=0),AD54*$U$3+AE54,0) -> 0 | BA54: =IF(MONTH(BA51+3)=MONTH(BA51),BA51+3,"") -> 2026-01-31
B55: =WEEKDAY(C55) -> 1900-01-02 | C55: =C54+1 -> 2026-02-02 | P55: 0 | Q55: =IF($S$3=1,ROUND(P55,0)/1440,P55/60) -> 00:00:00 | R55: =IF(OR(H55="",I55=""),0,IF(H55<I55,(I55-H55)*1440,IF(H55>I55,(1-H55+I55)*1440)))/$U$3 -> 0 | S55: =IF(OR(K55="",L55=""),0,IF(K55<L55,(L55-K55)*1440,IF(K55>L55,(1-K55+L55)*1440)))/$U$3 -> 0 | T55: =(IF(AND(R55*$U$3>=180,J55=2),0,IF(AND(R55*$U$3>60,N55<>1),(IF(AND(H55>I55,(H55+1/24)<=1),I55,IF(AND(H55>I55,(H55+1/24)>1),(I55+1-(H55+1/24)),IF(AND(H55<=4/24,I55<=5/24),(I55-(H55+1/24)),IF(AND((H55+1/24)<=5/24,I55>5/24),(5/24-(H55+1/24)),0))))),0))+IF(AND(S55*$U$3>=180,M55=2),0,IF(N55<>1,IF(AND(K55>L55,R55*$U$3<=60,(K55-R55*$U$3/1440+1/24)>1),(L55-(K55-R55*$U$3/1440-23/24)),IF(OR(AND(K55>L55,R55*$U$3<=60,(K55-R55*$U$3/1440+1/24)<=1),AND(K55>L55,R55*$U$3>60)),L55,IF(AND(K55<5/24,L55>=5/24,R55*$U$3<60),(5/24-(K55-R55*$U$3/1440+1/24)),IF(AND(K55<5/24,L55>=5/24,R55*$U$3>=60),(5/24-K55),IF(AND(S55*$U$3>0,K55<5/24,L55<5/24,R55*$U$3<60),(L55-(K55-R55*$U$3/1440+1/24)),IF(AND(S55*$U$3>0,K55<5/24,L55<5/24,R55*$U$3>=60),(L55-K55),0)))))))))*1440/$U$3 -> 0 | U55: =IF(AND(AS55<360,AS55+AT55<=360),0,IF(AND(AS55<360,AS55+AT55>360),AS55+AT55-360,AT55))/$U$3 -> 0 | V55: 0 | W55: 0 | X55: =(IF(N55=1,0,ROUND(IF(AND(OR(E55>F55,E55=0),F55<=6/24),F55*144,IF(AND(E55>F55,F55>6/24),36,IF(AND(E55<6/24,F55<=6/24),(F55-E55)*144,IF(E55<6/24,(6/24-E55)*144,0))))-IF(AND(H55>I55,I55<=6/24),I55*144,IF(AND(H55<I55,H55<=6/24,I55<=6/24),(I55-H55)*144,IF(AND(H55<I55,H55<=6/24),(6/24-H55)*144,IF(AND(H55>I55,I55>=6/24),36,0))))-IF(AND(K55>L55,L55<=6/24),L55*144,IF(AND(K55<L55,K55<=6/24,L55<=6/24),(L55-K55)*144,IF(AND(K55<L55,K55<=6/24),(6/24-K55)*144,IF(AND(K55>L55,L55>=6/24),36,0))))+T55*$U$3*10%,1)))/$U$3 -> 0 | Y55: =(IF(O55="",0,IF(AND(E55>20/24,E55<F55),(F55-E55)*144,IF(E55>20/24,(1-E55)*144,IF(E55>F55,24,IF(F55>20/24,(F55-20/24)*144,0)))))-IF(AND(H55<=20/24,I55<H55),24,IF(AND(H55<20/24,I55<20/24),0,IF(AND(H55<=20/24,I55>20/24),(I55-20/24)*144,IF(AND(H55>20/24,I55>20/24),(I55-H55)*144,IF(AND(I55<H55,H55>20/24),(1-H55)*144,0)))))-IF(AND(K55<=20/24,L55<K55),24,IF(AND(K55<20/24,L55<20/24),0,IF(AND(K55<=20/24,L55>20/24),(L55-20/24)*144,IF(AND(K55>20/24,L55>20/24),(L55-K55)*144,IF(AND(L55<K55,K55>20/24),(1-K55)*144,0))))))/$U$3 -> 0 | AD55: 0 | AE55: =P55+Z55+AW55+AX55+(U55+V55+W55+X55+Y55+(AD55*-1))*$U$3+AA55*60 -> 0 | AF55: =AE55/1440 -> 00:00:00 | AG55: =AE55/60 -> 0 | AH55: =ROUND(IF($D55=$AN$15,-$AP$15/$U$3,IF(O55="",0,IF($AG$2=TRUE,W55/3,0))),$V$3) -> 0 | AI55: 00:00:00 | AJ55: 00:00:00 | AS55: =IF(AND(ISNUMBER(E55),ISNUMBER(F55)),ROUND(O55-R55*$U$3-S55*$U$3,0),0) -> 0 | AT55: =IF(N55=1,0,IF(AND(R55*$U$3>=180,J55=2),0,IF(R55*$U$3>60,R55*$U$3-60,0))+IF(AND(S55*$U$3>=180,M55=2),0,IF(AND(R55*$U$3>60,R55*$U$3<180),S55*$U$3,IF(AND(R55*$U$3>0,R55*$U$3<=60,S55*$U$3>0),R55*$U$3+S55*$U$3-60,0)))) -> 0 | AU55: 33 | AV55: 2 | AW55: 0 | AX55: 0 | AY55: 0
B56: 1900-01-03 | C56: =C54+2 -> 2026-02-03 | P56: 0 | Q56: 00:00:00 | R56: 0 | S56: 0 | T56: 0 | U56: 0 | V56: 0 | W56: 0 | X56: 0 | Y56: 0 | AD56: 0 | AE56: 0 | AF56: 00:00:00 | AG56: =AE56/60 -> 0 | AH56: 0 | AI56: 00:00:00 | AJ56: 00:00:00 | AS56: 0 | AT56: 0 | AU56: 34 | AV56: 3 | AW56: 0 | AX56: 0 | AY56: 0
B57: 1900-01-04 | C57: =C54+3 -> 2026-02-04 | P57: 0 | Q57: 00:00:00 | R57: 0 | S57: 0 | T57: 0 | U57: 0 | V57: 0 | W57: 0 | X57: 0 | Y57: 0 | AD57: 0 | AE57: 0 | AF57: 00:00:00 | AG57: 0 | AH57: 0 | AI57: 00:00:00 | AJ57: 00:00:00 | AS57: 0 | AT57: 0 | AU57: 35 | AV57: 4 | AW57: 0 | AX57: 0 | AY57: 0
B58: 1900-01-05 | C58: =C54+4 -> 2026-02-05 | P58: 0 | Q58: 00:00:00 | R58: 0 | S58: 0 | T58: 0 | U58: 0 | V58: 0 | W58: 0 | X58: 0 | Y58: 0 | AD58: 0 | AE58: 0 | AF58: 00:00:00 | AG58: 0 | AH58: 0 | AI58: 00:00:00 | AJ58: 00:00:00 | AS58: 0 | AT58: 0 | AU58: 36 | AV58: 5 | AW58: 0 | AX58: 0 | AY58: 0
B59: 1900-01-06 | C59: =C54+5 -> 2026-02-06 | P59: 0 | Q59: 00:00:00 | R59: 0 | S59: 0 | T59: 0 | U59: 0 | V59: 0 | W59: 0 | X59: 0 | Y59: 0 | AD59: 0 | AE59: 0 | AF59: 00:00:00 | AG59: 0 | AH59: 0 | AI59: 00:00:00 | AJ59: 00:00:00 | AS59: 0 | AT59: 0 | AU59: 37 | AV59: 6 | AW59: 0 | AX59: 0 | AY59: 0
B60: 1900-01-07 | C60: =C54+6 -> 2026-02-07 | P60: 0 | Q60: 00:00:00 | R60: 0 | S60: 0 | T60: 0 | U60: 0 | V60: 0 | W60: 0 | X60: 0 | Y60: 0 | AD60: 0 | AE60: 0 | AF60: 00:00:00 | AG60: 0 | AH60: 0 | AI60: 00:00:00 | AJ60: 00:00:00 | AS60: 0 | AT60: 0 | AU60: 38 | AV60: 7 | AW60: 0 | AX60: 0 | AY60: 0
B61: 1900-01-01 | C61: =C54+7 -> 2026-02-08 | P61: 0 | Q61: 00:00:00 | R61: 0 | S61: 0 | T61: 0 | U61: 0 | V61: 0 | W61: 0 | X61: 0 | Y61: 0 | AD61: 0 | AE61: 0 | AF61: 00:00:00 | AG61: 0 | AH61: 0 | AI61: 00:00:00 | AJ61: 00:00:00 | AS61: 0 | AT61: 0 | AU61: 39 | AV61: 1 | AW61: 0 | AX61: 0 | AY61: 0
B62: 1900-01-02 | C62: =C54+8 -> 2026-02-09 | P62: 0 | Q62: 00:00:00 | R62: 0 | S62: 0 | T62: 0 | U62: 0 | V62: 0 | W62: 0 | X62: 0 | Y62: 0 | AD62: 0 | AE62: 0 | AF62: 00:00:00 | AG62: 0 | AH62: 0 | AI62: 00:00:00 | AJ62: 00:00:00 | AS62: 0 | AT62: 0 | AU62: 40 | AV62: 2 | AW62: 0 | AX62: 0 | AY62: 0
B63: 1900-01-03 | C63: =C54+9 -> 2026-02-10 | P63: 0 | Q63: 00:00:00 | R63: 0 | S63: 0 | T63: 0 | U63: 0 | V63: 0 | W63: 0 | X63: 0 | Y63: 0 | AD63: 0 | AE63: 0 | AF63: 00:00:00 | AG63: 0 | AH63: 0 | AI63: 00:00:00 | AJ63: 00:00:00 | AS63: 0 | AT63: 0 | AU63: 41 | AV63: 3 | AW63: 0 | AX63: 0 | AY63: 0
B64: 1900-01-04 | C64: =C54+10 -> 2026-02-11 | P64: 0 | Q64: 00:00:00 | R64: 0 | S64: 0 | T64: 0 | U64: 0 | V64: 0 | W64: 0 | X64: 0 | Y64: 0 | AD64: 0 | AE64: 0 | AF64: 00:00:00 | AG64: 0 | AH64: 0 | AI64: 00:00:00 | AJ64: 00:00:00 | AS64: 0 | AT64: 0 | AU64: 42 | AV64: 4 | AW64: 0 | AX64: 0 | AY64: 0
B65: 1900-01-05 | C65: =C54+11 -> 2026-02-12 | P65: 0 | Q65: 00:00:00 | R65: 0 | S65: 0 | T65: 0 | U65: 0 | V65: 0 | W65: 0 | X65: 0 | Y65: 0 | AD65: 0 | AE65: 0 | AF65: 00:00:00 | AG65: 0 | AH65: 0 | AI65: 00:00:00 | AJ65: 00:00:00 | AS65: 0 | AT65: 0 | AU65: 43 | AV65: 5 | AW65: 0 | AX65: 0 | AY65: =IF(AND(P65>0,AE65>=0),AD65*$U$3+AE65,0) -> 0
B66: 1900-01-06 | C66: =C54+12 -> 2026-02-13 | P66: 0 | Q66: 00:00:00 | R66: 0 | S66: 0 | T66: 0 | U66: 0 | V66: 0 | W66: 0 | X66: 0 | Y66: 0 | AD66: 0 | AE66: 0 | AF66: 00:00:00 | AG66: 0 | AH66: 0 | AI66: 00:00:00 | AJ66: 00:00:00 | AS66: 0 | AT66: 0 | AU66: 44 | AV66: 6 | AW66: 0 | AX66: 0 | AY66: =IF(AND(P66>0,AE66>=0),AD66*$U$3+AE66,0) -> 0
B67: 1900-01-07 | C67: =C54+13 -> 2026-02-14 | P67: 0 | Q67: 00:00:00 | R67: 0 | S67: 0 | T67: 0 | U67: 0 | V67: 0 | W67: 0 | X67: 0 | Y67: 0 | AD67: 0 | AE67: 0 | AF67: 00:00:00 | AG67: 0 | AH67: 0 | AI67: 00:00:00 | AJ67: 00:00:00 | AS67: 0 | AT67: 0 | AU67: 45 | AV67: 7 | AW67: 0 | AX67: 0 | AY67: 0
B68: 1900-01-01 | C68: =C54+14 -> 2026-02-15 | P68: 0 | Q68: 00:00:00 | R68: 0 | S68: 0 | T68: 0 | U68: 0 | V68: 0 | W68: 0 | X68: 0 | Y68: 0 | AD68: 0 | AE68: 0 | AF68: 00:00:00 | AG68: 0 | AH68: 0 | AI68: 00:00:00 | AJ68: 00:00:00 | AS68: 0 | AT68: 0 | AU68: 46 | AV68: 1 | AW68: 0 | AX68: 0 | AY68: 0
B69: 1900-01-02 | C69: =C54+15 -> 2026-02-16 | P69: 0 | Q69: 00:00:00 | R69: 0 | S69: 0 | T69: 0 | U69: 0 | V69: 0 | W69: 0 | X69: 0 | Y69: 0 | AD69: 0 | AE69: 0 | AF69: 00:00:00 | AG69: 0 | AH69: 0 | AI69: 00:00:00 | AJ69: 00:00:00 | AS69: 0 | AT69: 0 | AU69: 47 | AV69: 2 | AW69: 0 | AX69: 0 | AY69: 0
B70: 1900-01-03 | C70: =C54+16 -> 2026-02-17 | P70: 0 | Q70: 00:00:00 | R70: 0 | S70: 0 | T70: 0 | U70: 0 | V70: 0 | W70: 0 | X70: 0 | Y70: 0 | AD70: 0 | AE70: 0 | AF70: 00:00:00 | AG70: 0 | AH70: 0 | AI70: 00:00:00 | AJ70: 00:00:00 | AS70: 0 | AT70: 0 | AU70: 48 | AV70: 3 | AW70: 0 | AX70: 0 | AY70: 0
B71: 1900-01-04 | C71: =C54+17 -> 2026-02-18 | P71: 0 | Q71: 00:00:00 | R71: 0 | S71: 0 | T71: 0 | U71: 0 | V71: 0 | W71: 0 | X71: 0 | Y71: 0 | AD71: 0 | AE71: 0 | AF71: 00:00:00 | AG71: 0 | AH71: 0 | AI71: 00:00:00 | AJ71: 00:00:00 | AS71: 0 | AT71: 0 | AU71: 49 | AV71: 4 | AW71: 0 | AX71: 0 | AY71: 0
B72: 1900-01-05 | C72: =C54+18 -> 2026-02-19 | P72: 0 | Q72: 00:00:00 | R72: 0 | S72: 0 | T72: 0 | U72: 0 | V72: 0 | W72: 0 | X72: 0 | Y72: 0 | AD72: 0 | AE72: 0 | AF72: 00:00:00 | AG72: 0 | AH72: 0 | AI72: 00:00:00 | AJ72: 00:00:00 | AS72: 0 | AT72: 0 | AU72: 50 | AV72: 5 | AW72: 0 | AX72: 0 | AY72: 0
B73: 1900-01-06 | C73: =C54+19 -> 2026-02-20 | P73: 0 | Q73: 00:00:00 | R73: 0 | S73: 0 | T73: 0 | U73: 0 | V73: 0 | W73: 0 | X73: 0 | Y73: 0 | AD73: 0 | AE73: 0 | AF73: 00:00:00 | AG73: 0 | AH73: 0 | AI73: 00:00:00 | AJ73: 00:00:00 | AS73: 0 | AT73: 0 | AU73: 51 | AV73: 6 | AW73: 0 | AX73: 0 | AY73: 0
B74: 1900-01-07 | C74: =C54+20 -> 2026-02-21 | P74: 0 | Q74: 00:00:00 | R74: 0 | S74: 0 | T74: 0 | U74: 0 | V74: 0 | W74: 0 | X74: 0 | Y74: 0 | AD74: 0 | AE74: 0 | AF74: 00:00:00 | AG74: 0 | AH74: 0 | AI74: 00:00:00 | AJ74: 00:00:00 | AS74: 0 | AT74: 0 | AU74: 52 | AV74: 7 | AW74: 0 | AX74: 0 | AY74: 0
B75: 1900-01-01 | C75: =C54+21 -> 2026-02-22 | P75: 0 | Q75: 00:00:00 | R75: 0 | S75: 0 | T75: 0 | U75: 0 | V75: 0 | W75: 0 | X75: 0 | Y75: 0 | AD75: 0 | AE75: 0 | AF75: 00:00:00 | AG75: 0 | AH75: 0 | AI75: 00:00:00 | AJ75: 00:00:00 | AS75: 0 | AT75: 0 | AU75: 53 | AV75: 1 | AW75: 0 | AX75: 0 | AY75: 0
B76: 1900-01-02 | C76: =C54+22 -> 2026-02-23 | P76: 0 | Q76: 00:00:00 | R76: 0 | S76: 0 | T76: 0 | U76: 0 | V76: 0 | W76: 0 | X76: 0 | Y76: 0 | AD76: 0 | AE76: 0 | AF76: 00:00:00 | AG76: 0 | AH76: 0 | AI76: 00:00:00 | AJ76: 00:00:00 | AS76: 0 | AT76: 0 | AU76: 54 | AV76: 2 | AW76: 0 | AX76: 0 | AY76: 0
B77: 1900-01-03 | C77: =C54+23 -> 2026-02-24 | P77: 0 | Q77: 00:00:00 | R77: 0 | S77: 0 | T77: 0 | U77: 0 | V77: 0 | W77: 0 | X77: 0 | Y77: 0 | AD77: 0 | AE77: 0 | AF77: 00:00:00 | AG77: 0 | AH77: 0 | AI77: 00:00:00 | AJ77: 00:00:00 | AS77: 0 | AT77: 0 | AU77: 55 | AV77: 3 | AW77: 0 | AX77: 0 | AY77: 0
B78: 1900-01-04 | C78: =C54+24 -> 2026-02-25 | P78: 0 | Q78: 00:00:00 | R78: 0 | S78: 0 | T78: 0 | U78: 0 | V78: 0 | W78: 0 | X78: 0 | Y78: 0 | AD78: 0 | AE78: 0 | AF78: 00:00:00 | AG78: 0 | AH78: 0 | AI78: 00:00:00 | AJ78: 00:00:00 | AS78: 0 | AT78: 0 | AU78: 56 | AV78: 4 | AW78: 0 | AX78: 0 | AY78: 0
B79: 1900-01-05 | C79: =C54+25 -> 2026-02-26 | P79: 0 | Q79: 00:00:00 | R79: 0 | S79: 0 | T79: 0 | U79: 0 | V79: 0 | W79: 0 | X79: 0 | Y79: 0 | AD79: 0 | AE79: 0 | AF79: 00:00:00 | AG79: 0 | AH79: 0 | AI79: 00:00:00 | AJ79: 00:00:00 | AS79: 0 | AT79: 0 | AU79: 57 | AV79: 5 | AW79: 0 | AX79: 0 | AY79: 0
B80: 1900-01-06 | C80: =C54+26 -> 2026-02-27 | P80: 0 | Q80: 00:00:00 | R80: 0 | S80: 0 | T80: 0 | U80: 0 | V80: 0 | W80: 0 | X80: 0 | Y80: 0 | AD80: 0 | AE80: 0 | AF80: 00:00:00 | AG80: 0 | AH80: 0 | AI80: 00:00:00 | AJ80: 00:00:00 | AS80: 0 | AT80: 0 | AU80: 58 | AV80: 6 | AW80: 0 | AX80: 0 | AY80: 0
B81: 1900-01-07 | C81: =C54+27 -> 2026-02-28 | P81: 0 | Q81: 00:00:00 | R81: 0 | S81: 0 | T81: 0 | U81: 0 | V81: 0 | W81: 0 | X81: 0 | Y81: 0 | AD81: 0 | AE81: 0 | AF81: 00:00:00 | AG81: 0 | AH81: 0 | AI81: 00:00:00 | AJ81: 00:00:00 | AS81: 0 | AT81: 0 | AU81: 59 | AV81: 7 | AW81: 0 | AX81: 0 | AY81: 0
B82: =IF(C82="","",WEEKDAY(C82)) ->  | C82: =IF(MONTH(C81+1)=MONTH(C81),C81+1,"") ->  | P82: 0 | Q82: 00:00:00 | R82: 0 | S82: 0 | T82: 0 | U82: 0 | V82: 0 | W82: 0 | X82: 0 | Y82: 0 | AD82: 0 | AE82: 0 | AF82: 00:00:00 | AG82: 0 | AH82: 0 | AI82: 00:00:00 | AJ82: 00:00:00 | AS82: 0 | AT82: 0 | AU82: 60 | AV82: =IF($C$82="",$AV$101,IF(ISNA(VLOOKUP($C82,Feiertage,1,0))=TRUE,WEEKDAY($C82),IF(VLOOKUP($C82,Feiertage,6,0)=1,1,WEEKDAY($C82)))) -> 1 | AW82: 0 | AX82: 0 | AY82: 0
AS83: 0 | AT83: 0 | AU83: 61 | AV83: =IF($C$82="","",$AV$101) ->  | AW83: 0 | AX83: 0 | AY83: 0
AS84: 0 | AT84: 0 | AU84: 62 | AW84: 0 | AX84: 0 | AY84: 0
T85: =IF($S$3=1,"Total Min. > ","Total IND > ") -> Total IND > | U85: =SUM(U54:U84) -> 0 | V85: =SUM(V54:V84) -> 0 | W85: =SUM(W54:W84) -> 0 | X85: =SUM(X54:X84) -> 0 | Y85: =SUM(Y54:Y84) -> 0 | AC85: in Min. / hh:mm > | AD85: =IF($S$3=1,SUM(AD54:AD84),AD86*60) -> 0 | AE85: =SUM(AE54:AE84) -> 0 | AF85: =AE85/1440 -> 0 | AH85: =SUMIF(AH54:AH84,">0",AH54:AH84)*$U$3 -> 0 | AI85: =AI86/24 -> 0 | AJ85: =AJ86/24 -> 0 | AY85: =SUM(AY54:AY84) -> 0
B86: Bemerkungen: | D86: … | T86: Total IND > | U86: =ROUND(IF($S$3=1,SUM(U85+V85)/60,SUM(U85+V85)),2) -> 0 | W86: =ROUND(IF($S$3=1,SUM(W85+X85)/60,SUM(W85+X85)),2) -> 0 | Y86: =ROUND(IF($S$3=1,Y85/60,Y85),2) -> 0 | AC86: =IF(AND($S$3=2,$AG$2=TRUE),"ND3 / So / ND = *) IND > ","IND > ") -> IND > | AD86: =IF($S$3=1,SUM(AD54:AD84)/60,SUM(AD54:AD84)) -> 0 | AE86: =AE85/60 -> 0 | AF86: =AF85*24 -> 0 | AG86: =SUM(AG54:AG84) -> 0 | AH86: =IF($S$3=1,SUM(AH54:AH84)/60,SUM(AH54:AH84)) -> 0 | AI86: =IF($S$3=1,SUM(AI54:AI84)*24,SUM(AI54:AI84)) -> 0 | AJ86: =IF($S$3=1,SUM(AJ54:AJ84)*24,SUM(AJ54:AJ84)) -> 0 | AY86: =COUNTIF(AY54:AY84,">0") -> 0
B87: =IF($S$3=2,"IND = Industrie Stunden > Stunden dezimal *) = Täglich gerundet auf 2 Stellen nach Komma","IND = Industrie Stunden > Stunden dezimal") -> IND = Industrie Stunden > Stunden dezimal *) = Täglich gerundet auf 2 Stellen nach Komma | I87: =IF($X$2=1,"Berechnung JAZ > SOPRE",IF($X$2=2,"Berechnung JAZ > SAP","Berechnung JAZ > LINEAR")) -> Berechnung JAZ > SOPRE | M87: IND | O87: hh:mm | Q87: Minuten | W87: IND | Y87: hh:mm | AA87: Minuten | AF87: IND | AG87: hh:mm (CHF) | AI87: Minuten (CHF)
B88: Abwesenheitskontrolle Februar | I88: AZ Saldo Übertrag | L88: =ROUND(P88/60,2) -> 0 | N88: =IF(P88<0,TEXT(-P88/1440,"- [hh]:mm"),P88/1440) -> 0 | P88: =P46 -> 0 | S88: ND3 Übertrag | V88: =Z88/60 -> 0 | X88: =IF(Z88<0,TEXT(-Z88/1440,"- [hh]:mm"),Z88/1440) -> 0 | Z88: =Z44 -> 0 | AC88: TRP Übertrag | AE88: =AI88/60 -> 0 | AG88: =IF(AI88<0,TEXT(-AI88/1440,"- [hh]:mm"),AI88/1440) -> 0 | AI88: =AI43 -> 0
B89: Was | E89: Anzahl | F89: Total | G89: Soll-Trend | I89: Korrektur IND od. Min | N89: =IF(Q89<0,TEXT(-Q89/1440,"- [hh]:mm"),Q89/1440) -> 0 | Q89: =IF(L89<>0,L89*60,IF(P89<>0,P89,0)) -> 0 | S89: ND3 Februar | U89: =COUNTIF(D54:D84,$AN$15) -> 0 | V89: =AH86 -> 0 | X89: =IF(Z89<0,TEXT(-Z89/1440,"- [hh]:mm"),Z89/1440) -> 0 | Z89: =AH86*60 -> 0 | AC89: Feb. | AD89: =COUNTIF(D54:D84,$AN$14) -> 0 | AF89: =AJ89/60 -> 0 | AG89: =IF(AJ89<0,TEXT(-AJ89/1440,"- [hh]:mm"),AJ89/1440) -> 0 | AJ89: =AD89*$AP$14*-1+IF(AE89<>0,AE89*60,IF(AI89<>0,AI89,0)) -> 0
B90: Ruhetage -, RT, Ferien- | E90: =COUNTIF(D54:D84,"-")+COUNTIF(D54:D84,"RT")+COUNTIF(D54:D84,"Ferien-") -> 0 | F90: =E90+F43 -> 0 | G90: Trend = inkl. CT aus TZT und allfällige Kürzung | I90: AZ Februar | L90: =ROUND(AG86+Q89/60,2) -> 0 | N90: =IF(P90<0,TEXT(-P90/1440,"- [hh]:mm"),P90/1440) -> 0 | P90: =L90*60 -> 0 | S90: Korrektur IND od. Min | X90: =IF(AA90<0,TEXT(-AA90/1440,"- [hh]:mm"),AA90/1440) -> 0 | AA90: =IF(V90<>0,V90*60,IF(Z90<>0,Z90,0)) -> 0 | AC90: TRP Saldo | AE90: =AI90/60 -> 0 | AG90: =IF(AI90<0,TEXT(-AI90/1440,"- [hh]:mm"),AI90/1440) -> 0 | AI90: =AI88+AJ89 -> 0
B91: Ruhetage verlangt RTV | E91: =COUNTIF(D54:D84,$AN$8) -> 0 | F91: =E91+F44 -> 0 | I91: Kürzung | K91: =E99+E100 -> 0 | L91: =P91/60 -> 0 | N91: =IF(K91=0,"",CONCATENATE("-",TEXT(-P91/1440,"[hh]:mm"))) ->  | P91: =-K91*$AP$16 -> 0 | S91: ND3 Saldo | V91: =Z91/60 -> 0 | X91: =IF(Z91<0,TEXT(-Z91/1440,"- [hh]:mm"),Z91/1440) -> 0 | Z91: =Z88+Z89+AA90 -> 0 | AC91: Flexa Übertrag | AE91: =AI91/60 -> 0 | AG91: =IF(AI91<0,TEXT(-AI91/1440,"- [hh]:mm"),AI91/1440) -> 0 | AI91: =AI46 -> 0
B92: Ausgleichst. +, CT, Ferien+ | E92: =COUNTIF(D54:D84,"+")+COUNTIF(D54:D84,"CT")+COUNTIF(D54:D84,"Ferien+") -> 0 | F92: =E92+F45 -> 0 | I92: GLZ manuell | N92: =IF(Q92<0,TEXT(-Q92/1440,"- [hh]:mm"),Q92/1440) -> 0 | Q92: =IF(L92<>0,L92*60,IF(P92<>0,P92,0)) -> 0 | S92: ÜZ Übertrag | V92: =Z92/60 -> 0 | X92: =IF(Z92<0,TEXT(-Z92/1440,"- [hh]:mm"),Z92/1440) -> 0 | Z92: =Z48 -> 0 | AC92: Feb. | AD92: =COUNTIF(D54:D84,$AN$24) -> 0 | AF92: =AJ92/60 -> 0 | AG92: =IF(AJ92<0,TEXT(-AJ92/1440,"- [hh]:mm"),AJ92/1440) -> 0 | AJ92: =AD92*$AP$24*-1+IF(AE92<>0,AE92*60,IF(AI92<>0,AI92,0))+IF(AND(AB99="JA",'AZ Jahr'!$R$17=2),AI99,0) -> 0
B93: CTV (CT verlangt) | E93: =COUNTIF(D54:D84,$AN$10) -> 0 | F93: =E93+F46 -> 0 | I93: AZ Saldo | L93: =ROUND(P93/60,2) -> 0 | N93: =IF(P93<0,TEXT(-P93/1440,"- [hh]:mm"),P93/1440) -> 0 | P93: =P88+P90+P91+Q92 -> 0 | S93: ÜZ Februar | U93: =COUNTIF(D54:D84,$AN$12) -> 0 | V93: =AD86 -> 0 | X93: =IF(Z93<0,TEXT(-Z93/1440,"- [hh]:mm"),Z93/1440) -> 0 | Z93: =V93*60 -> 0 | AC93: Flexa Saldo | AE93: =AI93/60 -> 0 | AG93: =IF(AI93<0,TEXT(-AI93/1440,"- [hh]:mm"),AI93/1440) -> 0 | AI93: =AI91+AJ92 -> 0
B94: TZT Teilzeit | E94: =COUNTIF(D54:D84,$AN$11) -> 0 | F94: =E94+F47 -> 0 | H94: =IF($X$2=1,"SOP >",IF($X$2=2,"SAP >","LIN >")) -> SOP > | I94: Soll Ende Februar | L94: =ROUND(IF(OR($X$2=1,$X$2=2),IF($C$82="",'AZ Jahr'!$D$10/60/(365-'AZ Jahr'!$E$7)*(28-IF($X$2=1,'AZ Jahr'!$F$14,'AZ Jahr'!$F$13)),'AZ Jahr'!$D$10/60/(366-'AZ Jahr'!$E$7)*(29-IF($X$2=1,'AZ Jahr'!$F$14,'AZ Jahr'!$F$13))),IF($C$82="",'AZ Jahr'!$D$10/60/365*28,'AZ Jahr'!$D$10/60/366*29)),2)+$L$47 -> 336.2 | N94: =P94/1440 -> 14.00833333 | P94: =L94*60 -> 20172 | S94: Korrektur IND od. Min | X94: =IF(AA94<0,TEXT(-AA94/1440,"- [hh]:mm"),AA94/1440) -> 0 | AA94: =IF(V94<>0,V94*60,IF(Z94<>0,Z94,0)) -> 0 | AC94: So Februar | AE94: =AI86 -> 0 | AG94: =IF(AE94=0,"",CONCATENATE("à CHF ",TEXT('AZ Jahr'!$J$9,"00.00")," ")) ->  | AI94: =ROUND(AE94*'AZ Jahr'!$J$9*2,1)/2 -> 0
B95: Total Frei / Soll-Trend | E95: =SUM(E90:E94) -> 0 | F95: =SUM(F90:F94) -> 0 | G95: =ROUND('AZ Jahr'!$S$10*2,0)/2 -> 18.5 | I95: Ist | L95: =ROUND(P95/60,2) -> 0 | N95: =IF(P95<0,TEXT(-P95/1440,"- [hh]:mm"),P95/1440) -> 0 | P95: =P93 -> 0 | S95: ÜZ Saldo | V95: =Z95/60 -> 0 | X95: =IF(Z95<0,TEXT(-Z95/1440,"- [hh]:mm"),Z95/1440) -> 0 | Z95: =Z92+Z93+AA94 -> 0 | AC95: ND Februar | AE95: =AJ86 -> 0 | AG95: =IF(AE94=0,"",CONCATENATE("à CHF ",TEXT('AZ Jahr'!$J$10,"00.00")," ")) ->  | AI95: =ROUND(AE95*'AZ Jahr'!$J$10*2,1)/2 -> 0
B96: Freitagsaldo Trend ca. | E96: =G95 -> 18.5 | F96: =-F95 -> 0 | G96: =G95-F95 -> 18.5 | I96: Abweichung + / - | L96: =ROUND(P96/60,2) -> -336.2 | N96: - 336:12 | P96: =P95-P94 -> -20172 | S96: CTS Übertrag | V96: =Z96/60 -> 0 | X96: =X53 -> 0 | Z96: =Z53 -> 0 | AC96: ZstG Übertrag | AE96: =AI96/60 -> 0 | AG96: =IF(AI96<0,TEXT(-AI96/1440,"- [hh]:mm"),AI96/1440) -> 0 | AI96: =IF(AB52="JA",0,AI52) -> 0
B97: Krank, Unfall K / U | E97: =COUNTIF(D54:D84,$AN$16) -> 0 | F97: =E97+F50 -> 0 | G97: Total | I97: =CONCATENATE(" JAZ ",TEXT(C54,"JJ")," Ende Feb.") -> JAZ 26 Ende Feb. | L97: =ROUND(P97/60,2) -> 0 | N97: 0 | P97: =P95-$P$41 -> 0 | S97: CTS Februar | U97: =COUNTIF(D54:D84,$AN$23) -> 0 | V97: =U97*-1*$AP$23/60 -> 0 | X97: =IF(Z97<0,TEXT(-Z97/1440,"- [hh]:mm"),Z97/1440) -> 0 | Z97: =U97*-1*$AP$23 -> 0 | AC97: Feb. | AD97: =COUNTIF(D54:D84,$AN$22) -> 0 | AE97: =AI97/60 -> 0 | AF97: =AJ97/60 -> 0 | AG97: =IF(AI97<0,TEXT(-AI97/1440,"- [hh]:mm"),AI97/1440) -> 0 | AH97: =IF(AJ97<0,TEXT(-AJ97/1440,"- [hh]:mm"),AJ97/1440) -> 0 | AI97: =COUNTIF(D54:D84,$AN$22)*-$AP$22 -> 0 | AJ97: =ROUND((IF('AZ Jahr'!$S$76=1,AI94,0)+IF('AZ Jahr'!$T$76=1,AI95,0))/'AZ Jahr'!$O$9,0) -> 0
B98: Urlaub 2, U. unbez., M>6 | E98: =COUNTIF(D54:D84,$AN$21)+IF(COUNTIF(D54:D84,$AN$17)>6,COUNTIF(D54:D84,$AN$17),0)+COUNTIF(D54:D84,$AN$20) -> 0 | F98: =E98+F51 -> 0 | G98: =F97+F98 -> 0 | I98: TAT Saldo Übertrag | L98: =L53 -> 0 | N98: 0 | P98: =P53 -> 0 | S98: Korrektur IND od. Min | X98: =IF(AA98<0,TEXT(-AA98/1440,"- [hh]:mm"),AA98/1440) -> 0 | AA98: =IF(V98<>0,V98*60,IF(Z98<>0,Z98,0)) -> 0 | AC98: Korrektur | AG98: =IF(AJ98<0,TEXT(-AJ98/1440,"- [hh]:mm"),AJ98/1440) -> 0 | AJ98: =IF(AE98<>0,AE98*60,IF(AI98<>0,AI98,0)) -> 0
B99: Kürzung Ruhetage | E99: =IF(F97>5,ROUNDDOWN(63*(F97+F98)/'AZ Jahr'!$C$6,0),ROUNDDOWN(63*(F98)/'AZ Jahr'!$C$6,0))-F52 -> 0 | F99: =E99+F52 -> 0 | G99: Kürzung | I99: TAT Feb. + | K99: … | N99: =IF(Q99<0,TEXT(-Q99/1440,"- [hh]:mm"),Q99/1440) -> 0 | Q99: =IF(L99<>0,L99*60,IF(P99<>0,P99,0)) -> 0 | S99: =IF(AB99="JA"," Aus Konto ZstG","") -> Aus Konto ZstG | V99: =IF(AND(AB99="JA",'AZ Jahr'!$R$17=1),AE99,0) -> 0 | X99: =IF(AND(AB99="JA",'AZ Jahr'!$R$17=1),AG99,0) -> 0 | Z99: =IF(AND(AB99="JA",'AZ Jahr'!$R$17=1),AI99,0) -> 0 | AB99: JA | AC99: ZstG Saldo | AE99: =AI99/60 -> 0 | AG99: =IF(AI99<0,TEXT(-AI99/1440,"- [hh]:mm"),AI99/1440) -> 0 | AI99: =AI96+AI97+AJ97+AJ98 -> 0
B100: Kürzung Ausgleichstage | E100: =IF(F97>5,ROUND('AZ Jahr'!$C$7*(F97+F98)/'AZ Jahr'!$C$6,0),ROUND('AZ Jahr'!$C$7*(F98)/'AZ Jahr'!$C$6,0))-F53 -> 0 | F100: =E100+F53 -> 0 | G100: =F99+F100 -> 0 | I100: TAT Saldo | L100: =P100/60 -> 0 | N100: 0 | P100: =P98+Q99 -> 0 | S100: CTS Saldo | V100: =Z100/60 -> 0 | X100: =IF(Z100<0,TEXT(-Z100/1440,"- [hh]:mm"),Z100/1440) -> 0 | Z100: =Z96+Z97+AA98+Z99 -> 0 | AC100: Anzahl / ø AZ Touren Februar | AG100: =AY86 -> 0 | AI100: =IF(AY85=0,"",AY85/AY86) -> 
A101: =IF(OR($C101=$AD$573,$C101=$AD$574+1,$C101=$AD$580,$C101=$AD$581+1),"Einteilung geä.",IF(ISNA(VLOOKUP($C101,Feiertage,3,FALSE)),"",VLOOKUP($C101,Feiertage,3,FALSE))) ->  | B101: =WEEKDAY(C101) -> 1900-01-01 | C101: =DATE('AZ Jahr'!$C$1,3,1) -> 2026-03-01 | L101: 00:00:00 | M101: 0 | N101: 0 | O101: =IF(AND(ISNUMBER(E101),ISNUMBER(F101)),IF(E101<F101,(F101-E101)*1440,(1-E101+F101)*1440),"") ->  | P101: =IF(AND(E101=":",F101=":",$AG$3=TRUE),$AP$5,IF(O101="",0,IF(AS101<360,360,AS101))) -> 0 | Q101: =IF($S$3=1,ROUND(P101,0)/1440,P101/60) -> 00:00:00 | R101: =IF(OR(H101="",I101=""),0,IF(H101<I101,(I101-H101)*1440,IF(H101>I101,(1-H101+I101)*1440)))/$U$3 -> 0 | S101: =IF(OR(K101="",L101=""),0,IF(K101<L101,(L101-K101)*1440,IF(K101>L101,(1-K101+L101)*1440)))/$U$3 -> 0 | T101: =(IF(AND(R101*$U$3>=180,J101=2),0,IF(AND(R101*$U$3>60,N101<>1),(IF(AND(H101>I101,(H101+1/24)<=1),I101,IF(AND(H101>I101,(H101+1/24)>1),(I101+1-(H101+1/24)),IF(AND(H101<=4/24,I101<=5/24),(I101-(H101+1/24)),IF(AND((H101+1/24)<=5/24,I101>5/24),(5/24-(H101+1/24)),0))))),0))+IF(AND(S101*$U$3>=180,M101=2),0,IF(N101<>1,IF(AND(K101>L101,R101*$U$3<=60,(K101-R101*$U$3/1440+1/24)>1),(L101-(K101-R101*$U$3/1440-23/24)),IF(OR(AND(K101>L101,R101*$U$3<=60,(K101-R101*$U$3/1440+1/24)<=1),AND(K101>L101,R101*$U$3>60)),L101,IF(AND(K101<5/24,L101>=5/24,R101*$U$3<60),(5/24-(K101-R101*$U$3/1440+1/24)),IF(AND(K101<5/24,L101>=5/24,R101*$U$3>=60),(5/24-K101),IF(AND(S101*$U$3>0,K101<5/24,L101<5/24,R101*$U$3<60),(L101-(K101-R101*$U$3/1440+1/24)),IF(AND(S101*$U$3>0,K101<5/24,L101<5/24,R101*$U$3>=60),(L101-K101),0)))))))))*1440/$U$3 -> 0 | U101: =IF(AND(AS101<360,AS101+AT101<=360),0,IF(AND(AS101<360,AS101+AT101>360),AS101+AT101-360,AT101))/$U$3 -> 0 | V101: =(IF(OR(AND(R101*$U$3>=180,J101=2),AND(J101=1,N101=1)),R101*$U$3*15%,IF(AND(J101=1,R101*$U$3>60,N101=1),R101*$U$3*15%,IF(AND(J101=1,R101*$U$3>60),9,IF(AND(J101=1,R101*$U$3<=60),R101*$U$3*15%,0))))+IF(OR(AND(S101*$U$3>=180,M101=2),AND(M101=1,N101=1)),S101*$U$3*15%,IF(AND(M101=1,S101*$U$3>60,N101=1),S101*$U$3*15%,IF(AND(M101=1,S101*$U$3>0,R101*$U$3<=60),(60-R101*$U$3)*15%,0))))/$U$3 -> 0 | W101: =(IF(AND(OR(E101>F101,E101=0),F101<=5/24),F101*432,IF(AND(E101>F101,F101>5/24),90,IF(AND(E101<4/24,F101>5/24),(5/24-E101)*432,IF(AND(E101<4/24,F101<=5/24),(F101-E101)*432,0))))-IF(AND(H101>I101,I101<=5/24),I101*432,IF(AND(H101<I101,H101<=5/24,I101<=5/24),(I101-H101)*432,IF(AND(H101<I101,H101<=5/24),(5/24-H101)*432,IF(AND(H101>I101,I101>=5/24),90,0))))-IF(AND(K101>L101,L101<=5/24),L101*432,IF(AND(K101<L101,K101<=5/24,L101<=5/24),(L101-K101)*432,IF(AND(K101<L101,K101<=5/24),(5/24-K101)*432,IF(AND(K101>L101,L101>=5/24),90,0))))+T101*$U$3*30%)/$U$3 -> 0 | X101: =(IF(N101=1,0,ROUND(IF(AND(OR(E101>F101,E101=0),F101<=6/24),F101*144,IF(AND(E101>F101,F101>6/24),36,IF(AND(E101<6/24,F101<=6/24),(F101-E101)*144,IF(E101<6/24,(6/24-E101)*144,0))))-IF(AND(H101>I101,I101<=6/24),I101*144,IF(AND(H101<I101,H101<=6/24,I101<=6/24),(I101-H101)*144,IF(AND(H101<I101,H101<=6/24),(6/24-H101)*144,IF(AND(H101>I101,I101>=6/24),36,0))))-IF(AND(K101>L101,L101<=6/24),L101*144,IF(AND(K101<L101,K101<=6/24,L101<=6/24),(L101-K101)*144,IF(AND(K101<L101,K101<=6/24),(6/24-K101)*144,IF(AND(K101>L101,L101>=6/24),36,0))))+T101*$U$3*10%,1)))/$U$3 -> 0 | Y101: =(IF(O101="",0,IF(AND(E101>20/24,E101<F101),(F101-E101)*144,IF(E101>20/24,(1-E101)*144,IF(E101>F101,24,IF(F101>20/24,(F101-20/24)*144,0)))))-IF(AND(H101<=20/24,I101<H101),24,IF(AND(H101<20/24,I101<20/24),0,IF(AND(H101<=20/24,I101>20/24),(I101-20/24)*144,IF(AND(H101>20/24,I101>20/24),(I101-H101)*144,IF(AND(I101<H101,H101>20/24),(1-H101)*144,0)))))-IF(AND(K101<=20/24,L101<K101),24,IF(AND(K101<20/24,L101<20/24),0,IF(AND(K101<=20/24,L101>20/24),(L101-20/24)*144,IF(AND(K101>20/24,L101>20/24),(L101-K101)*144,IF(AND(L101<K101,K101>20/24),(1-K101)*144,0))))))/$U$3 -> 0 | AD101: =(IF(D101=$AN$12,-$AP$12,0)+AB101+AC101*60)/$U$3 -> 0 | AE101: =P101+Z101+AW101+AX101+(U101+V101+W101+X101+Y101+(AD101*-1))*$U$3+AA101*60 -> 0 | AF101: =AE101/1440 -> 00:00:00 | AG101: =AE101/60 -> 0 | AH101: =ROUND(IF($D101=$AN$15,-$AP$15/$U$3,IF(O101="",0,IF($AG$2=TRUE,W101/3,0))),$V$3) -> 0 | AI101: =ROUND((IF(O101="",,IF(E101="",0,IF(AV101=1,(IF(E101<F101,F101-E101,1-E101)-IF(AND(E101>F101,H101<I101,H101<E101),0,IF(H101<I101,I101-H101,IF(H101>I101,1-H101,0)))-IF(AND(E101>F101,K101<L101,K101<E101),0,IF(K101<L101,L101-K101,IF(K101>L101,1-K101,0)))),0))+IF(AND(AV102=1,E101>F101),(F101-IF(AND(E101>F101,H101<I101,H101<E101),I101-H101,IF(H101>I101,I101,0))-IF(AND(E101>F101,K101<L101,K101<E101),L101-K101,IF(K101>L101,L101,0))),0))+IF(AND(AV101=1,E101<5/24,P101>0),T101/1440,0)+IF(AND(E101>F101,AV102=1),T101/1440,0))*$T$3,$V$3) -> 00:00:00 | AJ101: =ROUND((IF(AND(OR(E101>F101,E101=0),F101<=6/24),F101,IF(AND(E101>F101,F101>6/24),6/24,IF(AND(E101<6/24,F101>6/24),6/24-E101,IF(AND(E101<6/24,F101<=6/24),F101-E101,0))))+IF(B101<7,IF(O101="",0,IF(AND(E101>20/24,E101<F101),F101-E101,IF(E101>20/24,1-E101,IF(E101>F101,4/24,IF(F101>20/24,F101-20/24,0))))))+IF(B101=7,IF(O101="",0,IF(AND(E101>18/24,E101<F101),F101-E101,IF(E101>18/24,1-E101,IF(E101>F101,6/24,IF(F101>18/24,F101-18/24,0))))),0))*$T$3,$V$3) -> 00:00:00 | AS101: =IF(AND(ISNUMBER(E101),ISNUMBER(F101)),ROUND(O101-R101*$U$3-S101*$U$3,0),0) -> 0 | AT101: =IF(N101=1,0,IF(AND(R101*$U$3>=180,J101=2),0,IF(R101*$U$3>60,R101*$U$3-60,0))+IF(AND(S101*$U$3>=180,M101=2),0,IF(AND(R101*$U$3>60,R101*$U$3<180),S101*$U$3,IF(AND(R101*$U$3>0,R101*$U$3<=60,S101*$U$3>0),R101*$U$3+S101*$U$3-60,0)))) -> 0 | AU101: 63 | AV101: =IF(ISNA(VLOOKUP($C101,Feiertage,1,0))=TRUE,WEEKDAY($C101),IF(VLOOKUP($C101,Feiertage,6,0)=1,1,WEEKDAY($C101))) -> 1 | AW101: =ROUND(IF(D101=$AN$24,$AP$24,IF(D101=$AN$23,$AP$23,IF(D101=$AN$22,$AP$22,IF(D101=$AN$13,$AP$13,IF(D101=$AN$14,$AP$14,IF(D101=$AN$15,$AP$15,0)))))),1) -> 0 | AX101: =ROUND(IF(D101=$AN$16,$AP$16,IF(D101=$AN$17,$AP$17,IF(D101=$AN$18,$AP$18,IF(D101=$AN$19,$AP$19,IF(D101=$AN$21,$AP$21,0))))),1)+IF(D101=$AN$20,$AP$20) -> 0 | AY101: =IF(AND(P101>0,AE101>=0),AD101*$U$3+AE101,0) -> 0
B102: =WEEKDAY(C102) -> 1900-01-02 | C102: =C101+1 -> 2026-03-02 | L102: 00:00:00 | M102: 0 | N102: 0 | P102: 0 | Q102: =IF($S$3=1,ROUND(P102,0)/1440,P102/60) -> 00:00:00 | R102: =IF(OR(H102="",I102=""),0,IF(H102<I102,(I102-H102)*1440,IF(H102>I102,(1-H102+I102)*1440)))/$U$3 -> 0 | S102: =IF(OR(K102="",L102=""),0,IF(K102<L102,(L102-K102)*1440,IF(K102>L102,(1-K102+L102)*1440)))/$U$3 -> 0 | T102: =(IF(AND(R102*$U$3>=180,J102=2),0,IF(AND(R102*$U$3>60,N102<>1),(IF(AND(H102>I102,(H102+1/24)<=1),I102,IF(AND(H102>I102,(H102+1/24)>1),(I102+1-(H102+1/24)),IF(AND(H102<=4/24,I102<=5/24),(I102-(H102+1/24)),IF(AND((H102+1/24)<=5/24,I102>5/24),(5/24-(H102+1/24)),0))))),0))+IF(AND(S102*$U$3>=180,M102=2),0,IF(N102<>1,IF(AND(K102>L102,R102*$U$3<=60,(K102-R102*$U$3/1440+1/24)>1),(L102-(K102-R102*$U$3/1440-23/24)),IF(OR(AND(K102>L102,R102*$U$3<=60,(K102-R102*$U$3/1440+1/24)<=1),AND(K102>L102,R102*$U$3>60)),L102,IF(AND(K102<5/24,L102>=5/24,R102*$U$3<60),(5/24-(K102-R102*$U$3/1440+1/24)),IF(AND(K102<5/24,L102>=5/24,R102*$U$3>=60),(5/24-K102),IF(AND(S102*$U$3>0,K102<5/24,L102<5/24,R102*$U$3<60),(L102-(K102-R102*$U$3/1440+1/24)),IF(AND(S102*$U$3>0,K102<5/24,L102<5/24,R102*$U$3>=60),(L102-K102),0)))))))))*1440/$U$3 -> 0 | U102: =IF(AND(AS102<360,AS102+AT102<=360),0,IF(AND(AS102<360,AS102+AT102>360),AS102+AT102-360,AT102))/$U$3 -> 0 | V102: 0 | W102: 0 | X102: =(IF(N102=1,0,ROUND(IF(AND(OR(E102>F102,E102=0),F102<=6/24),F102*144,IF(AND(E102>F102,F102>6/24),36,IF(AND(E102<6/24,F102<=6/24),(F102-E102)*144,IF(E102<6/24,(6/24-E102)*144,0))))-IF(AND(H102>I102,I102<=6/24),I102*144,IF(AND(H102<I102,H102<=6/24,I102<=6/24),(I102-H102)*144,IF(AND(H102<I102,H102<=6/24),(6/24-H102)*144,IF(AND(H102>I102,I102>=6/24),36,0))))-IF(AND(K102>L102,L102<=6/24),L102*144,IF(AND(K102<L102,K102<=6/24,L102<=6/24),(L102-K102)*144,IF(AND(K102<L102,K102<=6/24),(6/24-K102)*144,IF(AND(K102>L102,L102>=6/24),36,0))))+T102*$U$3*10%,1)))/$U$3 -> 0 | Y102: =(IF(O102="",0,IF(AND(E102>20/24,E102<F102),(F102-E102)*144,IF(E102>20/24,(1-E102)*144,IF(E102>F102,24,IF(F102>20/24,(F102-20/24)*144,0)))))-IF(AND(H102<=20/24,I102<H102),24,IF(AND(H102<20/24,I102<20/24),0,IF(AND(H102<=20/24,I102>20/24),(I102-20/24)*144,IF(AND(H102>20/24,I102>20/24),(I102-H102)*144,IF(AND(I102<H102,H102>20/24),(1-H102)*144,0)))))-IF(AND(K102<=20/24,L102<K102),24,IF(AND(K102<20/24,L102<20/24),0,IF(AND(K102<=20/24,L102>20/24),(L102-20/24)*144,IF(AND(K102>20/24,L102>20/24),(L102-K102)*144,IF(AND(L102<K102,K102>20/24),(1-K102)*144,0))))))/$U$3 -> 0 | AD102: 0 | AE102: =P102+Z102+AW102+AX102+(U102+V102+W102+X102+Y102+(AD102*-1))*$U$3+AA102*60 -> 0 | AF102: =AE102/1440 -> 00:00:00 | AG102: =AE102/60 -> 0 | AH102: 0 | AI102: 00:00:00 | AJ102: 00:00:00 | AS102: =IF(AND(ISNUMBER(E102),ISNUMBER(F102)),ROUND(O102-R102*$U$3-S102*$U$3,0),0) -> 0 | AT102: =IF(N102=1,0,IF(AND(R102*$U$3>=180,J102=2),0,IF(R102*$U$3>60,R102*$U$3-60,0))+IF(AND(S102*$U$3>=180,M102=2),0,IF(AND(R102*$U$3>60,R102*$U$3<180),S102*$U$3,IF(AND(R102*$U$3>0,R102*$U$3<=60,S102*$U$3>0),R102*$U$3+S102*$U$3-60,0)))) -> 0 | AU102: 64 | AV102: 2 | AW102: 0 | AX102: 0 | AY102: 0
B103: 1900-01-03 | C103: =C101+2 -> 2026-03-03 | L103: 00:00:00 | M103: 0 | N103: 0 | P103: 0 | Q103: 00:00:00 | R103: 0 | S103: 0 | T103: 0 | U103: 0 | V103: 0 | W103: 0 | X103: 0 | Y103: 0 | AD103: 0 | AE103: 0 | AF103: 00:00:00 | AG103: =AE103/60 -> 0 | AH103: 0 | AI103: 00:00:00 | AJ103: 00:00:00 | AS103: 0 | AT103: 0 | AU103: 65 | AV103: 3 | AW103: 0 | AX103: 0 | AY103: 0
B104: 1900-01-04 | C104: =C101+3 -> 2026-03-04 | L104: 00:00:00 | M104: 0 | N104: 0 | P104: 0 | Q104: 00:00:00 | R104: 0 | S104: 0 | T104: 0 | U104: 0 | V104: 0 | W104: 0 | X104: 0 | Y104: 0 | AD104: 0 | AE104: 0 | AF104: 00:00:00 | AG104: 0 | AH104: 0 | AI104: 00:00:00 | AJ104: 00:00:00 | AS104: 0 | AT104: 0 | AU104: 66 | AV104: 4 | AW104: 0 | AX104: 0 | AY104: 0
B105: 1900-01-05 | C105: =C101+4 -> 2026-03-05 | L105: 00:00:00 | M105: 0 | N105: 0 | P105: 0 | Q105: 00:00:00 | R105: 0 | S105: 0 | T105: 0 | U105: 0 | V105: 0 | W105: 0 | X105: 0 | Y105: 0 | AD105: 0 | AE105: 0 | AF105: 00:00:00 | AG105: 0 | AH105: 0 | AI105: 00:00:00 | AJ105: 00:00:00 | AS105: 0 | AT105: 0 | AU105: 67 | AV105: 5 | AW105: 0 | AX105: 0 | AY105: 0
B106: 1900-01-06 | C106: =C101+5 -> 2026-03-06 | L106: 00:00:00 | M106: 0 | N106: 0 | P106: 0 | Q106: 00:00:00 | R106: 0 | S106: 0 | T106: 0 | U106: 0 | V106: 0 | W106: 0 | X106: 0 | Y106: 0 | AD106: 0 | AE106: 0 | AF106: 00:00:00 | AG106: 0 | AH106: 0 | AI106: 00:00:00 | AJ106: 00:00:00 | AS106: 0 | AT106: 0 | AU106: 68 | AV106: 6 | AW106: 0 | AX106: 0 | AY106: 0
B107: 1900-01-07 | C107: =C101+6 -> 2026-03-07 | L107: 00:00:00 | M107: 0 | N107: 0 | P107: 0 | Q107: 00:00:00 | R107: 0 | S107: 0 | T107: 0 | U107: 0 | V107: 0 | W107: 0 | X107: 0 | Y107: 0 | AD107: 0 | AE107: 0 | AF107: 00:00:00 | AG107: 0 | AH107: 0 | AI107: 00:00:00 | AJ107: 00:00:00 | AS107: 0 | AT107: 0 | AU107: 69 | AV107: 7 | AW107: 0 | AX107: 0 | AY107: 0
B108: 1900-01-01 | C108: =C101+7 -> 2026-03-08 | L108: 00:00:00 | M108: 0 | N108: 0 | P108: 0 | Q108: 00:00:00 | R108: 0 | S108: 0 | T108: 0 | U108: 0 | V108: 0 | W108: 0 | X108: 0 | Y108: 0 | AD108: 0 | AE108: 0 | AF108: 00:00:00 | AG108: 0 | AH108: 0 | AI108: 00:00:00 | AJ108: 00:00:00 | AS108: 0 | AT108: 0 | AU108: 70 | AV108: 1 | AW108: 0 | AX108: 0 | AY108: 0
B109: 1900-01-02 | C109: =C101+8 -> 2026-03-09 | L109: 00:00:00 | M109: 0 | N109: 0 | P109: 0 | Q109: 00:00:00 | R109: 0 | S109: 0 | T109: 0 | U109: 0 | V109: 0 | W109: 0 | X109: 0 | Y109: 0 | AD109: 0 | AE109: 0 | AF109: 00:00:00 | AG109: 0 | AH109: 0 | AI109: 00:00:00 | AJ109: 00:00:00 | AS109: 0 | AT109: 0 | AU109: 71 | AV109: 2 | AW109: 0 | AX109: 0 | AY109: 0
B110: 1900-01-03 | C110: =C101+9 -> 2026-03-10 | L110: 00:00:00 | M110: 0 | N110: 0 | P110: 0 | Q110: 00:00:00 | R110: 0 | S110: 0 | T110: 0 | U110: 0 | V110: 0 | W110: 0 | X110: 0 | Y110: 0 | AD110: 0 | AE110: 0 | AF110: 00:00:00 | AG110: 0 | AH110: 0 | AI110: 00:00:00 | AJ110: 00:00:00 | AS110: 0 | AT110: 0 | AU110: 72 | AV110: 3 | AW110: 0 | AX110: 0 | AY110: 0
B111: 1900-01-04 | C111: =C101+10 -> 2026-03-11 | L111: 00:00:00 | M111: 0 | N111: 0 | P111: 0 | Q111: 00:00:00 | R111: 0 | S111: 0 | T111: 0 | U111: 0 | V111: 0 | W111: 0 | X111: 0 | Y111: 0 | AD111: 0 | AE111: 0 | AF111: 00:00:00 | AG111: 0 | AH111: 0 | AI111: 00:00:00 | AJ111: 00:00:00 | AS111: 0 | AT111: 0 | AU111: 73 | AV111: 4 | AW111: 0 | AX111: 0 | AY111: 0
B112: 1900-01-05 | C112: =C101+11 -> 2026-03-12 | L112: 00:00:00 | M112: 0 | N112: 0 | P112: 0 | Q112: 00:00:00 | R112: 0 | S112: 0 | T112: 0 | U112: 0 | V112: 0 | W112: 0 | X112: 0 | Y112: 0 | AD112: 0 | AE112: 0 | AF112: 00:00:00 | AG112: 0 | AH112: 0 | AI112: 00:00:00 | AJ112: 00:00:00 | AS112: 0 | AT112: 0 | AU112: 74 | AV112: 5 | AW112: 0 | AX112: 0 | AY112: =IF(AND(P112>0,AE112>=0),AD112*$U$3+AE112,0) -> 0
B113: 1900-01-06 | C113: =C101+12 -> 2026-03-13 | L113: 00:00:00 | M113: 0 | N113: 0 | P113: 0 | Q113: 00:00:00 | R113: 0 | S113: 0 | T113: 0 | U113: 0 | V113: 0 | W113: 0 | X113: 0 | Y113: 0 | AD113: 0 | AE113: 0 | AF113: 00:00:00 | AG113: 0 | AH113: 0 | AI113: 00:00:00 | AJ113: 00:00:00 | AS113: 0 | AT113: 0 | AU113: 75 | AV113: 6 | AW113: 0 | AX113: 0 | AY113: =IF(AND(P113>0,AE113>=0),AD113*$U$3+AE113,0) -> 0
B114: 1900-01-07 | C114: =C101+13 -> 2026-03-14 | L114: 00:00:00 | M114: 0 | N114: 0 | P114: 0 | Q114: 00:00:00 | R114: 0 | S114: 0 | T114: 0 | U114: 0 | V114: 0 | W114: 0 | X114: 0 | Y114: 0 | AD114: 0 | AE114: 0 | AF114: 00:00:00 | AG114: 0 | AH114: 0 | AI114: 00:00:00 | AJ114: 00:00:00 | AS114: 0 | AT114: 0 | AU114: 76 | AV114: 7 | AW114: 0 | AX114: 0 | AY114: 0
B115: 1900-01-01 | C115: =C101+14 -> 2026-03-15 | L115: 00:00:00 | M115: 0 | N115: 0 | P115: 0 | Q115: 00:00:00 | R115: 0 | S115: 0 | T115: 0 | U115: 0 | V115: 0 | W115: 0 | X115: 0 | Y115: 0 | AD115: 0 | AE115: 0 | AF115: 00:00:00 | AG115: 0 | AH115: 0 | AI115: 00:00:00 | AJ115: 00:00:00 | AS115: 0 | AT115: 0 | AU115: 77 | AV115: 1 | AW115: 0 | AX115: 0 | AY115: 0
B116: 1900-01-02 | C116: =C101+15 -> 2026-03-16 | L116: 00:00:00 | M116: 0 | N116: 0 | P116: 0 | Q116: 00:00:00 | R116: 0 | S116: 0 | T116: 0 | U116: 0 | V116: 0 | W116: 0 | X116: 0 | Y116: 0 | AD116: 0 | AE116: 0 | AF116: 00:00:00 | AG116: 0 | AH116: 0 | AI116: 00:00:00 | AJ116: 00:00:00 | AS116: 0 | AT116: 0 | AU116: 78 | AV116: 2 | AW116: 0 | AX116: 0 | AY116: 0
B117: 1900-01-03 | C117: =C101+16 -> 2026-03-17 | L117: 00:00:00 | M117: 0 | N117: 0 | P117: 0 | Q117: 00:00:00 | R117: 0 | S117: 0 | T117: 0 | U117: 0 | V117: 0 | W117: 0 | X117: 0 | Y117: 0 | AD117: 0 | AE117: 0 | AF117: 00:00:00 | AG117: 0 | AH117: 0 | AI117: 00:00:00 | AJ117: 00:00:00 | AS117: 0 | AT117: 0 | AU117: 79 | AV117: 3 | AW117: 0 | AX117: 0 | AY117: 0
B118: 1900-01-04 | C118: =C101+17 -> 2026-03-18 | L118: 00:00:00 | M118: 0 | N118: 0 | P118: 0 | Q118: 00:00:00 | R118: 0 | S118: 0 | T118: 0 | U118: 0 | V118: 0 | W118: 0 | X118: 0 | Y118: 0 | AD118: 0 | AE118: 0 | AF118: 00:00:00 | AG118: 0 | AH118: 0 | AI118: 00:00:00 | AJ118: 00:00:00 | AS118: 0 | AT118: 0 | AU118: 80 | AV118: 4 | AW118: 0 | AX118: 0 | AY118: 0
B119: 1900-01-05 | C119: =C101+18 -> 2026-03-19 | L119: 00:00:00 | M119: 0 | N119: 0 | P119: 0 | Q119: 00:00:00 | R119: 0 | S119: 0 | T119: 0 | U119: 0 | V119: 0 | W119: 0 | X119: 0 | Y119: 0 | AD119: 0 | AE119: 0 | AF119: 00:00:00 | AG119: 0 | AH119: 0 | AI119: 00:00:00 | AJ119: 00:00:00 | AS119: 0 | AT119: 0 | AU119: 81 | AV119: 5 | AW119: 0 | AX119: 0 | AY119: 0
B120: 1900-01-06 | C120: =C101+19 -> 2026-03-20 | L120: 00:00:00 | M120: 0 | N120: 0 | P120: 0 | Q120: 00:00:00 | R120: 0 | S120: 0 | T120: 0 | U120: 0 | V120: 0 | W120: 0 | X120: 0 | Y120: 0 | AD120: 0 | AE120: 0 | AF120: 00:00:00 | AG120: 0 | AH120: 0 | AI120: 00:00:00 | AJ120: 00:00:00 | AS120: 0 | AT120: 0 | AU120: 82 | AV120: 6 | AW120: 0 | AX120: 0 | AY120: 0
B121: 1900-01-07 | C121: =C101+20 -> 2026-03-21 | L121: 00:00:00 | M121: 0 | N121: 0 | P121: 0 | Q121: 00:00:00 | R121: 0 | S121: 0 | T121: 0 | U121: 0 | V121: 0 | W121: 0 | X121: 0 | Y121: 0 | AD121: 0 | AE121: 0 | AF121: 00:00:00 | AG121: 0 | AH121: 0 | AI121: 00:00:00 | AJ121: 00:00:00 | AS121: 0 | AT121: 0 | AU121: 83 | AV121: 7 | AW121: 0 | AX121: 0 | AY121: 0
B122: 1900-01-01 | C122: =C101+21 -> 2026-03-22 | L122: 00:00:00 | M122: 0 | N122: 0 | P122: 0 | Q122: 00:00:00 | R122: 0 | S122: 0 | T122: 0 | U122: 0 | V122: 0 | W122: 0 | X122: 0 | Y122: 0 | AD122: 0 | AE122: 0 | AF122: 00:00:00 | AG122: 0 | AH122: 0 | AI122: 00:00:00 | AJ122: 00:00:00 | AS122: 0 | AT122: 0 | AU122: 84 | AV122: 1 | AW122: 0 | AX122: 0 | AY122: 0
B123: 1900-01-02 | C123: =C101+22 -> 2026-03-23 | L123: 00:00:00 | M123: 0 | N123: 0 | P123: 0 | Q123: 00:00:00 | R123: 0 | S123: 0 | T123: 0 | U123: 0 | V123: 0 | W123: 0 | X123: 0 | Y123: 0 | AD123: 0 | AE123: 0 | AF123: 00:00:00 | AG123: 0 | AH123: 0 | AI123: 00:00:00 | AJ123: 00:00:00 | AS123: 0 | AT123: 0 | AU123: 85 | AV123: 2 | AW123: 0 | AX123: 0 | AY123: 0
B124: 1900-01-03 | C124: =C101+23 -> 2026-03-24 | L124: 00:00:00 | M124: 0 | N124: 0 | P124: 0 | Q124: 00:00:00 | R124: 0 | S124: 0 | T124: 0 | U124: 0 | V124: 0 | W124: 0 | X124: 0 | Y124: 0 | AD124: 0 | AE124: 0 | AF124: 00:00:00 | AG124: 0 | AH124: 0 | AI124: 00:00:00 | AJ124: 00:00:00 | AS124: 0 | AT124: 0 | AU124: 86 | AV124: 3 | AW124: 0 | AX124: 0 | AY124: 0
B125: 1900-01-04 | C125: =C101+24 -> 2026-03-25 | L125: 00:00:00 | M125: 0 | N125: 0 | P125: 0 | Q125: 00:00:00 | R125: 0 | S125: 0 | T125: 0 | U125: 0 | V125: 0 | W125: 0 | X125: 0 | Y125: 0 | AD125: 0 | AE125: 0 | AF125: 00:00:00 | AG125: 0 | AH125: 0 | AI125: 00:00:00 | AJ125: 00:00:00 | AS125: 0 | AT125: 0 | AU125: 87 | AV125: 4 | AW125: 0 | AX125: 0 | AY125: 0
B126: 1900-01-05 | C126: =C101+25 -> 2026-03-26 | L126: 00:00:00 | M126: 0 | N126: 0 | P126: 0 | Q126: 00:00:00 | R126: 0 | S126: 0 | T126: 0 | U126: 0 | V126: 0 | W126: 0 | X126: 0 | Y126: 0 | AD126: 0 | AE126: 0 | AF126: 00:00:00 | AG126: 0 | AH126: 0 | AI126: 00:00:00 | AJ126: 00:00:00 | AS126: 0 | AT126: 0 | AU126: 88 | AV126: 5 | AW126: 0 | AX126: 0 | AY126: 0
B127: 1900-01-06 | C127: =C101+26 -> 2026-03-27 | L127: 00:00:00 | M127: 0 | N127: 0 | P127: 0 | Q127: 00:00:00 | R127: 0 | S127: 0 | T127: 0 | U127: 0 | V127: 0 | W127: 0 | X127: 0 | Y127: 0 | AD127: 0 | AE127: 0 | AF127: 00:00:00 | AG127: 0 | AH127: 0 | AI127: 00:00:00 | AJ127: 00:00:00 | AS127: 0 | AT127: 0 | AU127: 89 | AV127: 6 | AW127: 0 | AX127: 0 | AY127: 0
B128: 1900-01-07 | C128: =C101+27 -> 2026-03-28 | L128: 00:00:00 | M128: 0 | N128: 0 | P128: 0 | Q128: 00:00:00 | R128: 0 | S128: 0 | T128: 0 | U128: 0 | V128: 0 | W128: 0 | X128: 0 | Y128: 0 | AD128: 0 | AE128: 0 | AF128: 00:00:00 | AG128: 0 | AH128: 0 | AI128: 00:00:00 | AJ128: 00:00:00 | AS128: 0 | AT128: 0 | AU128: 90 | AV128: 7 | AW128: 0 | AX128: 0 | AY128: 0
B129: 1900-01-01 | C129: =C102+27 -> 2026-03-29 | L129: 00:00:00 | M129: 0 | N129: 0 | P129: 0 | Q129: 00:00:00 | R129: 0 | S129: 0 | T129: 0 | U129: 0 | V129: 0 | W129: 0 | X129: 0 | Y129: 0 | AD129: 0 | AE129: 0 | AF129: 00:00:00 | AG129: 0 | AH129: 0 | AI129: 00:00:00 | AJ129: 00:00:00 | AS129: 0 | AT129: 0 | AU129: 91 | AV129: 1 | AW129: 0 | AX129: 0 | AY129: 0
B130: 1900-01-02 | C130: =C103+27 -> 2026-03-30 | L130: 00:00:00 | M130: 0 | N130: 0 | P130: 0 | Q130: 00:00:00 | R130: 0 | S130: 0 | T130: 0 | U130: 0 | V130: 0 | W130: 0 | X130: 0 | Y130: 0 | AD130: 0 | AE130: 0 | AF130: 00:00:00 | AG130: 0 | AH130: 0 | AI130: 00:00:00 | AJ130: 00:00:00 | AS130: 0 | AT130: 0 | AU130: 92 | AV130: 2 | AW130: 0 | AX130: 0 | AY130: 0
B131: 1900-01-03 | C131: =C104+27 -> 2026-03-31 | L131: 00:00:00 | M131: 0 | N131: 0 | P131: 0 | Q131: 00:00:00 | R131: 0 | S131: 0 | T131: 0 | U131: 0 | V131: 0 | W131: 0 | X131: 0 | Y131: 0 | AD131: 0 | AE131: 0 | AF131: 00:00:00 | AG131: 0 | AH131: 0 | AI131: 00:00:00 | AJ131: 00:00:00 | AS131: 0 | AT131: 0 | AU131: 93 | AV131: 3 | AW131: 0 | AX131: 0 | AY131: 0
T132: =IF($S$3=1,"Total Min. > ","Total IND > ") -> Total IND > | U132: =SUM(U101:U131) -> 0 | V132: =SUM(V101:V131) -> 0 | W132: =SUM(W101:W131) -> 0 | X132: =SUM(X101:X131) -> 0 | Y132: =SUM(Y101:Y131) -> 0 | AC132: in Min. / hh:mm > | AD132: =IF($S$3=1,SUM(AD101:AD131),AD133*60) -> 0 | AE132: =SUM(AE101:AE131) -> 0 | AF132: =AE132/1440 -> 0 | AH132: =SUMIF(AH101:AH131,">0",AH101:AH131)*$U$3 -> 0 | AI132: =AI133/24 -> 0 | AJ132: =AJ133/24 -> 0 | AV132: =$AV148 -> 4 | AY132: =SUM(AY101:AY131) -> 0
B133: Bemerkungen: | D133: … | T133: Total IND > | U133: =ROUND(IF($S$3=1,SUM(U132+V132)/60,SUM(U132+V132)),2) -> 0 | W133: =ROUND(IF($S$3=1,SUM(W132+X132)/60,SUM(W132+X132)),2) -> 0 | Y133: =ROUND(IF($S$3=1,Y132/60,Y132),2) -> 0 | AC133: =IF(AND($S$3=2,$AG$2=TRUE),"ND3 / So / ND = *) IND > ","IND > ") -> IND > | AD133: =IF($S$3=1,SUM(AD101:AD131)/60,SUM(AD101:AD131)) -> 0 | AE133: =AE132/60 -> 0 | AF133: =AF132*24 -> 0 | AG133: =SUM(AG101:AG131) -> 0 | AH133: =IF($S$3=1,SUM(AH101:AH131)/60,SUM(AH101:AH131)) -> 0 | AI133: =IF($S$3=1,SUM(AI101:AI131)*24,SUM(AI101:AI131)) -> 0 | AJ133: =IF($S$3=1,SUM(AJ101:AJ131)*24,SUM(AJ101:AJ131)) -> 0 | AY133: =COUNTIF(AY101:AY131,">0") -> 0
B134: =IF($S$3=2,"IND = Industrie Stunden > Stunden dezimal *) = Täglich gerundet auf 2 Stellen nach Komma","IND = Industrie Stunden > Stunden dezimal") -> IND = Industrie Stunden > Stunden dezimal *) = Täglich gerundet auf 2 Stellen nach Komma | I134: =IF($X$2=1,"Berechnung JAZ > SOPRE",IF($X$2=2,"Berechnung JAZ > SAP","Berechnung JAZ > LINEAR")) -> Berechnung JAZ > SOPRE | M134: IND | O134: hh:mm | Q134: Minuten | W134: IND | Y134: hh:mm | AA134: Minuten | AF134: IND | AG134: hh:mm (CHF) | AI134: Minuten (CHF)
B135: Abwesenheitskontrolle März | I135: AZ Saldo Übertrag | L135: =ROUND(P135/60,2) -> 0 | N135: =IF(P135<0,TEXT(-P135/1440,"- [hh]:mm"),P135/1440) -> 0 | P135: =P93 -> 0 | S135: ND3 Übertrag | V135: =Z135/60 -> 0 | X135: =IF(Z135<0,TEXT(-Z135/1440,"- [hh]:mm"),Z135/1440) -> 0 | Z135: =Z91 -> 0 | AC135: TRP Übertrag | AE135: =AI135/60 -> 0 | AG135: =IF(AI135<0,TEXT(-AI135/1440,"- [hh]:mm"),AI135/1440) -> 0 | AI135: =AI90 -> 0
B136: Was | E136: Anzahl | F136: Total | G136: Soll-Trend | I136: Korrektur IND od. Min | N136: =IF(Q136<0,TEXT(-Q136/1440,"- [hh]:mm"),Q136/1440) -> 0 | Q136: =IF(L136<>0,L136*60,IF(P136<>0,P136,0)) -> 0 | S136: ND3 März | U136: =COUNTIF(D101:D131,$AN$15) -> 0 | V136: =AH133 -> 0 | X136: =IF(Z136<0,TEXT(-Z136/1440,"- [hh]:mm"),Z136/1440) -> 0 | Z136: =AH133*60 -> 0 | AC136: März | AD136: =COUNTIF(D101:D131,$AN$14) -> 0 | AF136: =AJ136/60 -> 0 | AG136: =IF(AJ136<0,TEXT(-AJ136/1440,"- [hh]:mm"),AJ136/1440) -> 0 | AJ136: =AD136*$AP$14*-1+IF(AE136<>0,AE136*60,IF(AI136<>0,AI136,0)) -> 0
B137: Ruhetage -, RT, Ferien- | E137: =COUNTIF(D101:D131,"-")+COUNTIF(D101:D131,"RT")+COUNTIF(D101:D131,"Ferien-") -> 0 | F137: =E137+F90 -> 0 | G137: Trend = inkl. CT aus TZT und allfällige Kürzung | I137: AZ März | L137: =ROUND(AG133+Q136/60,2) -> 0 | N137: =IF(P137<0,TEXT(-P137/1440,"- [hh]:mm"),P137/1440) -> 0 | P137: =L137*60 -> 0 | S137: Korrektur IND od. Min | X137: =IF(AA137<0,TEXT(-AA137/1440,"- [hh]:mm"),AA137/1440) -> 0 | AA137: =IF(V137<>0,V137*60,IF(Z137<>0,Z137,0)) -> 0 | AC137: TRP Saldo | AE137: =AI137/60 -> 0 | AG137: =IF(AI137<0,TEXT(-AI137/1440,"- [hh]:mm"),AI137/1440) -> 0 | AI137: =AI135+AJ136 -> 0
B138: Ruhetage verlangt RTV | E138: =COUNTIF(D101:D131,$AN$8) -> 0 | F138: =E138+F91 -> 0 | I138: Kürzung | K138: =E146+E147 -> 0 | L138: =P138/60 -> 0 | N138: =IF(K138=0,"",CONCATENATE("-",TEXT(-P138/1440,"[hh]:mm"))) ->  | P138: =-K138*$AP$16 -> 0 | S138: ND3 Saldo | V138: =Z138/60 -> 0 | X138: =IF(Z138<0,TEXT(-Z138/1440,"- [hh]:mm"),Z138/1440) -> 0 | Z138: =Z135+Z136+AA137 -> 0 | AC138: Flexa Übertrag | AE138: =AI138/60 -> 0 | AG138: =IF(AI138<0,TEXT(-AI138/1440,"- [hh]:mm"),AI138/1440) -> 0 | AI138: =AI93 -> 0
B139: Ausgleichst. +, CT, Ferien+ | E139: =COUNTIF(D101:D131,"+")+COUNTIF(D101:D131,"CT")+COUNTIF(D101:D131,"Ferien+") -> 0 | F139: =E139+F92 -> 0 | I139: GLZ manuell | N139: =IF(Q139<0,TEXT(-Q139/1440,"- [hh]:mm"),Q139/1440) -> 0 | Q139: =IF(L139<>0,L139*60,IF(P139<>0,P139,0)) -> 0 | S139: ÜZ Übertrag | V139: =Z139/60 -> 0 | X139: =IF(Z139<0,TEXT(-Z139/1440,"- [hh]:mm"),Z139/1440) -> 0 | Z139: =Z95 -> 0 | AC139: März | AD139: =COUNTIF(D101:D131,$AN$24) -> 0 | AF139: =AJ139/60 -> 0 | AG139: =IF(AJ139<0,TEXT(-AJ139/1440,"- [hh]:mm"),AJ139/1440) -> 0 | AJ139: =AD139*$AP$24*-1+IF(AE139<>0,AE139*60,IF(AI139<>0,AI139,0))+IF(AND(AB146="JA",'AZ Jahr'!$R$17=2),AI146,0) -> 0
B140: CTV (CT verlangt) | E140: =COUNTIF(D101:D131,$AN$10) -> 0 | F140: =E140+F93 -> 0 | I140: AZ Saldo | L140: =ROUND(P140/60,2) -> 0 | N140: =IF(P140<0,TEXT(-P140/1440,"- [hh]:mm"),P140/1440) -> 0 | P140: =P135+P137+P138+Q139 -> 0 | S140: ÜZ März | U140: =COUNTIF(D101:D131,$AN$12) -> 0 | V140: =AD133 -> 0 | X140: =IF(Z140<0,TEXT(-Z140/1440,"- [hh]:mm"),Z140/1440) -> 0 | Z140: =V140*60 -> 0 | AC140: Flexa Saldo | AE140: =AI140/60 -> 0 | AG140: =IF(AI140<0,TEXT(-AI140/1440,"- [hh]:mm"),AI140/1440) -> 0 | AI140: =AI138+AJ139 -> 0
B141: TZT Teilzeit | E141: =COUNTIF(D101:D131,$AN$11) -> 0 | F141: =E141+F94 -> 0 | H141: =IF($X$2=1,"SOP >",IF($X$2=2,"SAP >","LIN >")) -> SOP > | I141: Soll Ende März | L141: =ROUND(IF(OR($X$2=1,$X$2=2),IF($C$82="",'AZ Jahr'!$D$10/60/(365-'AZ Jahr'!$E$7)*(31-IF($X$2=1,'AZ Jahr'!$G$14,'AZ Jahr'!$G$13)),'AZ Jahr'!$D$10/60/(366-'AZ Jahr'!$E$7)*(31-IF($X$2=1,'AZ Jahr'!$G$14,'AZ Jahr'!$G$13))),IF($C$82="",'AZ Jahr'!$D$10/60/365*31,'AZ Jahr'!$D$10/60/366*31)),2)+L94 -> 508.4 | N141: =P141/1440 -> 21.18333333 | P141: =L141*60 -> 30504 | S141: Korrektur IND od. Min | X141: =IF(AA141<0,TEXT(-AA141/1440,"- [hh]:mm"),AA141/1440) -> 0 | AA141: =IF(V141<>0,V141*60,IF(Z141<>0,Z141,0)) -> 0 | AC141: So März | AE141: =AI133 -> 0 | AG141: =IF(AE141=0,"",CONCATENATE("à CHF ",TEXT('AZ Jahr'!$J$9,"00.00")," ")) ->  | AI141: =ROUND(AE141*'AZ Jahr'!$J$9*2,1)/2 -> 0
B142: Total Frei / Soll-Trend | E142: =SUM(E137:E141) -> 0 | F142: =SUM(F137:F141) -> 0 | G142: =ROUND('AZ Jahr'!$T$10*2,0)/2 -> 28.5 | I142: Ist | L142: =ROUND(P142/60,2) -> 0 | N142: =IF(P142<0,TEXT(-P142/1440,"- [hh]:mm"),P142/1440) -> 0 | P142: =P140 -> 0 | S142: ÜZ Saldo | V142: =Z142/60 -> 0 | X142: =IF(Z142<0,TEXT(-Z142/1440,"- [hh]:mm"),Z142/1440) -> 0 | Z142: =Z139+Z140+AA141 -> 0 | AC142: ND März | AE142: =AJ133 -> 0 | AG142: =IF(AE141=0,"",CONCATENATE("à CHF ",TEXT('AZ Jahr'!$J$10,"00.00")," ")) ->  | AI142: =ROUND(AE142*'AZ Jahr'!$J$10*2,1)/2 -> 0
B143: Freitagsaldo Trend ca. | E143: =G142 -> 28.5 | F143: =-F142 -> 0 | G143: =G142-F142 -> 28.5 | I143: Abweichung + / - | L143: =ROUND(P143/60,2) -> -508.4 | N143: - 508:24 | P143: =P142-P141 -> -30504 | S143: CTS Übertrag | V143: =Z143/60 -> 0 | X143: =X100 -> 0 | Z143: =Z100 -> 0 | AC143: ZstG Übertrag | AE143: =AI143/60 -> 0 | AG143: =IF(AI143<0,TEXT(-AI143/1440,"- [hh]:mm"),AI143/1440) -> 0 | AI143: =IF(AB99="JA",0,AI99) -> 0
B144: Krank, Unfall K / U | E144: =COUNTIF(D101:D131,$AN$16) -> 0 | F144: =E144+F97 -> 0 | G144: Total | I144: =CONCATENATE(" JAZ ",TEXT(C101,"JJ")," Ende März") -> JAZ 26 Ende März | L144: =ROUND(P144/60,2) -> 0 | N144: 0 | P144: =P142-$P$41 -> 0 | S144: CTS März | U144: =COUNTIF(D101:D131,$AN$23) -> 0 | V144: =U144*-1*$AP$23/60 -> 0 | X144: =IF(Z144<0,TEXT(-Z144/1440,"- [hh]:mm"),Z144/1440) -> 0 | Z144: =U144*-1*$AP$23 -> 0 | AC144: März | AD144: =COUNTIF(D101:D131,$AN$22) -> 0 | AE144: =AI144/60 -> 0 | AF144: =AJ144/60 -> 0 | AG144: =IF(AI144<0,TEXT(-AI144/1440,"- [hh]:mm"),AI144/1440) -> 0 | AH144: =IF(AJ144<0,TEXT(-AJ144/1440,"- [hh]:mm"),AJ144/1440) -> 0 | AI144: =COUNTIF(D101:D131,$AN$22)*-$AP$22 -> 0 | AJ144: =ROUND((IF('AZ Jahr'!$S$76=1,AI141,0)+IF('AZ Jahr'!$T$76=1,AI142,0))/'AZ Jahr'!$O$9,0) -> 0
B145: Urlaub 2, U. unbez., M>6 | E145: =COUNTIF(D101:D131,$AN$21)+IF(COUNTIF(D101:D131,$AN$17)>6,COUNTIF(D101:D131,$AN$17),0)+COUNTIF(D101:D131,$AN$20) -> 0 | F145: =E145+F98 -> 0 | G145: =F144+F145 -> 0 | I145: TAT Saldo Übertrag | L145: =L100 -> 0 | N145: 0 | P145: =P100 -> 0 | S145: Korrektur IND od. Min | X145: =IF(AA145<0,TEXT(-AA145/1440,"- [hh]:mm"),AA145/1440) -> 0 | AA145: =IF(V145<>0,V145*60,IF(Z145<>0,Z145,0)) -> 0 | AC145: Korrektur | AG145: =IF(AJ145<0,TEXT(-AJ145/1440,"- [hh]:mm"),AJ145/1440) -> 0 | AJ145: =IF(AE145<>0,AE145*60,IF(AI145<>0,AI145,0)) -> 0
B146: Kürzung Ruhetage | E146: =IF(F144>5,INT(63*(F144+F145)/'AZ Jahr'!$C$6),INT(63*(F145)/'AZ Jahr'!$C$6))-F99 -> 0 | F146: =E146+F99 -> 0 | G146: Kürz. | I146: TAT Mrz. + | K146: … | N146: =IF(Q146<0,TEXT(-Q146/1440,"- [hh]:mm"),Q146/1440) -> 0 | Q146: =IF(L146<>0,L146*60,IF(P146<>0,P146,0)) -> 0 | S146: =IF(AB146="JA"," Aus Konto ZstG","") -> Aus Konto ZstG | V146: =IF(AND(AB146="JA",'AZ Jahr'!$R$17=1),AE146,0) -> 0 | X146: =IF(AND(AB146="JA",'AZ Jahr'!$R$17=1),AG146,0) -> 0 | Z146: =IF(AND(AB146="JA",'AZ Jahr'!$R$17=1),AI146,0) -> 0 | AB146: JA | AC146: ZstG Saldo | AE146: =AI146/60 -> 0 | AG146: =IF(AI146<0,TEXT(-AI146/1440,"- [hh]:mm"),AI146/1440) -> 0 | AI146: =AI143+AI144+AJ144+AJ145 -> 0
B147: Kürzung Ausgleichstage | E147: =IF(F144>5,ROUND('AZ Jahr'!$C$7*(F144+F145)/'AZ Jahr'!$C$6,0),ROUND('AZ Jahr'!$C$7*(F145)/'AZ Jahr'!$C$6,0))-F100 -> 0 | F147: =E147+F100 -> 0 | G147: =-F146-F147 -> 0 | I147: TAT Saldo | L147: =P147/60 -> 0 | N147: 0 | P147: =P145+Q146 -> 0 | S147: CTS Saldo | V147: =Z147/60 -> 0 | X147: =IF(Z147<0,TEXT(-Z147/1440,"- [hh]:mm"),Z147/1440) -> 0 | Z147: =Z143+Z144+AA145+Z146 -> 0 | AC147: Anzahl / ø AZ Touren März | AG147: =AY133 -> 0 | AI147: =IF(AY132=0,"",AY132/AY133) -> 
A148: =IF(OR($C148=$AD$573,$C148=$AD$574+1,$C148=$AD$580,$C148=$AD$581+1),"Einteilung geä.",IF(ISNA(VLOOKUP($C148,Feiertage,3,FALSE)),"",VLOOKUP($C148,Feiertage,3,FALSE))) ->  | B148: =WEEKDAY(C148) -> 1900-01-04 | C148: =DATE('AZ Jahr'!$C$1,4,1) -> 2026-04-01 | O148: =IF(AND(ISNUMBER(E148),ISNUMBER(F148)),IF(E148<F148,(F148-E148)*1440,(1-E148+F148)*1440),"") ->  | P148: =IF(AND(E148=":",F148=":",$AG$3=TRUE),$AP$5,IF(O148="",0,IF(AS148<360,360,AS148))) -> 0 | Q148: =IF($S$3=1,ROUND(P148,0)/1440,P148/60) -> 00:00:00 | R148: =IF(OR(H148="",I148=""),0,IF(H148<I148,(I148-H148)*1440,IF(H148>I148,(1-H148+I148)*1440)))/$U$3 -> 0 | S148: =IF(OR(K148="",L148=""),0,IF(K148<L148,(L148-K148)*1440,IF(K148>L148,(1-K148+L148)*1440)))/$U$3 -> 0 | T148: =(IF(AND(R148*$U$3>=180,J148=2),0,IF(AND(R148*$U$3>60,N148<>1),(IF(AND(H148>I148,(H148+1/24)<=1),I148,IF(AND(H148>I148,(H148+1/24)>1),(I148+1-(H148+1/24)),IF(AND(H148<=4/24,I148<=5/24),(I148-(H148+1/24)),IF(AND((H148+1/24)<=5/24,I148>5/24),(5/24-(H148+1/24)),0))))),0))+IF(AND(S148*$U$3>=180,M148=2),0,IF(N148<>1,IF(AND(K148>L148,R148*$U$3<=60,(K148-R148*$U$3/1440+1/24)>1),(L148-(K148-R148*$U$3/1440-23/24)),IF(OR(AND(K148>L148,R148*$U$3<=60,(K148-R148*$U$3/1440+1/24)<=1),AND(K148>L148,R148*$U$3>60)),L148,IF(AND(K148<5/24,L148>=5/24,R148*$U$3<60),(5/24-(K148-R148*$U$3/1440+1/24)),IF(AND(K148<5/24,L148>=5/24,R148*$U$3>=60),(5/24-K148),IF(AND(S148*$U$3>0,K148<5/24,L148<5/24,R148*$U$3<60),(L148-(K148-R148*$U$3/1440+1/24)),IF(AND(S148*$U$3>0,K148<5/24,L148<5/24,R148*$U$3>=60),(L148-K148),0)))))))))*1440/$U$3 -> 0 | U148: =IF(AND(AS148<360,AS148+AT148<=360),0,IF(AND(AS148<360,AS148+AT148>360),AS148+AT148-360,AT148))/$U$3 -> 0 | V148: =(IF(OR(AND(R148*$U$3>=180,J148=2),AND(J148=1,N148=1)),R148*$U$3*15%,IF(AND(J148=1,R148*$U$3>60,N148=1),R148*$U$3*15%,IF(AND(J148=1,R148*$U$3>60),9,IF(AND(J148=1,R148*$U$3<=60),R148*$U$3*15%,0))))+IF(OR(AND(S148*$U$3>=180,M148=2),AND(M148=1,N148=1)),S148*$U$3*15%,IF(AND(M148=1,S148*$U$3>60,N148=1),S148*$U$3*15%,IF(AND(M148=1,S148*$U$3>0,R148*$U$3<=60),(60-R148*$U$3)*15%,0))))/$U$3 -> 0 | W148: =(IF(AND(OR(E148>F148,E148=0),F148<=5/24),F148*432,IF(AND(E148>F148,F148>5/24),90,IF(AND(E148<4/24,F148>5/24),(5/24-E148)*432,IF(AND(E148<4/24,F148<=5/24),(F148-E148)*432,0))))-IF(AND(H148>I148,I148<=5/24),I148*432,IF(AND(H148<I148,H148<=5/24,I148<=5/24),(I148-H148)*432,IF(AND(H148<I148,H148<=5/24),(5/24-H148)*432,IF(AND(H148>I148,I148>=5/24),90,0))))-IF(AND(K148>L148,L148<=5/24),L148*432,IF(AND(K148<L148,K148<=5/24,L148<=5/24),(L148-K148)*432,IF(AND(K148<L148,K148<=5/24),(5/24-K148)*432,IF(AND(K148>L148,L148>=5/24),90,0))))+T148*$U$3*30%)/$U$3 -> 0 | X148: =(IF(N148=1,0,ROUND(IF(AND(OR(E148>F148,E148=0),F148<=6/24),F148*144,IF(AND(E148>F148,F148>6/24),36,IF(AND(E148<6/24,F148<=6/24),(F148-E148)*144,IF(E148<6/24,(6/24-E148)*144,0))))-IF(AND(H148>I148,I148<=6/24),I148*144,IF(AND(H148<I148,H148<=6/24,I148<=6/24),(I148-H148)*144,IF(AND(H148<I148,H148<=6/24),(6/24-H148)*144,IF(AND(H148>I148,I148>=6/24),36,0))))-IF(AND(K148>L148,L148<=6/24),L148*144,IF(AND(K148<L148,K148<=6/24,L148<=6/24),(L148-K148)*144,IF(AND(K148<L148,K148<=6/24),(6/24-K148)*144,IF(AND(K148>L148,L148>=6/24),36,0))))+T148*$U$3*10%,1)))/$U$3 -> 0 | Y148: =(IF(O148="",0,IF(AND(E148>20/24,E148<F148),(F148-E148)*144,IF(E148>20/24,(1-E148)*144,IF(E148>F148,24,IF(F148>20/24,(F148-20/24)*144,0)))))-IF(AND(H148<=20/24,I148<H148),24,IF(AND(H148<20/24,I148<20/24),0,IF(AND(H148<=20/24,I148>20/24),(I148-20/24)*144,IF(AND(H148>20/24,I148>20/24),(I148-H148)*144,IF(AND(I148<H148,H148>20/24),(1-H148)*144,0)))))-IF(AND(K148<=20/24,L148<K148),24,IF(AND(K148<20/24,L148<20/24),0,IF(AND(K148<=20/24,L148>20/24),(L148-20/24)*144,IF(AND(K148>20/24,L148>20/24),(L148-K148)*144,IF(AND(L148<K148,K148>20/24),(1-K148)*144,0))))))/$U$3 -> 0 | AD148: =(IF(D148=$AN$12,-$AP$12,0)+AB148+AC148*60)/$U$3 -> 0 | AE148: =P148+Z148+AW148+AX148+(U148+V148+W148+X148+Y148+(AD148*-1))*$U$3+AA148*60 -> 0 | AF148: =AE148/1440 -> 00:00:00 | AG148: =AE148/60 -> 0 | AH148: =ROUND(IF($D148=$AN$15,-$AP$15/$U$3,IF(O148="",0,IF($AG$2=TRUE,W148/3,0))),$V$3) -> 0 | AI148: =ROUND((IF(O148="",,IF(E148="",0,IF(AV148=1,(IF(E148<F148,F148-E148,1-E148)-IF(AND(E148>F148,H148<I148,H148<E148),0,IF(H148<I148,I148-H148,IF(H148>I148,1-H148,0)))-IF(AND(E148>F148,K148<L148,K148<E148),0,IF(K148<L148,L148-K148,IF(K148>L148,1-K148,0)))),0))+IF(AND(AV149=1,E148>F148),(F148-IF(AND(E148>F148,H148<I148,H148<E148),I148-H148,IF(H148>I148,I148,0))-IF(AND(E148>F148,K148<L148,K148<E148),L148-K148,IF(K148>L148,L148,0))),0))+IF(AND(AV148=1,E148<5/24,P148>0),T148/1440,0)+IF(AND(E148>F148,AV149=1),T148/1440,0))*$T$3,$V$3) -> 00:00:00 | AJ148: =ROUND((IF(AND(OR(E148>F148,E148=0),F148<=6/24),F148,IF(AND(E148>F148,F148>6/24),6/24,IF(AND(E148<6/24,F148>6/24),6/24-E148,IF(AND(E148<6/24,F148<=6/24),F148-E148,0))))+IF(B148<7,IF(O148="",0,IF(AND(E148>20/24,E148<F148),F148-E148,IF(E148>20/24,1-E148,IF(E148>F148,4/24,IF(F148>20/24,F148-20/24,0))))))+IF(B148=7,IF(O148="",0,IF(AND(E148>18/24,E148<F148),F148-E148,IF(E148>18/24,1-E148,IF(E148>F148,6/24,IF(F148>18/24,F148-18/24,0))))),0))*$T$3,$V$3) -> 00:00:00 | AS148: =IF(AND(ISNUMBER(E148),ISNUMBER(F148)),ROUND(O148-R148*$U$3-S148*$U$3,0),0) -> 0 | AT148: =IF(N148=1,0,IF(AND(R148*$U$3>=180,J148=2),0,IF(R148*$U$3>60,R148*$U$3-60,0))+IF(AND(S148*$U$3>=180,M148=2),0,IF(AND(R148*$U$3>60,R148*$U$3<180),S148*$U$3,IF(AND(R148*$U$3>0,R148*$U$3<=60,S148*$U$3>0),R148*$U$3+S148*$U$3-60,0)))) -> 0 | AU148: 94 | AV148: =IF(ISNA(VLOOKUP($C148,Feiertage,1,0))=TRUE,WEEKDAY($C148),IF(VLOOKUP($C148,Feiertage,6,0)=1,1,WEEKDAY($C148))) -> 4 | AW148: =ROUND(IF(D148=$AN$24,$AP$24,IF(D148=$AN$23,$AP$23,IF(D148=$AN$22,$AP$22,IF(D148=$AN$13,$AP$13,IF(D148=$AN$14,$AP$14,IF(D148=$AN$15,$AP$15,0)))))),1) -> 0 | AX148: =ROUND(IF(D148=$AN$16,$AP$16,IF(D148=$AN$17,$AP$17,IF(D148=$AN$18,$AP$18,IF(D148=$AN$19,$AP$19,IF(D148=$AN$21,$AP$21,0))))),1)+IF(D148=$AN$20,$AP$20) -> 0 | AY148: =IF(AND(P148>0,AE148>=0),AD148*$U$3+AE148,0) -> 0
B149: =WEEKDAY(C149) -> 1900-01-05 | C149: =C148+1 -> 2026-04-02 | P149: 0 | Q149: =IF($S$3=1,ROUND(P149,0)/1440,P149/60) -> 00:00:00 | R149: =IF(OR(H149="",I149=""),0,IF(H149<I149,(I149-H149)*1440,IF(H149>I149,(1-H149+I149)*1440)))/$U$3 -> 0 | S149: =IF(OR(K149="",L149=""),0,IF(K149<L149,(L149-K149)*1440,IF(K149>L149,(1-K149+L149)*1440)))/$U$3 -> 0 | T149: =(IF(AND(R149*$U$3>=180,J149=2),0,IF(AND(R149*$U$3>60,N149<>1),(IF(AND(H149>I149,(H149+1/24)<=1),I149,IF(AND(H149>I149,(H149+1/24)>1),(I149+1-(H149+1/24)),IF(AND(H149<=4/24,I149<=5/24),(I149-(H149+1/24)),IF(AND((H149+1/24)<=5/24,I149>5/24),(5/24-(H149+1/24)),0))))),0))+IF(AND(S149*$U$3>=180,M149=2),0,IF(N149<>1,IF(AND(K149>L149,R149*$U$3<=60,(K149-R149*$U$3/1440+1/24)>1),(L149-(K149-R149*$U$3/1440-23/24)),IF(OR(AND(K149>L149,R149*$U$3<=60,(K149-R149*$U$3/1440+1/24)<=1),AND(K149>L149,R149*$U$3>60)),L149,IF(AND(K149<5/24,L149>=5/24,R149*$U$3<60),(5/24-(K149-R149*$U$3/1440+1/24)),IF(AND(K149<5/24,L149>=5/24,R149*$U$3>=60),(5/24-K149),IF(AND(S149*$U$3>0,K149<5/24,L149<5/24,R149*$U$3<60),(L149-(K149-R149*$U$3/1440+1/24)),IF(AND(S149*$U$3>0,K149<5/24,L149<5/24,R149*$U$3>=60),(L149-K149),0)))))))))*1440/$U$3 -> 0 | U149: =IF(AND(AS149<360,AS149+AT149<=360),0,IF(AND(AS149<360,AS149+AT149>360),AS149+AT149-360,AT149))/$U$3 -> 0 | V149: 0 | W149: 0 | X149: =(IF(N149=1,0,ROUND(IF(AND(OR(E149>F149,E149=0),F149<=6/24),F149*144,IF(AND(E149>F149,F149>6/24),36,IF(AND(E149<6/24,F149<=6/24),(F149-E149)*144,IF(E149<6/24,(6/24-E149)*144,0))))-IF(AND(H149>I149,I149<=6/24),I149*144,IF(AND(H149<I149,H149<=6/24,I149<=6/24),(I149-H149)*144,IF(AND(H149<I149,H149<=6/24),(6/24-H149)*144,IF(AND(H149>I149,I149>=6/24),36,0))))-IF(AND(K149>L149,L149<=6/24),L149*144,IF(AND(K149<L149,K149<=6/24,L149<=6/24),(L149-K149)*144,IF(AND(K149<L149,K149<=6/24),(6/24-K149)*144,IF(AND(K149>L149,L149>=6/24),36,0))))+T149*$U$3*10%,1)))/$U$3 -> 0 | Y149: =(IF(O149="",0,IF(AND(E149>20/24,E149<F149),(F149-E149)*144,IF(E149>20/24,(1-E149)*144,IF(E149>F149,24,IF(F149>20/24,(F149-20/24)*144,0)))))-IF(AND(H149<=20/24,I149<H149),24,IF(AND(H149<20/24,I149<20/24),0,IF(AND(H149<=20/24,I149>20/24),(I149-20/24)*144,IF(AND(H149>20/24,I149>20/24),(I149-H149)*144,IF(AND(I149<H149,H149>20/24),(1-H149)*144,0)))))-IF(AND(K149<=20/24,L149<K149),24,IF(AND(K149<20/24,L149<20/24),0,IF(AND(K149<=20/24,L149>20/24),(L149-20/24)*144,IF(AND(K149>20/24,L149>20/24),(L149-K149)*144,IF(AND(L149<K149,K149>20/24),(1-K149)*144,0))))))/$U$3 -> 0 | AD149: 0 | AE149: =P149+Z149+AW149+AX149+(U149+V149+W149+X149+Y149+(AD149*-1))*$U$3+AA149*60 -> 0 | AF149: =AE149/1440 -> 00:00:00 | AG149: =AE149/60 -> 0 | AH149: 0 | AI149: 00:00:00 | AJ149: 00:00:00 | AS149: =IF(AND(ISNUMBER(E149),ISNUMBER(F149)),ROUND(O149-R149*$U$3-S149*$U$3,0),0) -> 0 | AT149: =IF(N149=1,0,IF(AND(R149*$U$3>=180,J149=2),0,IF(R149*$U$3>60,R149*$U$3-60,0))+IF(AND(S149*$U$3>=180,M149=2),0,IF(AND(R149*$U$3>60,R149*$U$3<180),S149*$U$3,IF(AND(R149*$U$3>0,R149*$U$3<=60,S149*$U$3>0),R149*$U$3+S149*$U$3-60,0)))) -> 0 | AU149: 95 | AV149: 5 | AW149: 0 | AX149: 0 | AY149: 0
B150: 1900-01-06 | C150: =C148+2 -> 2026-04-03 | P150: 0 | Q150: 00:00:00 | R150: 0 | S150: 0 | T150: 0 | U150: 0 | V150: 0 | W150: 0 | X150: 0 | Y150: 0 | AD150: 0 | AE150: 0 | AF150: 00:00:00 | AG150: =AE150/60 -> 0 | AH150: 0 | AI150: 00:00:00 | AJ150: 00:00:00 | AS150: 0 | AT150: 0 | AU150: 96 | AV150: 1 | AW150: 0 | AX150: 0 | AY150: 0
B151: 1900-01-07 | C151: =C148+3 -> 2026-04-04 | P151: 0 | Q151: 00:00:00 | R151: 0 | S151: 0 | T151: 0 | U151: 0 | V151: 0 | W151: 0 | X151: 0 | Y151: 0 | AD151: 0 | AE151: 0 | AF151: 00:00:00 | AG151: 0 | AH151: 0 | AI151: 00:00:00 | AJ151: 00:00:00 | AS151: 0 | AT151: 0 | AU151: 97 | AV151: 7 | AW151: 0 | AX151: 0 | AY151: 0
B152: 1900-01-01 | C152: =C148+4 -> 2026-04-05 | P152: 0 | Q152: 00:00:00 | R152: 0 | S152: 0 | T152: 0 | U152: 0 | V152: 0 | W152: 0 | X152: 0 | Y152: 0 | AD152: 0 | AE152: 0 | AF152: 00:00:00 | AG152: 0 | AH152: 0 | AI152: 00:00:00 | AJ152: 00:00:00 | AS152: 0 | AT152: 0 | AU152: 98 | AV152: 1 | AW152: 0 | AX152: 0 | AY152: 0
B153: 1900-01-02 | C153: =C148+5 -> 2026-04-06 | P153: 0 | Q153: 00:00:00 | R153: 0 | S153: 0 | T153: 0 | U153: 0 | V153: 0 | W153: 0 | X153: 0 | Y153: 0 | AD153: 0 | AE153: 0 | AF153: 00:00:00 | AG153: 0 | AH153: 0 | AI153: 00:00:00 | AJ153: 00:00:00 | AS153: 0 | AT153: 0 | AU153: 99 | AV153: 1 | AW153: 0 | AX153: 0 | AY153: 0
B154: 1900-01-03 | C154: =C148+6 -> 2026-04-07 | P154: 0 | Q154: 00:00:00 | R154: 0 | S154: 0 | T154: 0 | U154: 0 | V154: 0 | W154: 0 | X154: 0 | Y154: 0 | AD154: 0 | AE154: 0 | AF154: 00:00:00 | AG154: 0 | AH154: 0 | AI154: 00:00:00 | AJ154: 00:00:00 | AS154: 0 | AT154: 0 | AU154: 100 | AV154: 3 | AW154: 0 | AX154: 0 | AY154: 0
B155: 1900-01-04 | C155: =C148+7 -> 2026-04-08 | P155: 0 | Q155: 00:00:00 | R155: 0 | S155: 0 | T155: 0 | U155: 0 | V155: 0 | W155: 0 | X155: 0 | Y155: 0 | AD155: 0 | AE155: 0 | AF155: 00:00:00 | AG155: 0 | AH155: 0 | AI155: 00:00:00 | AJ155: 00:00:00 | AS155: 0 | AT155: 0 | AU155: 101 | AV155: 4 | AW155: 0 | AX155: 0 | AY155: 0
B156: 1900-01-05 | C156: =C148+8 -> 2026-04-09 | P156: 0 | Q156: 00:00:00 | R156: 0 | S156: 0 | T156: 0 | U156: 0 | V156: 0 | W156: 0 | X156: 0 | Y156: 0 | AD156: 0 | AE156: 0 | AF156: 00:00:00 | AG156: 0 | AH156: 0 | AI156: 00:00:00 | AJ156: 00:00:00 | AS156: 0 | AT156: 0 | AU156: 102 | AV156: 5 | AW156: 0 | AX156: 0 | AY156: 0
B157: 1900-01-06 | C157: =C148+9 -> 2026-04-10 | P157: 0 | Q157: 00:00:00 | R157: 0 | S157: 0 | T157: 0 | U157: 0 | V157: 0 | W157: 0 | X157: 0 | Y157: 0 | AD157: 0 | AE157: 0 | AF157: 00:00:00 | AG157: 0 | AH157: 0 | AI157: 00:00:00 | AJ157: 00:00:00 | AS157: 0 | AT157: 0 | AU157: 103 | AV157: 6 | AW157: 0 | AX157: 0 | AY157: 0
B158: 1900-01-07 | C158: =C148+10 -> 2026-04-11 | P158: 0 | Q158: 00:00:00 | R158: 0 | S158: 0 | T158: 0 | U158: 0 | V158: 0 | W158: 0 | X158: 0 | Y158: 0 | AD158: 0 | AE158: 0 | AF158: 00:00:00 | AG158: 0 | AH158: 0 | AI158: 00:00:00 | AJ158: 00:00:00 | AS158: 0 | AT158: 0 | AU158: 104 | AV158: 7 | AW158: 0 | AX158: 0 | AY158: 0
B159: 1900-01-01 | C159: =C148+11 -> 2026-04-12 | P159: 0 | Q159: 00:00:00 | R159: 0 | S159: 0 | T159: 0 | U159: 0 | V159: 0 | W159: 0 | X159: 0 | Y159: 0 | AD159: 0 | AE159: 0 | AF159: 00:00:00 | AG159: 0 | AH159: 0 | AI159: 00:00:00 | AJ159: 00:00:00 | AS159: 0 | AT159: 0 | AU159: 105 | AV159: 1 | AW159: 0 | AX159: 0 | AY159: =IF(AND(P159>0,AE159>=0),AD159*$U$3+AE159,0) -> 0
B160: 1900-01-02 | C160: =C148+12 -> 2026-04-13 | P160: 0 | Q160: 00:00:00 | R160: 0 | S160: 0 | T160: 0 | U160: 0 | V160: 0 | W160: 0 | X160: 0 | Y160: 0 | AD160: 0 | AE160: 0 | AF160: 00:00:00 | AG160: 0 | AH160: 0 | AI160: 00:00:00 | AJ160: 00:00:00 | AS160: 0 | AT160: 0 | AU160: 106 | AV160: 2 | AW160: 0 | AX160: 0 | AY160: =IF(AND(P160>0,AE160>=0),AD160*$U$3+AE160,0) -> 0
B161: 1900-01-03 | C161: =C148+13 -> 2026-04-14 | P161: 0 | Q161: 00:00:00 | R161: 0 | S161: 0 | T161: 0 | U161: 0 | V161: 0 | W161: 0 | X161: 0 | Y161: 0 | AD161: 0 | AE161: 0 | AF161: 00:00:00 | AG161: 0 | AH161: 0 | AI161: 00:00:00 | AJ161: 00:00:00 | AS161: 0 | AT161: 0 | AU161: 107 | AV161: 3 | AW161: 0 | AX161: 0 | AY161: 0
B162: 1900-01-04 | C162: =C148+14 -> 2026-04-15 | P162: 0 | Q162: 00:00:00 | R162: 0 | S162: 0 | T162: 0 | U162: 0 | V162: 0 | W162: 0 | X162: 0 | Y162: 0 | AD162: 0 | AE162: 0 | AF162: 00:00:00 | AG162: 0 | AH162: 0 | AI162: 00:00:00 | AJ162: 00:00:00 | AS162: 0 | AT162: 0 | AU162: 108 | AV162: 4 | AW162: 0 | AX162: 0 | AY162: 0
B163: 1900-01-05 | C163: =C148+15 -> 2026-04-16 | P163: 0 | Q163: 00:00:00 | R163: 0 | S163: 0 | T163: 0 | U163: 0 | V163: 0 | W163: 0 | X163: 0 | Y163: 0 | AD163: 0 | AE163: 0 | AF163: 00:00:00 | AG163: 0 | AH163: 0 | AI163: 00:00:00 | AJ163: 00:00:00 | AS163: 0 | AT163: 0 | AU163: 109 | AV163: 5 | AW163: 0 | AX163: 0 | AY163: 0
B164: 1900-01-06 | C164: =C148+16 -> 2026-04-17 | P164: 0 | Q164: 00:00:00 | R164: 0 | S164: 0 | T164: 0 | U164: 0 | V164: 0 | W164: 0 | X164: 0 | Y164: 0 | AD164: 0 | AE164: 0 | AF164: 00:00:00 | AG164: 0 | AH164: 0 | AI164: 00:00:00 | AJ164: 00:00:00 | AS164: 0 | AT164: 0 | AU164: 110 | AV164: 6 | AW164: 0 | AX164: 0 | AY164: 0
B165: 1900-01-07 | C165: =C148+17 -> 2026-04-18 | P165: 0 | Q165: 00:00:00 | R165: 0 | S165: 0 | T165: 0 | U165: 0 | V165: 0 | W165: 0 | X165: 0 | Y165: 0 | AD165: 0 | AE165: 0 | AF165: 00:00:00 | AG165: 0 | AH165: 0 | AI165: 00:00:00 | AJ165: 00:00:00 | AS165: 0 | AT165: 0 | AU165: 111 | AV165: 7 | AW165: 0 | AX165: 0 | AY165: 0
B166: 1900-01-01 | C166: =C148+18 -> 2026-04-19 | P166: 0 | Q166: 00:00:00 | R166: 0 | S166: 0 | T166: 0 | U166: 0 | V166: 0 | W166: 0 | X166: 0 | Y166: 0 | AD166: 0 | AE166: 0 | AF166: 00:00:00 | AG166: 0 | AH166: 0 | AI166: 00:00:00 | AJ166: 00:00:00 | AS166: 0 | AT166: 0 | AU166: 112 | AV166: 1 | AW166: 0 | AX166: 0 | AY166: 0
B167: 1900-01-02 | C167: =C148+19 -> 2026-04-20 | P167: 0 | Q167: 00:00:00 | R167: 0 | S167: 0 | T167: 0 | U167: 0 | V167: 0 | W167: 0 | X167: 0 | Y167: 0 | AD167: 0 | AE167: 0 | AF167: 00:00:00 | AG167: 0 | AH167: 0 | AI167: 00:00:00 | AJ167: 00:00:00 | AS167: 0 | AT167: 0 | AU167: 113 | AV167: 2 | AW167: 0 | AX167: 0 | AY167: 0
B168: 1900-01-03 | C168: =C148+20 -> 2026-04-21 | P168: 0 | Q168: 00:00:00 | R168: 0 | S168: 0 | T168: 0 | U168: 0 | V168: 0 | W168: 0 | X168: 0 | Y168: 0 | AD168: 0 | AE168: 0 | AF168: 00:00:00 | AG168: 0 | AH168: 0 | AI168: 00:00:00 | AJ168: 00:00:00 | AS168: 0 | AT168: 0 | AU168: 114 | AV168: 3 | AW168: 0 | AX168: 0 | AY168: 0
B169: 1900-01-04 | C169: =C148+21 -> 2026-04-22 | P169: 0 | Q169: 00:00:00 | R169: 0 | S169: 0 | T169: 0 | U169: 0 | V169: 0 | W169: 0 | X169: 0 | Y169: 0 | AD169: 0 | AE169: 0 | AF169: 00:00:00 | AG169: 0 | AH169: 0 | AI169: 00:00:00 | AJ169: 00:00:00 | AS169: 0 | AT169: 0 | AU169: 115 | AV169: 4 | AW169: 0 | AX169: 0 | AY169: 0
B170: 1900-01-05 | C170: =C148+22 -> 2026-04-23 | P170: 0 | Q170: 00:00:00 | R170: 0 | S170: 0 | T170: 0 | U170: 0 | V170: 0 | W170: 0 | X170: 0 | Y170: 0 | AD170: 0 | AE170: 0 | AF170: 00:00:00 | AG170: 0 | AH170: 0 | AI170: 00:00:00 | AJ170: 00:00:00 | AS170: 0 | AT170: 0 | AU170: 116 | AV170: 5 | AW170: 0 | AX170: 0 | AY170: 0
B171: 1900-01-06 | C171: =C148+23 -> 2026-04-24 | P171: 0 | Q171: 00:00:00 | R171: 0 | S171: 0 | T171: 0 | U171: 0 | V171: 0 | W171: 0 | X171: 0 | Y171: 0 | AD171: 0 | AE171: 0 | AF171: 00:00:00 | AG171: 0 | AH171: 0 | AI171: 00:00:00 | AJ171: 00:00:00 | AS171: 0 | AT171: 0 | AU171: 117 | AV171: 6 | AW171: 0 | AX171: 0 | AY171: 0
B172: 1900-01-07 | C172: =C148+24 -> 2026-04-25 | P172: 0 | Q172: 00:00:00 | R172: 0 | S172: 0 | T172: 0 | U172: 0 | V172: 0 | W172: 0 | X172: 0 | Y172: 0 | AD172: 0 | AE172: 0 | AF172: 00:00:00 | AG172: 0 | AH172: 0 | AI172: 00:00:00 | AJ172: 00:00:00 | AS172: 0 | AT172: 0 | AU172: 118 | AV172: 7 | AW172: 0 | AX172: 0 | AY172: 0
B173: 1900-01-01 | C173: =C148+25 -> 2026-04-26 | P173: 0 | Q173: 00:00:00 | R173: 0 | S173: 0 | T173: 0 | U173: 0 | V173: 0 | W173: 0 | X173: 0 | Y173: 0 | AD173: 0 | AE173: 0 | AF173: 00:00:00 | AG173: 0 | AH173: 0 | AI173: 00:00:00 | AJ173: 00:00:00 | AS173: 0 | AT173: 0 | AU173: 119 | AV173: 1 | AW173: 0 | AX173: 0 | AY173: 0
B174: 1900-01-02 | C174: =C148+26 -> 2026-04-27 | P174: 0 | Q174: 00:00:00 | R174: 0 | S174: 0 | T174: 0 | U174: 0 | V174: 0 | W174: 0 | X174: 0 | Y174: 0 | AD174: 0 | AE174: 0 | AF174: 00:00:00 | AG174: 0 | AH174: 0 | AI174: 00:00:00 | AJ174: 00:00:00 | AS174: 0 | AT174: 0 | AU174: 120 | AV174: 2 | AW174: 0 | AX174: 0 | AY174: 0
B175: 1900-01-03 | C175: =C148+27 -> 2026-04-28 | P175: 0 | Q175: 00:00:00 | R175: 0 | S175: 0 | T175: 0 | U175: 0 | V175: 0 | W175: 0 | X175: 0 | Y175: 0 | AD175: 0 | AE175: 0 | AF175: 00:00:00 | AG175: 0 | AH175: 0 | AI175: 00:00:00 | AJ175: 00:00:00 | AS175: 0 | AT175: 0 | AU175: 121 | AV175: 3 | AW175: 0 | AX175: 0 | AY175: 0
B176: 1900-01-04 | C176: =C149+27 -> 2026-04-29 | P176: 0 | Q176: 00:00:00 | R176: 0 | S176: 0 | T176: 0 | U176: 0 | V176: 0 | W176: 0 | X176: 0 | Y176: 0 | AD176: 0 | AE176: 0 | AF176: 00:00:00 | AG176: 0 | AH176: 0 | AI176: 00:00:00 | AJ176: 00:00:00 | AS176: 0 | AT176: 0 | AU176: 122 | AV176: 4 | AW176: 0 | AX176: 0 | AY176: 0
B177: 1900-01-05 | C177: =C150+27 -> 2026-04-30 | P177: 0 | Q177: 00:00:00 | R177: 0 | S177: 0 | T177: 0 | U177: 0 | V177: 0 | W177: 0 | X177: 0 | Y177: 0 | AD177: 0 | AE177: 0 | AF177: 00:00:00 | AG177: 0 | AH177: 0 | AI177: 00:00:00 | AJ177: 00:00:00 | AS177: 0 | AT177: 0 | AU177: 123 | AV177: 5 | AW177: 0 | AX177: 0 | AY177: 0
AS178: 0 | AT178: 0 | AU178: 124 | AV178: =AV195 -> 6 | AW178: 0 | AX178: 0 | AY178: 0
T179: =IF($S$3=1,"Total Min. > ","Total IND > ") -> Total IND > | U179: =SUM(U148:U178) -> 0 | V179: =SUM(V148:V178) -> 0 | W179: =SUM(W148:W178) -> 0 | X179: =SUM(X148:X178) -> 0 | Y179: =SUM(Y148:Y178) -> 0 | AC179: in Min. / hh:mm > | AD179: =IF($S$3=1,SUM(AD148:AD178),AD180*60) -> 0 | AE179: =SUM(AE148:AE178) -> 0 | AF179: =AE179/1440 -> 0 | AH179: =SUMIF(AH148:AH178,">0",AH148:AH178)*$U$3 -> 0 | AI179: =AI180/24 -> 0 | AJ179: =AJ180/24 -> 0 | AY179: =SUM(AY148:AY178) -> 0
B180: Bemerkungen: | D180: … | T180: Total IND > | U180: =ROUND(IF($S$3=1,SUM(U179+V179)/60,SUM(U179+V179)),2) -> 0 | W180: =ROUND(IF($S$3=1,SUM(W179+X179)/60,SUM(W179+X179)),2) -> 0 | Y180: =ROUND(IF($S$3=1,Y179/60,Y179),2) -> 0 | AC180: =IF(AND($S$3=2,$AG$2=TRUE),"ND3 / So / ND = *) IND > ","IND > ") -> IND > | AD180: =IF($S$3=1,SUM(AD148:AD178)/60,SUM(AD148:AD178)) -> 0 | AE180: =AE179/60 -> 0 | AF180: =AF179*24 -> 0 | AG180: =SUM(AG148:AG178) -> 0 | AH180: =IF($S$3=1,SUM(AH148:AH178)/60,SUM(AH148:AH178)) -> 0 | AI180: =IF($S$3=1,SUM(AI148:AI178)*24,SUM(AI148:AI178)) -> 0 | AJ180: =IF($S$3=1,SUM(AJ148:AJ178)*24,SUM(AJ148:AJ178)) -> 0 | AY180: =COUNTIF(AY148:AY178,">0") -> 0
B181: =IF($S$3=2,"IND = Industrie Stunden > Stunden dezimal *) = Täglich gerundet auf 2 Stellen nach Komma","IND = Industrie Stunden > Stunden dezimal") -> IND = Industrie Stunden > Stunden dezimal *) = Täglich gerundet auf 2 Stellen nach Komma | I181: =IF($X$2=1,"Berechnung JAZ > SOPRE",IF($X$2=2,"Berechnung JAZ > SAP","Berechnung JAZ > LINEAR")) -> Berechnung JAZ > SOPRE | M181: IND | O181: hh:mm | Q181: Minuten | W181: IND | Y181: hh:mm | AA181: Minuten | AF181: IND | AG181: hh:mm (CHF) | AI181: Minuten (CHF)
B182: Abwesenheitskontrolle April | I182: AZ Saldo Übertrag | L182: =ROUND(P182/60,2) -> 0 | N182: =IF(P182<0,TEXT(-P182/1440,"- [hh]:mm"),P182/1440) -> 0 | P182: =P140 -> 0 | S182: ND3 Übertrag | V182: =Z182/60 -> 0 | X182: =IF(Z182<0,TEXT(-Z182/1440,"- [hh]:mm"),Z182/1440) -> 0 | Z182: =Z138 -> 0 | AC182: TRP Übertrag | AE182: =AI182/60 -> 0 | AG182: =IF(AI182<0,TEXT(-AI182/1440,"- [hh]:mm"),AI182/1440) -> 0 | AI182: =AI137 -> 0
B183: Was | E183: Anzahl | F183: Total | G183: Soll-Trend | I183: Korrektur IND od. Min | N183: =IF(Q183<0,TEXT(-Q183/1440,"- [hh]:mm"),Q183/1440) -> 0 | Q183: =IF(L183<>0,L183*60,IF(P183<>0,P183,0)) -> 0 | S183: ND3 April | U183: =COUNTIF(D148:D178,$AN$15) -> 0 | V183: =AH180 -> 0 | X183: =IF(Z183<0,TEXT(-Z183/1440,"- [hh]:mm"),Z183/1440) -> 0 | Z183: =AH180*60 -> 0 | AC183: April | AD183: =COUNTIF(D148:D178,$AN$14) -> 0 | AF183: =AJ183/60 -> 0 | AG183: =IF(AJ183<0,TEXT(-AJ183/1440,"- [hh]:mm"),AJ183/1440) -> 0 | AJ183: =AD183*$AP$14*-1+IF(AE183<>0,AE183*60,IF(AI183<>0,AI183,0)) -> 0
B184: Ruhetage -, RT, Ferien- | E184: =COUNTIF(D148:D178,"-")+COUNTIF(D148:D178,"RT")+COUNTIF(D148:D178,"Ferien-") -> 0 | F184: =E184+F137 -> 0 | G184: Trend = inkl. CT aus TZT und allfällige Kürzung | I184: AZ April | L184: =ROUND(AG180+Q183/60,2) -> 0 | N184: =IF(P184<0,TEXT(-P184/1440,"- [hh]:mm"),P184/1440) -> 0 | P184: =L184*60 -> 0 | S184: Korrektur IND od. Min | X184: =IF(AA184<0,TEXT(-AA184/1440,"- [hh]:mm"),AA184/1440) -> 0 | AA184: =IF(V184<>0,V184*60,IF(Z184<>0,Z184,0)) -> 0 | AC184: TRP Saldo | AE184: =AI184/60 -> 0 | AG184: =IF(AI184<0,TEXT(-AI184/1440,"- [hh]:mm"),AI184/1440) -> 0 | AI184: =AI182+AJ183 -> 0
B185: Ruhetage verlangt RTV | E185: =COUNTIF(D148:D178,$AN$8) -> 0 | F185: =E185+F138 -> 0 | I185: Kürzung | K185: =E193+E194 -> 0 | L185: =P185/60 -> 0 | N185: =IF(K185=0,"",CONCATENATE("-",TEXT(-P185/1440,"[hh]:mm"))) ->  | P185: =-K185*$AP$16 -> 0 | S185: ND3 Saldo | V185: =Z185/60 -> 0 | X185: =IF(Z185<0,TEXT(-Z185/1440,"- [hh]:mm"),Z185/1440) -> 0 | Z185: =Z182+Z183+AA184 -> 0 | AC185: Flexa Übertrag | AE185: =AI185/60 -> 0 | AG185: =IF(AI185<0,TEXT(-AI185/1440,"- [hh]:mm"),AI185/1440) -> 0 | AI185: =AI140 -> 0
